Workbook

Sheet main
G1: Panorama sociodemográfico y económico
G2: de los municipios de Jalisco

Sheet Datos
B2: 1 | D2: 14 | E2: Jalisco
B3: 2 | D3: 01 | E3: Norte | S3: =VLOOKUP($E$141,grapob!#REF!,1,FALSE) -> 
B4: 3 | D4: 02 | E4: Altos Norte
B5: 4 | D5: 03 | E5: Altos Sur
B6: 5 | D6: 04 | E6: Ciénega
B7: 6 | D7: 05 | E7: Sureste
B8: 7 | D8: 06 | E8: Sur
B9: 8 | D9: 07 | E9: Sierra de Amula
B10: 9 | D10: 08 | E10: Costa Sur
B11: 10 | D11: 09 | E11: Costa Norte
B12: 11 | D12: 10 | E12: Sierra Occidental
B13: 12 | D13: 11 | E13: Valles
B14: 13 | D14: 12 | E14: Centro
A15: Acatic | B15: 1 | D15: 1 | E15: Acatic
A16: Acatlán de Juárez | B16: 2 | D16: 2 | E16: Acatlán de Juárez
A17: Ahualulco de Mercado | B17: 3 | D17: 3 | E17: Ahualulco de Mercado
A18: Amacueca | B18: 4 | D18: 4 | E18: Amacueca
A19: Amatitán | B19: 5 | D19: 5 | E19: Amatitán
A20: Ameca | B20: 6 | D20: 6 | E20: Ameca
A21: San Juanito de Escobedo | B21: 7 | D21: 7 | E21: San Juanito de Escobedo
A22: Arandas | B22: 8 | D22: 8 | E22: Arandas
A23: El Arenal | B23: 9 | D23: 9 | E23: El Arenal
A24: Atemajac de Brizuela | B24: 10 | D24: 10 | E24: Atemajac de Brizuela
A25: Atengo | B25: 11 | D25: 11 | E25: Atengo
A26: Atenguillo | B26: 12 | D26: 12 | E26: Atenguillo
A27: Atotonilco el Alto | B27: 13 | D27: 13 | E27: Atotonilco el Alto
A28: Atoyac | B28: 14 | D28: 14 | E28: Atoyac
A29: Autlán de Navarro | B29: 15 | D29: 15 | E29: Autlán de Navarro
A30: Ayotlán | B30: 16 | D30: 16 | E30: Ayotlán
A31: Ayutla | B31: 17 | D31: 17 | E31: Ayutla
A32: La Barca | B32: 18 | D32: 18 | E32: La Barca
A33: Bolaños | B33: 19 | D33: 19 | E33: Bolaños
A34: Cabo Corrientes | B34: 20 | D34: 20 | E34: Cabo Corrientes
A35: Casimiro Castillo | B35: 21 | D35: 21 | E35: Casimiro Castillo
A36: Cihuatlán | B36: 22 | D36: 22 | E36: Cihuatlán
A37: Zapotlán el Grande | B37: 23 | D37: 23 | E37: Zapotlán el Grande
A38: Cocula | B38: 24 | D38: 24 | E38: Cocula
A39: Colotlán | B39: 25 | D39: 25 | E39: Colotlán
A40: Concepción de Buenos Aires | B40: 26 | D40: 26 | E40: Concepción de Buenos Aires
A41: Cuautitlán de García Barragán | B41: 27 | D41: 27 | E41: Cuautitlán de García Barragán
A42: Cuautla | B42: 28 | D42: 28 | E42: Cuautla
A43: Cuquío | B43: 29 | D43: 29 | E43: Cuquío
A44: Chapala | B44: 30 | D44: 30 | E44: Chapala
A45: Chimaltitán | B45: 31 | D45: 31 | E45: Chimaltitán
A46: Chiquilistlán | B46: 32 | D46: 32 | E46: Chiquilistlán
A47: Degollado | B47: 33 | D47: 33 | E47: Degollado
A48: Ejutla | B48: 34 | D48: 34 | E48: Ejutla
A49: Encarnación de Díaz | B49: 35 | D49: 35 | E49: Encarnación de Díaz
A50: Etzatlán | B50: 36 | D50: 36 | E50: Etzatlán
A51: El Grullo | B51: 37 | D51: 37 | E51: El Grullo
A52: Guachinango | B52: 38 | D52: 38 | E52: Guachinango
A53: Guadalajara | B53: 39 | D53: 39 | E53: Guadalajara
A54: Hostotipaquillo | B54: 40 | D54: 40 | E54: Hostotipaquillo
A55: Huejúcar | B55: 41 | D55: 41 | E55: Huejúcar
A56: Huejuquilla el Alto | B56: 42 | D56: 42 | E56: Huejuquilla el Alto
A57: La Huerta | B57: 43 | D57: 43 | E57: La Huerta
A58: Ixtlahuacán de los Membrillos | B58: 44 | D58: 44 | E58: Ixtlahuacán de los Membrillos
A59: Ixtlahuacán del Río | B59: 45 | D59: 45 | E59: Ixtlahuacán del Río
A60: Jalostotitlán | B60: 46 | D60: 46 | E60: Jalostotitlán
A61: Jamay | B61: 47 | D61: 47 | E61: Jamay
A62: Jesús María | B62: 48 | D62: 48 | E62: Jesús María
A63: Jilotlán de los Dolores | B63: 49 | D63: 49 | E63: Jilotlán de los Dolores
A64: Jocotepec | B64: 50 | D64: 50 | E64: Jocotepec
A65: Juanacatlán | B65: 51 | D65: 51 | E65: Juanacatlán
A66: Juchitlán | B66: 52 | D66: 52 | E66: Juchitlán
A67: Lagos de Moreno | B67: 53 | D67: 53 | E67: Lagos de Moreno
A68: El Limón | B68: 54 | D68: 54 | E68: El Limón
A69: Magdalena | B69: 55 | D69: 55 | E69: Magdalena
A70: Santa María del Oro | B70: 56 | D70: 56 | E70: Santa María del Oro
A71: La Manzanilla de la Paz | B71: 57 | D71: 57 | E71: La Manzanilla de la Paz
A72: Mascota | B72: 58 | D72: 58 | E72: Mascota
A73: Mazamitla | B73: 59 | D73: 59 | E73: Mazamitla
A74: Mexticacán | B74: 60 | D74: 60 | E74: Mexticacán
A75: Mezquitic | B75: 61 | D75: 61 | E75: Mezquitic
A76: Mixtlán | B76: 62 | D76: 62 | E76: Mixtlán
A77: Ocotlán | B77: 63 | D77: 63 | E77: Ocotlán
A78: Ojuelos de Jalisco | B78: 64 | D78: 64 | E78: Ojuelos de Jalisco
A79: Pihuamo | B79: 65 | D79: 65 | E79: Pihuamo
A80: Poncitlán | B80: 66 | D80: 66 | E80: Poncitlán
A81: Puerto Vallarta | B81: 67 | D81: 67 | E81: Puerto Vallarta
A82: Villa Purificación | B82: 68 | D82: 68 | E82: Villa Purificación
A83: Quitupan | B83: 69 | D83: 69 | E83: Quitupan
A84: El Salto | B84: 70 | D84: 70 | E84: El Salto
A85: San Cristóbal de la Barranca | B85: 71 | D85: 71 | E85: San Cristóbal de la Barranca
A86: San Diego de Alejandría | B86: 72 | D86: 72 | E86: San Diego de Alejandría
A87: San Juan de los Lagos | B87: 73 | D87: 73 | E87: San Juan de los Lagos
A88: San Julián | B88: 74 | D88: 74 | E88: San Julián
A89: San Marcos | B89: 75 | D89: 75 | E89: San Marcos
A90: San Martín de Bolaños | B90: 76 | D90: 76 | E90: San Martín de Bolaños
A91: San Martín Hidalgo | B91: 77 | D91: 77 | E91: San Martín Hidalgo
A92: San Miguel el Alto | B92: 78 | D92: 78 | E92: San Miguel el Alto
A93: Gómez Farías | B93: 79 | D93: 79 | E93: Gómez Farías
A94: San Sebastián del Oeste | B94: 80 | D94: 80 | E94: San Sebastián del Oeste
A95: Santa María de los Ángeles | B95: 81 | D95: 81 | E95: Santa María de los Ángeles
A96: Sayula | B96: 82 | D96: 82 | E96: Sayula
A97: Tala | B97: 83 | D97: 83 | E97: Tala
A98: Talpa de Allende | B98: 84 | D98: 84 | E98: Talpa de Allende
A99: Tamazula de Gordiano | B99: 85 | D99: 85 | E99: Tamazula de Gordiano
A100: Tapalpa | B100: 86 | D100: 86 | E100: Tapalpa
A101: Tecalitlán | B101: 87 | D101: 87 | E101: Tecalitlán
A102: Tecolotlán | B102: 88 | D102: 88 | E102: Tecolotlán
A103: Techaluta de Montenegro | B103: 89 | D103: 89 | E103: Techaluta de Montenegro
A104: Tenamaxtlán | B104: 90 | D104: 90 | E104: Tenamaxtlán
A105: Teocaltiche | B105: 91 | D105: 91 | E105: Teocaltiche
A106: Teocuitatlán de Corona | B106: 92 | D106: 92 | E106: Teocuitatlán de Corona
A107: Tepatitlán de Morelos | B107: 93 | D107: 93 | E107: Tepatitlán de Morelos
A108: Tequila | B108: 94 | D108: 94 | E108: Tequila
A109: Teuchitlán | B109: 95 | D109: 95 | E109: Teuchitlán
A110: Tizapán el Alto | B110: 96 | D110: 96 | E110: Tizapán el Alto
A111: Tlajomulco de Zúñiga | B111: 97 | D111: 97 | E111: Tlajomulco de Zúñiga
A112: Tlaquepaque | B112: 98 | D112: 98 | E112: Tlaquepaque
A113: Tolimán | B113: 99 | D113: 99 | E113: Tolimán
A114: Tomatlán | B114: 100 | D114: 100 | E114: Tomatlán
A115: Tonalá | B115: 101 | D115: 101 | E115: Tonalá
A116: Tonaya | B116: 102 | D116: 102 | E116: Tonaya
A117: Tonila | B117: 103 | D117: 103 | E117: Tonila
A118: Totatiche | B118: 104 | D118: 104 | E118: Totatiche
A119: Tototlán | B119: 105 | D119: 105 | E119: Tototlán | H119: Acatic | I119: =VLOOKUP(H119,A15:D139,2,FALSE) -> 1
A120: Tuxcacuesco | B120: 106 | D120: 106 | E120: Tuxcacuesco
A121: Tuxcueca | B121: 107 | D121: 107 | E121: Tuxcueca
A122: Tuxpan | B122: 108 | D122: 108 | E122: Tuxpan
A123: Unión de San Antonio | B123: 109 | D123: 109 | E123: Unión de San Antonio
A124: Unión de Tula | B124: 110 | D124: 110 | E124: Unión de Tula
A125: Valle de Guadalupe | B125: 111 | D125: 111 | E125: Valle de Guadalupe
A126: Valle de Juárez | B126: 112 | D126: 112 | E126: Valle de Juárez
A127: San Gabriel | B127: 113 | D127: 113 | E127: San Gabriel
A128: Villa Corona | B128: 114 | D128: 114 | E128: Villa Corona
A129: Villa Guerrero | B129: 115 | D129: 115 | E129: Villa Guerrero
A130: Villa Hidalgo | B130: 116 | D130: 116 | E130: Villa Hidalgo
A131: Cañadas de Obregón | B131: 117 | D131: 117 | E131: Cañadas de Obregón
A132: Yahualica de González Gallo | B132: 118 | D132: 118 | E132: Yahualica de González Gallo
A133: Zacoalco de Torres | B133: 119 | D133: 119 | E133: Zacoalco de Torres
A134: Zapopan | B134: 120 | D134: 120 | E134: Zapopan
A135: Zapotiltic | B135: 121 | D135: 121 | E135: Zapotiltic
A136: Zapotitlán de Vadillo | B136: 122 | D136: 122 | E136: Zapotitlán de Vadillo
A137: Zapotlán del Rey | B137: 123 | D137: 123 | E137: Zapotlán del Rey
A138: Zapotlanejo | B138: 124 | D138: 124 | E138: Zapotlanejo
A139: San Ignacio Cerro Gordo | B139: 125 | D139: 125 | E139: San Ignacio Cerro Gordo
A141: Instituto de Información Estadística y Geográfica de Jalisco | E141: =I119 -> 1 | F141: =VLOOKUP(E141,B15:E139,3,FALSE) -> 1 | G141: =VLOOKUP(E141,B15:E139,4,FALSE) -> Acatic
A142: Panorama sociodemográfico de los municipios de Jalisco
A143: Selección de Municipio:
A146: Volumen y estructura por edad y sexo | E146: Vivienda | H146: Economía
A147: Población total: | B147: =VLOOKUP($E$141,Pob!IO60016:IV60140,3,FALSE) -> 21206 | E147: Total de viviendas particulares habitadas: | F147: =VLOOKUP($E$141,Viv!C$15:O$139,3,FALSE) -> 5254 | H147: Población de 12 años y más | I147: Total | J147: Hombres | K147: Mujeres
A148: Relación hombre-mujer: | B148: =VLOOKUP($E$141,Pob!IO60016:IV60140,4,FALSE) -> 95.3 | E148: Promedio de ocupantes por vivienda*: | F148: =VLOOKUP($E$141,Viv!C$15:O$139,4,FALSE) -> 0.04031785 | H148: Económicamente activa: | I148: =VLOOKUP($E$141,PEA!C$15:S$139,3,FALSE) -> 0.580970749 | J148: =VLOOKUP($E$141,PEA!C$15:S$139,4,FALSE) -> 0.8270474138 | K148: =VLOOKUP($E$141,PEA!C$15:S$139,5,FALSE) -> 0.3562907391
E149: *Se excluyen las viviendas sin información de ocupantes y su población estimada. | H149: Ocupada | I149: =VLOOKUP($E$141,PEA!C$15:S$139,6,FALSE) -> 0.9784220427 | J149: =VLOOKUP($E$141,PEA!C$15:S$139,7,FALSE) -> 0.9736156352 | K149: =VLOOKUP($E$141,PEA!C$15:S$139,8,FALSE) -> 0.9886089058
A150: Edad mediana: | B150: =VLOOKUP($E$141,Pob!IO60016:IV60140,5,FALSE) -> 23 | E150: Viviendas con piso de tierra: | F150: =VLOOKUP($E$141,Viv!C$15:O$139,5,FALSE) -> 0.02398629 | H150: No ocupada | I150: =VLOOKUP($E$141,PEA!C$15:S$139,9,FALSE) -> 0.02157795729 | J150: =VLOOKUP($E$141,PEA!C$15:S$139,10,FALSE) -> 0.02638436482 | K150: =VLOOKUP($E$141,PEA!C$15:S$139,11,FALSE) -> 0.01139109424
A152: Razón de dependencia: | B152: =VLOOKUP($E$141,Pob!IO60016:IV60140,6,FALSE) -> 65.93096971 | H152: No económicamente activa: | I152: =VLOOKUP($E$141,PEA!C$15:S$139,12,FALSE) -> 0.4128576021 | J152: =VLOOKUP($E$141,PEA!C$15:S$139,13,FALSE) -> 0.1648706897 | K152: =VLOOKUP($E$141,PEA!C$15:S$139,14,FALSE) -> 0.6392817612
H154: No especificada: | I154: =VLOOKUP($E$141,PEA!C$15:S$139,15,FALSE) -> 0.006171648987 | J154: =VLOOKUP($E$141,PEA!C$15:S$139,16,FALSE) -> 0.008081896552 | K154: =VLOOKUP($E$141,PEA!C$15:S$139,17,FALSE) -> 0.004427499693
A155: Hombres | B155: Mujeres
A156: =VLOOKUP(E141,grapob!E2:AY126,24,FALSE) -> -0.4879751014 | B156: =VLOOKUP(E141,grapob!E2:AY126,47,FALSE) -> 0.5120248986
A166: =VLOOKUP($E$141,grapob!E2:AZ126,48,FALSE) -> Miles de personas
A167: Educación
A168: Tasa de alfabetización por grupo de edad:
A169: 15 a 24 años | B169: =VLOOKUP($E$141,'Tasa Alfab'!C15:F139,3,FALSE) -> 0.978
A170: 25 años y más | B170: =VLOOKUP($E$141,'Tasa Alfab'!C15:F140,4,FALSE) -> 0.853
A172: Asistencia escolar por grupos de edad:
A173: 3 a 5 años | B173: =VLOOKUP($E$141,'Asist esc'!C$15:H$139,3,FALSE) -> 0.5210332103
A174: 6 a 11 años | B174: =VLOOKUP($E$141,'Asist esc'!C$15:H$139,4,FALSE) -> 0.9566712517
A175: 12 a 14 años | B175: =VLOOKUP($E$141,'Asist esc'!C$15:H$139,5,FALSE) -> 0.8068441065
A176: 15 a 24 años | B176: =VLOOKUP($E$141,'Asist esc'!C$15:H$139,6,FALSE) -> 0.2098376545
H177: Distribución territorial de la población
H178: Superficie (km2): | I178: =VLOOKUP($E$141,'Distr terr'!C15:G139,3,FALSE) -> 339.2054025
H179: Densidad de población (hab/km2): | I179: =VLOOKUP($E$141,'Distr terr'!C15:G139,4,FALSE) -> 62.51669297
A180: Derechohabiencia | E180: Limitaciones físicas o mentales | H180: Localidades: | I180: =VLOOKUP($E$141,'Distr terr'!C15:G139,5,FALSE) -> 100
A181: Población derechohabiente: | B181: =VLOOKUP(E141,Derechoh!C15:K139,3,FALSE) -> 0.6106762237 | E181: Población con algún tipo de limitación: | F181: =VLOOKUP($E$141,Limit!C$15:L$139,3,FALSE) -> 0.06003018014
E183: Población con discapacidad según tipo de limitación: | H183: Población indígena
E184: Caminar o moverse | F184: =VLOOKUP($E$141,Limit!C$15:L$139,4,FALSE) -> 737 | H184: Población de 5 años y más que habla alguna lengua indígena: | J184: =VLOOKUP($E$141,Indig!C15:G139,3,FALSE) -> 35
E185: Ver1 | F185: =VLOOKUP($E$141,Limit!C$15:L$139,5,FALSE) -> 286
E186: Oír2 | F186: =VLOOKUP($E$141,Limit!C$15:L$139,6,FALSE) -> 131 | H186: Población en hogares indígenas: | J186: =VLOOKUP($E$141,Indig!C15:G139,5,FALSE) -> 59
E187: Hablar o comunicarse | F187: =VLOOKUP($E$141,Limit!C$15:L$139,7,FALSE) -> 105
E188: Atender el cuidado personal | F188: =VLOOKUP($E$141,Limit!C$15:L$139,8,FALSE) -> 56
E189: Poner atención o aprender | F189: =VLOOKUP($E$141,Limit!C$15:L$139,9,FALSE) -> 78
E190: Mental | F190: =VLOOKUP($E$141,Limit!C$15:L$139,10,FALSE) -> 135
E191: 1 Incluye a las personas que aun con anteojos tenían dificultad para ver.
A192: * Incluye derechohabiencias múltiples. ** Incluye seguro médico para una nueva generación | E192: 2 Incluye a las personas que aun con aparato auditivo tenían dificultad para oír.

Sheet DatosR
A2: Jalisco | B2: 1 | D2: 14 | E2: Jalisco
A3: Norte | B3: 2 | D3: 1 | E3: Norte | F3: Jalisco | G3: =VLOOKUP(F3,A2:B14,2,FALSE) -> 1
A4: Altos Norte | B4: 3 | D4: 2 | E4: Altos Norte
A5: Altos Sur | B5: 4 | D5: 3 | E5: Altos Sur
A6: Ciénega | B6: 5 | D6: 4 | E6: Ciénega
A7: Sureste | B7: 6 | D7: 5 | E7: Sureste
A8: Sur | B8: 7 | D8: 6 | E8: Sur
A9: Sierra de Amula | B9: 8 | D9: 7 | E9: Sierra de Amula
A10: Costa Sur | B10: 9 | D10: 8 | E10: Costa Sur
A11: Costa Norte | B11: 10 | D11: 9 | E11: Costa Norte
A12: Sierra Occidental | B12: 11 | D12: 10 | E12: Sierra Occidental
A13: Valles | B13: 12 | D13: 11 | E13: Valles
A14: Centro | B14: 13 | D14: 12 | E14: Centro
A141: Instituto de Información Estadística y Geográfica de Jalisco | E141: =G3 -> 1 | F141: =VLOOKUP(E141,B2:E14,3,FALSE) -> 14 | G141: =VLOOKUP(E141,B2:E14,4,FALSE) -> Jalisco
A142: Panorama sociodemográfico de los municipios de Jalisco
A143: Selección de Jalisco o Región:
A146: Volumen y estructura por edad y sexo | E146: Vivienda | H146: Economía
A147: Población total: | B147: =VLOOKUP($F$141,Pob!IO60001:IV60013,3,FALSE) -> 7350682 | E147: Total de viviendas particulares habitadas: | F147: =VLOOKUP($F$141,Viv!C$2:O$14,3,FALSE) -> 1830334 | H147: Población de 12 años y más | I147: Total | J147: Hombres | K147: Mujeres
A148: Relación hombre-mujer: | B148: =VLOOKUP($F$141,Pob!IO60001:IV60013,4,FALSE) -> 96.02 | E148: Promedio de ocupantes por vivienda*: | F148: =VLOOKUP($F$141,Viv!C$2:O$14,4,FALSE) -> 0.0401321 | H148: Económicamente activa: | I148: =VLOOKUP($F$141,PEA!C$2:S$14,3,FALSE) -> 0.5580754882 | J148: =VLOOKUP($F$141,PEA!C$2:S$14,4,FALSE) -> 0.7491978199 | K148: =VLOOKUP($F$141,PEA!C$2:S$14,5,FALSE) -> 0.3787941866
E149: *Se excluyen las viviendas sin información de ocupantes y su población estimada. | H149: Ocupada | I149: =VLOOKUP($F$141,PEA!C$2:S$14,6,FALSE) -> 0.9598680816 | J149: =VLOOKUP($F$141,PEA!C$2:S$14,7,FALSE) -> 0.9514158632 | K149: =VLOOKUP($F$141,PEA!C$2:S$14,8,FALSE) -> 0.9755495767
A150: Edad mediana: | B150: =VLOOKUP($F$141,Pob!IO60001:IV60013,5,FALSE) -> 25 | E150: Viviendas con piso de tierra: | F150: 0.279 | H150: No ocupada | I150: =VLOOKUP($F$141,PEA!C$2:S$14,9,FALSE) -> 0.04013191844 | J150: =VLOOKUP($F$141,PEA!C$2:S$14,10,FALSE) -> 0.04858413677 | K150: =VLOOKUP($F$141,PEA!C$2:S$14,11,FALSE) -> 0.0244504233
A152: Razón de dependencia: | B152: =VLOOKUP($F$141,Pob!IO60001:IV60013,6,FALSE) -> 55.65500878 | H152: No económicamente activa: | I152: =VLOOKUP($F$141,PEA!C$2:S$14,12,FALSE) -> 0.4361840201 | J152: =VLOOKUP($F$141,PEA!C$2:S$14,13,FALSE) -> 0.2435265243 | K152: =VLOOKUP($F$141,PEA!C$2:S$14,14,FALSE) -> 0.6169053743
H154: No especificada: | I154: =VLOOKUP($F$141,PEA!C$2:S$14,15,FALSE) -> 0.005740491714 | J154: =VLOOKUP($F$141,PEA!C$2:S$14,16,FALSE) -> 0.007275655799 | K154: =VLOOKUP($F$141,PEA!C$2:S$14,17,FALSE) -> 0.00430043909
A155: Hombres | B155: Mujeres
A156: =VLOOKUP(F141,grapob!E129:AZ141,24,FALSE) -> 0.4898376776 | B156: =VLOOKUP(F141,grapob!E129:AZ141,47,FALSE) -> 0.5101623224
A166: =VLOOKUP($F$141,grapob!E129:AZ141,48,FALSE) -> Millones de personas
A167: Educación
A168: Tasa de alfabetización por grupo de edad:
A169: 15 a 24 años | B169: =VLOOKUP($F$141,'Tasa Alfab'!C2:F14,3,FALSE) -> 0.983
A170: 25 años y más | B170: =VLOOKUP($F$141,'Tasa Alfab'!C2:F14,4,FALSE) -> 0.939
A172: Asistencia escolar por grupos de edad:
A173: 3 a 5 años | B173: =VLOOKUP($F$141,'Asist esc'!C$2:H$14,3,FALSE) -> 0.5314328317
A174: 6 a 11 años | B174: =VLOOKUP($F$141,'Asist esc'!C$2:H$14,4,FALSE) -> 0.9619699725
A175: 12 a 14 años | B175: =VLOOKUP($F$141,'Asist esc'!C$2:H$14,5,FALSE) -> 0.9015222885
A176: 15 a 24 años | B176: =VLOOKUP($F$141,'Asist esc'!C$2:H$14,6,FALSE) -> 0.3863821093
H177: Distribución territorial de la población
H178: Superficie (km2): | I178: =VLOOKUP($F$141,'Distr terr'!C2:G14,3,FALSE) -> 78583.57352
H179: Densidad de población (hab/km2): | I179: =VLOOKUP($F$141,'Distr terr'!C2:G14,4,FALSE) -> 93.53967592
A180: Derechohabiencia | E180: Limitaciones físicas o mentales | H180: Localidades: | I180: =VLOOKUP($F$141,'Distr terr'!C2:G14,5,FALSE) -> 125
A181: Población derechohabiente: | B181: =VLOOKUP(F141,Derechoh!C2:K14,3,FALSE) -> 0.6406578328 | E181: Población con algún tipo de limitación: | F181: =VLOOKUP($F$141,Limit!C$2:L$15,3,FALSE) -> 0.03954136501
E183: Población con discapacidad según tipo de limitación: | H183: Población indígena
E184: Caminar o moverse | F184: =VLOOKUP($F$141,Limit!C$2:L$14,4,FALSE) -> 167663 | H184: Población de 5 años y más que habla alguna lengua indígena: | J184: =VLOOKUP($F$141,Indig!C2:G14,3,FALSE) -> 51702
E185: Ver1 | F185: =VLOOKUP($F$141,Limit!C$2:L$14,5,FALSE) -> 68348
E186: Oír2 | F186: =VLOOKUP($F$141,Limit!C$2:L$14,6,FALSE) -> 29960 | H186: Población en hogares indígenas: | J186: =VLOOKUP($F$141,Indig!C2:G14,5,FALSE) -> 87638
E187: Hablar o comunicarse | F187: =VLOOKUP($F$141,Limit!C$2:L$14,7,FALSE) -> 24196
E188: Atender el cuidado personal | F188: =VLOOKUP($F$141,Limit!C$2:L$14,8,FALSE) -> 15654
E189: Poner atención o aprender | F189: =VLOOKUP($F$141,Limit!C$2:L$14,9,FALSE) -> 15488
E190: Mental | F190: =VLOOKUP($F$141,Limit!C$2:L$14,10,FALSE) -> 34955
E191: 1 Incluye a las personas que aun con anteojos tenían dificultad para ver.
A192: * Incluye derechohabiencias múltiples. ** Incluye seguro médico para una nueva generación | E192: 2 Incluye a las personas que aun con aparato auditivo tenían dificultad para oír.

Sheet DatosAM
A2: Área Metropolitana de Guadalajara | B2: 1 | D2: 14 | E2: Área Metropolitana de Guadalajara
A3: Guadalajara | B3: 39 | D3: 1 | E3: Guadalajara | F3: Área Metropolitana de Guadalajara | H3: =VLOOKUP(F3,A12:D20,4,FALSE) -> 1
A4: Ixtlahuacán de los Membrillos | B4: 44 | D4: 2 | E4: Ixtlahuacán de los Membrillos
A5: Juanacatlán | B5: 51 | D5: 3 | E5: Juanacatlán
A6: El Salto | B6: 70 | D6: 4 | E6: El Salto
A7: Tlajomulco de Zúñiga | B7: 97 | D7: 5 | E7: Tlajomulco de Zúñiga
A8: Tlaquepaque | B8: 98 | D8: 6 | E8: Tlaquepaque
A9: Tonalá | B9: 101 | D9: 7 | E9: Tonalá
A10: Zapopan | B10: 120 | D10: 8 | E10: Zapopan
A12: Área Metropolitana de Guadalajara | B12: 1 | D12: 1 | E12: Área Metropolitana de Guadalajara
A13: Guadalajara | B13: 39 | D13: 2 | E13: Guadalajara
A14: Ixtlahuacán de los Membrillos | B14: 44 | D14: 3 | E14: Ixtlahuacán de los Membrillos
A15: Juanacatlán | B15: 51 | D15: 4 | E15: Juanacatlán
A16: El Salto | B16: 70 | D16: 5 | E16: El Salto
A17: Tlajomulco de Zúñiga | B17: 97 | D17: 6 | E17: Tlajomulco de Zúñiga
A18: Tlaquepaque | B18: 98 | D18: 7 | E18: Tlaquepaque
A19: Tonalá | B19: 101 | D19: 8 | E19: Tonalá
A20: Zapopan | B20: 120 | D20: 9 | E20: Zapopan
A141: Instituto de Información Estadística y Geográfica de Jalisco | E141: =H3 -> 1 | F141: =VLOOKUP(E141,A12:D20,4,FALSE) ->  | G141: =VLOOKUP(E141,B2:E10,4,FALSE) -> Área Metropolitana de Guadalajara
A142: Panorama sociodemográfico de los municipios de Jalisco
A143: Selección municipio o Área Metropolitana:
A146: Volumen y estructura por edad y sexo | E146: Vivienda | H146: Economía
A147: Población total: | B147: =VLOOKUP($E$141,PobInd.ZMG!A26:C34,3,FALSE) -> 4434878 | E147: Total de viviendas particulares habitadas: | F147: =VLOOKUP($E$141,VivZMG!A$15:N$23,3,FALSE) -> 1099134 | H147: Población de 12 años y más | I147: Total | J147: Hombres | K147: Mujeres
A148: Relación hombre-mujer: | B148: =VLOOKUP($E$141,AsisEscZMG!A$15:K$23,9,FALSE) -> 95.9 | E148: Promedio de ocupantes por vivienda*: | F148: =VLOOKUP($E$141,VivZMG!A$15:N$23,4,FALSE) -> 0.04034883827 | H148: Económicamente activa: | I148: =VLOOKUP($E$141,PEAZMG!A$15:S$23,5,FALSE) -> 0.584 | J148: =VLOOKUP($E$141,PEAZMG!A$15:S$23,6,FALSE) -> 0.754 | K148: =VLOOKUP($E$141,PEAZMG!A$15:S$23,7,FALSE) -> 0.424
E149: *Se excluyen las viviendas sin información de ocupantes y su población estimada. | H149: Ocupada | I149: =VLOOKUP($E$141,PEAZMG!A$15:S$23,8,FALSE) -> 0.962 | J149: =VLOOKUP($E$141,PEAZMG!A$15:S$23,9,FALSE) -> 0.955 | K149: =VLOOKUP($E$141,PEAZMG!A$15:S$23,10,FALSE) -> 0.975
A150: Edad mediana: | B150: =VLOOKUP($E$141,AsisEscZMG!A$15:K$23,10,FALSE) -> 26 | E150: Viviendas con piso de tierra: | F150: =VLOOKUP($E$141,VivZMG!A$15:N$23,5,FALSE) -> 0.026 | H150: No ocupada | I150: =VLOOKUP($E$141,PEAZMG!A$15:S$23,11,FALSE) -> 0.038 | J150: =VLOOKUP($E$141,PEAZMG!A$15:S$23,12,FALSE) -> 0.045 | K150: =VLOOKUP($E$141,PEAZMG!A$15:S$23,13,FALSE) -> 0.025
A152: Razón de dependencia: | B152: =VLOOKUP($E$141,AsisEscZMG!A$15:K$23,11,FALSE) -> 52 | H152: No económicamente activa: | I152: =VLOOKUP($E$141,PEAZMG!A$15:S$23,14,FALSE) -> 0.412 | J152: =VLOOKUP($E$141,PEAZMG!A$15:S$23,15,FALSE) -> 0.24 | K152: =VLOOKUP($E$141,PEAZMG!A$15:S$23,16,FALSE) -> 0.572
H154: No especificada: | I154: =VLOOKUP($E$141,PEAZMG!A$15:S$23,17,FALSE) -> 0.005 | J154: =VLOOKUP($E$141,PEAZMG!A$15:S$23,18,FALSE) -> 0.006 | K154: =VLOOKUP($E$141,PEAZMG!A$15:S$23,19,FALSE) -> 0.004
A155: Hombres | B155: Mujeres
A156: =VLOOKUP(E141,grapobZMG!F3:BB11,25,FALSE) -> 0.4896445855 | B156: =VLOOKUP(E141,grapobZMG!F3:BB11,48,FALSE) -> 0.5103554145
A166: =VLOOKUP($E$141,grapobZMG!F3:BB11,49,FALSE) -> Miles de personas
A167: Educación
A168: Tasa de alfabetización por grupo de edad:
A169: 15 a 24 años | B169: =VLOOKUP($E$141,TasaalfZMG!A15:F23,5,FALSE) -> 0.985
A170: 25 años y más | B170: =VLOOKUP($E$141,TasaalfZMG!A15:F23,6,FALSE) -> 0.962
A172: Asistencia escolar por grupos de edad:
A173: 3 a 5 años | B173: =VLOOKUP($E$141,AsisEscZMG!A$15:H$23,5,FALSE) -> 0.545
A174: 6 a 11 años | B174: =VLOOKUP($E$141,AsisEscZMG!A$15:H$23,6,FALSE) -> 0.96
A175: 12 a 14 años | B175: =VLOOKUP($E$141,AsisEscZMG!A$15:H$23,7,FALSE) -> 0.913
A176: 15 a 24 años | B176: =VLOOKUP($E$141,AsisEscZMG!A$15:H$23,8,FALSE) -> 0.421
H177: Distribución territorial de la población
H178: Superficie (km2): | I178: =VLOOKUP($E$141,dist.terrZMG!A16:H24,6,FALSE) -> 2734.110148
H179: Densidad de población (hab/km2): | I179: =VLOOKUP($E$141,dist.terrZMG!A16:H24,7,FALSE) -> 1622.055353
A180: Derechohabiencia | E180: Limitaciones físicas o mentales | H180: Localidades: | I180: =VLOOKUP($E$141,dist.terrZMG!A16:H24,8,FALSE) -> 8
A181: Población derechohabiente: | B181: =VLOOKUP(E$141,DerechZMG!A15:K24,5,FALSE) -> 0.636 | E181: Población con algún tipo de limitación: | F181: =VLOOKUP($E$141,LimitZMG!A$15:L$23,5,FALSE) -> 0.032
E183: Población con discapacidad según tipo de limitación: | H183: Población indígena
E184: Caminar o moverse | F184: =VLOOKUP($E$141,LimitZMG!A$15:L$23,6,FALSE) -> 79288 | H184: Población de 5 años y más que habla alguna lengua indígena: | J184: =VLOOKUP($E$141,PobInd.ZMG!A15:G23,5,FALSE) -> 25389
E185: Ver1 | F185: =VLOOKUP($E$141,LimitZMG!A$15:L$23,7,FALSE) -> 32382
E186: Oír2 | F186: =VLOOKUP($E$141,LimitZMG!A$15:L$23,8,FALSE) -> 13579 | H186: Población en hogares indígenas: | J186: =VLOOKUP($E$141,PobInd.ZMG!A15:G23,7,FALSE) -> 48628
E187: Hablar o comunicarse | F187: =VLOOKUP($E$141,LimitZMG!A$15:L$23,9,FALSE) -> 12079
E188: Atender el cuidado personal | F188: =VLOOKUP($E$141,LimitZMG!A$15:L$23,10,FALSE) -> 7973
E189: Poner atención o aprender | F189: =VLOOKUP($E$141,LimitZMG!A$15:L$23,11,FALSE) -> 8014
E190: Mental | F190: =VLOOKUP($E$141,LimitZMG!A$15:L$23,12,FALSE) -> 18720
E191: 1 Incluye a las personas que aun con anteojos tenían dificultad para ver.
A192: * Incluye derechohabiencias múltiples. ** Incluye seguro médico para una nueva generación | E192: 2 Incluye a las personas que aun con aparato auditivo tenían dificultad para oír.

Sheet NivescZMG (hidden)
A1: Clave | B1: Región | C1: Clave | D1: Nombre del Municipio | E1: Sin escolaridad | F1: Básica | G1: Técnica o comercial con primaria terminada | H1: Media superior | I1: Superior | J1: No especificado
C2: 14 | D2: Jalisco | E2: 0.05150073221 | F2: 0.5805380181 | G2: 0.006289885886 | H2: 0.1848076204 | I2: 0.173032124 | J2: 0.003831619373
A3: 1 | B3: Norte | C3: 1 | D3: Norte | E3: 0.139937678 | F3: 0.6550689174 | G3: 0.001548490699 | H3: 0.120036705 | I3: 0.07948918924 | J3: 0.003919019672
A4: 2 | B4: Altos Norte | C4: 2 | D4: Altos Norte | E4: 0.08873231832 | F4: 0.7015942431 | G4: 0.001905070418 | H4: 0.122757493 | I4: 0.08169435575 | J4: 0.003316519352
A5: 3 | B5: Altos Sur | C5: 3 | D5: Altos Sur | E5: 0.0981951783 | F5: 0.6944681173 | G5: 0.002882411984 | H5: 0.1254133288 | I5: 0.07584796318 | J5: 0.003193000398
A6: 4 | B6: Ciénega | C6: 4 | D6: Ciénega | E6: 0.07759680794 | F6: 0.6802177039 | G6: 0.003990081219 | H6: 0.1374046243 | I6: 0.09732152416 | J6: 0.003469258435
A7: 5 | B7: Sureste | C7: 5 | D7: Sureste | E7: 0.1234548733 | F7: 0.6780045622 | G7: 0.004120337748 | H7: 0.1305251341 | I7: 0.06098099867 | J7: 0.002914093944
A8: 6 | B8: Sur | C8: 6 | D8: Sur | E8: 0.06222407118 | F8: 0.6313166474 | G8: 0.004597398628 | H8: 0.1719291245 | I8: 0.1269315017 | J8: 0.003001256537
A9: 7 | B9: Sierra de Amula | C9: 7 | D9: Sierra de Amula | E9: 0.06685026815 | F9: 0.6910276852 | G9: 0.003275837078 | H9: 0.1446876359 | I9: 0.0916219742 | J9: 0.002536599507
A10: 8 | B10: Costa Sur | C10: 8 | D10: Costa Sur | E10: 0.08058962681 | F10: 0.6444644616 | G10: 0.003931406635 | H10: 0.153661596 | I10: 0.1151893726 | J10: 0.002163536414
A11: 9 | B11: Costa Norte | C11: 9 | D11: Costa Norte | E11: 0.04237967785 | F11: 0.5645164407 | G11: 0.004874725827 | H11: 0.2177152078 | I11: 0.1654508034 | J11: 0.005063144367
A12: 10 | B12: Sierra Occidental | C12: 10 | D12: Sierra Occidental | E12: 0.0768000731 | F12: 0.720120614 | G12: 0.003358004386 | H12: 0.1394142909 | I12: 0.05756578947 | J12: 0.00274122807
A13: 11 | B13: Valles | C13: 11 | D13: Valles | E13: 0.05846036967 | F13: 0.6617438346 | G13: 0.004959008866 | H13: 0.166560919 | I13: 0.1021605917 | J13: 0.006115276085
A14: 12 | B14: Centro | C14: 12 | D14: Centro | E14: 0.03605035407 | F14: 0.5314859412 | G14: 0.007813132994 | H14: 0.2051056481 | I14: 0.2156420967 | J14: 0.003902826963
A15: 1 | B15: ZMG | D15: ZMG | E15: 0.035 | F15: 0.526 | G15: 0.008 | H15: 0.207 | I15: 0.221 | J15: 0.004 | L15: =VLOOKUP(DatosAM!E$141,NivescZMG!A$15:J$23,1,FALSE) -> 1
A16: 2 | B16: Centro | C16: 39 | D16: Guadalajara | E16: 0.02982540437 | F16: 0.487967082 | G16: 0.01093967075 | H16: 0.2223161005 | I16: 0.2447326178 | J16: 0.004219124538 | L16: =VLOOKUP(L$15,A$15:J$23,5,FALSE) -> 0.035
A17: 3 | B17: Centro | C17: 44 | D17: Ixtlahuacán de los Membrillos | E17: 0.04289990023 | F17: 0.6914976167 | G17: 0.0048036064 | H17: 0.1547500277 | I17: 0.1034622917 | J17: 0.002586557292 | L17: =VLOOKUP(L$15,A$15:J$23,6,FALSE) -> 0.526
A18: 4 | B18: Centro | C18: 51 | D18: Juanacatlán | E18: 0.05673371229 | F18: 0.6487756887 | G18: 0.002295583734 | H18: 0.1972015741 | I18: 0.09171403585 | J18: 0.003279405334 | L18: =VLOOKUP(L$15,A$15:J$23,7,FALSE) -> 0.008
A19: 5 | B19: Centro | C19: 70 | D19: El Salto | E19: 0.05745242952 | F19: 0.6848588213 | G19: 0.004436567123 | H19: 0.174274599 | I19: 0.07446298588 | J19: 0.004514597198 | L19: =VLOOKUP(L$15,A$15:J$23,8,FALSE) -> 0.207
A20: 6 | B20: Centro | C20: 97 | D20: Tlajomulco de Zúñiga | E20: 0.03057579099 | F20: 0.6066657865 | G20: 0.005696556437 | H20: 0.1997444898 | I20: 0.1541875709 | J20: 0.003129805377 | L20: =VLOOKUP(L$15,A$15:J$23,9,FALSE) -> 0.221
A21: 7 | B21: Centro | C21: 98 | D21: Tlaquepaque | E21: 0.04619131278 | F21: 0.5951705337 | G21: 0.006084691343 | H21: 0.1912473496 | I21: 0.1571624159 | J21: 0.004143696614 | L21: =VLOOKUP(L$15,A$15:J$23,10,FALSE) -> 0.004
A22: 8 | B22: Centro | C22: 101 | D22: Tonalá | E22: 0.04232629934 | F22: 0.6427692964 | G22: 0.005239412935 | H22: 0.1938300422 | I22: 0.1128701316 | J22: 0.002964817499
A23: 9 | B23: Centro | C23: 120 | D23: Zapopan | E23: 0.03043699589 | F23: 0.4519904071 | G23: 0.007409586081 | H23: 0.2087150307 | I23: 0.2975192027 | J23: 0.003928777475

Sheet VivZMG (hidden)
B1: Municipio | C1: Total de viviendas particulares habitadas | D1: Promedio de ocupantes por vivienda | E1: Porcentaje de viviendas con piso de tierra | F1: Agua entubada dentro de la vivienda | G1: Drenaje | H1: Servicio de sanitario | I1: Electricidad | J1: Teléfono | K1: Teléfono Celular | L1: Computadora | M1: Internet | N1: Población
B2: Jalisco | C2: 1830334 | D2: 0.0401321 | E2: 0.0302425 | F2: 0.9044970705 | G2: 0.9740049719 | H2: 0.9768795529 | I2: 0.989544808 | J2: 0.5527966931 | K2: 0.7542266555 | L2: 0.3620872856 | M2: 0.2703677221 | N2: 7350682 | O2: =N2/C2 -> 4.016033139
B3: Norte | C3: 19431 | D3: 0.04 | E3: 0.1218360996 | F3: 0.7338289195 | G3: 0.741882195 | H3: 0.7581436167 | I3: 0.8431676217 | J3: 0.3408187497 | K3: 0.4504155697 | L3: 0.1630788292 | M3: 0.07960353105
B4: Altos Norte | C4: 90685 | D4: 0.042 | E4: 0.02358501032 | F4: 0.8709024999 | G4: 0.9208350832 | H4: 0.9308481245 | I4: 0.985842488 | J4: 0.386463606 | K4: 0.6340929688 | L4: 0.2150261931 | M4: 0.1383811145
B5: Altos Sur | C5: 95115 | D5: 0.039 | E5: 0.01417089679 | F5: 0.8930427176 | G5: 0.9625206842 | H5: 0.9663993086 | I5: 0.9890808293 | J5: 0.4250993371 | K5: 0.7231631868 | L5: 0.2390834642 | M5: 0.1583806743
B6: Ciénega | C6: 122334 | D6: 0.041 | E6: 0.02947961639 | F6: 0.8614458326 | G6: 0.9709141388 | H6: 0.973994398 | I6: 0.9909317168 | J6: 0.4334787216 | K6: 0.6166432567 | L6: 0.2256064004 | M6: 0.1502345104
B7: Sureste | C7: 31553 | D7: 0.037 | E7: 0.05521609064 | F7: 0.8109705714 | G7: 0.9317040615 | H7: 0.9343100489 | I7: 0.9636115172 | J7: 0.4455920676 | K7: 0.5148731965 | L7: 0.1790821839 | M7: 0.1242293269
B8: Sur | C8: 82043 | D8: 0.04 | E8: 0.06276331026 | F8: 0.9033935178 | G8: 0.9670235125 | H8: 0.9707968191 | I8: 0.9838005924 | J8: 0.4643133688 | K8: 0.6243777731 | L8: 0.2465431841 | M8: 0.1647595285
B9: Sierra de Amula | C9: 25876 | D9: 0.037 | E9: 0.03759077317 | F9: 0.8429934823 | G9: 0.9616697703 | H9: 0.9617473619 | I9: 0.9852188082 | J9: 0.4639587213 | K9: 0.5421710118 | L9: 0.2116309745 | M9: 0.1329919305
B10: Costa Sur | C10: 44842 | D10: 0.038 | E10: 0.06137492415 | F10: 0.7595940587 | G10: 0.9430069225 | H10: 0.9393104375 | I10: 0.9666644264 | J10: 0.4135582588 | K10: 0.5615744786 | L10: 0.2340659094 | M10: 0.1655353182
B11: Costa Norte | C11: 80199 | D11: 0.038 | E11: 0.02520431556 | F11: 0.8338462722 | G11: 0.9628632248 | H11: 0.9673386166 | I11: 0.9848683029 | J11: 0.456592547 | K11: 0.8042112282 | L11: 0.3694442307 | M11: 0.3004539509
B12: Sierra Occidental | C12: 16262 | D12: 0.037 | E12: 0.05025280552 | F12: 0.8159142699 | G12: 0.9289893453 | H12: 0.9297899858 | I12: 0.9603990885 | J12: 0.3738991193 | K12: 0.5126562789 | L12: 0.1662252879 | M12: 0.09576892283
B13: Valles | C13: 87388 | D13: 0.04 | E13: 0.02743041549 | F13: 0.8388445895 | G13: 0.972700324 | H13: 0.9730679964 | I13: 0.9872004044 | J13: 0.4415515775 | K13: 0.6300985822 | L13: 0.2213502769 | M13: 0.137222235
B14: Centro | C14: 1134606 | D14: 0.041 | E14: 0.02669015088 | F14: 0.9372992728 | G14: 0.9884935938 | H14: 0.9908298194 | I14: 0.9954023009 | J14: 0.6293182797 | K14: 0.8257737734 | L14: 0.4386898404 | M14: 0.3373531303
A15: 1 | B15: ZMG | C15: 1099134 | D15: 0.04034883827 | E15: 0.026 | F15: 0.942 | G15: 0.99 | H15: 0.992 | I15: 0.996 | J15: 0.638 | K15: 0.83 | L15: 0.447 | M15: 0.345 | N15: 4434878
A16: 2 | B16: Guadalajara | C16: 379339 | D16: 0.03951945 | E16: 0.01450386 | F16: 0.9864031335 | G16: 0.9941369081 | H16: 0.9952193666 | I16: 0.9973545902 | J16: 0.7331348376 | K16: 0.8200743414 | L16: 0.4909016798 | M16: 0.3856197682 | N16: 1495189
A17: 3 | B17: Ixtlahuacán de los Membrillos | C17: 10489 | D17: 0.03906793 | E17: 0.02091691 | F17: 0.882234957 | G17: 0.9829990449 | H17: 0.9812798472 | I17: 0.9888252149 | J17: 0.2615090735 | K17: 0.7783190067 | L17: 0.2042979943 | M17: 0.1111747851 | N17: 41060
A18: 4 | B18: Juanacatlán | C18: 3229 | D18: 0.04085502 | E18: 0.01983881 | F18: 0.777433354 | G18: 0.9680719157 | H18: 0.9807811531 | I18: 0.993800372 | J18: 0.3849969002 | K18: 0.7321760694 | L18: 0.2355858648 | M18: 0.1255424675 | N18: 13218
A19: 5 | B19: El Salto | C19: 32230 | D19: 0.0429512 | E19: 0.05376109 | F19: 0.8016368862 | G19: 0.9757278521 | H19: 0.9835686618 | I19: 0.9909721354 | J19: 0.3902599025 | K19: 0.7844245908 | L19: 0.230757216 | M19: 0.131669374 | N19: 138226
A20: 6 | B20: Tlajomulco de Zúñiga | C20: 105954 | D20: 0.03966624 | E20: 0.02411249 | F20: 0.9383824787 | G20: 0.989113026 | H20: 0.9916186022 | I20: 0.9957257819 | J20: 0.4345651597 | K20: 0.8584300355 | L20: 0.3236516561 | M20: 0.2148506971 | N20: 416626
A21: 7 | B21: Tlaquepaque | C21: 143316 | D21: 0.04252634 | E21: 0.04039897 | F21: 0.9302083922 | G21: 0.9867881581 | H21: 0.990244868 | I21: 0.9940974382 | J21: 0.578189504 | K21: 0.8006347905 | L21: 0.3732469038 | M21: 0.2733911101 | N21: 608114
A22: 8 | B22: Tonalá | C22: 107280 | D22: 0.04368542 | E22: 0.03971492 | F22: 0.8681774321 | G22: 0.9830994258 | H22: 0.9891087312 | I22: 0.9937996198 | J22: 0.5313601666 | K22: 0.8122784725 | L22: 0.3210058182 | M22: 0.2151312207 | N22: 478689
A23: 9 | B23: Zapopan | C23: 317297 | D23: 0.03924217 | E23: 0.02781879 | F23: 0.9397179203 | G23: 0.9902027951 | H23: 0.991823869 | I23: 0.9957318152 | J23: 0.6951351699 | K23: 0.8601791544 | L23: 0.5439668066 | M23: 0.4470368762 | N23: 1243756
C24: 1099134
H26: =VLOOKUP(DatosAM!E$141,VivZMG!A15:N23,1,FALSE) -> 1 | J26: max | K26: min | L26: val
H27: =VLOOKUP(H$26,A$15:N$23,6,FALSE) -> 0.942 | J27: =IF(H27=MAX(H27:H34), H27, NA()) ->  | K27: =IF(H27=MIN(H27:H30), H27, NA()) -> 0.942 | L27: =IF(AND(ISNA(J27), ISNA(K27)), H27, NA()) -> 
H28: =VLOOKUP(H$26,A$15:N$23,7,FALSE) -> 0.99 | J28: =IF(H28=MAX(H28:H35), H28, NA()) ->  | K28: =IF(H28=MIN(H28:H31), H28, NA()) ->  | L28: 0.99
H29: =VLOOKUP(H$26,A$15:N$23,8,FALSE) -> 0.992 | J29: =IF(H29=MAX(H29:H36), H29, NA()) ->  | K29: =IF(H29=MIN(H29:H32), H29, NA()) ->  | L29: 0.992
H30: =VLOOKUP(H$26,A$15:N$23,9,FALSE) -> 0.996 | J30: =IF(H30=MAX(H30:H37), H30, NA()) -> 0.996 | K30: =IF(H30=MIN(H30:H33), H30, NA()) -> 
H31: =VLOOKUP(H$26,A$15:N$23,10,FALSE) -> 0.638 | J31: =IF(H31=MAX(H31:H34), H31, NA()) ->  | K31: =IF(H31=MIN(H31:H34), H31, NA()) ->  | L31: 0.638
H32: =VLOOKUP(H$26,A$15:N$23,11,FALSE) -> 0.83 | J32: =IF(H32=MAX(H31:H34), H32, NA()) -> 0.83 | K32: =IF(H32=MIN(H31:H34), H32, NA()) -> 
H33: =VLOOKUP(H$26,A$15:N$23,12,FALSE) -> 0.447 | J33: =IF(H33=MAX(H31:H34), H33, NA()) ->  | K33: =IF(H33=MIN(H31:H34), H33, NA()) ->  | L33: 0.447
H34: =VLOOKUP(H$26,A$15:N$23,13,FALSE) -> 0.345 | J34: =IF(H34=MAX(H31:H34), H34, NA()) ->  | K34: =IF(H34=MIN(H31:H34), H34, NA()) -> 0.345

Sheet LimitZMG (hidden)
A1: Clave | B1: Región | C1: Clave | D1: Municipio | E1: % de población con algún tipo de limitación | F1: Caminar o moverse | G1: Ver1 | H1: Oír2 | I1: Hablar o comunicarse | J1: Atender el cuidado personal | K1: Poner atención o aprender | L1: Mental
C2: 14 | D2: Jalisco | E2: 0.03954136501 | F2: 167663 | G2: 68348 | H2: 29960 | I2: 24196 | J2: 15654 | K2: 15488 | L2: 34955
A3: 1 | B3: Norte | C3: 1 | D3: Norte | E3: 0.07503012621 | F3: 3591 | G3: 1504 | H3: 829 | I3: 394 | J3: 234 | K3: 164 | L3: 523
A4: 2 | B4: Altos Norte | C4: 2 | D4: Altos Norte | E4: 0.05122913933 | F4: 11854 | G4: 4677 | H4: 1914 | I4: 1643 | J4: 1178 | K4: 1125 | L4: 2097
A5: 3 | B5: Altos Sur | C5: 3 | D5: Altos Sur | E5: 0.04729476446 | F5: 10186 | G5: 3902 | H5: 1887 | I5: 1499 | J5: 901 | K5: 943 | L5: 2622
A6: 4 | B6: Ciénega | C6: 4 | D6: Ciénega | E6: 0.04458202612 | F6: 13040 | G6: 5060 | H6: 2376 | I6: 1917 | J6: 1194 | K6: 1204 | L6: 2546
A7: 5 | B7: Sureste | C7: 5 | D7: Sureste | E7: 0.06849573942 | F7: 4644 | G7: 1974 | H7: 913 | I7: 623 | J7: 380 | K7: 356 | L7: 867
A8: 6 | B8: Sur | C8: 6 | D8: Sur | E8: 0.04972458793 | F8: 9648 | G8: 4133 | H8: 1978 | I8: 1249 | J8: 908 | K8: 823 | L8: 1649
A9: 7 | B9: Sierra de Amula | C9: 7 | D9: Sierra de Amula | E9: 0.07988085284 | F9: 4767 | G9: 2004 | H9: 992 | I9: 582 | J9: 383 | K9: 305 | L9: 671
A10: 8 | B10: Costa Sur | C10: 8 | D10: Costa Sur | E10: 0.05145898244 | F10: 5071 | G10: 2114 | H10: 820 | I10: 753 | J10: 388 | K10: 417 | L10: 953
A11: 9 | B11: Costa Norte | C11: 9 | D11: Costa Norte | E11: 0.03612182471 | F11: 6177 | G11: 2805 | H11: 993 | I11: 1026 | J11: 537 | K11: 559 | L11: 1023
A12: 10 | B12: Sierra Occidental | C12: 10 | D12: Sierra Occidental | E12: 0.07835839169 | F12: 2916 | G12: 1243 | H12: 502 | I12: 351 | J12: 320 | K12: 220 | L12: 507
A13: 11 | B13: Valles | C13: 11 | D13: Valles | E13: 0.05616058453 | F13: 11655 | G13: 4796 | H13: 2247 | I13: 1534 | J13: 945 | K13: 1024 | L13: 1922
A14: 12 | B14: Centro | C14: 12 | D14: Centro | E14: 0.03243671785 | F14: 84114 | G14: 34136 | H14: 14509 | I14: 12625 | J14: 8286 | K14: 8348 | L14: 19575
A15: 1 | B15: ZMG | D15: ZMG | E15: 0.032 | F15: 79288 | G15: 32382 | H15: 13579 | I15: 12079 | J15: 7973 | K15: 8014 | L15: 18720
A16: 2 | B16: Centro | C16: 39 | D16: Guadalajara | E16: 0.03755980013 | F16: 33875 | G16: 11204 | H16: 5661 | I16: 4172 | J16: 3260 | K16: 2682 | L16: 7995
A17: 3 | B17: Centro | C17: 44 | D17: Ixtlahuacán de los Membrillos | E17: 0.03558207501 | F17: 779 | G17: 397 | H17: 132 | I17: 133 | J17: 88 | K17: 90 | L17: 147
A18: 4 | B18: Centro | C18: 51 | D18: Juanacatlán | E18: 0.03881071266 | F18: 282 | G18: 138 | H18: 59 | I18: 39 | J18: 38 | K18: 25 | L18: 78
A19: 5 | B19: Centro | C19: 70 | D19: El Salto | E19: 0.02778059121 | F19: 1908 | G19: 1028 | H19: 365 | I19: 368 | J19: 171 | K19: 244 | L19: 456
A20: 6 | B20: Centro | C20: 97 | D20: Tlajomulco de Zúñiga | E20: 0.02403114544 | F20: 5355 | G20: 2325 | H20: 892 | I20: 1060 | J20: 522 | K20: 665 | L20: 1113
A21: 7 | B21: Centro | C21: 98 | D21: Tlaquepaque | E21: 0.02862950039 | F21: 9259 | G21: 4209 | H21: 1488 | I21: 1619 | J21: 952 | K21: 1004 | L21: 2336
A22: 8 | B22: Centro | C22: 101 | D22: Tonalá | E22: 0.03240935137 | F22: 8135 | G22: 4060 | H22: 1405 | I22: 1437 | J22: 675 | K22: 973 | L22: 1876
A23: 9 | B23: Centro | C23: 120 | D23: Zapopan | E23: 0.02859805299 | F23: 19695 | G23: 9021 | H23: 3577 | I23: 3251 | J23: 2267 | K23: 2331 | L23: 4719
F24: =SUM(F16:F23) -> 79288 | G24: 32382 | H24: 13579 | I24: 12079 | J24: 7973 | K24: 8014 | L24: 18720
C26: pob total | D26: pob c/limitac | E26: =D35/C35*100 -> 3.167573043
B27: Guadalajara | C27: 1495189 | D27: 56159
B28: Ixtlahuacán de los Membrillos | C28: 41060 | D28: 1461
B29: Juanacatlán | C29: 13218 | D29: 513
B30: El Salto | C30: 138226 | D30: 3840
B31: Tlajomulco de Zúñiga | C31: 416626 | D31: 10012
B32: Tlaquepaque | C32: 608114 | D32: 17410
B33: Tonalá | C33: 478689 | D33: 15514
B34: Zapopan | C34: 1243756 | D34: 35569
C35: =SUM(C27:C34) -> 4434878 | D35: =SUM(D27:D34) -> 140478

Sheet PEAZMG (hidden)
A1: Clave | B1: Region | C1: Clave | D1: Municipio | E1: % PEA Total | F1: % PEA Hombres | G1: % PEA Mujeres | H1: % Ocupada total | I1: % Ocupada hombres | J1: % Ocupada mujeres | K1: % Desocupada total | L1: % Desocupada hombres | M1: % Desocupada mujeres | N1: % PNEA Total | O1: % PNEA Hombres | P1: % PNEA Mujeres | Q1: % No especificado Total | R1: % No especificado Hombres | S1: % No especificado Mujeres
C2: 14 | D2: Jalisco | E2: 0.5580754882 | F2: 0.7491978199 | G2: 0.3787941866 | H2: 0.9598680816 | I2: 0.9514158632 | J2: 0.9755495767 | K2: 0.04013191844 | L2: 0.04858413677 | M2: 0.0244504233 | N2: 0.4361840201 | O2: 0.2435265243 | P2: 0.6169053743 | Q2: 0.005740491714 | R2: 0.007275655799 | S2: 0.00430043909
A3: 1 | B3: Norte | C3: 1 | D3: Norte | E3: 0.4162235194 | F3: 0.6338475991 | G3: 0.2158115392 | H3: 0.9336634899 | I3: 0.9175169583 | J3: 0.9773358002 | K3: 0.06633651005 | L3: 0.08248304167 | M3: 0.02266419981 | N3: 0.5717898529 | O3: 0.3494959714 | P3: 0.7765022959 | Q3: 0.01198662764 | R3: 0.01665642953 | S3: 0.007686164903
A4: 2 | B4: Altos Norte | C4: 2 | D4: Altos Norte | E4: 0.5240166201 | F4: 0.7615832986 | G4: 0.3095739826 | H4: 0.9460438192 | I4: 0.9352083252 | J4: 0.9701055735 | K4: 0.0539561808 | L4: 0.0647916748 | M4: 0.0298944265 | N4: 0.4699236717 | O4: 0.2301195503 | P4: 0.6863859659 | Q4: 0.006059708231 | R4: 0.008297151014 | S4: 0.004040051541
A5: 3 | B5: Altos Sur | C5: 3 | D5: Altos Sur | E5: 0.5510731105 | F5: 0.7812172204 | G5: 0.3438251381 | H5: 0.9601455674 | I5: 0.9515966986 | J5: 0.9776373172 | K5: 0.03985443262 | L5: 0.04840330138 | M5: 0.02236268275 | N5: 0.4413673253 | O5: 0.2083813184 | P5: 0.6511744656 | Q5: 0.007559564152 | R5: 0.01040146119 | S5: 0.005000396333
A6: 4 | B6: Ciénega | C6: 4 | D6: Ciénega | E6: 0.5055409911 | F6: 0.7363278233 | G6: 0.2908827786 | H6: 0.9587087206 | I6: 0.9493312352 | J6: 0.9807875516 | K6: 0.04129127945 | L6: 0.05066876475 | M6: 0.0192124484 | N6: 0.4871498992 | O6: 0.2537518483 | P6: 0.7042368445 | Q6: 0.007309109666 | R6: 0.009920328397 | S6: 0.004880376882
A7: 5 | B7: Sureste | C7: 5 | D7: Sureste | E7: 0.4838225392 | F7: 0.7361565007 | G7: 0.2480568842 | H7: 0.9569463141 | I7: 0.9474109028 | J7: 0.9833864165 | K7: 0.04305368592 | L7: 0.05258909723 | M7: 0.01661358354 | N7: 0.5086820696 | O7: 0.2529880933 | P7: 0.7475871199 | Q7: 0.007495391273 | R7: 0.01085540599 | S7: 0.0043559959
A8: 6 | B8: Sur | C8: 6 | D8: Sur | E8: 0.5144586178 | F8: 0.7301078092 | G8: 0.3159858038 | H8: 0.9597119993 | I8: 0.9528358075 | J8: 0.9743344645 | K8: 0.04028800073 | L8: 0.04716419252 | M8: 0.02566553554 | N8: 0.4788881374 | O8: 0.2608506588 | P8: 0.6795590123 | Q8: 0.006653244833 | R8: 0.009041531974 | S8: 0.004455183871
A9: 7 | B9: Sierra de amula | C9: 7 | D9: Sierra de amula | E9: 0.4811953157 | F9: 0.7001126776 | G9: 0.2710339551 | H9: 0.9558296968 | I9: 0.9448086359 | J9: 0.9831597391 | K9: 0.04417030323 | L9: 0.05519136408 | M9: 0.01684026088 | N9: 0.5119800781 | O9: 0.2893341028 | P9: 0.7257209192 | Q9: 0.006824606273 | R9: 0.01055321956 | S9: 0.003245125716
A10: 8 | B10: Costa Sur | C10: 8 | D10: Costa Sur | E10: 0.5214238629 | F10: 0.7412748954 | G10: 0.3043143179 | H10: 0.9647653752 | I10: 0.9576349701 | J10: 0.9819176417 | K10: 0.03523462482 | L10: 0.0423650299 | M10: 0.0180823583 | N10: 0.4719066269 | O10: 0.2498907411 | P10: 0.6911540299 | Q10: 0.006669510256 | R10: 0.008834363489 | S10: 0.004531652203
A11: 9 | B11: Costa Norte | C11: 9 | D11: Costa Norte | E11: 0.6071594483 | F11: 0.778219071 | G11: 0.4342190363 | H11: 0.9597428012 | I11: 0.9507803669 | J11: 0.9759821262 | K11: 0.04025719877 | L11: 0.04921963305 | M11: 0.02401787377 | N11: 0.3877796241 | O11: 0.2155880158 | P11: 0.5618644677 | Q11: 0.005060927673 | R11: 0.006192913246 | S11: 0.003916495994
A12: 10 | B12: Sierra Occidental | C12: 10 | D12: Sierra Occidental | E12: 0.4727956944 | F12: 0.722 | G12: 0.2262273145 | H12: 0.9657165725 | I12: 0.959306751 | J12: 0.9859519409 | K12: 0.03428342745 | L12: 0.04069324902 | M12: 0.01404805915 | N12: 0.52 | O12: 0.2675460849 | P12: 0.77 | Q12: 0.007 | R12: 0.01035853205 | S12: 0.004
A13: 11 | B13: Valles | C13: 11 | D13: Valles | E13: 0.4878974919 | F13: 0.7172332003 | G13: 0.2681342666 | H13: 0.9504048902 | I13: 0.9385135949 | J13: 0.9808852836 | K13: 0.04959510981 | L13: 0.0614864051 | M13: 0.01911471637 | N13: 0.5046657494 | O13: 0.2736797462 | P13: 0.7260103861 | Q13: 0.007436758726 | R13: 0.009087053501 | S13: 0.005855347332
A14: 12 | B14: Centro | C14: 12 | D14: Centro | E14: 0.5809388685 | F14: 0.7528542694 | G14: 0.4197263128 | H14: 0.9618111267 | I14: 0.9541799777 | J14: 0.9746468024 | K14: 0.03818887328 | L14: 0.04582002231 | M14: 0.0253531976 | N14: 0.4140460774 | O14: 0.2411079218 | P14: 0.5762177147 | Q14: 0.005015054111 | R14: 0.00603780878 | S14: 0.004055972533
A15: 1 | B15: ZMG | D15: ZMG | E15: 0.584 | F15: 0.754 | G15: 0.424 | H15: 0.962 | I15: 0.955 | J15: 0.975 | K15: 0.038 | L15: 0.045 | M15: 0.025 | N15: 0.412 | O15: 0.24 | P15: 0.572 | Q15: 0.005 | R15: 0.006 | S15: 0.004
A16: 2 | B16: Centro | C16: 39 | D16: Guadalajara | E16: 0.5786812731 | F16: 0.7336368181 | G16: 0.4399794184 | H16: 0.9624067819 | I16: 0.9546542922 | J16: 0.9739776277 | K16: 0.03759321807 | L16: 0.04534570779 | M16: 0.02602237234 | N16: 0.4166718664 | O16: 0.2607594259 | P16: 0.5562302453 | Q16: 0.004646860523 | R16: 0.00560375607 | S16: 0.003790336241
A17: 3 | B17: Centro | C17: 44 | D17: Ixtlahuacán de los Membrillos | E17: 0.5489811116 | F17: 0.7616483744 | G17: 0.3443374294 | H17: 0.9572697003 | I17: 0.9521479065 | J17: 0.9681712963 | K17: 0.04273029967 | L17: 0.04785209353 | M17: 0.0318287037 | N17: 0.4449935685 | O17: 0.230551529 | P17: 0.6513450681 | Q17: 0.006025319884 | R17: 0.007800096638 | S17: 0.004317502491
A18: 4 | B18: Centro | C18: 51 | D18: Juanacatlán | E18: 0.512286002 | F18: 0.7271632202 | G18: 0.2960193979 | H18: 0.9665814822 | I18: 0.9585864163 | J18: 0.9863481229 | K18: 0.03341851779 | L18: 0.04141358366 | M18: 0.01365187713 | N18: 0.4826787513 | O18: 0.2668138928 | P18: 0.6999393817 | Q18: 0.005035246727 | R18: 0.00602288697 | S18: 0.004041220449
A19: 5 | B19: Centro | C19: 70 | D19: El Salto | E19: 0.548854444 | F19: 0.7632522512 | G19: 0.3370499326 | H19: 0.9529071054 | I19: 0.9434138529 | J19: 0.9741446229 | K19: 0.04709289456 | L19: 0.05658614707 | M19: 0.02585537708 | N19: 0.4453646239 | O19: 0.2307990058 | P19: 0.6573349166 | Q19: 0.005780932036 | R19: 0.005948743022 | S19: 0.005615150844
A20: 6 | B20: Centro | C20: 97 | D20: Tlajomulco de Zúñiga | E20: 0.5882511701 | F20: 0.7976588145 | G20: 0.3861244487 | H20: 0.9611646383 | I20: 0.9552759674 | J20: 0.9729065375 | K20: 0.03883536173 | L20: 0.0447240326 | M20: 0.0270934625 | N20: 0.4072565467 | O20: 0.1973522479 | P20: 0.6098626542 | Q20: 0.004492283216 | R20: 0.004988937573 | S20: 0.004012897102
A21: 7 | B21: Centro | C21: 98 | D21: Tlaquepaque | E21: 0.5785320338 | F21: 0.763973825 | G21: 0.4016249842 | H21: 0.9598289481 | I21: 0.9514348259 | J21: 0.9750614264 | K21: 0.04017105192 | L21: 0.04856517408 | M21: 0.02493857361 | N21: 0.416281962 | O21: 0.230193305 | P21: 0.5938061061 | Q21: 0.00518600424 | R21: 0.005832870045 | S21: 0.004568909678
A22: 8 | B22: Centro | C22: 101 | D22: Tonalá | E22: 0.5993058987 | F22: 0.7857663265 | G22: 0.4062578574 | H22: 0.9606766888 | I22: 0.9534310378 | J22: 0.9751860328 | K22: 0.03932331115 | L22: 0.04656896217 | M22: 0.02481396721 | N22: 0.3940691113 | O22: 0.2045193975 | P22: 0.5903155827 | Q22: 0.006624989945 | R22: 0.009714276032 | S22: 0.003426559933
A23: 9 | B23: Centro | C23: 120 | D23: Zapopan | E23: 0.5903409013 | F23: 0.7477367991 | G23: 0.4433175812 | H23: 0.9648971156 | I23: 0.9580792882 | J23: 0.9756388057 | K23: 0.03510288439 | L23: 0.04192071176 | M23: 0.02436119433 | N23: 0.4052092269 | O23: 0.2473541638 | P23: 0.5526614529 | Q23: 0.004449871743 | R23: 0.00490903715 | S23: 0.004020965885

Sheet dist.terrZMG (hidden)
A1: Clave | B1: Región | D1: Clave | E1: Municipio | F1: Superficie en Km² | G1: Densidad | H1: Municipios / localidades
D3: 14 | E3: Jalisco | F3: 78583.57352 | G3: 93.53967592 | H3: 125
A4: 1 | B4: Norte | D4: 1 | E4: Región Norte | F4: 8816.142045 | G4: 8.942119988 | H4: 10
A5: 2 | B5: Altos Norte | D5: 2 | E5: Región Altos Norte | F5: 8250.120056 | G5: 46.46199054 | H5: 8
A6: 3 | B6: Altos Sur | D6: 3 | E6: Región Altos Sur | F6: 6603.521556 | G6: 58.17259726 | H6: 12
A7: 4 | B7: Ciénega | D7: 4 | E7: Región Ciénega | F7: 5042.449882 | G7: 99.81199849 | H7: 13
A8: 5 | B8: Sureste | D8: 5 | E8: Región Sureste | F8: 7350.97416 | G8: 15.83681257 | H8: 10
A9: 6 | B9: Sur | D9: 6 | E9: Región Sur | F9: 5979.011121 | G9: 55.59631739 | H9: 16
A10: 7 | B10: Sierra de Amula | D10: 7 | E10: Región Sierra de Amula | F10: 3787.85504 | G10: 25.25967836 | H10: 11
A11: 8 | B11: Costa Sur | D11: 8 | E11: Región Costa Sur | F11: 6979.969153 | G11: 24.41658355 | H11: 6
A12: 9 | B12: Costa Norte | D12: 9 | E12: Región Costa Norte | F12: 5235.102053 | G12: 57.45064699 | H12: 3
A13: 10 | B13: Sierra Occidental | D13: 10 | E13: Región Sierra Occidental | F13: 8338.42067 | G13: 7.346355194 | H13: 8
A14: 11 | B14: Valles | D14: 11 | E14: Región Valles | F14: 6279.967746 | G14: 55.00633346 | H14: 14
A15: 12 | B15: Centro | D15: 12 | E15: Región Centro | F15: 5920.040035 | G15: 773.4238236 | H15: 14
A16: 1 | B16: ZMG | C16: 1 | E16: ZMG | F16: 2734.110148 | G16: 1622.055353 | H16: 8
A17: 2 | B17: Centro | C17: 2 | D17: 39 | E17: Guadalajara | F17: 151.4210225 | G17: 9874.381872 | H17: 2
A18: 3 | B18: Centro | C18: 3 | D18: 44 | E18: Ixtlahuacán de los Membrillos | F18: 202.3876984 | G18: 202.8779433 | H18: 105
A19: 4 | B19: Centro | C19: 4 | D19: 51 | E19: Juanacatlán | F19: 138.3125325 | G19: 95.56617727 | H19: 24
A20: 5 | B20: Centro | C20: 5 | D20: 70 | E20: El Salto | F20: 87.85942939 | G20: 1573.26312 | H20: 28
A21: 6 | B21: Centro | C21: 6 | D21: 97 | E21: Tlajomulco de Zúñiga | F21: 713.9531744 | G21: 583.5480742 | H21: 272
A22: 7 | B22: Centro | C22: 7 | D22: 98 | E22: Tlaquepaque | F22: 110.4419617 | G22: 5506.186151 | H22: 31
A23: 8 | B23: Centro | C23: 8 | D23: 101 | E23: Tonalá | F23: 166.1044227 | G23: 2881.855836 | H23: 59
A24: 9 | B24: Centro | C24: 9 | D24: 120 | E24: Zapopan | F24: 1163.629906 | G24: 1068.858744 | H24: 234

Sheet PobInd.ZMG (hidden)
A1: Clave | B1: Región | C1: Clave | D1: Municipio | E1: Población de 5 años y más que habla alguna lengua indígena | F1: % de la población estatal que habla alguna lengua indígena | G1: Población en hogares censales indígenas
C2: 14 | D2: Jalisco | E2: 51702 | F2: 0.703363307 | G2: 87638
A3: 1 | B3: Norte | C3: 1 | D3: Norte | E3: 16586 | F3: 21.03887867 | G3: 20191
A4: 2 | B4: Altos Norte | C4: 2 | D4: Altos Norte | E4: 629 | F4: 0.1640939484 | G4: 1385
A5: 3 | B5: Altos Sur | C5: 3 | D5: Altos Sur | E5: 840 | F5: 0.2186679995 | G5: 1858
A6: 4 | B6: Ciénega | C6: 4 | D6: Ciénega | E6: 956 | F6: 0.1899474863 | G6: 2185
A7: 5 | B7: Sureste | C7: 5 | D7: Sureste | E7: 205 | F7: 0.1760926333 | G7: 454
A8: 6 | B8: Sur | C8: 6 | D8: Sur | E8: 1282 | F8: 0.385667141 | G8: 2218
A9: 7 | B9: Sierra de Amula | C9: 7 | D9: Sierra de Amula | E9: 276 | F9: 0.2884615385 | G9: 485
A10: 8 | B10: Costa Sur | C10: 8 | D10: Costa Sur | E10: 1238 | F10: 0.7264107213 | G10: 2168
A11: 9 | B11: Costa Norte | C11: 9 | D11: Costa Norte | E11: 2700 | F11: 0.8977257614 | G11: 5602
A12: 10 | B12: Sierra Occidental | C12: 10 | D12: Sierra Occidental | E12: 75 | F12: 0.122434987 | G12: 206
A13: 11 | B13: Valles | C13: 11 | D13: Valles | E13: 803 | F13: 0.232458502 | G13: 1731
A14: 12 | B14: Centro | C14: 12 | D14: Centro | E14: 26112 | F14: 0.5702928779 | G14: 49155
A15: 1 | B15: ZMG | D15: ZMG | E15: 25389 | F15: 0.6 | G15: 48628
A16: 2 | B16: Centro | C16: 39 | D16: Guadalajara | E16: 5471 | F16: 0.3659069188 | G16: 9844
A17: 3 | B17: Centro | C17: 44 | D17: Ixtlahuacán de los Membrillos | E17: 150 | F17: 0.3653190453 | G17: 323
A18: 4 | B18: Centro | C18: 51 | D18: Juanacatlán | E18: 24 | F18: 0.1815705856 | G18: 46
A19: 5 | B19: Centro | C19: 70 | D19: El Salto | E19: 476 | F19: 0.3443635785 | G19: 1252
A20: 6 | B20: Centro | C20: 97 | D20: Tlajomulco de Zúñiga | E20: 2035 | F20: 0.4884476725 | G20: 4280
A21: 7 | B21: Centro | C21: 98 | D21: Tlaquepaque | E21: 3175 | F21: 0.5221060525 | G21: 7339
A22: 8 | B22: Centro | C22: 101 | D22: Tonalá | E22: 1719 | F22: 0.3591058077 | G22: 3389
A23: 9 | B23: Centro | C23: 120 | D23: Zapopan | E23: 12339 | F23: 0.9920756161 | G23: 22155
E24: =SUM(E16:E23) -> 25389 | G24: =SUM(G16:G23) -> 48628
C25: pob total
A26: 1 | B26: ZMG | C26: =SUM(C27:C34) -> 4434878
A27: 2 | B27: Guadalajara | C27: 1495189 | E27: =E24/C26*100 -> 0.5724847448
A28: 3 | B28: Ixtlahuacán de los Membrillos | C28: 41060
A29: 4 | B29: Juanacatlán | C29: 13218
A30: 5 | B30: El Salto | C30: 138226
A31: 6 | B31: Tlajomulco de Zúñiga | C31: 416626
A32: 7 | B32: Tlaquepaque | C32: 608114
A33: 8 | B33: Tonalá | C33: 478689
A34: 9 | B34: Zapopan | C34: 1243756

Sheet TasaalfZMG (hidden)
A1: Clave | B1: Región | C1: Clave | D1: Nombre del Municipio | E1: Tasa de alfabetización 15 a 24 años | F1: Tasa de alfabetización 25 años y más
C2: 14 | D2: Jalisco | E2: 0.983 | F2: 0.939
A3: 1 | B3: Norte | C3: 1 | D3: Norte | E3: 0.952 | F3: 0.826
A4: 2 | B4: Altos Norte | C4: 2 | D4: Altos Norte | E4: 0.98 | F4: 0.895
A5: 3 | B5: Altos Sur | C5: 3 | D5: Altos Sur | E5: 0.98 | F5: 0.886
A6: 4 | B6: Ciénega | C6: 4 | D6: Ciénega | E6: 0.977 | F6: 0.899
A7: 5 | B7: Sureste | C7: 5 | D7: Sureste | E7: 0.977 | F7: 0.848
A8: 6 | B8: Sur | C8: 6 | D8: Sur | E8: 0.984 | F8: 0.912
A9: 7 | B9: Sierra de Amula | C9: 7 | D9: Sierra de Amula | E9: 0.985 | F9: 0.91
A10: 8 | B10: Costa Sur | C10: 8 | D10: Costa Sur | E10: 0.978 | F10: 0.894
A11: 9 | B11: Costa Norte | C11: 9 | D11: Costa Norte | E11: 0.983 | F11: 0.948
A12: 10 | B12: Sierra Occidental | C12: 10 | D12: Sierra Occidental | E12: 0.985 | F12: 0.902
A13: 11 | B13: Valles | C13: 11 | D13: Valles | E13: 0.982 | F13: 0.922
A14: 12 | B14: Centro | C14: 12 | D14: Centro | E14: 0.985 | F14: 0.96
A15: 1 | B15: ZMG | D15: ZMG | E15: 0.985 | F15: 0.962
A16: 2 | B16: Centro | C16: 39 | D16: Guadalajara | E16: 0.988 | F16: 0.968
A17: 3 | B17: Centro | C17: 44 | D17: Ixtlahuacán de los Membrillos | E17: 0.988 | F17: 0.952
A18: 4 | B18: Centro | C18: 51 | D18: Juanacatlán | E18: 0.988 | F18: 0.935
A19: 5 | B19: Centro | C19: 70 | D19: El Salto | E19: 0.975 | F19: 0.94
A20: 6 | B20: Centro | C20: 97 | D20: Tlajomulco de Zúñiga | E20: 0.983 | F20: 0.965
A21: 7 | B21: Centro | C21: 98 | D21: Tlaquepaque | E21: 0.981 | F21: 0.95
A22: 8 | B22: Centro | C22: 101 | D22: Tonalá | E22: 0.981 | F22: 0.953
A23: 9 | B23: Centro | C23: 120 | D23: Zapopan | E23: 0.986 | F23: 0.966

Sheet Estructura de poblacion (hidden)
A1: VOLUMEN Y ESTRUCTURA POR SEXO DEL ÁREA METROPOLITANA DE GUADALAJARA, 2010
A2: Grupos quinquenales de edad | C2: AMG | F2: Guadalajara | I2: Zapopán | L2: Tonalá | O2: Tlaquepaque | R2: Tlajomulco de Zuñiga | U2: Juanacatlán | X2: Ixtlahuacán de los Membrillos | AA2: El Salto
C3: Total | D3: Hombres | E3: Mujeres | F3: Total | G3: Hombres | H3: Mujeres | I3: Total | J3: Hombres | K3: Mujeres | L3: Total | M3: Hombres | N3: Mujeres | O3: Total | P3: Hombres | Q3: Mujeres | R3: Total | S3: Hombres | T3: Mujeres | U3: Total | V3: Hombres | W3: Mujeres | X3: Total | Y3: Hombres | Z3: Mujeres | AA3: Total | AB3: Hombres | AC3: Mujeres
A4: Total | C4: =SUM(F4,I4,L4,O4,R4,U4,X4,AA4) -> 4434878 | D4: =SUM(G4,J4,M4,P4,S4,V4,Y4,AB4) -> 2171514 | E4: 2263364 | F4: =SUM(F5:F25) -> 1495189 | G4: 717404 | H4: 777785 | I4: 1243756 | J4: 607907 | K4: 635849 | L4: 478689 | M4: 243241 | N4: 235448 | O4: 608114 | P4: 299904 | Q4: 308210 | R4: 416626 | S4: 206958 | T4: 209668 | U4: 13218 | V4: 6675 | W4: 6543 | X4: 41060 | Y4: 20419 | Z4: 20641 | AA4: 138226 | AB4: 69006 | AC4: 69220
A5: 0 - 4 años | B5: =SUM(C5:C7) -> 1273019 | C5: =SUM(F5,I5,L5,O5,R5,U5,X5,AA5) -> 411867 | D5: 210061 | E5: 201806 | F5: =G5+H5 -> 112720 | G5: 57713 | H5: 55007 | I5: =J5+K5 -> 110673 | J5: 56327 | K5: 54346 | L5: =M5+N5 -> 50515 | M5: 25670 | N5: 24845 | O5: =P5+Q5 -> 62710 | P5: 32043 | Q5: 30667 | R5: =S5+T5 -> 53183 | S5: 27147 | T5: 26036 | U5: =V5+W5 -> 1308 | V5: 685 | W5: 623 | X5: =Y5+Z5 -> 4806 | Y5: 2458 | Z5: 2348 | AA5: =AB5+AC5 -> 15952 | AB5: 8018 | AC5: 7934
A6: 5 - 9 años | C6: 436262 | D6: 221739 | E6: 214523 | F6: =G6+H6 -> 123424 | G6: 62859 | H6: 60565 | I6: =J6+K6 -> 117515 | J6: 59692 | K6: 57823 | L6: =M6+N6 -> 53275 | M6: 27049 | N6: 26226 | O6: =P6+Q6 -> 65508 | P6: 33149 | Q6: 32359 | R6: =S6+T6 -> 53738 | S6: 27439 | T6: 26299 | U6: =V6+W6 -> 1408 | V6: 737 | W6: 671 | X6: =Y6+Z6 -> 4859 | Y6: 2513 | Z6: 2346 | AA6: =AB6+AC6 -> 16535 | AB6: 8301 | AC6: 8234
A7: 10 - 14 años | C7: 424890 | D7: 214776 | E7: 210114 | F7: 127598 | G7: 64220 | H7: 63378 | I7: 117552 | J7: 59767 | K7: 57785 | L7: 50929 | M7: 25673 | N7: 25256 | O7: 63370 | P7: 31857 | Q7: 31513 | R7: 44164 | S7: 22345 | T7: 21819 | U7: 1352 | V7: 656 | W7: 696 | X7: 4312 | Y7: 2253 | Z7: 2059 | AA7: 15613 | AB7: 8005 | AC7: 7608
A8: 15 - 19 años | B8: =SUM(C8:C17) -> 2917954 | C8: 426828 | D8: 215738 | E8: 211090 | F8: 137718 | G8: 69407 | H8: 68311 | I8: 123696 | J8: 62631 | K8: 61065 | L8: 48611 | M8: 24701 | N8: 23910 | O8: 61037 | P8: 30968 | Q8: 30069 | R8: 35998 | S8: 18066 | T8: 17932 | U8: 1339 | V8: 707 | W8: 632 | X8: 3963 | Y8: 1987 | Z8: 1976 | AA8: 14466 | AB8: 7271 | AC8: 7195
A9: 20 - 24 años | C9: 417171 | D9: 208011 | E9: 209160 | F9: 143388 | G9: 71841 | H9: 71547 | I9: 123293 | J9: 61452 | K9: 61841 | L9: 45111 | M9: 23117 | N9: 21994 | O9: 55250 | P9: 27593 | Q9: 27657 | R9: 32950 | S9: 15551 | T9: 17399 | U9: 1232 | V9: 624 | W9: 608 | X9: 3527 | Y9: 1673 | Z9: 1854 | AA9: 12420 | AB9: 6160 | AC9: 6260
A10: 25 - 29 años | C10: 381236 | D10: 187929 | E10: 193307 | F10: 127695 | G10: 63610 | H10: 64085 | I10: 106781 | J10: 52324 | K10: 54457 | L10: 41739 | M10: 21731 | N10: 20008 | O10: 50096 | P10: 24273 | Q10: 25823 | R10: 39247 | S10: 18381 | T10: 20866 | U10: 994 | V10: 480 | W10: 514 | X10: 3516 | Y10: 1691 | Z10: 1825 | AA10: 11168 | AB10: 5439 | AC10: 5729
A11: 30 - 34 años | C11: 349759 | D11: 169339 | E11: 180420 | F11: 108041 | G11: 52045 | H11: 55996 | I11: 95928 | J11: 45701 | K11: 50227 | L11: 38568 | M11: 19864 | N11: 18704 | O11: 49237 | P11: 23530 | Q11: 25707 | R11: 42602 | S11: 20773 | T11: 21829 | U11: 1010 | V11: 487 | W11: 523 | X11: 3360 | Y11: 1610 | Z11: 1750 | AA11: 11013 | AB11: 5329 | AC11: 5684
A12: 35 - 39 años | C12: 342122 | D12: 165200 | E12: 176922 | F12: 106427 | G12: 49921 | H12: 56506 | I12: 96554 | J12: 45961 | K12: 50593 | L12: 38179 | M12: 19496 | N12: 18683 | O12: 49263 | P12: 23864 | Q12: 25399 | R12: 36975 | S12: 18730 | T12: 18245 | U12: 928 | V12: 459 | W12: 469 | X12: 3212 | Y12: 1544 | Z12: 1668 | AA12: 10584 | AB12: 5225 | AC12: 5359
A13: 40 - 44 años | C13: 282526 | D13: 135010 | E13: 147516 | F13: 94704 | G13: 43594 | H13: 51110 | I13: 81815 | J13: 38645 | K13: 43170 | L13: 31119 | M13: 15839 | N13: 15280 | O13: 38960 | P13: 18975 | Q13: 19985 | R13: 24178 | S13: 12221 | T13: 11957 | U13: 754 | V13: 368 | W13: 386 | X13: 2552 | Y13: 1245 | Z13: 1307 | AA13: 8444 | AB13: 4123 | AC13: 4321
A14: 45 - 49 años | C14: 232584 | D14: 109360 | E14: 123224 | F14: 84640 | G14: 38265 | H14: 46375 | I14: 68400 | J14: 31852 | K14: 36548 | L14: 24713 | M14: 12368 | N14: 12345 | O14: 29911 | P14: 14411 | Q14: 15500 | R14: 16205 | S14: 8129 | T14: 8076 | U14: 632 | V14: 309 | W14: 323 | X14: 1797 | Y14: 886 | Z14: 911 | AA14: 6286 | AB14: 3140 | AC14: 3146
A15: 50 - 54 años | C15: 203329 | D15: 94562 | E15: 108767 | F15: 80935 | G15: 36107 | H15: 44828 | I15: 59880 | J15: 27900 | K15: 31980 | L15: 18819 | M15: 9402 | N15: 9417 | O15: 25092 | P15: 11958 | Q15: 13134 | R15: 11702 | S15: 5727 | T15: 5975 | U15: 541 | V15: 268 | W15: 273 | X15: 1396 | Y15: 691 | Z15: 705 | AA15: 4964 | AB15: 2509 | AC15: 2455
A16: 55 - 59 años | C16: 156516 | D16: 73322 | E16: 83194 | F16: 66590 | G16: 29874 | H16: 36716 | I16: 45249 | J16: 21344 | K16: 23905 | L16: 12863 | M16: 6528 | N16: 6335 | O16: 18423 | P16: 8929 | Q16: 9494 | R16: 8463 | S16: 4138 | T16: 4325 | U16: 468 | V16: 219 | W16: 249 | X16: 1026 | Y16: 521 | Z16: 505 | AA16: 3434 | AB16: 1769 | AC16: 1665
A17: 60 - 64 años | C17: 125883 | D17: 58535 | E17: 67348 | F17: 57529 | G17: 25524 | H17: 32005 | I17: 35362 | J17: 16847 | K17: 18515 | L17: 8889 | M17: 4490 | N17: 4399 | O17: 14111 | P17: 6737 | Q17: 7374 | R17: 6154 | S17: 3033 | T17: 3121 | U17: 375 | V17: 192 | W17: 183 | X17: 863 | Y17: 410 | Z17: 453 | AA17: 2600 | AB17: 1302 | AC17: 1298
A18: 65 - 69 años | B18: =SUM(C18:C25) -> 243905 | C18: 86931 | D18: 40356 | E18: 46575 | F18: 41687 | G18: 18514 | H18: 23173 | I18: 22955 | J18: 10926 | K18: 12029 | L18: 5847 | M18: 2892 | N18: 2955 | O18: 9540 | P18: 4608 | Q18: 4932 | R18: 4133 | S18: 1989 | T18: 2144 | U18: 300 | V18: 170 | W18: 130 | X18: 649 | Y18: 309 | Z18: 340 | AA18: 1820 | AB18: 948 | AC18: 872
A19: 70 - 74 años | C19: 62246 | D19: 28112 | E19: 34134 | F19: 31412 | G19: 13577 | H19: 17835 | I19: 15527 | J19: 7168 | K19: 8359 | L19: 4023 | M19: 1918 | N19: 2105 | O19: 6385 | P19: 3004 | Q19: 3381 | R19: 2898 | S19: 1418 | T19: 1480 | U19: 241 | V19: 130 | W19: 111 | X19: 451 | Y19: 235 | Z19: 216 | AA19: 1309 | AB19: 662 | AC19: 647
A20: 75 - 79 años | C20: 41587 | D20: 18285 | E20: 23302 | F20: 21781 | G20: 9242 | H20: 12539 | I20: 10038 | J20: 4430 | K20: 5608 | L20: 2551 | M20: 1188 | N20: 1363 | O20: 4208 | P20: 1945 | Q20: 2263 | R20: 1798 | S20: 869 | T20: 929 | U20: 133 | V20: 65 | W20: 68 | X20: 345 | Y20: 179 | Z20: 166 | AA20: 733 | AB20: 367 | AC20: 366
A21: 80 - 84 años | C21: 27908 | D21: 11496 | E21: 16412 | F21: 15201 | G21: 6078 | H21: 9123 | I21: 6538 | J21: 2672 | K21: 3866 | L21: 1529 | M21: 707 | N21: 822 | O21: 2724 | P21: 1121 | Q21: 1603 | R21: 1135 | S21: 516 | T21: 619 | U21: 92 | V21: 56 | W21: 36 | X21: 232 | Y21: 116 | Z21: 116 | AA21: 457 | AB21: 230 | AC21: 227
A22: 85 - 89 años | C22: 15895 | D22: 6319 | E22: 9576 | F22: 8586 | G22: 3270 | H22: 5316 | I22: 3783 | J22: 1504 | K22: 2279 | L22: 921 | M22: 402 | N22: 519 | O22: 1465 | P22: 610 | Q22: 855 | R22: 686 | S22: 307 | T22: 379 | U22: 63 | V22: 34 | W22: 29 | X22: 123 | Y22: 64 | Z22: 59 | AA22: 268 | AB22: 128 | AC22: 140
A23: 90 - 94 años | C23: 6562 | D23: 2389 | E23: 4173 | F23: 3649 | G23: 1273 | H23: 2376 | I23: 1544 | J23: 544 | K23: 1000 | L23: 338 | M23: 142 | N23: 196 | O23: 572 | P23: 224 | Q23: 348 | R23: 269 | S23: 107 | T23: 162 | U23: 34 | V23: 19 | W23: 15 | X23: 46 | Y23: 25 | Z23: 21 | AA23: 110 | AB23: 55 | AC23: 55
A24: 95 - 99 años | C24: 2320 | D24: 823 | E24: 1497 | F24: 1229 | G24: 401 | H24: 828 | I24: 559 | J24: 183 | K24: 376 | L24: 127 | M24: 52 | N24: 75 | O24: 209 | P24: 91 | Q24: 118 | R24: 124 | S24: 60 | T24: 64 | U24: 13 | V24: 10 | W24: 3 | X24: 20 | Y24: 7 | Z24: 13 | AA24: 39 | AB24: 19 | AC24: 20
A25: 100 años y más | C25: 456 | D25: 152 | E25: 304 | F25: 235 | G25: 69 | H25: 166 | I25: 114 | J25: 37 | K25: 77 | L25: 23 | M25: 12 | N25: 11 | O25: 43 | P25: 14 | Q25: 29 | R25: 24 | S25: 12 | T25: 12 | U25: 1 | V25: 0 | W25: 1 | X25: 5 | Y25: 2 | Z25: 3 | AA25: 11 | AB25: 6 | AC25: 5
A26: Fuente: Elaborado por el Consejo Estatal de Población con base en INEGI, censos y conteos de población y vivienda 2010.
A28: 0 - 4 años
A29: 5 - 9 años | D29: =+D4/C4*100 -> 48.96445855 | E29: =+E4/C4*100 -> 51.03554145 | G29: =+G4/F4*100 -> 47.98082383 | H29: =+H4/F4*100 -> 52.01917617 | J29: =+J4/I4*100 -> 48.87670894 | K29: =+K4/I4*100 -> 51.12329106 | M29: =+M4/L4*100 -> 50.81399405 | N29: =+N4/L4*100 -> 49.18600595 | P29: =+P4/O4*100 -> 49.31706884 | Q29: =+Q4/O4*100 -> 50.68293116 | S29: =+S4/R4*100 -> 49.67476826 | T29: =+T4/R4*100 -> 50.32523174 | V29: =+V4/U4*100 -> 50.49931911 | W29: =+W4/U4*100 -> 49.50068089 | Y29: =+Y4/X4*100 -> 49.72966391 | Z29: =+Z4/X4*100 -> 50.27033609 | AB29: =+AB4/AA4*100 -> 49.92259054 | AC29: =+AC4/AA4*100 -> 50.07740946
A30: 10 - 14 años
A31: 15 - 19 años | C31: =+SUM(C5:C7) -> 1273019 | D31: 0-14
A32: 20 - 24 años | C32: =+SUM(C18:C25) -> 243905 | D32: 65 + | E32: RELACIÓN DE DEPENDENCIA
A33: 25 - 29 años | C33: =+SUM(C8:C17) -> 2917954 | D33: 15 a 64
A34: 30 - 34 años | C34: =+C31+C32 -> 1516924
A35: 35 - 39 años | C35: =+C34/C33*100 -> 51.98587778
A36: 40 - 44 años | C36: =(B5+B18)/B8*100 -> 51.98587778
A37: 45 - 49 años
A38: 50 - 54 años
A39: 55 - 59 años
A40: 60 - 64 años
A41: 65 - 69 años
A42: 70 - 74 años
A43: 75 - 79 años
A44: 80 - 84 años
A45: 85 - 89 años
A46: 90 - 94 años
A47: 95 - 99 años
A48: 100 años y más

Sheet FecZMG (hidden)
A1: Clave | B1: Región | C1: Clave | D1: Municipio | E1: Promedio de hijos nacidos vivos de las mujeres entre 15 y 49 años | F1: 15-19 años | G1: 20-24 años | H1: 25-29 años | I1: 30-34 años | J1: 35-39 años | K1: 40-44 años | L1: 45-49 años
D2: Jalisco | E2: 1.690847084 | F2: 0.135578 | G2: 0.680664 | H2: 1.383017 | I2: 2.069749 | J2: 2.56434 | K2: 2.966784 | L2: 3.386089
A3: 1 | B3: Norte | D3: Norte | E3: 2.071728874 | F3: 0.1796634 | G3: 0.8324482 | H3: 1.7735321 | I3: 2.6943723 | J3: 3.3483083 | K3: 3.9188967 | L3: 4.6281046
A4: 2 | B4: Altos Norte | D4: Altos Norte | E4: 1.854162881 | F4: 0.106496625 | G4: 0.649777375 | H4: 1.461810375 | I4: 2.24997025 | J4: 2.984135875 | K4: 3.6110285 | L4: 4.3673535
A5: 3 | B5: Altos Sur | D5: Altos Sur | E5: 1.765821697 | F5: 0.08931083333 | G5: 0.52972025 | H5: 1.329013 | I5: 2.120184167 | J5: 2.772815333 | K5: 3.504994583 | L5: 4.098415833
A6: 4 | B6: Ciénega | D6: Ciénega | E6: 1.885603284 | F6: 0.1537486923 | G6: 0.7978215385 | H6: 1.592486231 | I6: 2.329876231 | J6: 2.865370154 | K6: 3.401193615 | L6: 3.990836
A7: 5 | B7: Sureste | D7: Sureste | E7: 1.810273236 | F7: 0.1075335 | G7: 0.6430897 | H7: 1.4670968 | I7: 2.213052 | J7: 2.7695928 | K7: 3.3246535 | L7: 3.8541559
A8: 6 | B8: Sur | D8: Sur | E8: 1.821896823 | F8: 0.135216125 | G8: 0.7449573125 | H8: 1.534679313 | I8: 2.21897775 | J8: 2.819608313 | K8: 3.330629438 | L8: 3.90970175
A9: 7 | B9: Sierra de Amula | D9: Sierra de Amula | E9: 1.773028235 | F9: 0.1133434545 | G9: 0.6756993636 | H9: 1.445221818 | I9: 2.101401727 | J9: 2.707378636 | K9: 3.314823273 | L9: 3.838114273
A10: 8 | B10: Costa Sur | D10: Costa Sur | E10: 2.015813267 | F10: 0.1716921667 | G10: 0.8763795 | H10: 1.794235667 | I10: 2.5008235 | J10: 3.088806833 | K10: 3.6258125 | L10: 4.128490667
A11: 9 | B11: Costa Norte | D11: Costa Norte | E11: 2.021370936 | F11: 0.2239483333 | G11: 1.002782 | H11: 1.793800667 | I11: 2.494037 | J11: 3.000594667 | K11: 3.513122667 | L11: 4.025534333
A12: 10 | B12: Sierra Occidental | D12: Sierra Occidental | E12: 1.912331568 | F12: 0.10672075 | G12: 0.702664375 | H12: 1.517228375 | I12: 2.227683125 | J12: 3.057416375 | K12: 3.530964875 | L12: 4.068428875
A13: 11 | B13: Valles | D13: Valles | E13: 1.863839146 | F13: 0.1361510714 | G13: 0.737216 | H13: 1.566722643 | I13: 2.333764143 | J13: 2.885046286 | K13: 3.274778857 | L13: 3.757328143
A14: 12 | B14: Centro | D14: Centro | E14: 1.798749682 | F14: 0.1380482857 | G14: 0.7202089286 | H14: 1.494645 | I14: 2.215596786 | J14: 2.745370214 | K14: 3.205316214 | L14: 3.695644357
B15: ZMG | D15: ZMG | E15: 1.6 | F15: 0.1 | G15: 0.7 | H15: 1.3 | I15: 2 | J15: 2.4 | K15: 2.8 | L15: 3.1
A17: 12 | B17: Centro | C17: 39 | D17: Guadalajara | E17: 1.421242839 | F17: 0.102213 | G17: 0.507652 | H17: 1.068238 | I17: 1.701371 | J17: 2.165805 | K17: 2.486376 | L17: 2.817136
A18: 12 | B18: Centro | C18: 44 | D18: Ixtlahuacán de los Membrillos | E18: 1.922497309 | F18: 0.192167 | G18: 0.952459 | H18: 1.761351 | I18: 2.374784 | J18: 2.833635 | K18: 3.138889 | L18: 3.58674
A19: 12 | B19: Centro | C19: 51 | D19: Juanacatlán | E19: 1.829651163 | F19: 0.124402 | G19: 0.649587 | H19: 1.654971 | I19: 2.203065 | J19: 2.736617 | K19: 3.515625 | L19: 3.714286
A20: 12 | B20: Centro | C20: 70 | D20: El Salto | E20: 2.009010953 | F20: 0.213836 | G20: 0.983203 | H20: 1.863339 | I20: 2.495367 | J20: 2.976964 | K20: 3.41897 | L20: 3.872067
A21: 12 | B21: Centro | C21: 97 | D21: Tlajomulco de Zúñiga | E21: 1.885572184 | F21: 0.189416 | G21: 0.985183 | H21: 1.715042 | I21: 2.248388 | J21: 2.637178 | K21: 3.05033 | L21: 3.530034
A22: 12 | B22: Centro | C22: 98 | D22: Tlaquepaque | E22: 1.775350329 | F22: 0.174812 | G22: 0.803709 | H22: 1.504384 | I22: 2.151851 | J22: 2.60926 | K22: 2.997658 | L22: 3.418235
A23: 12 | B23: Centro | C23: 101 | D23: Tonalá | E23: 1.860759593 | F23: 0.158849 | G23: 0.83997 | H23: 1.632082 | I23: 2.319831 | J23: 2.80736 | K23: 3.163009 | L23: 3.589434
A24: 12 | B24: Centro | C24: 120 | D24: Zapopan | E24: 1.528192069 | F24: 0.117043 | G24: 0.565666 | H24: 1.172392 | I24: 1.860204 | J24: 2.358078 | K24: 2.700123 | L24: 3.006886

Sheet MortZMG (hidden)
A1: Clave | B1: Región | C1: Clave | D1: Municipio | E1: Porcentaje de hijos fallecidos por grupo de edad 15-19 años | F1: 20-24 años | G1: 25-29 años | H1: 30-34 años | I1: 35-39 años | J1: 40-44 años | K1: 45-49 años
C2: 14 | D2: Jalisco | E2: 1.821836 | F2: 2.065593 | G2: 2.191724 | H2: 2.475875 | I2: 3.001139 | J2: 3.932169 | K2: 5.112274
A3: 1 | B3: Norte | D3: Norte | E3: 1.8890758 | F3: 3.1155878 | G3: 3.1405033 | H3: 3.8708104 | I3: 5.5568006 | J3: 6.6455955 | K3: 8.8689199
A4: 2 | B4: Altos Norte | D4: Altos Norte | E4: 2.42827725 | F4: 2.008526 | G4: 2.41643225 | H4: 2.829299125 | I4: 3.6431025 | J4: 4.937216375 | K4: 6.728920375
A5: 3 | B5: Altos Sur | D5: Altos Sur | E5: 1.399437417 | F5: 2.201907 | G5: 2.2122715 | H5: 2.3002335 | I5: 3.418371667 | J5: 4.54145075 | K5: 5.998522
A6: 4 | B6: Ciénega | D6: Ciénega | E6: 1.037727692 | F6: 1.991913 | G6: 2.108469231 | H6: 2.462481077 | I6: 3.197837769 | J6: 4.126245154 | K6: 5.802845154
A7: 5 | B7: Sureste | D7: Sureste | E7: 2.6851255 | F7: 2.4883344 | G7: 2.4345052 | H7: 2.6075837 | I7: 3.4492249 | J7: 4.3321269 | K7: 5.5410737
A8: 6 | B8: Sur | D8: Sur | E8: 1.634693875 | F8: 2.744330687 | G8: 2.127695812 | H8: 2.911373438 | I8: 3.661611687 | J8: 5.10342925 | K8: 7.205197687
A9: 7 | B9: Sierra de Amula | D9: Sierra de Amula | E9: 2.707883727 | F9: 1.435442364 | G9: 1.808908091 | H9: 2.243488182 | I9: 2.955426636 | J9: 4.694378545 | K9: 5.349488455
A10: 8 | B10: Costa Sur | D10: Costa Sur | E10: 2.203619833 | F10: 1.855009667 | G10: 2.356128167 | H10: 3.0243595 | I10: 3.5355485 | J10: 5.2895735 | K10: 6.482582333
A11: 9 | B11: Costa Norte | D11: Costa Norte | E11: 2.928216667 | F11: 2.087973 | G11: 2.106000667 | H11: 2.604259667 | I11: 3.854049333 | J11: 4.454118 | K11: 5.821814333
A12: 10 | B12: Sierra Occidental | D12: Sierra Occidental | E12: 1.228584 | F12: 1.749786875 | G12: 2.168926875 | H12: 2.4662365 | I12: 2.814267 | J12: 3.829651 | K12: 5.57948625
A13: 11 | B13: Valles | D13: Valles | E13: 1.8619515 | F13: 1.857600214 | G13: 2.019266357 | H13: 2.150863143 | I13: 2.939413571 | J13: 3.691801286 | K13: 5.479066786
A14: 12 | B14: Centro | D14: Centro | E14: 2.224229786 | F14: 2.059603429 | G14: 2.047063714 | H14: 2.635704929 | I14: 3.003177429 | J14: 4.007765429 | K14: 5.384751929
B15: ZMG | D15: ZMG | E15: 1.7 | F15: 2 | G15: 2.1 | H15: 2.4 | I15: 2.8 | J15: 3.5 | K15: 4.4
A17: 12 | B17: Centro | C17: 39 | D17: Guadalajara | E17: 1.571709 | F17: 1.857479 | G17: 1.846387 | H17: 1.975193 | I17: 2.413351 | J17: 3.053961 | K17: 3.627973
A18: 12 | B18: Centro | C18: 44 | D18: Ixtlahuacán de los Membrillos | E18: 3.651685 | F18: 1.909308 | G18: 2.184545 | H18: 2.977542 | I18: 3.794692 | J18: 4.641877 | K18: 4.497189
A19: 12 | B19: Centro | C19: 51 | D19: Juanacatlán | E19: 0 | F19: 2.570694 | G19: 1.3269 | H19: 1.359927 | I19: 1.443464 | J19: 4.021244 | K19: 4.940375
A20: 12 | B20: Centro | C20: 70 | D20: El Salto | E20: 1.726519 | F20: 2.51118 | G20: 2.221789 | H20: 2.855478 | I20: 3.470195 | J20: 4.763915 | K20: 6.185302
A21: 12 | B21: Centro | C21: 97 | D21: Tlajomulco de Zúñiga | E21: 1.802382 | F21: 2.215565 | G21: 2.526659 | H21: 2.719824 | I21: 3.198149 | J21: 4.381256 | K21: 5.360848
A22: 12 | B22: Centro | C22: 98 | D22: Tlaquepaque | E22: 1.764706 | F22: 2.149779 | G22: 2.301756 | H22: 2.616578 | I22: 3.079076 | J22: 3.848658 | K22: 5.116135
A23: 12 | B23: Centro | C23: 101 | D23: Tonalá | E23: 2.059874 | F23: 1.988938 | G23: 2.148573 | H23: 2.384904 | I23: 2.979165 | J23: 3.591248 | K23: 4.978455
A24: 12 | B24: Centro | C24: 120 | D24: Zapopan | E24: 1.557401 | F24: 1.823206 | G24: 2.063049 | H24: 2.292624 | I24: 2.547804 | J24: 3.339369 | K24: 4.416457

Sheet Sit cony ZMG (hidden)
A1: Clave | B1: Región | C1: Clave | D1: Municipio | E1: En unión libre | F1: Casada | G1: Separada | H1: Divorciada | I1: Viuda | J1: Soltera | K1: No especificado | M1: Población de 12 años y más
C2: 14 | D2: Jalisco | E2: 9.768801669 | F2: 43.62404267 | G2: 3.052801206 | H2: 1.510127407 | I2: 4.218722574 | J2: 37.605537 | K2: 0.2199674824
A3: 1 | B3: Norte | D3: Norte | E3: 19.46787688 | F3: 34.6174499 | G3: 2.615579152 | H3: 0.5213836587 | I3: 5.652076008 | J3: 36.76880705 | K3: 0.3568273545
A4: 2 | B4: Altos Norte | D4: Altos Norte | E4: 5.443508564 | F4: 48.55879116 | G4: 1.921259065 | H4: 0.6733401055 | I4: 4.135627416 | J4: 39.06607128 | K4: 0.2014024098
A5: 3 | B5: Altos Sur | D5: Altos Sur | E5: 4.417565994 | F5: 48.81601585 | G5: 1.72323306 | H5: 0.6961750343 | I5: 4.179135603 | J5: 39.99026815 | K5: 0.1776063118
A6: 4 | B6: Ciénega | D6: Ciénega | E6: 8.252873442 | F6: 48.15879053 | G6: 2.555367612 | H6: 0.9321615431 | I6: 4.607751466 | J6: 35.31602614 | K6: 0.1770292702
A7: 5 | B7: Sureste | D7: Sureste | E7: 7.980969442 | F7: 47.29838194 | G7: 2.345085905 | H7: 0.8759175032 | I7: 5.683576256 | J7: 35.71952028 | K7: 0.09654867565
A8: 6 | B8: Sur | D8: Sur | E8: 8.198590707 | F8: 46.14017427 | G8: 2.336106829 | H8: 1.07505741 | I8: 5.345402498 | J8: 36.69468999 | K8: 0.2099782944
A9: 7 | B9: Sierra de Amula | D9: Sierra de Amula | E9: 9.441378382 | F9: 45.14066496 | G9: 2.472741957 | H9: 0.7914927985 | I9: 5.693902275 | J9: 36.36020999 | K9: 0.09960963791
A10: 8 | B10: Costa Sur | D10: Costa Sur | E10: 15.68963512 | F10: 39.93485595 | G10: 3.295978906 | H10: 1.11055101 | I10: 4.694249486 | J10: 35.13280856 | K10: 0.1419209741
A11: 9 | B11: Costa Norte | D11: Costa Norte | E11: 20.24549743 | F11: 34.58896155 | G11: 4.437357061 | H11: 1.58126072 | I11: 2.995908376 | J11: 35.94286021 | K11: 0.2081546598
A12: 10 | B12: Sierra Occidental | D12: Sierra Occidental | E12: 12.4963209 | F12: 41.92069966 | G12: 2.180128663 | H12: 0.6706471009 | I12: 5.61956019 | J12: 36.99070765 | K12: 0.1219358365
A13: 11 | B13: Valles | D13: Valles | E13: 9.198905432 | F13: 47.09485999 | G13: 2.387449365 | H13: 0.7628923034 | I13: 4.951689893 | J13: 35.44778127 | K13: 0.1564217469
A14: 12 | B14: Centro | D14: Centro | E14: 9.846774263 | F14: 42.61615336 | G14: 3.36383607 | H14: 1.86722938 | I14: 3.998504692 | J14: 38.06389409 | K14: 0.243608137
B15: ZMG | D15: ZMG | E15: 9.915807021 | F15: 42.48194811 | G15: 3.402376165 | H15: 1.903304276 | I15: 3.98892287 | J15: 38.06328435 | K15: 0.2443572109 | M15: 3355743
A17: 12 | B17: Centro | C17: 39 | D17: Guadalajara | E17: 7.305799005 | F17: 40.30584454 | G17: 3.551547183 | H17: 2.363819414 | I17: 5.346545673 | J17: 40.91589781 | K17: 0.210546375 | M17: 1185962
A18: 12 | B18: Centro | C18: 44 | D18: Ixtlahuacán de los Membrillos | E18: 15.1817751 | F18: 44.29625618 | G18: 3.066820121 | H18: 1.076433552 | I18: 3.154830411 | J18: 32.9700088 | K18: 0.2538758378 | M18: 29542
A19: 12 | B19: Centro | C19: 51 | D19: Juanacatlán | E19: 8.298086606 | F19: 46.51560926 | G19: 4.572004028 | H19: 0.9063444109 | I19: 3.786505539 | J19: 35.8509567 | K19: 0.07049345418 | M19: 9930
A20: 12 | B20: Centro | C20: 70 | D20: El Salto | E20: 16.03677118 | F20: 41.8049467 | G20: 3.826956759 | H20: 1.08632926 | I20: 2.939062294 | J20: 33.91918844 | K20: 0.3867453656 | M20: 98773
A21: 12 | B21: Centro | C21: 97 | D21: Tlajomulco de Zúñiga | E21: 14.44135884 | F21: 47.9381663 | G21: 3.071088162 | H21: 1.178647272 | I21: 2.378956938 | J21: 30.75669226 | K21: 0.2350902363 | M21: 281594
A22: 12 | B22: Centro | C22: 98 | D22: Tlaquepaque | E22: 11.60365668 | F22: 43.30903112 | G22: 3.686267879 | H22: 1.425873066 | I22: 3.506059237 | J22: 36.15029846 | K22: 0.3188135597 | M22: 449479
A23: 12 | B23: Centro | C23: 101 | D23: Tonalá | E23: 13.00175824 | F23: 42.94292051 | G23: 3.731656305 | H23: 1.336202439 | I23: 2.983543824 | J23: 35.78816121 | K23: 0.2157574783 | M23: 348076
A24: 12 | B24: Centro | C24: 120 | D24: Zapopan | E24: 9.122132074 | F24: 42.991557 | G24: 3.014425858 | H24: 2.097466681 | I24: 3.506557733 | J24: 39.01659724 | K24: 0.2512634045 | M24: 952387

Sheet Datos2
B1: Instituto de Información Estadística y Geográfica de Jalisco | D1: =D3 -> 1 | S1: Acatic | T1: 1 | V1: 1 | W1: Acatic
B2: Panorama económico de los municipios de Jalisco | D2: Acatic | S2: Acatlán de Juárez | T2: 2 | V2: 2 | W2: Acatlán de Juárez
B3: Selección de Municipio: | D3: =VLOOKUP(D2,S1:T125,2,FALSE) -> 1 | S3: Ahualulco de Mercado | T3: 3 | V3: 3 | W3: Ahualulco de Mercado
S4: Amacueca | T4: 4 | V4: 4 | W4: Amacueca
B5: Empleo | E5: Trabajadores asegurados | F5: 2012-12-01 | G5: 2013-12-01 | H5: % Part | I5: Var abs Dic 2012/Dic 2013 | S5: Amatitán | T5: 5 | V5: 5 | W5: Amatitán
B6: Población económicamente activa (PEA) 2010: | C6: =VLOOKUP(D$1,'PEA2'!A$16:L$140,5,FALSE) -> 9037 | E6: Total | F6: =VLOOKUP(D$1,valores!A$15:BA$140,30,FALSE) -> 3035 | G6: =VLOOKUP(D$1,valores!A$15:BA$140,6,FALSE) -> 2933 | H6: =H7+H8+H9+H10+H11+H12+H13+H14+H15+H16+H17 -> 1 | I6: =G6-F6 -> -102 | S6: Ameca | T6: 6 | V6: 6 | W6: Ameca
B7: Ocupada | C7: =VLOOKUP(D$1,'PEA2'!A$16:L$140,6,FALSE) -> 8842 | E7: =VLOOKUP(D$1,datos_ORIGINAL!A$15:BA$140,7,FALSE) -> Elaboración de alimentos. | F7: =VLOOKUP(D$1,valores!A$15:BA$140,31,FALSE) -> 103 | G7: =VLOOKUP(D$1,valores!A$15:BA$140,7,FALSE) -> 1434 | H7: =G7/G$6 -> 0.4889191954 | I7: 1331 | S7: San Juanito de Escobedo | T7: 7 | V7: 7 | W7: San Juanito de Escobedo
B8: Desocupada | C8: =VLOOKUP(D$1,'PEA2'!A$16:L$140,7,FALSE) -> 195 | E8: =VLOOKUP(D$1,datos_ORIGINAL!A$15:BA$140,8,FALSE) -> Agricultura. | F8: =VLOOKUP(D$1,valores!A$15:BA$140,32,FALSE) -> 289 | G8: =VLOOKUP(D$1,valores!A$15:BA$140,8,FALSE) -> 313 | H8: 0.1067166723 | I8: 24 | S8: Arandas | T8: 8 | V8: 8 | W8: Arandas
B9: Población ocupada por sector | C9: =VLOOKUP(D$1,'PEA2'!A$16:L$140,8,FALSE) -> 8842 | E9: =VLOOKUP(D$1,datos_ORIGINAL!A$15:BA$140,9,FALSE) -> Construcción de edificaciones y obras de ingeniería civil. | F9: =VLOOKUP(D$1,valores!A$15:BA$140,33,FALSE) -> 259 | G9: =VLOOKUP(D$1,valores!A$15:BA$140,9,FALSE) -> 311 | H9: 0.1060347767 | I9: 52 | S9: El Arenal | T9: 9 | V9: 9 | W9: El Arenal
B10: Primario | C10: =VLOOKUP(D$1,'PEA2'!A$16:L$140,9,FALSE) -> 3162 | E10: =VLOOKUP(D$1,datos_ORIGINAL!A$15:BA$140,10,FALSE) -> Ganadería. | F10: =VLOOKUP(D$1,valores!A$15:BA$140,34,FALSE) -> 1952 | G10: =VLOOKUP(D$1,valores!A$15:BA$140,10,FALSE) -> 301 | H10: 0.1026252983 | I10: -1651 | S10: Atemajac de Brizuela | T10: 10 | V10: 10 | W10: Atemajac de Brizuela
B11: Secundario | C11: =VLOOKUP(D$1,'PEA2'!A$16:L$140,10,FALSE) -> 3247 | E11: =VLOOKUP(D$1,datos_ORIGINAL!A$15:BA$140,11,FALSE) -> Servicios de administración pública y seguridad social. | F11: =VLOOKUP(D$1,valores!A$15:BA$140,35,FALSE) -> 160 | G11: =VLOOKUP(D$1,valores!A$15:BA$140,11,FALSE) -> 202 | H11: 0.06887146267 | I11: 42 | S11: Atengo | T11: 11 | V11: 11 | W11: Atengo
B12: Terciario | C12: =VLOOKUP(D$1,'PEA2'!A$16:L$140,11,FALSE) -> 2398 | E12: =VLOOKUP(D$1,datos_ORIGINAL!A$15:BA$140,12,FALSE) -> Fabricación de productos de hule y plástico. | F12: =VLOOKUP(D$1,valores!A$15:BA$140,36,FALSE) -> 86 | G12: =VLOOKUP(D$1,valores!A$15:BA$140,12,FALSE) -> 90 | H12: 0.03068530515 | I12: 4 | S12: Atenguillo | T12: 12 | V12: 12 | W12: Atenguillo
B13: No Especificado | C13: =VLOOKUP(D$1,'PEA2'!A$16:L$140,12,FALSE) -> 35 | E13: =VLOOKUP(D$1,datos_ORIGINAL!A$15:BA$140,13,FALSE) -> Servicios relacionados con el transporte en general. | F13: =VLOOKUP(D$1,valores!A$15:BA$140,37,FALSE) -> 3 | G13: =VLOOKUP(D$1,valores!A$15:BA$140,13,FALSE) -> 73 | H13: 0.02488919195 | I13: 70 | S13: Atotonilco el Alto | T13: 13 | V13: 13 | W13: Atotonilco el Alto
B14: Porcentaje de la Población ocupada por sector, 2010 | E14: =VLOOKUP(D$1,datos_ORIGINAL!A$15:BA$140,14,FALSE) -> Compraventa de gases, combustibles y lubricantes. | F14: =VLOOKUP(D$1,valores!A$15:BA$140,38,FALSE) -> 25 | G14: =VLOOKUP(D$1,valores!A$15:BA$140,14,FALSE) -> 45 | H14: 0.01534265257 | I14: 20 | S14: Atoyac | T14: 14 | V14: 14 | W14: Atoyac
E15: =VLOOKUP(D$1,datos_ORIGINAL!A$15:BA$140,15,FALSE) -> Servicios profesionales y técnicos. | F15: =VLOOKUP(D$1,valores!A$15:BA$140,39,FALSE) -> 32 | G15: =VLOOKUP(D$1,valores!A$15:BA$140,15,FALSE) -> 34 | H15: 0.01159222639 | I15: 2 | S15: Autlán de Navarro | T15: 15 | V15: 15 | W15: Autlán de Navarro
E16: =VLOOKUP(D$1,datos_ORIGINAL!A$15:BA$140,16,FALSE) -> Fabricación de productos de minerales no metálicos; excepto petróleo y del carbón mineral. | F16: =VLOOKUP(D$1,valores!A$15:BA$140,40,FALSE) -> 29 | G16: =VLOOKUP(D$1,valores!A$15:BA$140,16,FALSE) -> 28 | H16: 0.009546539379 | I16: -1 | S16: Ayotlán | T16: 16 | V16: 16 | W16: Ayotlán
E17: =VLOOKUP(D$1,datos_ORIGINAL!A$15:BA$140,17,FALSE) -> Otros | F17: =VLOOKUP(D$1,valores!A$15:BA$140,41,FALSE) -> 97 | G17: =VLOOKUP(D$1,valores!A$15:BA$140,17,FALSE) -> 102 | H17: 0.03477667917 | I17: 5 | S17: Ayutla | T17: 17 | V17: 17 | W17: Ayutla
S18: La Barca | T18: 18 | V18: 18 | W18: La Barca
S19: Bolaños | T19: 19 | V19: 19 | W19: Bolaños
S20: Cabo Corrientes | T20: 20 | V20: 20 | W20: Cabo Corrientes
S21: Casimiro Castillo | T21: 21 | V21: 21 | W21: Casimiro Castillo
S22: Cihuatlán | T22: 22 | V22: 22 | W22: Cihuatlán
S23: Zapotlán el Grande | T23: 23 | V23: 23 | W23: Zapotlán el Grande
E24: Valor Agregado Censal Bruto (VACB) | F24: 2004 | G24: 2009 | H24: % Part | I24: Var % 2004-2009 | S24: Cocula | T24: 24 | V24: 24 | W24: Cocula
E25: Total (Miles de pesos) | F25: =VLOOKUP(D$1,VACB2!A$15:BE$139,6,FALSE) -> 251298 | G25: =VLOOKUP(D$1,VACB2!A$15:BE$139,19,FALSE) -> 144500 | H25: =H26+H27+H28+H29+H30+H31+H32+H33+H34+H35+H36+H37 -> 1 | I25: =G25/F25-1 -> -0.4249854754 | S25: Colotlán | T25: 25 | V25: 25 | W25: Colotlán
E26: =VLOOKUP(D$1,VACB1!A$15:BF$139,8,FALSE) -> Industria de las bebidas y del tabaco | F26: =VLOOKUP(D$1,VACB2!A$15:BE$139,7,FALSE) -> 35447 | G26: =VLOOKUP(D$1,VACB2!A$15:BE$139,20,FALSE) -> 69837 | H26: =G26/G$25 -> 0.4833010381 | I26: 0.9701808334 | S26: Concepción de Buenos Aires | T26: 26 | V26: 26 | W26: Concepción de Buenos Aires
E27: =VLOOKUP(D$1,VACB1!A$15:BF$139,9,FALSE) -> Fabricación de productos a base de minerales no metálicos | F27: =VLOOKUP(D$1,VACB2!A$15:BE$139,8,FALSE) -> 21341 | G27: =VLOOKUP(D$1,VACB2!A$15:BE$139,21,FALSE) -> 22762 | H27: 0.1575224913 | I27: 0.06658544586 | S27: Cuautitlán de García Barragán | T27: 27 | V27: 27 | W27: Cuautitlán de García Barragán
E28: =VLOOKUP(D$1,VACB1!A$15:BF$139,10,FALSE) -> Comercio al por menor de abarrotes, alimentos, bebidas, hielo y tabaco | F28: =VLOOKUP(D$1,VACB2!A$15:BE$139,9,FALSE) -> 9258 | G28: =VLOOKUP(D$1,VACB2!A$15:BE$139,22,FALSE) -> 13540 | H28: 0.09370242215 | I28: 0.4625189026 | S28: Cuautla | T28: 28 | V28: 28 | W28: Cuautla
E29: =VLOOKUP(D$1,VACB1!A$15:BF$139,11,FALSE) -> Industria alimentaria | F29: =VLOOKUP(D$1,VACB2!A$15:BE$139,10,FALSE) -> 7903 | G29: =VLOOKUP(D$1,VACB2!A$15:BE$139,23,FALSE) -> 6092 | H29: 0.04215916955 | I29: -0.229153486 | S29: Cuquío | T29: 29 | V29: 29 | W29: Cuquío
E30: =VLOOKUP(D$1,VACB1!A$15:BF$139,12,FALSE) -> Servicios de preparación de alimentos y bebidas | F30: =VLOOKUP(D$1,VACB2!A$15:BE$139,11,FALSE) -> 1511 | G30: =VLOOKUP(D$1,VACB2!A$15:BE$139,24,FALSE) -> 4618 | H30: 0.03195847751 | I30: 2.056254136 | S30: Chapala | T30: 30 | V30: 30 | W30: Chapala
E31: =VLOOKUP(D$1,VACB1!A$15:BF$139,13,FALSE) -> Comercio al por menor en tiendas de autoservicio y departamentales | F31: =VLOOKUP(D$1,VACB2!A$15:BE$139,12,FALSE) -> 341 | G31: =VLOOKUP(D$1,VACB2!A$15:BE$139,25,FALSE) -> 3282 | H31: 0.02271280277 | I31: 8.624633431 | S31: Chimaltitán | T31: 31 | V31: 31 | W31: Chimaltitán
E32: =VLOOKUP(D$1,VACB1!A$15:BF$139,14,FALSE) -> Comercio al por menor de vehículos de motor, refacciones, combustibles y lubricantes | F32: =VLOOKUP(D$1,VACB2!A$15:BE$139,13,FALSE) -> 1063 | G32: =VLOOKUP(D$1,VACB2!A$15:BE$139,26,FALSE) -> 3133 | H32: 0.0216816609 | I32: 1.947318909 | S32: Chiquilistlán | T32: 32 | V32: 32 | W32: Chiquilistlán
E33: =VLOOKUP(D$1,VACB1!A$15:BF$139,15,FALSE) -> Comercio al por mayor de materias primas agropecuarias y forestales, para la industria, y materiales de desecho | F33: =VLOOKUP(D$1,VACB2!A$15:BE$139,14,FALSE) -> 4111 | G33: =VLOOKUP(D$1,VACB2!A$15:BE$139,27,FALSE) -> 2698 | H33: 0.01867128028 | I33: -0.3437119922 | S33: Degollado | T33: 33 | V33: 33 | W33: Degollado
E34: =VLOOKUP(D$1,VACB1!A$15:BF$139,16,FALSE) -> Servicios de reparación y mantenimiento | F34: =VLOOKUP(D$1,VACB2!A$15:BE$139,15,FALSE) -> 1516 | G34: =VLOOKUP(D$1,VACB2!A$15:BE$139,28,FALSE) -> 2521 | H34: 0.01744636678 | I34: 0.6629287599 | S34: Ejutla | T34: 34 | V34: 34 | W34: Ejutla
E35: =VLOOKUP(D$1,VACB1!A$15:BF$139,17,FALSE) -> Fabricación de prendas de vestir | F35: =VLOOKUP(D$1,VACB2!A$15:BE$139,16,FALSE) -> 2539 | G35: =VLOOKUP(D$1,VACB2!A$15:BE$139,29,FALSE) -> 2146 | H35: 0.01485121107 | I35: -0.1547853486 | S35: Encarnación de Díaz | T35: 35 | V35: 35 | W35: Encarnación de Díaz
E36: =VLOOKUP(D$1,VACB1!A$15:BF$139,18,FALSE) -> Comercio al por menor de productos textiles, bisutería, accesorios de vestir y calzado | F36: =VLOOKUP(D$1,VACB2!A$15:BE$139,17,FALSE) -> 1153 | G36: =VLOOKUP(D$1,VACB2!A$15:BE$139,30,FALSE) -> 1873 | H36: 0.01296193772 | I36: 0.6244579358 | S36: Etzatlán | T36: 36 | V36: 36 | W36: Etzatlán
E37: =VLOOKUP(D$1,VACB1!A$15:BF$139,19,FALSE) -> Otros | F37: =VLOOKUP(D$1,VACB2!A$15:BE$139,18,FALSE) -> 165115 | G37: =VLOOKUP(D$1,VACB2!A$15:BE$139,31,FALSE) -> 11998 | H37: 0.08303114187 | I37: -0.9273354934 | S37: El Grullo | T37: 37 | V37: 37 | W37: El Grullo
S38: Guachinango | T38: 38 | V38: 38 | W38: Guachinango
S39: Guadalajara | T39: 39 | V39: 39 | W39: Guadalajara
S40: Hostotipaquillo | T40: 40 | V40: 40 | W40: Hostotipaquillo
E41: Total de Empresas DENUE (Octubre 2013) | F41: =VLOOKUP(D$1,empresas!C$16:K$140,5,FALSE) -> 778 | S41: Huejúcar | T41: 41 | V41: 41 | W41: Huejúcar
E42: Agricultura | F42: =VLOOKUP(D$1,empresas!C$16:K$140,6,FALSE) -> 2 | S42: Huejuquilla el Alto | T42: 42 | V42: 42 | W42: Huejuquilla el Alto
E43: Industria | F43: =VLOOKUP(D$1,empresas!C$16:K$140,7,FALSE) -> 200 | S43: La Huerta | T43: 43 | V43: 43 | W43: La Huerta
E44: Comercio | F44: =VLOOKUP(D$1,empresas!C$16:K$140,8,FALSE) -> 353 | S44: Ixtlahuacán de los Membrillos | T44: 44 | V44: 44 | W44: Ixtlahuacán de los Membrillos
E45: Servicios | F45: =VLOOKUP(D$1,empresas!C$16:K$140,9,FALSE) -> 223 | S45: Ixtlahuacán del Río | T45: 45 | V45: 45 | W45: Ixtlahuacán del Río
S46: Jalostotitlán | T46: 46 | V46: 46 | W46: Jalostotitlán
S47: Jamay | T47: 47 | V47: 47 | W47: Jamay
S48: Jesús María | T48: 48 | V48: 48 | W48: Jesús María
S49: Jilotlán de los Dolores | T49: 49 | V49: 49 | W49: Jilotlán de los Dolores
S50: Jocotepec | T50: 50 | V50: 50 | W50: Jocotepec
S51: Juanacatlán | T51: 51 | V51: 51 | W51: Juanacatlán
S52: Juchitlán | T52: 52 | V52: 52 | W52: Juchitlán
S53: Lagos de Moreno | T53: 53 | V53: 53 | W53: Lagos de Moreno
S54: El Limón | T54: 54 | V54: 54 | W54: El Limón
S55: Magdalena | T55: 55 | V55: 55 | W55: Magdalena
S56: Santa María del Oro | T56: 56 | V56: 56 | W56: Santa María del Oro
S57: La Manzanilla de la Paz | T57: 57 | V57: 57 | W57: La Manzanilla de la Paz
S58: Mascota | T58: 58 | V58: 58 | W58: Mascota
S59: Mazamitla | T59: 59 | V59: 59 | W59: Mazamitla
S60: Mexticacán | T60: 60 | V60: 60 | W60: Mexticacán
S61: Mezquitic | T61: 61 | V61: 61 | W61: Mezquitic
S62: Mixtlán | T62: 62 | V62: 62 | W62: Mixtlán
S63: Ocotlán | T63: 63 | V63: 63 | W63: Ocotlán
S64: Ojuelos de Jalisco | T64: 64 | V64: 64 | W64: Ojuelos de Jalisco
S65: Pihuamo | T65: 65 | V65: 65 | W65: Pihuamo
S66: Poncitlán | T66: 66 | V66: 66 | W66: Poncitlán
S67: Puerto Vallarta | T67: 67 | V67: 67 | W67: Puerto Vallarta
S68: Villa Purificación | T68: 68 | V68: 68 | W68: Villa Purificación
S69: Quitupan | T69: 69 | V69: 69 | W69: Quitupan
S70: El Salto | T70: 70 | V70: 70 | W70: El Salto
S71: San Cristóbal de la Barranca | T71: 71 | V71: 71 | W71: San Cristóbal de la Barranca
S72: San Diego de Alejandría | T72: 72 | V72: 72 | W72: San Diego de Alejandría
S73: San Juan de los Lagos | T73: 73 | V73: 73 | W73: San Juan de los Lagos
S74: San Julián | T74: 74 | V74: 74 | W74: San Julián
S75: San Marcos | T75: 75 | V75: 75 | W75: San Marcos
S76: San Martín de Bolaños | T76: 76 | V76: 76 | W76: San Martín de Bolaños
S77: San Martín Hidalgo | T77: 77 | V77: 77 | W77: San Martín Hidalgo
S78: San Miguel el Alto | T78: 78 | V78: 78 | W78: San Miguel el Alto
S79: Gómez Farías | T79: 79 | V79: 79 | W79: Gómez Farías
S80: San Sebastián del Oeste | T80: 80 | V80: 80 | W80: San Sebastián del Oeste
S81: Santa María de los Ángeles | T81: 81 | V81: 81 | W81: Santa María de los Ángeles
S82: Sayula | T82: 82 | V82: 82 | W82: Sayula
S83: Tala | T83: 83 | V83: 83 | W83: Tala
S84: Talpa de Allende | T84: 84 | V84: 84 | W84: Talpa de Allende
S85: Tamazula de Gordiano | T85: 85 | V85: 85 | W85: Tamazula de Gordiano
S86: Tapalpa | T86: 86 | V86: 86 | W86: Tapalpa
S87: Tecalitlán | T87: 87 | V87: 87 | W87: Tecalitlán
S88: Tecolotlán | T88: 88 | V88: 88 | W88: Tecolotlán
S89: Techaluta de Montenegro | T89: 89 | V89: 89 | W89: Techaluta de Montenegro
S90: Tenamaxtlán | T90: 90 | V90: 90 | W90: Tenamaxtlán
S91: Teocaltiche | T91: 91 | V91: 91 | W91: Teocaltiche
S92: Teocuitatlán de Corona | T92: 92 | V92: 92 | W92: Teocuitatlán de Corona
S93: Tepatitlán de Morelos | T93: 93 | V93: 93 | W93: Tepatitlán de Morelos
S94: Tequila | T94: 94 | V94: 94 | W94: Tequila
S95: Teuchitlán | T95: 95 | V95: 95 | W95: Teuchitlán
S96: Tizapán el Alto | T96: 96 | V96: 96 | W96: Tizapán el Alto
S97: Tlajomulco de Zúñiga | T97: 97 | V97: 97 | W97: Tlajomulco de Zúñiga
S98: Tlaquepaque | T98: 98 | V98: 98 | W98: Tlaquepaque
S99: Tolimán | T99: 99 | V99: 99 | W99: Tolimán
S100: Tomatlán | T100: 100 | V100: 100 | W100: Tomatlán
S101: Tonalá | T101: 101 | V101: 101 | W101: Tonalá
S102: Tonaya | T102: 102 | V102: 102 | W102: Tonaya
S103: Tonila | T103: 103 | V103: 103 | W103: Tonila
S104: Totatiche | T104: 104 | V104: 104 | W104: Totatiche
S105: Tototlán | T105: 105 | V105: 105 | W105: Tototlán
S106: Tuxcacuesco | T106: 106 | V106: 106 | W106: Tuxcacuesco
S107: Tuxcueca | T107: 107 | V107: 107 | W107: Tuxcueca
S108: Tuxpan | T108: 108 | V108: 108 | W108: Tuxpan
S109: Unión de San Antonio | T109: 109 | V109: 109 | W109: Unión de San Antonio
S110: Unión de Tula | T110: 110 | V110: 110 | W110: Unión de Tula
S111: Valle de Guadalupe | T111: 111 | V111: 111 | W111: Valle de Guadalupe
S112: Valle de Juárez | T112: 112 | V112: 112 | W112: Valle de Juárez
S113: San Gabriel | T113: 113 | V113: 113 | W113: San Gabriel
S114: Villa Corona | T114: 114 | V114: 114 | W114: Villa Corona
S115: Villa Guerrero | T115: 115 | V115: 115 | W115: Villa Guerrero
S116: Villa Hidalgo | T116: 116 | V116: 116 | W116: Villa Hidalgo
S117: Cañadas de Obregón | T117: 117 | V117: 117 | W117: Cañadas de Obregón
S118: Yahualica de González Gallo | T118: 118 | V118: 118 | W118: Yahualica de González Gallo
S119: Zacoalco de Torres | T119: 119 | V119: 119 | W119: Zacoalco de Torres
S120: Zapopan | T120: 120 | V120: 120 | W120: Zapopan
S121: Zapotiltic | T121: 121 | V121: 121 | W121: Zapotiltic
S122: Zapotitlán de Vadillo | T122: 122 | V122: 122 | W122: Zapotitlán de Vadillo
S123: Zapotlán del Rey | T123: 123 | V123: 123 | W123: Zapotlán del Rey
S124: Zapotlanejo | T124: 124 | V124: 124 | W124: Zapotlanejo
S125: San Ignacio Cerro Gordo | T125: 125 | V125: 125 | W125: San Ignacio Cerro Gordo

Sheet Datos2R
A1: Instituto de Información Estadística y Geográfica de Jalisco | C1: 7 | D1: =B2 -> 1 | R1: Jalisco | S1: 1 | T1: 14 | U1: Jalisco
A2: Panorama económico de los municipios de Jalisco | B2: =VLOOKUP(C2,R1:S14,2,FALSE) -> 1 | C2: Jalisco | R2: Norte | S2: 2 | T2: 1 | U2: Norte
A3: Selección de Jalisco o Región: | R3: Altos Norte | S3: 3 | T3: 2 | U3: Altos Norte
R4: Altos Sur | S4: 4 | T4: 3 | U4: Altos Sur
A5: Empleo | D5: Trabajadores asegurados | E5: 2012-12-01 | F5: 2013-12-01 | G5: % Part | H5: Var abs Dic 2012/Dic 2013 | R5: Ciénega | S5: 5 | T5: 4 | U5: Ciénega
A6: Población económicamente activa (PEA) 2010: | B6: =VLOOKUP(D$1,'PEA2'!A$2:L$15,5,FALSE) -> 3096762 | D6: Total | E6: =VLOOKUP(D$1,valores!A$1:BA$14,30,FALSE) -> 1349657 | F6: =VLOOKUP(D$1,valores!A$1:BA$140,6,FALSE) -> 1397248 | G6: =G7+G8+G9+G10+G11+G12+G13+G14+G15+G16+G17 -> 1 | H6: =F6-E6 -> 47591 | R6: Sureste | S6: 6 | T6: 5 | U6: Sureste
A7: Ocupada | B7: =VLOOKUP(D$1,'PEA2'!A$2:L$15,6,FALSE) -> 2972483 | D7: =VLOOKUP(D$1,datos_ORIGINAL!A$1:BA$14,7,FALSE) -> Servicios de administración pública y seguridad social | E7: =VLOOKUP(D$1,valores!A$1:BA$14,31,FALSE) -> 171128 | F7: =VLOOKUP(D$1,valores!A$1:BA$140,7,FALSE) -> 178031 | G7: =F7/F$6 -> 0.1274154624 | H7: 6903 | R7: Sur | S7: 7 | T7: 6 | U7: Sur
A8: Desocupada | B8: =VLOOKUP(D$1,'PEA2'!A$2:L$15,7,FALSE) -> 124279 | D8: =VLOOKUP(D$1,datos_ORIGINAL!A$1:BA$14,8,FALSE) -> Servicios profesionales y técnicos | E8: =VLOOKUP(D$1,valores!A$1:BA$14,32,FALSE) -> 123448 | F8: =VLOOKUP(D$1,valores!A$1:BA$140,8,FALSE) -> 126248 | G8: 0.09035475449 | H8: 2800 | R8: Sierra de Amula | S8: 8 | T8: 7 | U8: Sierra de Amula
A9: Población ocupada por sector | B9: =VLOOKUP(D$1,'PEA2'!A$2:L$15,8,FALSE) -> 2972483 | D9: =VLOOKUP(D$1,datos_ORIGINAL!A$1:BA$14,9,FALSE) -> Construcción de edificaciones y obras de ingeniería civil | E9: =VLOOKUP(D$1,valores!A$1:BA$14,33,FALSE) -> 74622 | F9: =VLOOKUP(D$1,valores!A$1:BA$140,9,FALSE) -> 75671 | G9: 0.05415717181 | H9: 1049 | R9: Costa Sur | S9: 9 | T9: 8 | U9: Costa Sur
A10: Primario | B10: =VLOOKUP(D$1,'PEA2'!A$2:L$15,9,FALSE) -> 270223 | D10: =VLOOKUP(D$1,datos_ORIGINAL!A$1:BA$14,10,FALSE) -> Elaboración de alimentos | E10: =VLOOKUP(D$1,valores!A$1:BA$14,34,FALSE) -> 65748 | F10: =VLOOKUP(D$1,valores!A$1:BA$140,10,FALSE) -> 71712 | G10: 0.05132374496 | H10: 5964 | R10: Costa Norte | S10: 10 | T10: 9 | U10: Costa Norte
A11: Secundario | B11: =VLOOKUP(D$1,'PEA2'!A$2:L$15,10,FALSE) -> 811971 | D11: =VLOOKUP(D$1,datos_ORIGINAL!A$1:BA$14,11,FALSE) -> Compraventa de alimentos, bebidas y productos del tabaco | E11: =VLOOKUP(D$1,valores!A$1:BA$14,35,FALSE) -> 51398 | F11: =VLOOKUP(D$1,valores!A$1:BA$140,11,FALSE) -> 54295 | G11: 0.03885852762 | H11: 2897 | R11: Sierra Occidental | S11: 11 | T11: 10 | U11: Sierra Occidental
A12: Terciario | B12: =VLOOKUP(D$1,'PEA2'!A$2:L$15,11,FALSE) -> 1852442 | D12: =VLOOKUP(D$1,datos_ORIGINAL!A$1:BA$14,12,FALSE) -> Compraventa de prendas de vestir y artículos de uso personal | E12: =VLOOKUP(D$1,valores!A$1:BA$14,36,FALSE) -> 50818 | F12: =VLOOKUP(D$1,valores!A$1:BA$140,12,FALSE) -> 55450 | G12: 0.03968515253 | H12: 4632 | R12: Valles | S12: 12 | T12: 11 | U12: Valles
A13: No Especificado | B13: =VLOOKUP(D$1,'PEA2'!A$2:L$15,12,FALSE) -> 37847 | D13: =VLOOKUP(D$1,datos_ORIGINAL!A$1:BA$14,13,FALSE) -> Agricultura | E13: =VLOOKUP(D$1,valores!A$1:BA$14,37,FALSE) -> 51625 | F13: =VLOOKUP(D$1,valores!A$1:BA$140,13,FALSE) -> 55778 | G13: 0.03991989969 | H13: 4153 | R13: Centro | S13: 13 | T13: 12 | U13: Centro
A14: Porcentaje de la Población ocupada por sector, 2010 | D14: =VLOOKUP(D$1,datos_ORIGINAL!A$1:BA$14,14,FALSE) -> Fabricación y ensamble de maquinaria, equipos, aparatos y accesorios y artículos eléctricos, electrónicos y sus partes | E14: =VLOOKUP(D$1,valores!A$1:BA$14,38,FALSE) -> 42071 | F14: =VLOOKUP(D$1,valores!A$1:BA$140,14,FALSE) -> 42984 | G14: 0.03076332906 | H14: 913 | R14: ZMG | S14: 14 | T14: 13 | U14: ZMG
D15: =VLOOKUP(D$1,datos_ORIGINAL!A$1:BA$14,15,FALSE) -> Compraventa en tiendas de autoservicios y departamentos especializados | E15: =VLOOKUP(D$1,valores!A$1:BA$14,39,FALSE) -> 44408 | F15: =VLOOKUP(D$1,valores!A$1:BA$140,15,FALSE) -> 43521 | G15: 0.03114765596 | H15: -887
D16: =VLOOKUP(D$1,datos_ORIGINAL!A$1:BA$14,16,FALSE) -> Servicios de enseñanza, investigación científica y difusión cultural | E16: =VLOOKUP(D$1,valores!A$1:BA$14,40,FALSE) -> 40162 | F16: =VLOOKUP(D$1,valores!A$1:BA$140,16,FALSE) -> 41578 | G16: 0.02975706532 | H16: 1416
D17: =VLOOKUP(D$1,datos_ORIGINAL!A$1:BA$14,17,FALSE) -> Otros | E17: =VLOOKUP(D$1,valores!A$1:BA$14,41,FALSE) -> 634229 | F17: =VLOOKUP(D$1,valores!A$1:BA$140,17,FALSE) -> 651980 | G17: 0.4666172362 | H17: 17751
D24: Valor Agregado Censal Bruto (VACB) | E24: 2004 | F24: 2009 | G24: % Part | H24: Var % 2004-2009
D25: Total (Miles de pesos) | E25: =VLOOKUP(D$1,VACB2!A$1:BE$14,6,FALSE) -> 167765112 | F25: =VLOOKUP(D$1,VACB2!A$1:BE$14,19,FALSE) -> 241755740 | G25: =G26+G27+G28+G29+G30+G31+G32+G33+G34+G35+G36+G37 -> 1 | H25: =F25/E25-1 -> 0.4410370375
D26: =VLOOKUP(D$1,VACB1!A$1:BF$14,8,FALSE) -> Industria alimentaria | E26: =VLOOKUP(D$1,VACB2!A$1:BE$14,7,FALSE) -> 13495373 | F26: =VLOOKUP(D$1,VACB2!A$1:BE$14,20,FALSE) -> 25390610 | G26: =F26/F$25 -> 0.1050258827 | H26: 0.8814307689
D27: =VLOOKUP(D$1,VACB1!A$1:BF$14,9,FALSE) -> Industria de las bebidas y del tabaco | E27: =VLOOKUP(D$1,VACB2!A$1:BE$14,8,FALSE) -> 13669597 | F27: =VLOOKUP(D$1,VACB2!A$1:BE$14,21,FALSE) -> 24299468 | G27: 0.1005124759 | H27: 0.7776287041
D28: =VLOOKUP(D$1,VACB1!A$1:BF$14,10,FALSE) -> Industria química | E28: =VLOOKUP(D$1,VACB2!A$1:BE$14,9,FALSE) -> 6506269 | F28: =VLOOKUP(D$1,VACB2!A$1:BE$14,22,FALSE) -> 10804379 | G28: 0.04469130288 | H28: 0.6606105588
D29: =VLOOKUP(D$1,VACB1!A$1:BF$14,11,FALSE) -> Comercio al por mayor de abarrotes, alimentos, bebidas, hielo y tabaco | E29: =VLOOKUP(D$1,VACB2!A$1:BE$14,10,FALSE) -> 10880113 | F29: =VLOOKUP(D$1,VACB2!A$1:BE$14,23,FALSE) -> 9524851 | G29: 0.03939865502 | H29: -0.1245632283
D30: =VLOOKUP(D$1,VACB1!A$1:BF$14,12,FALSE) -> Otras telecomunicaciones | E30: =VLOOKUP(D$1,VACB2!A$1:BE$14,11,FALSE) -> 3410708 | F30: =VLOOKUP(D$1,VACB2!A$1:BE$14,24,FALSE) -> 9255038 | G30: 0.03828259879 | H30: 1.713523996
D31: =VLOOKUP(D$1,VACB1!A$1:BF$14,13,FALSE) -> Servicios de apoyo a los negocios | E31: =VLOOKUP(D$1,VACB2!A$1:BE$14,12,FALSE) -> 6016707 | F31: =VLOOKUP(D$1,VACB2!A$1:BE$14,25,FALSE) -> 8588243 | G31: 0.03552446366 | H31: 0.4273992401
D32: =VLOOKUP(D$1,VACB1!A$1:BF$14,14,FALSE) -> Comercio al por mayor de materias primas agropecuarias y forestales, para la industria, y materiales de desecho | E32: =VLOOKUP(D$1,VACB2!A$1:BE$14,13,FALSE) -> 7190755 | F32: =VLOOKUP(D$1,VACB2!A$1:BE$14,26,FALSE) -> 7790861 | G32: 0.03222616762 | H32: 0.08345521437
D33: =VLOOKUP(D$1,VACB1!A$1:BF$14,15,FALSE) -> Suministro de agua y suministro de gas por ductos al consumidor final | E33: =VLOOKUP(D$1,VACB2!A$1:BE$14,14,FALSE) -> 1859062 | F33: =VLOOKUP(D$1,VACB2!A$1:BE$14,27,FALSE) -> 7671405 | G33: 0.03173204905 | H33: 3.126492285
D34: =VLOOKUP(D$1,VACB1!A$1:BF$14,16,FALSE) -> Comercio al por menor de abarrotes, alimentos, bebidas, hielo y tabaco | E34: =VLOOKUP(D$1,VACB2!A$1:BE$14,15,FALSE) -> 5928908 | F34: =VLOOKUP(D$1,VACB2!A$1:BE$14,28,FALSE) -> 7133747 | G34: 0.02950807704 | H34: 0.2032143187
D35: =VLOOKUP(D$1,VACB1!A$1:BF$14,17,FALSE) -> Generación, transmisión y distribución de energía eléctrica | E35: =VLOOKUP(D$1,VACB2!A$1:BE$14,16,FALSE) -> 4996068 | F35: =VLOOKUP(D$1,VACB2!A$1:BE$14,29,FALSE) -> 7115214 | G35: 0.02943141702 | H35: 0.4241627616
D36: =VLOOKUP(D$1,VACB1!A$1:BF$14,18,FALSE) -> Fabricación de equipo de computación, comunicación, medición y de otros equipos, componentes y accesorios electrónicos | E36: =VLOOKUP(D$1,VACB2!A$1:BE$14,17,FALSE) -> 5916860 | F36: =VLOOKUP(D$1,VACB2!A$1:BE$14,30,FALSE) -> 6946411 | G36: 0.0287331792 | H36: 0.174002934
D37: =VLOOKUP(D$1,VACB1!A$1:BF$14,19,FALSE) -> Otros | E37: =VLOOKUP(D$1,VACB2!A$1:BE$14,18,FALSE) -> 87894692 | F37: =VLOOKUP(D$1,VACB2!A$1:BE$14,31,FALSE) -> 117235513 | G37: 0.484933731 | H37: 0.3338178943
D41: Total de Empresas DENUE (Octubre 2013) | E41: =VLOOKUP(D$1,empresas!C$1:K$15,5,FALSE) -> 309520
D42: Agricultura | E42: =VLOOKUP(D$1,empresas!C$1:K$15,6,FALSE) -> 241
D43: Industria | E43: =VLOOKUP(D$1,empresas!C$1:K$15,7,FALSE) -> 34740
D44: Comercio | E44: =VLOOKUP(D$1,empresas!C$1:K$15,8,FALSE) -> 147820
D45: Servicios | E45: =VLOOKUP(D$1,empresas!C$1:K$15,9,FALSE) -> 126719

Sheet AsisEscZMG (hidden)
A1: Clave | B1: Región | C1: Clave | D1: Municipio | E1: Tasa de asistencia 3 a 5 años | F1: Tasa de asistencia 6 a 11 años | G1: Tasa de asistencia 12 a 14 años | H1: Tasa de asistencia 15 a 24 años
C2: 14 | D2: Jalisco | E2: 0.5314328317 | F2: 0.9619699725 | G2: 0.9015222885 | H2: 0.3863821093
A3: 1 | B3: Norte | C3: 1 | D3: Norte | E3: 0.4823575029 | F3: 0.9073431492 | G3: 0.8520841018 | H3: 0.3691315334
A4: 2 | B4: Altos Norte | C4: 2 | D4: Altos Norte | E4: 0.4506549867 | F4: 0.9638140255 | G4: 0.8793174682 | H4: 0.2907442519
A5: 3 | B5: Altos Sur | C5: 3 | D5: Altos Sur | E5: 0.4932113216 | F5: 0.9644448926 | G5: 0.8464978903 | H5: 0.279741205
A6: 4 | B6: Ciénega | C6: 4 | D6: Ciénega | E6: 0.4761242613 | F6: 0.9642328176 | G6: 0.8553723073 | H6: 0.3131070529
A7: 5 | B7: Sureste | C7: 5 | D7: Sureste | E7: 0.5591900312 | F7: 0.9676632093 | G7: 0.8762029746 | H7: 0.3011892689
A8: 6 | B8: Sur | C8: 6 | D8: Sur | E8: 0.5682546352 | F8: 0.9734697597 | G8: 0.9141591976 | H8: 0.3923831415
A9: 7 | B9: Sierra de Amula | C9: 7 | D9: Sierra de Amula | E9: 0.6603096677 | F9: 0.9771282149 | G9: 0.9126415094 | H9: 0.3784885724
A10: 8 | B10: Costa Sur | C10: 8 | D10: Costa Sur | E10: 0.5539645432 | F10: 0.9622969838 | G10: 0.9015554243 | H10: 0.3681038767
A11: 9 | B11: Costa Norte | C11: 9 | D11: Costa Norte | E11: 0.5083319115 | F11: 0.9594288305 | G11: 0.9225986024 | H11: 0.369950899
A12: 10 | B12: Sierra Occidental | C12: 10 | D12: Sierra Occidental | E12: 0.6232234654 | F12: 0.9748835897 | G12: 0.9182058047 | H12: 0.3514780101
A13: 11 | B13: Valles | C13: 11 | D13: Valles | E13: 0.5475952619 | F13: 0.970250921 | G13: 0.922394571 | H13: 0.3715395592
A14: 12 | B14: Centro | C14: 12 | D14: Centro | E14: 0.5424117604 | F14: 0.9604402503 | G14: 0.9114938836 | H14: 0.417542228 | I14: Relación hombre-mujer: | J14: Edad mediana | K14: Razón de dependencia | L14: Porcentaje hombres | M14: Porcentaje de mujeres
A15: 1 | B15: ZMG | D15: ZMG | E15: 0.545 | F15: 0.96 | G15: 0.913 | H15: 0.421 | I15: 95.9 | J15: 26 | K15: 52 | L15: 49 | M15: 51
A16: 2 | B16: Centro | C16: 39 | D16: Guadalajara | E16: 0.5770868702 | F16: 0.9667850035 | G16: 0.9321259082 | H16: 0.4673803996 | I16: 92.24 | J16: 28 | K16: 48.38014181
A17: 3 | B17: Centro | C17: 44 | D17: Ixtlahuacán de los Membrillos | E17: 0.5049269453 | F17: 0.9536145633 | G17: 0.8866478419 | H17: 0.3170764297 | I17: 98.92 | J17: 23 | K17: 62.85725627
A18: 4 | B18: Centro | C18: 51 | D18: Juanacatlán | E18: 0.4953703704 | F18: 0.9724055189 | G18: 0.915601023 | H18: 0.3635655897 | I18: 102.02 | J18: 24 | K18: 59.72675614
A19: 5 | B19: Centro | C19: 70 | D19: El Salto | E19: 0.469278267 | F19: 0.9442891272 | G19: 0.8780891439 | H19: 0.3108138405 | I19: 99.69 | J19: 22 | K19: 61.89753365
A20: 6 | B20: Centro | C20: 97 | D20: Tlajomulco de Zúñiga | E20: 0.4932289268 | F20: 0.9588358417 | G20: 0.894848359 | H20: 0.3260700505 | I20: 98.71 | J20: 23 | K20: 63.72083034
A21: 7 | B21: Centro | C21: 98 | D21: Tlaquepaque | E21: 0.5132800413 | F21: 0.9537718196 | G21: 0.8997119878 | H21: 0.3603996146 | I21: 97.31 | J21: 24 | K21: 55.37637875
A22: 8 | B22: Centro | C22: 101 | D22: Tonalá | E22: 0.499371272 | F22: 0.9573284154 | G22: 0.8890517418 | H22: 0.3440482388 | I22: 103.31 | J22: 23 | K22: 55.11059732
A23: 9 | B23: Centro | C23: 120 | D23: Zapopan | E23: 0.5887206895 | F23: 0.9617580478 | G23: 0.9225112213 | H23: 0.4698701523 | I23: 95.61 | J23: 26 | K23: 48.60338857
I29: 0.959 | J29: 0.26 | K29: 0.52
I30: 0.9224 | J30: 0.28 | K30: 0.4838014181
I31: 0.9892 | J31: 0.23 | K31: 0.6285725627
I32: 1.0202 | J32: 0.24 | K32: 0.5972675614
I33: 0.9969 | J33: 0.22 | K33: 0.6189753365
I34: 0.9871 | J34: 0.23 | K34: 0.6372083034
I35: 0.9731 | J35: 0.24 | K35: 0.5537637875
I36: 1.0331 | J36: 0.23 | K36: 0.5511059732
I37: 0.9561 | J37: 0.26 | K37: 0.4860338857
I39: =+I29*100 -> 95.9 | J39: =+J29*100 -> 26 | K39: =+K29*100 -> 52
I40: =+I30*100 -> 92.24 | J40: 28 | K40: 48.38014181
I41: 98.92 | J41: 23 | K41: 62.85725627
I42: 102.02 | J42: 24 | K42: 59.72675614
I43: 99.69 | J43: 22 | K43: 61.89753365
I44: 98.71 | J44: 23 | K44: 63.72083034
I45: 97.31 | J45: 24 | K45: 55.37637875
I46: 103.31 | J46: 23 | K46: 55.11059732
I47: 95.61 | J47: 26 | K47: 48.60338857

Sheet grapob (hidden)
E1: 14 | F1: -3600.641 | G1: -353.751 | H1: -369.308 | I1: -362.097 | J1: -360.175 | K1: -329.145 | L1: -287.723 | M1: -263.14 | N1: -258.27 | O1: -213.669 | P1: -175.474 | Q1: -152.109 | R1: -120.383 | S1: -99.337 | T1: -73.976 | U1: -55.172 | V1: -37.383 | W1: -23.768 | X1: -14.255 | Y1: -5.628 | Z1: -2.133 | AA1: -0.415 | AB1: -0.4898376776 | AC1: 3750.041 | AD1: 341.197 | AE1: 357.767 | AF1: 352.296 | AG1: 354.828 | AH1: 339.943 | AI1: 304.31 | AJ1: 284.977 | AK1: 276.964 | AL1: 232.932 | AM1: 196.067 | AN1: 172.168 | AO1: 133.997 | AP1: 111.128 | AQ1: 81.361 | AR1: 63.032 | AS1: 43.364 | AT1: 30.196 | AU1: 18.465 | AV1: 7.968 | AW1: 3.073 | AX1: 0.669 | AY1: 0.5101623224 | AZ1: Miles de personas
B2: =VLOOKUP(Datos!E141,grapob!E2:AW149,1,FALSE) -> 1 | E2: 1 | F2: -1034.8 | G2: -116.3 | H2: -126.1 | I2: -115.6 | J2: -108.1 | K2: -88.1 | L2: -76.7 | M2: -76.2 | N2: -70.9 | O2: -50.9 | P2: -41.2 | Q2: -34.9 | R2: -28 | S2: -31.9 | T2: -22.2 | U2: -18.7 | V2: -11.8 | W2: -8.2 | X2: -5.6 | Y2: -2.4 | Z2: -0.8 | AA2: -0.2 | AB2: -0.4879751014 | AC2: 1085.8 | AD2: 111.7 | AE2: 111.7 | AF2: 114.7 | AG2: 111.7 | AH2: 104.8 | AI2: 85.8 | AJ2: 83.8 | AK2: 71.6 | AL2: 57.6 | AM2: 44.6 | AN2: 40.9 | AO2: 37.2 | AP2: 32.8 | AQ2: 25.4 | AR2: 20.1 | AS2: 11.9 | AT2: 9.6 | AU2: 5.4 | AV2: 3 | AW2: 0.8 | AX2: 0.2 | AY2: 0.5120248986 | AZ2: Miles de personas
E3: 2 | F3: -1222 | G3: -108.5 | H3: -116.6 | I3: -205.5 | J3: -173.2 | K3: -96.8 | L3: -75.1 | M3: -70.4 | N3: -76.2 | O3: -68.7 | P3: -54.4 | Q3: -41 | R3: -35.7 | S3: -30.6 | T3: -23.6 | U3: -17.1 | V3: -12.2 | W3: -7.4 | X3: -4.2 | Y3: -1.4 | Z3: -0.5 | AA3: 0 | AB3: -0.5257949314 | AC3: 1102.1 | AD3: 108.8 | AE3: 110 | AF3: 110.6 | AG3: 115.4 | AH3: 90.2 | AI3: 81.4 | AJ3: 78.4 | AK3: 85 | AL3: 72.7 | AM3: 60.1 | AN3: 44.9 | AO3: 38.3 | AP3: 31.8 | AQ3: 23.9 | AR3: 19.3 | AS3: 12.2 | AT3: 7.6 | AU3: 5.6 | AV3: 1.3 | AW3: 1.1 | AX3: 0.1 | AY3: 0.4742050686 | AZ3: Miles de personas
A4: 0 - 4 años | B4: =VLOOKUP(Datos!E$141,E$2:AY$126,3,FALSE) -> -116.3 | C4: =VLOOKUP(Datos!E$141,E$2:AY$126,26,FALSE) -> 111.7 | E4: 3 | F4: -1067.7 | G4: -106.4 | H4: -108.1 | I4: -110.6 | J4: -107.2 | K4: -89.4 | L4: -75.8 | M4: -63 | N4: -71.6 | O4: -61.6 | P4: -54.5 | Q4: -47.5 | R4: -39.9 | S4: -36.5 | T4: -29.4 | U4: -25.5 | V4: -16.2 | W4: -10.9 | X4: -7.6 | Y4: -3.4 | Z4: -1 | AA4: 0 | AB4: -0.4917104172 | AC4: 1103.7 | AD4: 100.1 | AE4: 105.6 | AF4: 103.3 | AG4: 113 | AH4: 92.7 | AI4: 81 | AJ4: 78.6 | AK4: 72.2 | AL4: 68.4 | AM4: 57.4 | AN4: 55.2 | AO4: 42.8 | AP4: 34.1 | AQ4: 29.5 | AR4: 24.1 | AS4: 17.5 | AT4: 13 | AU4: 7.7 | AV4: 3.9 | AW4: 1.5 | AX4: 0.2 | AY4: 0.5082895828 | AZ4: Miles de personas
A5: 5 - 9 años | B5: =VLOOKUP(Datos!E$141,E$2:AY$126,4,FALSE) -> -126.1 | C5: =VLOOKUP(Datos!E$141,E$2:AY$126,27,FALSE) -> 111.7 | E5: 4 | F5: -2674 | G5: -270 | H5: -269 | I5: -277 | J5: -286 | K5: -224 | L5: -173 | M5: -148 | N5: -160 | O5: -126 | P5: -138 | Q5: -130 | R5: -98 | S5: -102 | T5: -79 | U5: -65 | V5: -52 | W5: -37 | X5: -25 | Y5: -8 | Z5: -3 | AA5: 0 | AB5: -0.4822362489 | AC5: 2871 | AD5: 258 | AE5: 257 | AF5: 244 | AG5: 269 | AH5: 251 | AI5: 221 | AJ5: 211 | AK5: 174 | AL5: 170 | AM5: 141 | AN5: 154 | AO5: 119 | AP5: 88 | AQ5: 74 | AR5: 78 | AS5: 66 | AT5: 42 | AU5: 19 | AV5: 15 | AW5: 6 | AX5: 3 | AY5: 0.5177637511 | AZ5: Cientos de personas
A6: 10 - 14 años | B6: =VLOOKUP(Datos!E$141,E$2:AY$126,5,FALSE) -> -115.6 | C6: =VLOOKUP(Datos!E$141,E$2:AY$126,28,FALSE) -> 114.7 | E6: 5 | F6: -7273 | G6: -774 | H6: -872 | I6: -729 | J6: -808 | K6: -611 | L6: -517 | M6: -498 | N6: -545 | O6: -414 | P6: -344 | Q6: -274 | R6: -213 | S6: -189 | T6: -132 | U6: -143 | V6: -72 | W6: -63 | X6: -43 | Y6: -12 | Z6: -7 | AA6: -1 | AB6: -0.496518296 | AC6: 7375 | AD6: 775 | AE6: 847 | AF6: 774 | AG6: 741 | AH6: 637 | AI6: 555 | AJ6: 533 | AK6: 525 | AL6: 451 | AM6: 374 | AN6: 313 | AO6: 224 | AP6: 168 | AQ6: 129 | AR6: 132 | AS6: 82 | AT6: 54 | AU6: 38 | AV6: 8 | AW6: 3 | AX6: 0 | AY6: 0.503481704 | AZ6: Cientos de personas
A7: 15 - 19 años | B7: =VLOOKUP(Datos!E$141,E$2:AY$126,6,FALSE) -> -108.1 | C7: =VLOOKUP(Datos!E$141,E$2:AY$126,29,FALSE) -> 111.7 | E7: 6 | F7: -2801.3 | G7: -263.2 | H7: -273.4 | I7: -275.4 | J7: -267.2 | K7: -226.9 | L7: -190.1 | M7: -195.2 | N7: -202.5 | O7: -162.4 | P7: -138 | Q7: -129.6 | R7: -110.1 | S7: -99.9 | T7: -79.6 | U7: -67.4 | V7: -44.7 | W7: -31.5 | X7: -18.8 | Y7: -9.3 | Z7: -3.7 | AA7: -0.6 | AB7: -0.48854203 | AC7: 2932.7 | AD7: 262.6 | AE7: 272.6 | AF7: 266 | AG7: 263.1 | AH7: 244.3 | AI7: 210.4 | AJ7: 222 | AK7: 209 | AL7: 175.3 | AM7: 156.4 | AN7: 140.9 | AO7: 120.1 | AP7: 105.5 | AQ7: 84.4 | AR7: 66.9 | AS7: 47.4 | AT7: 34.7 | AU7: 24.5 | AV7: 10.6 | AW7: 3.5 | AX7: 0.6 | AY7: 0.51145797 | AZ7: Miles de personas
A8: 20 - 24 años | B8: =VLOOKUP(Datos!E$141,E$2:AY$126,7,FALSE) -> -88.1 | C8: =VLOOKUP(Datos!E$141,E$2:AY$126,30,FALSE) -> 104.8 | E8: 7 | F8: -4461 | G8: -442 | H8: -479 | I8: -485 | J8: -448 | K8: -341 | L8: -274 | M8: -285 | N8: -296 | O8: -255 | P8: -206 | Q8: -161 | R8: -162 | S8: -165 | T8: -146 | U8: -112 | V8: -88 | W8: -42 | X8: -32 | Y8: -10 | Z8: -5 | AA8: -1 | AB8: -0.5014613309 | AC8: 4435 | AD8: 420 | AE8: 434 | AF8: 451 | AG8: 463 | AH8: 318 | AI8: 290 | AJ8: 294 | AK8: 310 | AL8: 229 | AM8: 217 | AN8: 210 | AO8: 170 | AP8: 143 | AQ8: 129 | AR8: 110 | AS8: 97 | AT8: 61 | AU8: 39 | AV8: 13 | AW8: 7 | AX8: 0 | AY8: 0.4985386691 | AZ8: Cientos de personas
A9: 25 - 29 años | B9: =VLOOKUP(Datos!E$141,E$2:AY$126,8,FALSE) -> -76.7 | C9: =VLOOKUP(Datos!E$141,E$2:AY$126,31,FALSE) -> 85.8 | E9: 8 | F9: -3513.5 | G9: -372.2 | H9: -412.8 | I9: -392.6 | J9: -366.9 | K9: -307 | L9: -259.7 | M9: -255.9 | N9: -228.3 | O9: -203.7 | P9: -166.9 | Q9: -141.3 | R9: -97.7 | S9: -88.2 | T9: -70.2 | U9: -59.2 | V9: -40.9 | W9: -18.9 | X9: -14.5 | Y9: -6.4 | Z9: -2 | AA9: -0.2 | AB9: -0.4825440861 | AC9: 3767.7 | AD9: 355.9 | AE9: 399.4 | AF9: 393.3 | AG9: 373.1 | AH9: 360.6 | AI9: 315.1 | AJ9: 281.7 | AK9: 269.3 | AL9: 227.9 | AM9: 186.1 | AN9: 148.8 | AO9: 119.4 | AP9: 94.8 | AQ9: 76.1 | AR9: 66.3 | AS9: 41.6 | AT9: 26.6 | AU9: 13.8 | AV9: 6 | AW9: 2.5 | AX9: 0.4 | AY9: 0.5174559139 | AZ9: Miles de personas
A10: 30 - 34 años | B10: =VLOOKUP(Datos!E$141,E$2:AY$126,9,FALSE) -> -76.2 | C10: =VLOOKUP(Datos!E$141,E$2:AY$126,32,FALSE) -> 83.8 | E10: 9 | F10: -8631 | G10: -941 | H10: -950 | I10: -878 | J10: -923 | K10: -736 | L10: -641 | M10: -538 | N10: -586 | O10: -531 | P10: -396 | Q10: -353 | R10: -260 | S10: -212 | T10: -191 | U10: -128 | V10: -101 | W10: -55 | X10: -38 | Y10: -12 | Z10: -10 | AA10: -1 | AB10: -0.4919350242 | AC10: 8914 | AD10: 912 | AE10: 914 | AF10: 937 | AG10: 881 | AH10: 783 | AI10: 694 | AJ10: 640 | AK10: 651 | AL10: 510 | AM10: 468 | AN10: 358 | AO10: 261 | AP10: 227 | AQ10: 172 | AR10: 148 | AS10: 85 | AT10: 59 | AU10: 44 | AV10: 15 | AW10: 5 | AX10: 1 | AY10: 0.5080649758 | AZ10: Cientos de personas
A11: 35 - 39 años | B11: =VLOOKUP(Datos!E$141,E$2:AY$126,10,FALSE) -> -70.9 | C11: =VLOOKUP(Datos!E$141,E$2:AY$126,33,FALSE) -> 71.6 | E11: 10 | F11: -3303 | G11: -394 | H11: -418 | I11: -406 | J11: -397 | K11: -294 | L11: -226 | M11: -203 | N11: -195 | O11: -151 | P11: -126 | Q11: -98 | R11: -78 | S11: -91 | T11: -71 | U11: -43 | V11: -45 | W11: -34 | X11: -20 | Y11: -1 | Z11: -6 | AA11: -1 | AB11: -0.4963185575 | AC11: 3352 | AD11: 381 | AE11: 412 | AF11: 380 | AG11: 360 | AH11: 297 | AI11: 256 | AJ11: 200 | AK11: 198 | AL11: 161 | AM11: 160 | AN11: 100 | AO11: 110 | AP11: 93 | AQ11: 68 | AR11: 55 | AS11: 42 | AT11: 29 | AU11: 25 | AV11: 12 | AW11: 4 | AX11: 4 | AY11: 0.5036814425 | AZ11: Cientos de personas
A12: 40 - 44 años | B12: =VLOOKUP(Datos!E$141,E$2:AY$126,11,FALSE) -> -50.9 | C12: =VLOOKUP(Datos!E$141,E$2:AY$126,34,FALSE) -> 57.6 | E12: 11 | F12: -2797 | G12: -289 | H12: -280 | I12: -275 | J12: -293 | K12: -224 | L12: -188 | M12: -189 | N12: -166 | O12: -131 | P12: -119 | Q12: -119 | R12: -91 | S12: -87 | T12: -102 | U12: -90 | V12: -66 | W12: -39 | X12: -29 | Y12: -7 | Z12: -7 | AA12: -1 | AB12: -0.517962963 | AC12: 2603 | AD12: 230 | AE12: 245 | AF12: 239 | AG12: 262 | AH12: 228 | AI12: 194 | AJ12: 166 | AK12: 156 | AL12: 138 | AM12: 128 | AN12: 99 | AO12: 95 | AP12: 100 | AQ12: 84 | AR12: 82 | AS12: 56 | AT12: 48 | AU12: 30 | AV12: 12 | AW12: 6 | AX12: 2 | AY12: 0.482037037 | AZ12: Cientos de personas
A13: 45 - 49 años | B13: =VLOOKUP(Datos!E$141,E$2:AY$126,12,FALSE) -> -41.2 | C13: =VLOOKUP(Datos!E$141,E$2:AY$126,35,FALSE) -> 44.6 | E13: 12 | F13: -2014 | G13: -151 | H13: -171 | I13: -173 | J13: -226 | K13: -170 | L13: -128 | M13: -132 | N13: -105 | O13: -100 | P13: -115 | Q13: -89 | R13: -67 | S13: -88 | T13: -84 | U13: -75 | V13: -62 | W13: -32 | X13: -30 | Y13: -5 | Z13: -5 | AA13: 0 | AB13: -0.4894289186 | AC13: 2101 | AD13: 159 | AE13: 163 | AF13: 208 | AG13: 195 | AH13: 151 | AI13: 134 | AJ13: 130 | AK13: 118 | AL13: 130 | AM13: 123 | AN13: 105 | AO13: 88 | AP13: 89 | AQ13: 80 | AR13: 79 | AS13: 64 | AT13: 31 | AU13: 27 | AV13: 11 | AW13: 6 | AX13: 4 | AY13: 0.5105710814 | AZ13: Cientos de personas
A14: 50 - 54 años | B14: =VLOOKUP(Datos!E$141,E$2:AY$126,13,FALSE) -> -34.9 | C14: =VLOOKUP(Datos!E$141,E$2:AY$126,36,FALSE) -> 40.9 | E14: 13 | F14: -2821.7 | G14: -287.2 | H14: -305 | I14: -310.2 | J14: -300.2 | K14: -245.1 | L14: -209.8 | M14: -186 | N14: -193.7 | O14: -166.7 | P14: -129.6 | Q14: -115.9 | R14: -90.8 | S14: -82.5 | T14: -63.8 | U14: -52.5 | V14: -32.9 | W14: -20.1 | X14: -14.7 | Y14: -7.1 | Z14: -2.7 | AA14: -0.2 | AB14: -0.4888854237 | AC14: 2950 | AD14: 278.9 | AE14: 297.5 | AF14: 295.7 | AG14: 294.7 | AH14: 262.3 | AI14: 241.3 | AJ14: 214.4 | AK14: 211.1 | AL14: 174.7 | AM14: 142.8 | AN14: 127.5 | AO14: 100.7 | AP14: 88.2 | AQ14: 66.2 | AR14: 56.3 | AS14: 37.5 | AT14: 26 | AU14: 18.2 | AV14: 6.4 | AW14: 3 | AX14: 0.5 | AY14: 0.5111145763 | AZ14: Miles de personas
A15: 55 - 59 años | B15: =VLOOKUP(Datos!E$141,E$2:AY$126,14,FALSE) -> -28 | C15: =VLOOKUP(Datos!E$141,E$2:AY$126,37,FALSE) -> 37.2 | E15: 14 | F15: -3962 | G15: -360 | H15: -348 | I15: -404 | J15: -408 | K15: -335 | L15: -234 | M15: -221 | N15: -237 | O15: -225 | P15: -214 | Q15: -187 | R15: -173 | S15: -137 | T15: -128 | U15: -113 | V15: -89 | W15: -69 | X15: -45 | Y15: -18 | Z15: -7 | AA15: 0 | AB15: -0.4787336878 | AC15: 4314 | AD15: 380 | AE15: 376 | AF15: 398 | AG15: 394 | AH15: 347 | AI15: 274 | AJ15: 275 | AK15: 291 | AL15: 276 | AM15: 226 | AN15: 195 | AO15: 182 | AP15: 151 | AQ15: 151 | AR15: 129 | AS15: 92 | AT15: 71 | AU15: 56 | AV15: 25 | AW15: 9 | AX15: 3 | AY15: 0.5212663122 | AZ15: Cientos de personas
A16: 60 - 64 años | B16: =VLOOKUP(Datos!E$141,E$2:AY$126,15,FALSE) -> -31.9 | C16: =VLOOKUP(Datos!E$141,E$2:AY$126,38,FALSE) -> 32.8 | E16: 15 | F16: -2821 | G16: -284.4 | H16: -272.2 | I16: -267.7 | J16: -284.9 | K16: -268.8 | L16: -207.2 | M16: -197.7 | N16: -186.9 | O16: -163.6 | P16: -147.3 | Q16: -134.3 | R16: -101.3 | S16: -86.1 | T16: -63.2 | U16: -54.2 | V16: -41.3 | W16: -24.9 | X16: -17.4 | Y16: -6.2 | Z16: -3 | AA16: -0.4 | AB16: -0.4901058045 | AC16: 2934.9 | AD16: 265 | AE16: 272.7 | AF16: 263.6 | AG16: 276.3 | AH16: 270.5 | AI16: 228 | AJ16: 213.5 | AK16: 213.4 | AL16: 172.9 | AM16: 165.8 | AN16: 148.3 | AO16: 106.5 | AP16: 90.2 | AQ16: 65.7 | AR16: 65.2 | AS16: 42.4 | AT16: 31.6 | AU16: 20.4 | AV16: 9.6 | AW16: 4.3 | AX16: 0.9 | AY16: 0.5098941955 | AZ16: Miles de personas
A17: 65 - 69 años | B17: =VLOOKUP(Datos!E$141,E$2:AY$126,16,FALSE) -> -22.2 | C17: =VLOOKUP(Datos!E$141,E$2:AY$126,39,FALSE) -> 25.4 | E17: 16 | F17: -1860.3 | G17: -212.2 | H17: -208.5 | I17: -206.8 | J17: -197.4 | K17: -155.9 | L17: -133.2 | M17: -126 | N17: -122.4 | O17: -98.8 | P17: -78.4 | Q17: -71.9 | R17: -61.6 | S17: -51.4 | T17: -46.2 | U17: -33.1 | V17: -24.1 | W17: -14.2 | X17: -11.2 | Y17: -3.4 | Z17: -2.2 | AA17: -0.3 | AB17: -0.4858321799 | AC17: 1968.8 | AD17: 213.1 | AE17: 208.1 | AF17: 198.9 | AG17: 197.8 | AH17: 175.9 | AI17: 157 | AJ17: 148.4 | AK17: 128.1 | AL17: 109.5 | AM17: 86.4 | AN17: 74.9 | AO17: 69.1 | AP17: 55.7 | AQ17: 47.1 | AR17: 34.1 | AS17: 26.6 | AT17: 17.5 | AU17: 10.7 | AV17: 5.8 | AW17: 2.3 | AX17: 0.3 | AY17: 0.5141678201 | AZ17: Miles de personas
A18: 70 - 74 años | B18: =VLOOKUP(Datos!E$141,E$2:AY$126,17,FALSE) -> -18.7 | C18: =VLOOKUP(Datos!E$141,E$2:AY$126,40,FALSE) -> 20.1 | E18: 17 | F18: -6308 | G18: -613 | H18: -614 | I18: -629 | J18: -643 | K18: -497 | L18: -424 | M18: -399 | N18: -366 | O18: -317 | P18: -294 | Q18: -275 | R18: -205 | S18: -254 | T18: -215 | U18: -186 | V18: -146 | W18: -93 | X18: -62 | Y18: -41 | Z18: -21 | AA18: -7 | AB18: -0.4981048642 | AC18: 6356 | AD18: 575 | AE18: 587 | AF18: 673 | AG18: 637 | AH18: 552 | AI18: 440 | AJ18: 394 | AK18: 372 | AL18: 354 | AM18: 275 | AN18: 294 | AO18: 261 | AP18: 246 | AQ18: 210 | AR18: 155 | AS18: 123 | AT18: 79 | AU18: 74 | AV18: 31 | AW18: 15 | AX18: 5 | AY18: 0.5018951358 | AZ18: Cientos de personas
A19: 75 - 79 años | B19: =VLOOKUP(Datos!E$141,E$2:AY$126,18,FALSE) -> -11.8 | C19: =VLOOKUP(Datos!E$141,E$2:AY$126,41,FALSE) -> 11.9 | E19: 18 | F19: -3092 | G19: -324.7 | H19: -320.8 | I19: -322.5 | J19: -307.1 | K19: -261.3 | L19: -220.5 | M19: -205.4 | N19: -215 | O19: -180.2 | P19: -143.9 | Q19: -137.8 | R19: -108.7 | S19: -102.7 | T19: -78.7 | U19: -64 | V19: -41.1 | W19: -26.1 | X19: -17 | Y19: -7.9 | Z19: -2.9 | AA19: -1.4 | AB19: -0.4811028645 | AC19: 3334.9 | AD19: 311.9 | AE19: 332.5 | AF19: 313.7 | AG19: 315.2 | AH19: 289.5 | AI19: 245.3 | AJ19: 243.9 | AK19: 245.3 | AL19: 199.1 | AM19: 167.9 | AN19: 156 | AO19: 122.9 | AP19: 110.4 | AQ19: 87.3 | AR19: 71.2 | AS19: 46.5 | AT19: 34.5 | AU19: 21.9 | AV19: 11.6 | AW19: 4.2 | AX19: 1.6 | AY19: 0.5188971355 | AZ19: Miles de personas
A20: 80 - 84 años | B20: =VLOOKUP(Datos!E$141,E$2:AY$126,19,FALSE) -> -8.2 | C20: =VLOOKUP(Datos!E$141,E$2:AY$126,42,FALSE) -> 9.6 | E20: 19 | F20: -3384 | G20: -419 | H20: -497 | I20: -464 | J20: -419 | K20: -305 | L20: -215 | M20: -219 | N20: -176 | O20: -136 | P20: -118 | Q20: -98 | R20: -80 | S20: -61 | T20: -59 | U20: -37 | V20: -30 | W20: -19 | X20: -10 | Y20: -8 | Z20: -6 | AA20: -5 | AB20: -0.4961876833 | AC20: 3436 | AD20: 480 | AE20: 462 | AF20: 450 | AG20: 402 | AH20: 306 | AI20: 243 | AJ20: 218 | AK20: 185 | AL20: 135 | AM20: 144 | AN20: 90 | AO20: 66 | AP20: 66 | AQ20: 54 | AR20: 47 | AS20: 37 | AT20: 18 | AU20: 15 | AV20: 7 | AW20: 3 | AX20: 0 | AY20: 0.5038123167 | AZ20: Cientos de personas
A21: 85 - 89 años | B21: =VLOOKUP(Datos!E$141,E$2:AY$126,20,FALSE) -> -5.6 | C21: =VLOOKUP(Datos!E$141,E$2:AY$126,43,FALSE) -> 5.4 | E21: 20 | F21: -5176 | G21: -559 | H21: -517 | I21: -513 | J21: -520 | K21: -414 | L21: -343 | M21: -308 | N21: -328 | O21: -254 | P21: -238 | Q21: -243 | R21: -240 | S21: -190 | T21: -146 | U21: -140 | V21: -101 | W21: -66 | X21: -31 | Y21: -12 | Z21: -7 | AA21: -1 | AB21: -0.5161033004 | AC21: 4853 | AD21: 532 | AE21: 531 | AF21: 499 | AG21: 485 | AH21: 402 | AI21: 335 | AJ21: 318 | AK21: 295 | AL21: 253 | AM21: 239 | AN21: 206 | AO21: 187 | AP21: 171 | AQ21: 128 | AR21: 94 | AS21: 72 | AT21: 53 | AU21: 27 | AV21: 14 | AW21: 6 | AX21: 1 | AY21: 0.4838966996 | AZ21: Cientos de personas
A22: 90 - 94 años | B22: =VLOOKUP(Datos!E$141,E$2:AY$126,21,FALSE) -> -2.4 | C22: =VLOOKUP(Datos!E$141,E$2:AY$126,44,FALSE) -> 3 | E22: 21 | F22: -1066.7 | G22: -106.4 | H22: -104 | I22: -106.2 | J22: -110.4 | K22: -90 | L22: -72.6 | M22: -67.7 | N22: -70.3 | O22: -61.8 | P22: -56 | Q22: -52.2 | R22: -40.5 | S22: -38.4 | T22: -31.9 | U22: -20.4 | V22: -17.3 | W22: -9.1 | X22: -7 | Y22: -2.2 | Z22: -1.4 | AA22: -0.4 | AB22: -0.4967171129 | AC22: 1080.8 | AD22: 98.4 | AE22: 104.7 | AF22: 107.4 | AG22: 102 | AH22: 91.9 | AI22: 84 | AJ22: 77.7 | AK22: 68.6 | AL22: 64.8 | AM22: 55.7 | AN22: 51.7 | AO22: 47.2 | AP22: 37.5 | AQ22: 24.7 | AR22: 25.2 | AS22: 16.7 | AT22: 11 | AU22: 7.4 | AV22: 2.1 | AW22: 0.9 | AX22: 0.1 | AY22: 0.5032828871 | AZ22: Miles de personas
A23: 95 - 99 años | B23: =VLOOKUP(Datos!E$141,E$2:AY$126,22,FALSE) -> -0.8 | C23: =VLOOKUP(Datos!E$141,E$2:AY$126,45,FALSE) -> 0.8 | E23: 22 | F23: -1969.4 | G23: -208.8 | H23: -203.9 | I23: -203.6 | J23: -199.3 | K23: -172.3 | L23: -146.2 | M23: -143.8 | N23: -136.5 | O23: -108.6 | P23: -98.4 | Q23: -89.6 | R23: -69.9 | S23: -53.7 | T23: -39.1 | U23: -31 | V23: -20.4 | W23: -14.3 | X23: -10.2 | Y23: -2.9 | Z23: -1.5 | AA23: -0.4 | AB23: -0.5047155305 | AC23: 1932.6 | AD23: 205.5 | AE23: 195.4 | AF23: 196 | AG23: 192.2 | AH23: 169.9 | AI23: 146.5 | AJ23: 143.5 | AK23: 135.4 | AL23: 116.9 | AM23: 98.1 | AN23: 86.5 | AO23: 67.7 | AP23: 52.1 | AQ23: 36.4 | AR23: 30.8 | AS23: 19.9 | AT23: 13.6 | AU23: 6.8 | AV23: 2.7 | AW23: 1.5 | AX23: 0.1 | AY23: 0.4952844695 | AZ23: Miles de personas
A24: 100 años y más | B24: =VLOOKUP(Datos!E$141,E$2:AY$126,23,FALSE) -> -0.2 | C24: =VLOOKUP(Datos!E$141,E$2:AY$126,46,FALSE) -> 0.2 | E24: 23 | F24: -4866.1 | G24: -445.2 | H24: -462.5 | I24: -449.2 | J24: -469.9 | K24: -480.3 | L24: -394.8 | M24: -364.9 | N24: -334.3 | O24: -287.3 | P24: -249.7 | Q24: -225.4 | R24: -183.1 | S24: -144.1 | T24: -104.6 | U24: -74.2 | V24: -49.2 | W24: -37 | X24: -22.8 | Y24: -9.9 | Z24: -3.4 | AA24: -0.4 | AB24: -0.4840253049 | AC24: 5187.3 | AD24: 417.8 | AE24: 449.5 | AF24: 428.9 | AG24: 472.3 | AH24: 500.7 | AI24: 422.1 | AJ24: 388.4 | AK24: 384 | AL24: 334.8 | AM24: 298.3 | AN24: 266.7 | AO24: 207.3 | AP24: 167.5 | AQ24: 117.8 | AR24: 92.4 | AS24: 66 | AT24: 46.6 | AU24: 31.3 | AV24: 15.8 | AW24: 4.4 | AX24: 0.8 | AY24: 0.5159746951 | AZ24: Miles de personas
E25: 24 | F25: -1272.1 | G25: -122.2 | H25: -127.3 | I25: -116.1 | J25: -127.9 | K25: -100.2 | L25: -91.8 | M25: -85.7 | N25: -89.9 | O25: -68.1 | P25: -60.9 | Q25: -53.5 | R25: -49.7 | S25: -46.6 | T25: -39.4 | U25: -31.6 | V25: -25.5 | W25: -16 | X25: -11.6 | Y25: -4.8 | Z25: -1.8 | AA25: -0.3 | AB25: -0.4860166578 | AC25: 1345.3 | AD25: 119.3 | AE25: 121.6 | AF25: 122.5 | AG25: 121 | AH25: 108.3 | AI25: 102.2 | AJ25: 94.8 | AK25: 95.4 | AL25: 82.6 | AM25: 67.4 | AN25: 64.8 | AO25: 55.4 | AP25: 49.9 | AQ25: 38.1 | AR25: 35.8 | AS25: 24.6 | AT25: 18.3 | AU25: 13.7 | AV25: 6.1 | AW25: 1.7 | AX25: 0.5 | AY25: 0.5139833422 | AZ25: Miles de personas
E26: 25 | F26: -8711 | G26: -823 | H26: -893 | I26: -987 | J26: -972 | K26: -770 | L26: -523 | M26: -561 | N26: -567 | O26: -500 | P26: -440 | Q26: -347 | R26: -271 | S26: -269 | T26: -217 | U26: -193 | V26: -143 | W26: -95 | X26: -60 | Y26: -27 | Z26: -15 | AA26: -1 | AB26: -0.4815101432 | AC26: 9380 | AD26: 808 | AE26: 837 | AF26: 892 | AG26: 962 | AH26: 881 | AI26: 627 | AJ26: 628 | AK26: 669 | AL26: 584 | AM26: 521 | AN26: 427 | AO26: 304 | AP26: 282 | AQ26: 251 | AR26: 241 | AS26: 195 | AT26: 123 | AU26: 67 | AV26: 29 | AW26: 12 | AX26: 2 | AY26: 0.5184898568 | AZ26: Cientos de personas
E27: 26 | F27: -3011 | G27: -287 | H27: -288 | I27: -299 | J27: -309 | K27: -250 | L27: -211 | M27: -198 | N27: -191 | O27: -178 | P27: -151 | Q27: -139 | R27: -110 | S27: -92 | T27: -96 | U27: -78 | V27: -58 | W27: -37 | X27: -29 | Y27: -8 | Z27: -1 | AA27: 0 | AB27: -0.5075004214 | AC27: 2922 | AD27: 263 | AE27: 249 | AF27: 261 | AG27: 290 | AH27: 249 | AI27: 199 | AJ27: 196 | AK27: 211 | AL27: 159 | AM27: 157 | AN27: 148 | AO27: 127 | AP27: 102 | AQ27: 99 | AR27: 72 | AS27: 56 | AT27: 39 | AU27: 25 | AV27: 14 | AW27: 4 | AX27: 2 | AY27: 0.4924995786 | AZ27: Cientos de personas
E28: 27 | F28: -876.3 | G28: -89.8 | H28: -99.3 | I28: -103.7 | J28: -103.3 | K28: -70.2 | L28: -53 | M28: -54.3 | N28: -53.9 | O28: -45.4 | P28: -40.4 | Q28: -30.5 | R28: -28.5 | S28: -25.6 | T28: -25 | U28: -22.8 | V28: -13.7 | W28: -8.1 | X28: -5 | Y28: -2 | Z28: -0.7 | AA28: -0.3 | AB28: -0.5058884655 | AC28: 855.9 | AD28: 87.8 | AE28: 98.3 | AF28: 104.6 | AG28: 93.9 | AH28: 66.3 | AI28: 59.3 | AJ28: 57.3 | AK28: 46.9 | AL28: 45.8 | AM28: 37 | AN28: 30.7 | AO28: 27.2 | AP28: 29.2 | AQ28: 21.8 | AR28: 19.3 | AS28: 12 | AT28: 7.7 | AU28: 5.2 | AV28: 2.9 | AW28: 1.3 | AX28: 0.4 | AY28: 0.4941115345 | AZ28: Miles de personas
E29: 28 | F29: -1045 | G29: -93 | H29: -96 | I29: -108 | J29: -105 | K29: -71 | L29: -52 | M29: -61 | N29: -59 | O29: -45 | P29: -45 | Q29: -48 | R29: -44 | S29: -53 | T29: -41 | U29: -41 | V29: -34 | W29: -22 | X29: -14 | Y29: -9 | Z29: -4 | AA29: 0 | AB29: -0.4813450023 | AC29: 1126 | AD29: 91 | AE29: 89 | AF29: 90 | AG29: 110 | AH29: 117 | AI29: 71 | AJ29: 55 | AK29: 56 | AL29: 71 | AM29: 57 | AN29: 54 | AO29: 50 | AP29: 48 | AQ29: 44 | AR29: 43 | AS29: 23 | AT29: 22 | AU29: 20 | AV29: 9 | AW29: 4 | AX29: 1 | AY29: 0.5186549977 | AZ29: Cientos de personas
E30: 29 | F30: -8488 | G30: -837 | H30: -878 | I30: -948 | J30: -941 | K30: -602 | L30: -492 | M30: -494 | N30: -523 | O30: -473 | P30: -402 | Q30: -364 | R30: -372 | S30: -296 | T30: -272 | U30: -190 | V30: -148 | W30: -107 | X30: -68 | Y30: -21 | Z30: -7 | AA30: 0 | AB30: -0.476987918 | AC30: 9307 | AD30: 841 | AE30: 904 | AF30: 898 | AG30: 918 | AH30: 819 | AI30: 644 | AJ30: 666 | AK30: 580 | AL30: 582 | AM30: 469 | AN30: 430 | AO30: 367 | AP30: 321 | AQ30: 243 | AR30: 214 | AS30: 147 | AT30: 108 | AU30: 56 | AV30: 28 | AW30: 14 | AX30: 2 | AY30: 0.523012082 | AZ30: Cientos de personas
E31: 30 | F31: -2390.2 | G31: -234.1 | H31: -241.5 | I31: -235.5 | J31: -228.6 | K31: -206.7 | L31: -169.5 | M31: -156.6 | N31: -161.9 | O31: -127.6 | P31: -106.8 | Q31: -97.6 | R31: -87.6 | S31: -85.4 | T31: -77.9 | U31: -57.6 | V31: -40.9 | W31: -26.4 | X31: -13.9 | Y31: -6.2 | Z31: -2.5 | AA31: -0.2 | AB31: -0.48940396 | AC31: 2493.7 | AD31: 225.3 | AE31: 229.2 | AF31: 232.2 | AG31: 219.8 | AH31: 209.4 | AI31: 179.4 | AJ31: 169.8 | AK31: 178.7 | AL31: 143.4 | AM31: 115.1 | AN31: 114.1 | AO31: 101.3 | AP31: 102.5 | AQ31: 83.6 | AR31: 64.5 | AS31: 42.1 | AT31: 26.6 | AU31: 17.8 | AV31: 8.9 | AW31: 3.9 | AX31: 0.6 | AY31: 0.51059604 | AZ31: Miles de personas
E32: 31 | F32: -1869 | G32: -266 | H32: -182 | I32: -228 | J32: -200 | K32: -142 | L32: -113 | M32: -93 | N32: -99 | O32: -97 | P32: -81 | Q32: -68 | R32: -57 | S32: -61 | T32: -49 | U32: -44 | V32: -32 | W32: -22 | X32: -20 | Y32: -7 | Z32: -6 | AA32: -2 | AB32: -0.4956245028 | AC32: 1902 | AD32: 219 | AE32: 238 | AF32: 225 | AG32: 199 | AH32: 144 | AI32: 116 | AJ32: 119 | AK32: 91 | AL32: 74 | AM32: 74 | AN32: 71 | AO32: 60 | AP32: 53 | AQ32: 58 | AR32: 68 | AS32: 35 | AT32: 24 | AU32: 12 | AV32: 12 | AW32: 7 | AX32: 2 | AY32: 0.5043754972 | AZ32: Cientos de personas
E33: 32 | F33: -2896 | G33: -317 | H33: -354 | I33: -340 | J33: -349 | K33: -259 | L33: -151 | M33: -145 | N33: -160 | O33: -136 | P33: -133 | Q33: -109 | R33: -96 | S33: -73 | T33: -68 | U33: -66 | V33: -49 | W33: -39 | X33: -35 | Y33: -12 | Z33: -4 | AA33: -1 | AB33: -0.4981080151 | AC33: 2918 | AD33: 296 | AE33: 311 | AF33: 314 | AG33: 346 | AH33: 262 | AI33: 173 | AJ33: 179 | AK33: 174 | AL33: 160 | AM33: 130 | AN33: 130 | AO33: 81 | AP33: 77 | AQ33: 87 | AR33: 59 | AS33: 53 | AT33: 41 | AU33: 27 | AV33: 6 | AW33: 10 | AX33: 0 | AY33: 0.5018919849 | AZ33: Cientos de personas
E34: 33 | F34: -1011.9 | G34: -112.1 | H34: -107.8 | I34: -110.2 | J34: -106.8 | K34: -77.3 | L34: -62 | M34: -67.9 | N34: -66.5 | O34: -55.7 | P34: -46.9 | Q34: -42.5 | R34: -34.9 | S34: -35.7 | T34: -26.6 | U34: -25.4 | V34: -14.2 | W34: -9.5 | X34: -6.5 | Y34: -2.4 | Z34: -0.6 | AA34: -0.2 | AB34: -0.4788472459 | AC34: 1101.3 | AD34: 99.8 | AE34: 108.9 | AF34: 112.7 | AG34: 118.5 | AH34: 99.8 | AI34: 80.5 | AJ34: 81.3 | AK34: 69.5 | AL34: 64.8 | AM34: 55.7 | AN34: 47 | AO34: 36.7 | AP34: 34.3 | AQ34: 27.9 | AR34: 25.5 | AS34: 16.4 | AT34: 11.6 | AU34: 7 | AV34: 2.1 | AW34: 1 | AX34: 0.2 | AY34: 0.5211527541 | AZ34: Miles de personas
E35: 34 | F35: -1072 | G35: -79 | H35: -68 | I35: -90 | J35: -108 | K35: -87 | L35: -70 | M35: -61 | N35: -66 | O35: -73 | P35: -46 | Q35: -59 | R35: -43 | S35: -51 | T35: -39 | U35: -43 | V35: -36 | W35: -32 | X35: -12 | Y35: -5 | Z35: 0 | AA35: -2 | AB35: -0.5148895293 | AC35: 1010 | AD35: 70 | AE35: 78 | AF35: 82 | AG35: 84 | AH35: 89 | AI35: 72 | AJ35: 58 | AK35: 64 | AL35: 43 | AM35: 70 | AN35: 53 | AO35: 52 | AP35: 38 | AQ35: 41 | AR35: 49 | AS35: 32 | AT35: 19 | AU35: 7 | AV35: 5 | AW35: 2 | AX35: 1 | AY35: 0.4851104707 | AZ35: Cientos de personas
E36: 35 | F36: -2469.2 | G36: -266.3 | H36: -267.3 | I36: -269.6 | J36: -264 | K36: -214.9 | L36: -168.4 | M36: -170.3 | N36: -163.3 | O36: -139.8 | P36: -115.8 | Q36: -97.8 | R36: -82.9 | S36: -73.8 | T36: -56.7 | U36: -44.2 | V36: -34.1 | W36: -20.5 | X36: -11.2 | Y36: -4.2 | Z36: -1 | AA36: -0.3 | AB36: -0.4804264923 | AC36: 2670.4 | AD36: 265.6 | AE36: 254.6 | AF36: 270.3 | AG36: 272.8 | AH36: 243.3 | AI36: 201 | AJ36: 195.9 | AK36: 187.9 | AL36: 152.4 | AM36: 136 | AN36: 115.6 | AO36: 98.1 | AP36: 77.7 | AQ36: 65.2 | AR36: 48.1 | AS36: 37.2 | AT36: 24.9 | AU36: 14.5 | AV36: 4.5 | AW36: 1.1 | AX36: 0.4 | AY36: 0.5195735077 | AZ36: Miles de personas
E37: 36 | F37: -915.7 | G37: -91.8 | H37: -95.2 | I37: -94 | J37: -101.6 | K37: -80.2 | L37: -61.6 | M37: -58.3 | N37: -57.7 | O37: -48 | P37: -42.5 | Q37: -39.3 | R37: -34.8 | S37: -29.3 | T37: -26.9 | U37: -15.2 | V37: -15.4 | W37: -11.3 | X37: -7.5 | Y37: -3.1 | Z37: -1 | AA37: 0 | AB37: -0.4914662945 | AC37: 947.5 | AD37: 91.2 | AE37: 95.4 | AF37: 94.1 | AG37: 93.7 | AH37: 80.2 | AI37: 69.8 | AJ37: 64.1 | AK37: 61.3 | AL37: 53.6 | AM37: 49.8 | AN37: 45.7 | AO37: 33.8 | AP37: 31.5 | AQ37: 24.4 | AR37: 20.5 | AS37: 15.5 | AT37: 10.4 | AU37: 6.9 | AV37: 2.4 | AW37: 1.8 | AX37: 0.4 | AY37: 0.5085337055 | AZ37: Miles de personas
E38: 37 | F38: -1162.2 | G38: -108.6 | H38: -106.9 | I38: -113.6 | J38: -115.5 | K38: -109.5 | L38: -81.4 | M38: -79.9 | N38: -79.1 | O38: -64.3 | P38: -60.4 | Q38: -54.9 | R38: -40 | S38: -37.2 | T38: -30.9 | U38: -24.4 | V38: -16.7 | W38: -13.4 | X38: -8.7 | Y38: -4.4 | Z38: -1.2 | AA38: -0.3 | AB38: -0.4873977773 | AC38: 1222.3 | AD38: 113.3 | AE38: 110.3 | AF38: 111.6 | AG38: 107.7 | AH38: 111.1 | AI38: 93.6 | AJ38: 89.6 | AK38: 84.3 | AL38: 73.7 | AM38: 63.8 | AN38: 57.4 | AO38: 47.2 | AP38: 35.7 | AQ38: 33.4 | AR38: 26.8 | AS38: 19.2 | AT38: 16.1 | AU38: 11.2 | AV38: 3.9 | AW38: 1.4 | AX38: 0.4 | AY38: 0.5126022227 | AZ38: Miles de personas
E39: 38 | F39: -2178 | G39: -173 | H39: -200 | I39: -213 | J39: -214 | K39: -163 | L39: -119 | M39: -126 | N39: -133 | O39: -145 | P39: -117 | Q39: -102 | R39: -79 | S39: -80 | T39: -89 | U39: -70 | V39: -64 | W39: -37 | X39: -33 | Y39: -11 | Z39: -8 | AA39: 0 | AB39: -0.5038167939 | AC39: 2145 | AD39: 174 | AE39: 195 | AF39: 196 | AG39: 196 | AH39: 180 | AI39: 127 | AJ39: 128 | AK39: 133 | AL39: 118 | AM39: 106 | AN39: 88 | AO39: 84 | AP39: 99 | AQ39: 81 | AR39: 80 | AS39: 67 | AT39: 35 | AU39: 30 | AV39: 15 | AW39: 9 | AX39: 2 | AY39: 0.4961832061 | AZ39: Cientos de personas
E40: 39 | F40: -71740.4 | G40: -5664.4 | H40: -6169.4 | I40: -6303 | J40: -6812.1 | K40: -7051.1 | L40: -6243.1 | M40: -5108.1 | N40: -4899.6 | O40: -4278.6 | P40: -3755.6 | Q40: -3543.8 | R40: -2932 | S40: -2505.1 | T40: -1817.1 | U40: -1332.5 | V40: -907.1 | W40: -596.5 | X40: -320.9 | Y40: -124.9 | Z40: -39.4 | AA40: -6.8 | AB40: -0.4798082383 | AC40: 77778.5 | AD40: 5406.9 | AE40: 5953.2 | AF40: 6229.7 | AG40: 6714.7 | AH40: 7032.8 | AI40: 6299.2 | AJ40: 5504.1 | AK40: 5554.3 | AL40: 5023.9 | AM40: 4558.4 | AN40: 4406.4 | AO40: 3609 | AP40: 3145.9 | AQ40: 2277.8 | AR40: 1753.1 | AS40: 1232.5 | AT40: 896.7 | AU40: 522.5 | AV40: 233.5 | AW40: 81.4 | AX40: 16.3 | AY40: 0.5201917617 | AZ40: Miles de personas
E41: 40 | F41: -5501 | G41: -523 | H41: -522 | I41: -539 | J41: -538 | K41: -505 | L41: -392 | M41: -415 | N41: -392 | O41: -360 | P41: -297 | Q41: -215 | R41: -193 | S41: -166 | T41: -133 | U41: -108 | V41: -81 | W41: -58 | X41: -35 | Y41: -12 | Z41: -9 | AA41: 0 | AB41: -0.5349085959 | AC41: 4783 | AD41: 495 | AE41: 527 | AF41: 531 | AG41: 460 | AH41: 397 | AI41: 325 | AJ41: 324 | AK41: 299 | AL41: 330 | AM41: 204 | AN41: 168 | AO41: 166 | AP41: 153 | AQ41: 106 | AR41: 127 | AS41: 62 | AT41: 54 | AU41: 33 | AV41: 16 | AW41: 2 | AX41: 1 | AY41: 0.4650914041 | AZ41: Cientos de personas
E42: 41 | F42: -2905 | G42: -256 | H42: -266 | I42: -279 | J42: -288 | K42: -201 | L42: -151 | M42: -157 | N42: -187 | O42: -157 | P42: -150 | Q42: -134 | R42: -113 | S42: -107 | T42: -127 | U42: -115 | V42: -108 | W42: -51 | X42: -38 | Y42: -16 | Z42: -3 | AA42: -1 | AB42: -0.4774819198 | AC42: 3179 | AD42: 240 | AE42: 272 | AF42: 280 | AG42: 256 | AH42: 235 | AI42: 202 | AJ42: 189 | AK42: 216 | AL42: 187 | AM42: 172 | AN42: 159 | AO42: 136 | AP42: 138 | AQ42: 143 | AR42: 134 | AS42: 98 | AT42: 52 | AU42: 51 | AV42: 13 | AW42: 6 | AX42: 0 | AY42: 0.5225180802 | AZ42: Cientos de personas
E43: 42 | F43: -4237 | G43: -494 | H43: -444 | I43: -504 | J43: -448 | K43: -357 | L43: -283 | M43: -224 | N43: -217 | O43: -172 | P43: -181 | Q43: -144 | R43: -131 | S43: -129 | T43: -145 | U43: -136 | V43: -89 | W43: -61 | X43: -46 | Y43: -12 | Z43: -8 | AA43: -2 | AB43: -0.4825190753 | AC43: 4544 | AD43: 432 | AE43: 439 | AF43: 468 | AG43: 507 | AH43: 413 | AI43: 301 | AJ43: 283 | AK43: 241 | AL43: 223 | AM43: 186 | AN43: 201 | AO43: 144 | AP43: 184 | AQ43: 140 | AR43: 120 | AS43: 97 | AT43: 75 | AU43: 48 | AV43: 22 | AW43: 8 | AX43: 1 | AY43: 0.5174809247 | AZ43: Cientos de personas
E44: 43 | F44: -1184.5 | G44: -119.8 | H44: -122.7 | I44: -121.2 | J44: -119.4 | K44: -95.3 | L44: -81 | M44: -76.6 | N44: -76.8 | O44: -69 | P44: -63.7 | Q44: -54.8 | R44: -43.3 | S44: -36.3 | T44: -32.9 | U44: -28 | V44: -16.9 | W44: -11.6 | X44: -7.7 | Y44: -3.8 | Z44: -2 | AA44: -0.7 | AB44: -0.5055915998 | AC44: 1158.3 | AD44: 116.3 | AE44: 118.6 | AF44: 115.9 | AG44: 117.3 | AH44: 104.2 | AI44: 83.8 | AJ44: 78.3 | AK44: 76.1 | AL44: 66.2 | AM44: 59.4 | AN44: 49.4 | AO44: 44.5 | AP44: 37.2 | AQ44: 28.7 | AR44: 23.9 | AS44: 15.7 | AT44: 10.2 | AU44: 6.7 | AV44: 2.8 | AW44: 1.4 | AX44: 0.3 | AY44: 0.4944084002 | AZ44: Miles de personas
E45: 44 | F45: -2041.9 | G45: -245.6 | H45: -251 | I45: -225.1 | J45: -198.6 | K45: -167.2 | L45: -169 | M45: -160.9 | N45: -154.3 | O45: -124.4 | P45: -88.5 | Q45: -69 | R45: -52.1 | S45: -41 | T45: -30.9 | U45: -23.5 | V45: -17.9 | W45: -11.6 | X45: -6.4 | Y45: -2.5 | Z45: -0.7 | AA45: -0.2 | AB45: -0.4972966391 | AC45: 2064.1 | AD45: 234.6 | AE45: 234.4 | AF45: 205.7 | AG45: 197.4 | AH45: 185.2 | AI45: 182.3 | AJ45: 174.8 | AK45: 166.7 | AL45: 130.6 | AM45: 91 | AN45: 70.4 | AO45: 50.5 | AP45: 45.3 | AQ45: 34 | AR45: 21.6 | AS45: 16.6 | AT45: 11.6 | AU45: 5.9 | AV45: 2.1 | AW45: 1.3 | AX45: 0.3 | AY45: 0.5027033609 | AZ45: Miles de personas
E46: 45 | F46: -9175 | G46: -938 | H46: -971 | I46: -1023 | J46: -973 | K46: -654 | L46: -572 | M46: -575 | N46: -618 | O46: -486 | P46: -426 | Q46: -405 | R46: -344 | S46: -318 | T46: -292 | U46: -208 | V46: -165 | W46: -101 | X46: -59 | Y46: -26 | Z46: -12 | AA46: 0 | AB46: -0.4827676927 | AC46: 9830 | AD46: 924 | AE46: 923 | AF46: 895 | AG46: 1022 | AH46: 865 | AI46: 760 | AJ46: 702 | AK46: 615 | AL46: 578 | AM46: 529 | AN46: 478 | AO46: 348 | AP46: 331 | AQ46: 266 | AR46: 237 | AS46: 153 | AT46: 98 | AU46: 58 | AV46: 26 | AW46: 9 | AX46: 2 | AY46: 0.5172323073 | AZ46: Cientos de personas
E47: 46 | F47: -1559.8 | G47: -180.1 | H47: -188 | I47: -174.6 | J47: -161.4 | K47: -133.2 | L47: -110.1 | M47: -108.4 | N47: -97.8 | O47: -76.8 | P47: -67.2 | Q47: -60.1 | R47: -50.2 | S47: -41 | T47: -36.3 | U47: -28.2 | V47: -16.8 | W47: -13.9 | X47: -8.5 | Y47: -4 | Z47: -1.2 | AA47: -0.7 | AB47: -0.4882308752 | AC47: 1635 | AD47: 172.4 | AE47: 177 | AF47: 171 | AG47: 168.4 | AH47: 148.6 | AI47: 124.6 | AJ47: 113.3 | AK47: 105.2 | AL47: 87.6 | AM47: 73.6 | AN47: 65.2 | AO47: 57.7 | AP47: 47.8 | AQ47: 39.6 | AR47: 30.7 | AS47: 22.2 | AT47: 14 | AU47: 8.4 | AV47: 5.3 | AW47: 1.4 | AX47: 0.4 | AY47: 0.5117691248 | AZ47: Miles de personas
E48: 47 | F48: -1133.7 | G48: -121.5 | H48: -123.7 | I48: -120.2 | J48: -112.4 | K48: -101 | L48: -83.4 | M48: -81.1 | N48: -73.5 | O48: -61.6 | P48: -56.7 | Q48: -45.3 | R48: -40 | S48: -28.7 | T48: -26.4 | U48: -22.3 | V48: -16.8 | W48: -9.1 | X48: -5 | Y48: -2.3 | Z48: -0.5 | AA48: -0.1 | AB48: -0.4954765963 | AC48: 1154.4 | AD48: 117 | AE48: 116.3 | AF48: 117.3 | AG48: 115 | AH48: 104.7 | AI48: 92.9 | AJ48: 81.1 | AK48: 75.5 | AL48: 70.4 | AM48: 58.2 | AN48: 52.1 | AO48: 35.6 | AP48: 34.6 | AQ48: 24.6 | AR48: 20.6 | AS48: 16.1 | AT48: 10.5 | AU48: 5.7 | AV48: 2.4 | AW48: 1.3 | AX48: 0.5 | AY48: 0.5045234037 | AZ48: Miles de personas
E49: 48 | F49: -857.1 | G49: -86.6 | H49: -101.4 | I49: -111 | J49: -84.2 | K49: -53.2 | L49: -49.4 | M49: -51.3 | N49: -52 | O49: -51.3 | P49: -41 | Q49: -35.9 | R49: -29.8 | S49: -26.2 | T49: -24.6 | U49: -21.6 | V49: -14.9 | W49: -10.9 | X49: -5.8 | Y49: -3.8 | Z49: -1 | AA49: -0.1 | AB49: -0.4599656542 | AC49: 1006.3 | AD49: 85 | AE49: 105.5 | AF49: 111.8 | AG49: 109.8 | AH49: 89.8 | AI49: 68.7 | AJ49: 69.8 | AK49: 62.1 | AL49: 56.7 | AM49: 53 | AN49: 41.5 | AO49: 32.5 | AP49: 32.5 | AQ49: 25.7 | AR49: 21.9 | AS49: 17.9 | AT49: 9.7 | AU49: 6.6 | AV49: 3.2 | AW49: 1 | AX49: 0.2 | AY49: 0.5400343458 | AZ49: Miles de personas
E50: 49 | F50: -4905 | G50: -510 | H50: -497 | I50: -516 | J50: -519 | K50: -408 | L50: -326 | M50: -335 | N50: -311 | O50: -263 | P50: -256 | Q50: -205 | R50: -177 | S50: -156 | T50: -126 | U50: -117 | V50: -68 | W50: -67 | X50: -24 | Y50: -7 | Z50: -8 | AA50: -4 | AB50: -0.5138816134 | AC50: 4640 | AD50: 466 | AE50: 470 | AF50: 516 | AG50: 507 | AH50: 405 | AI50: 338 | AJ50: 328 | AK50: 273 | AL50: 249 | AM50: 235 | AN50: 183 | AO50: 175 | AP50: 127 | AQ50: 119 | AR50: 96 | AS50: 60 | AT50: 47 | AU50: 25 | AV50: 13 | AW50: 3 | AX50: 1 | AY50: 0.4861183866 | AZ50: Cientos de personas
E51: 50 | F51: -2083.9 | G51: -229.6 | H51: -236.1 | I51: -225.1 | J51: -221.5 | K51: -189.9 | L51: -151.6 | M51: -135.4 | N51: -131.8 | O51: -106.3 | P51: -87.1 | Q51: -77 | R51: -64.6 | S51: -57 | T51: -47.1 | U51: -41.3 | V51: -26.9 | W51: -14.9 | X51: -11.3 | Y51: -5.6 | Z51: -2.5 | AA51: -0.6 | AB51: -0.4942367897 | AC51: 2132.5 | AD51: 227.7 | AE51: 224.8 | AF51: 207.9 | AG51: 219.7 | AH51: 191.6 | AI51: 163.9 | AJ51: 150 | AK51: 138 | AL51: 112.6 | AM51: 95.3 | AN51: 89.1 | AO51: 68.4 | AP51: 63.8 | AQ51: 47.8 | AR51: 40.6 | AS51: 28.4 | AT51: 20.5 | AU51: 12.6 | AV51: 6.1 | AW51: 3.2 | AX51: 0.2 | AY51: 0.5057632103 | AZ51: Miles de personas
E52: 51 | F52: -6675 | G52: -684 | H52: -736 | I52: -656 | J52: -706 | K52: -624 | L52: -480 | M52: -487 | N52: -459 | O52: -368 | P52: -309 | Q52: -268 | R52: -219 | S52: -192 | T52: -170 | U52: -130 | V52: -65 | W52: -56 | X52: -34 | Y52: -19 | Z52: -10 | AA52: 0 | AB52: -0.5049931911 | AC52: 6543 | AD52: 622 | AE52: 670 | AF52: 695 | AG52: 631 | AH52: 608 | AI52: 514 | AJ52: 523 | AK52: 469 | AL52: 386 | AM52: 323 | AN52: 273 | AO52: 249 | AP52: 183 | AQ52: 130 | AR52: 111 | AS52: 68 | AT52: 36 | AU52: 29 | AV52: 15 | AW52: 3 | AX52: 1 | AY52: 0.4950068089 | AZ52: Cientos de personas
E53: 52 | F53: -2637 | G53: -283 | H53: -243 | I53: -256 | J53: -249 | K53: -195 | L53: -172 | M53: -156 | N53: -149 | O53: -142 | P53: -119 | Q53: -108 | R53: -96 | S53: -94 | T53: -104 | U53: -95 | V53: -75 | W53: -49 | X53: -28 | Y53: -24 | Z53: 0 | AA53: 0 | AB53: -0.4781504986 | AC53: 2878 | AD53: 278 | AE53: 258 | AF53: 250 | AG53: 241 | AH53: 259 | AI53: 213 | AJ53: 176 | AK53: 179 | AL53: 154 | AM53: 152 | AN53: 132 | AO53: 104 | AP53: 110 | AQ53: 110 | AR53: 70 | AS53: 73 | AT53: 56 | AU53: 39 | AV53: 11 | AW53: 9 | AX53: 1 | AY53: 0.5218495014 | AZ53: Cientos de personas
E54: 53 | F54: -7447.2 | G54: -809.4 | H54: -856.8 | I54: -843.8 | J54: -816.9 | K54: -673.7 | L54: -560.6 | M54: -516.7 | N54: -497.1 | O54: -414.2 | P54: -343.2 | Q54: -287.5 | R54: -230.8 | S54: -182.1 | T54: -132.2 | U54: -104.1 | V54: -72 | W54: -49.4 | X54: -28.6 | Y54: -10.3 | Z54: -3.5 | AA54: -0.9 | AB54: -0.4841597483 | AC54: 7934.5 | AD54: 786 | AE54: 812.8 | AF54: 804.3 | AG54: 837.9 | AH54: 747 | AI54: 652.3 | AJ54: 611.9 | AK54: 574.7 | AL54: 462.3 | AM54: 397.7 | AN54: 324 | AO54: 247.2 | AP54: 199.5 | AQ54: 150.3 | AR54: 120.9 | AS54: 76.8 | AT54: 59.5 | AU54: 37.6 | AV54: 13 | AW54: 4.7 | AX54: 0.7 | AY54: 0.5158402517 | AZ54: Miles de personas
E55: 54 | F55: -2752 | G55: -201 | H55: -198 | I55: -220 | J55: -241 | K55: -223 | L55: -169 | M55: -158 | N55: -136 | O55: -165 | P55: -153 | Q55: -151 | R55: -118 | S55: -125 | T55: -139 | U55: -120 | V55: -81 | W55: -74 | X55: -39 | Y55: -23 | Z55: -7 | AA55: -1 | AB55: -0.5004546281 | AC55: 2747 | AD55: 197 | AE55: 208 | AF55: 209 | AG55: 233 | AH55: 193 | AI55: 176 | AJ55: 161 | AK55: 178 | AL55: 159 | AM55: 174 | AN55: 139 | AO55: 126 | AP55: 123 | AQ55: 116 | AR55: 110 | AS55: 98 | AT55: 62 | AU55: 41 | AV55: 26 | AW55: 8 | AX55: 0 | AY55: 0.4995453719 | AZ55: Cientos de personas
E56: 55 | F56: -1058.3 | G56: -114.5 | H56: -117.9 | I56: -116.8 | J56: -118.3 | K56: -95.3 | L56: -73.6 | M56: -67.1 | N56: -71 | O56: -54.1 | P56: -46.3 | Q56: -41 | R56: -35.4 | S56: -29.5 | T56: -24.3 | U56: -19.3 | V56: -11.2 | W56: -8.7 | X56: -7 | Y56: -1.5 | Z56: -0.3 | AA56: -0.3 | AB56: -0.4963650861 | AC56: 1073.8 | AD56: 112.2 | AE56: 108.6 | AF56: 113.4 | AG56: 117.1 | AH56: 99.2 | AI56: 76.7 | AJ56: 71.8 | AK56: 71.2 | AL56: 59.4 | AM56: 54.3 | AN56: 41.2 | AO56: 34 | AP56: 29.9 | AQ56: 24.3 | AR56: 21.1 | AS56: 13.9 | AT56: 10.4 | AU56: 6.1 | AV56: 2.5 | AW56: 1.1 | AX56: 0.2 | AY56: 0.5036349139 | AZ56: Miles de personas
E57: 56 | F57: -1273 | G57: -102 | H57: -151 | I57: -137 | J57: -139 | K57: -104 | L57: -64 | M57: -73 | N57: -80 | O57: -96 | P57: -51 | Q57: -65 | R57: -32 | S57: -36 | T57: -35 | U57: -36 | V57: -35 | W57: -21 | X57: -9 | Y57: -4 | Z57: -2 | AA57: 0 | AB57: -0.5057608264 | AC57: 1244 | AD57: 91 | AE57: 110 | AF57: 141 | AG57: 136 | AH57: 86 | AI57: 80 | AJ57: 77 | AK57: 90 | AL57: 86 | AM57: 67 | AN57: 57 | AO57: 31 | AP57: 38 | AQ57: 44 | AR57: 35 | AS57: 37 | AT57: 22 | AU57: 9 | AV57: 2 | AW57: 5 | AX57: 0 | AY57: 0.4942391736 | AZ57: Cientos de personas
E58: 57 | F58: -1790 | G58: -135 | H58: -149 | I58: -189 | J58: -180 | K58: -132 | L58: -103 | M58: -112 | N58: -115 | O58: -108 | P58: -108 | Q58: -75 | R58: -85 | S58: -78 | T58: -68 | U58: -67 | V58: -31 | W58: -28 | X58: -15 | Y58: -7 | Z58: -2 | AA58: -2 | AB58: -0.4766977364 | AC58: 1965 | AD58: 145 | AE58: 180 | AF58: 187 | AG58: 176 | AH58: 184 | AI58: 148 | AJ58: 115 | AK58: 97 | AL58: 133 | AM58: 105 | AN58: 111 | AO58: 77 | AP58: 75 | AQ58: 61 | AR58: 65 | AS58: 41 | AT58: 33 | AU58: 20 | AV58: 7 | AW58: 3 | AX58: 2 | AY58: 0.5233022636 | AZ58: Cientos de personas
E59: 58 | F59: -7010 | G59: -626 | H59: -664 | I59: -701 | J59: -721 | K59: -562 | L59: -400 | M59: -426 | N59: -424 | O59: -408 | P59: -361 | Q59: -318 | R59: -270 | S59: -259 | T59: -233 | U59: -226 | V59: -172 | W59: -114 | X59: -69 | Y59: -27 | Z59: -11 | AA59: -3 | AB59: -0.4921024921 | AC59: 7235 | AD59: 627 | AE59: 667 | AF59: 702 | AG59: 682 | AH59: 523 | AI59: 460 | AJ59: 502 | AK59: 476 | AL59: 416 | AM59: 404 | AN59: 324 | AO59: 281 | AP59: 259 | AQ59: 230 | AR59: 230 | AS59: 162 | AT59: 139 | AU59: 79 | AV59: 42 | AW59: 13 | AX59: 1 | AY59: 0.5078975079 | AZ59: Cientos de personas
E60: 59 | F60: -6288 | G60: -673 | H60: -668 | I60: -668 | J60: -627 | K60: -576 | L60: -435 | M60: -399 | N60: -430 | O60: -323 | P60: -321 | Q60: -307 | R60: -198 | S60: -168 | T60: -147 | U60: -147 | V60: -63 | W60: -57 | X60: -39 | Y60: -22 | Z60: -10 | AA60: -1 | AB60: -0.475463138 | AC60: 6937 | AD60: 667 | AE60: 678 | AF60: 684 | AG60: 652 | AH60: 667 | AI60: 537 | AJ60: 534 | AK60: 429 | AL60: 411 | AM60: 365 | AN60: 293 | AO60: 235 | AP60: 206 | AQ60: 164 | AR60: 149 | AS60: 101 | AT60: 75 | AU60: 53 | AV60: 18 | AW60: 7 | AX60: 3 | AY60: 0.524536862 | AZ60: Cientos de personas
E61: 60 | F61: -2777 | G61: -262 | H61: -279 | I61: -264 | J61: -274 | K61: -185 | L61: -152 | M61: -172 | N61: -169 | O61: -152 | P61: -155 | Q61: -138 | R61: -124 | S61: -114 | T61: -96 | U61: -98 | V61: -48 | W61: -50 | X61: -27 | Y61: -13 | Z61: -2 | AA61: 0 | AB61: -0.4602253895 | AC61: 3257 | AD61: 254 | AE61: 267 | AF61: 280 | AG61: 273 | AH61: 263 | AI61: 198 | AJ61: 214 | AK61: 223 | AL61: 211 | AM61: 208 | AN61: 155 | AO61: 145 | AP61: 148 | AQ61: 130 | AR61: 102 | AS61: 65 | AT61: 58 | AU61: 36 | AV61: 17 | AW61: 7 | AX61: 0 | AY61: 0.5397746105 | AZ61: Cientos de personas
E62: 61 | F62: -874.5 | G62: -127.1 | H62: -131.6 | I62: -120.3 | J62: -105.5 | K62: -68.1 | L62: -50.5 | M62: -49.5 | N62: -40.8 | O62: -34.6 | P62: -29.5 | Q62: -23.4 | R62: -21.3 | S62: -15.7 | T62: -14.5 | U62: -14.5 | V62: -10.8 | W62: -6.1 | X62: -4.7 | Y62: -2 | Z62: -0.9 | AA62: -1 | AB62: -0.4835766423 | AC62: 933.9 | AD62: 133.6 | AE62: 132.5 | AF62: 127 | AG62: 103.7 | AH62: 80.3 | AI62: 60.6 | AJ62: 52.9 | AK62: 47.1 | AL62: 36 | AM62: 34.2 | AN62: 25.2 | AO62: 24.5 | AP62: 19.2 | AQ62: 14.4 | AR62: 15.5 | AS62: 10.4 | AT62: 6.9 | AU62: 4.7 | AV62: 1.2 | AW62: 1.4 | AX62: 0.8 | AY62: 0.5164233577 | AZ62: Miles de personas
E63: 62 | F63: -1800 | G63: -156 | H63: -171 | I63: -193 | J63: -171 | K63: -144 | L63: -108 | M63: -116 | N63: -118 | O63: -99 | P63: -96 | Q63: -85 | R63: -72 | S63: -53 | T63: -69 | U63: -49 | V63: -41 | W63: -28 | X63: -23 | Y63: -7 | Z63: 0 | AA63: -1 | AB63: -0.5036373811 | AC63: 1774 | AD63: 158 | AE63: 151 | AF63: 154 | AG63: 175 | AH63: 145 | AI63: 123 | AJ63: 122 | AK63: 116 | AL63: 95 | AM63: 103 | AN63: 76 | AO63: 58 | AP63: 59 | AQ63: 69 | AR63: 55 | AS63: 53 | AT63: 28 | AU63: 21 | AV63: 8 | AW63: 5 | AX63: 0 | AY63: 0.4963626189 | AZ63: Cientos de personas
E64: 63 | F64: -4545.3 | G64: -452.5 | H64: -475.6 | I64: -474.9 | J64: -460.5 | K64: -404.7 | L64: -346.7 | M64: -322.8 | N64: -324.9 | O64: -268.4 | P64: -216.7 | Q64: -188.9 | R64: -177.8 | S64: -137.7 | T64: -99.8 | U64: -72.1 | V64: -48.5 | W64: -28.2 | X64: -14.1 | Y64: -7.6 | Z64: -1.4 | AA64: -0.4 | AB64: -0.4889154216 | AC64: 4751.4 | AD64: 432.8 | AE64: 467.8 | AF64: 447.7 | AG64: 470.6 | AH64: 418.7 | AI64: 363.9 | AJ64: 357.9 | AK64: 354.2 | AL64: 299.7 | AM64: 247.8 | AN64: 231.6 | AO64: 186.9 | AP64: 145.2 | AQ64: 105.4 | AR64: 75.1 | AS64: 55.8 | AT64: 38.8 | AU64: 18.3 | AV64: 8.5 | AW64: 2.8 | AX64: 0.4 | AY64: 0.5110845784 | AZ64: Miles de personas
E65: 64 | F65: -1463.6 | G65: -177.8 | H65: -196 | I65: -183.7 | J65: -171.1 | K65: -112.1 | L65: -101.5 | M65: -87.5 | N65: -85.3 | O65: -71.1 | P65: -52.6 | Q65: -47.4 | R65: -41.6 | S65: -35.4 | T65: -30.5 | U65: -25.6 | V65: -19 | W65: -12.1 | X65: -8.9 | Y65: -2.9 | Z65: -1 | AA65: -0.1 | AB65: -0.486294315 | AC65: 1546.1 | AD65: 173.2 | AE65: 181.6 | AF65: 177.1 | AG65: 167.5 | AH65: 142.4 | AI65: 114 | AJ65: 115.1 | AK65: 97.6 | AL65: 78.8 | AM65: 58 | AN65: 60.1 | AO65: 40 | AP65: 40.3 | AQ65: 31.6 | AR65: 26 | AS65: 18.2 | AT65: 11.5 | AU65: 9.4 | AV65: 2.7 | AW65: 0.6 | AX65: 0.2 | AY65: 0.513705685 | AZ65: Miles de personas
E66: 65 | F66: -6045 | G66: -540 | H66: -560 | I66: -555 | J66: -620 | K66: -539 | L66: -372 | M66: -323 | N66: -396 | O66: -327 | P66: -345 | Q66: -288 | R66: -261 | S66: -204 | T66: -198 | U66: -161 | V66: -142 | W66: -100 | X66: -59 | Y66: -37 | Z66: -15 | AA66: -2 | AB66: -0.4988035316 | AC66: 6074 | AD66: 499 | AE66: 509 | AF66: 546 | AG66: 635 | AH66: 517 | AI66: 404 | AJ66: 325 | AK66: 371 | AL66: 395 | AM66: 339 | AN66: 315 | AO66: 240 | AP66: 235 | AQ66: 219 | AR66: 198 | AS66: 131 | AT66: 106 | AU66: 54 | AV66: 21 | AW66: 13 | AX66: 2 | AY66: 0.5011964684 | AZ66: Cientos de personas
E67: 66 | F67: -2372.1 | G67: -294.4 | H67: -287.1 | I67: -282.7 | J67: -258.7 | K67: -212.9 | L67: -169.6 | M67: -146.5 | N67: -141.1 | O67: -118.6 | P67: -95.7 | Q67: -86.5 | R67: -69.4 | S67: -58.1 | T67: -49.9 | U67: -36.3 | V67: -25.9 | W67: -16.3 | X67: -12 | Y67: -4.1 | Z67: -1.9 | AA67: -0.2 | AB67: -0.4900223104 | AC67: 2468.7 | AD67: 287.1 | AE67: 286.9 | AF67: 268.2 | AG67: 256 | AH67: 229.2 | AI67: 186.7 | AJ67: 167.9 | AK67: 152.7 | AL67: 135.7 | AM67: 109.2 | AN67: 97.1 | AO67: 73.9 | AP67: 61.9 | AQ67: 46.1 | AR67: 37.7 | AS67: 27.5 | AT67: 21.7 | AU67: 11.2 | AV67: 5.1 | AW67: 1.4 | AX67: 0.9 | AY67: 0.5099776896 | AZ67: Miles de personas
E68: 67 | F68: -12857.7 | G68: -1250.3 | H68: -1232.1 | I68: -1223.7 | J68: -1226.6 | K68: -1287.6 | L68: -1139 | M68: -1013 | N68: -1018 | O68: -840.2 | P68: -671.5 | Q68: -515.4 | R68: -365.9 | S68: -280.5 | T68: -188.5 | U68: -127.7 | V68: -77 | W68: -43.8 | X68: -27.9 | Y68: -10.1 | Z68: -4.9 | AA68: -1 | AB68: -0.5028805426 | AC68: 12710.4 | AD68: 1210.9 | AE68: 1192.2 | AF68: 1175.9 | AG68: 1213.7 | AH68: 1272.2 | AI68: 1132.3 | AJ68: 1029.5 | AK68: 1002.6 | AL68: 841.8 | AM68: 658.9 | AN68: 517.9 | AO68: 358.7 | AP68: 284.4 | AQ68: 184.1 | AR68: 126.3 | AS68: 84.1 | AT68: 58.7 | AU68: 30.8 | AV68: 13.8 | AW68: 6.2 | AX68: 1.4 | AY68: 0.4971194574 | AZ68: Miles de personas
E69: 68 | F69: -5933 | G69: -527 | H69: -595 | I69: -638 | J69: -652 | K69: -458 | L69: -340 | M69: -316 | N69: -340 | O69: -311 | P69: -289 | Q69: -296 | R69: -247 | S69: -241 | T69: -197 | U69: -186 | V69: -130 | W69: -89 | X69: -47 | Y69: -20 | Z69: -7 | AA69: -5 | AB69: -0.5104534113 | AC69: 5690 | AD69: 534 | AE69: 548 | AF69: 633 | AG69: 644 | AH69: 454 | AI69: 299 | AJ69: 327 | AK69: 322 | AL69: 312 | AM69: 301 | AN69: 242 | AO69: 241 | AP69: 187 | AQ69: 201 | AR69: 150 | AS69: 104 | AT69: 97 | AU69: 49 | AV69: 28 | AW69: 12 | AX69: 1 | AY69: 0.4895465887 | AZ69: Cientos de personas
E70: 69 | F70: -4066 | G70: -370 | H70: -415 | I70: -424 | J70: -396 | K70: -270 | L70: -220 | M70: -255 | N70: -243 | O70: -225 | P70: -192 | Q70: -176 | R70: -154 | S70: -167 | T70: -169 | U70: -153 | V70: -106 | W70: -67 | X70: -35 | Y70: -18 | Z70: -7 | AA70: -3 | AB70: -0.4678402946 | AC70: 4625 | AD70: 367 | AE70: 360 | AF70: 468 | AG70: 394 | AH70: 393 | AI70: 302 | AJ70: 319 | AK70: 292 | AL70: 254 | AM70: 254 | AN70: 218 | AO70: 197 | AP70: 199 | AQ70: 189 | AR70: 165 | AS70: 90 | AT70: 75 | AU70: 52 | AV70: 21 | AW70: 7 | AX70: 7 | AY70: 0.5321597054 | AZ70: Cientos de personas
E71: 70 | F71: -6900.6 | G71: -798.1 | H71: -826.3 | I71: -796.8 | J71: -723.7 | K71: -613.2 | L71: -541.4 | M71: -530.4 | N71: -520.1 | O71: -410.4 | P71: -312.6 | Q71: -249.7 | R71: -176.1 | S71: -129.6 | T71: -94.4 | U71: -65.9 | V71: -36.5 | W71: -22.9 | X71: -12.7 | Y71: -5.5 | Z71: -1.9 | AA71: -0.6 | AB71: -0.4992259054 | AC71: 6922 | AD71: 789.7 | AE71: 819.6 | AF71: 757.3 | AG71: 716.2 | AH71: 623.1 | AI71: 570.2 | AJ71: 565.8 | AK71: 533.4 | AL71: 430.1 | AM71: 313.1 | AN71: 244.4 | AO71: 165.7 | AP71: 129.2 | AQ71: 86.8 | AR71: 64.4 | AS71: 36.4 | AT71: 22.6 | AU71: 13.9 | AV71: 5.5 | AW71: 2 | AX71: 0.5 | AY71: 0.5007740946 | AZ71: Miles de personas
E72: 71 | F72: -1583 | G72: -139 | H72: -151 | I72: -199 | J72: -179 | K72: -140 | L72: -102 | M72: -80 | N72: -100 | O72: -95 | P72: -65 | Q72: -65 | R72: -57 | S72: -48 | T72: -52 | U72: -34 | V72: -40 | W72: -18 | X72: -8 | Y72: -2 | Z72: -3 | AA72: 0 | AB72: -0.4984256927 | AC72: 1593 | AD72: 127 | AE72: 142 | AF72: 159 | AG72: 191 | AH72: 145 | AI72: 106 | AJ72: 94 | AK72: 97 | AL72: 86 | AM72: 86 | AN72: 73 | AO72: 61 | AP72: 67 | AQ72: 53 | AR72: 38 | AS72: 38 | AT72: 10 | AU72: 10 | AV72: 3 | AW72: 1 | AX72: 0 | AY72: 0.5015743073 | AZ72: Cientos de personas
E73: 72 | F73: -3172 | G73: -321 | H73: -384 | I73: -389 | J73: -342 | K73: -246 | L73: -222 | M73: -192 | N73: -204 | O73: -152 | P73: -109 | Q73: -113 | R73: -113 | S73: -93 | T73: -86 | U73: -60 | V73: -56 | W73: -35 | X73: -26 | Y73: -13 | Z73: -9 | AA73: -1 | AB73: -0.4772077629 | AC73: 3475 | AD73: 354 | AE73: 369 | AF73: 330 | AG73: 361 | AH73: 311 | AI73: 291 | AJ73: 265 | AK73: 227 | AL73: 153 | AM73: 158 | AN73: 152 | AO73: 124 | AP73: 104 | AQ73: 78 | AR73: 71 | AS73: 53 | AT73: 27 | AU73: 22 | AV73: 13 | AW73: 7 | AX73: 1 | AY73: 0.5227922371 | AZ73: Cientos de personas
E74: 73 | F74: -3206.6 | G74: -360.1 | H74: -363.8 | I74: -347.1 | J74: -339.4 | K74: -302.7 | L74: -249.9 | M74: -239.6 | N74: -222.9 | O74: -170.5 | P74: -139.5 | Q74: -121.7 | R74: -98.9 | S74: -77.7 | T74: -62.6 | U74: -41.7 | V74: -27.2 | W74: -19.9 | X74: -10.8 | Y74: -3.6 | Z74: -1.6 | AA74: -0.1 | AB74: -0.4916665389 | AC74: 3315.3 | AD74: 350.7 | AE74: 344.6 | AF74: 327.3 | AG74: 335.4 | AH74: 311.5 | AI74: 286.9 | AJ74: 253.1 | AK74: 230.5 | AL74: 180.9 | AM74: 150 | AN74: 135.5 | AO74: 108.1 | AP74: 94.9 | AQ74: 68.5 | AR74: 53.8 | AS74: 34.1 | AT74: 20.8 | AU74: 15.9 | AV74: 4.9 | AW74: 2.1 | AX74: 0.2 | AY74: 0.5083334611 | AZ74: Miles de personas
E75: 74 | F75: -7296 | G75: -728 | H75: -733 | I75: -759 | J75: -805 | K75: -637 | L75: -531 | M75: -463 | N75: -484 | O75: -407 | P75: -349 | Q75: -358 | R75: -223 | S75: -225 | T75: -185 | U75: -141 | V75: -100 | W75: -67 | X75: -35 | Y75: -28 | Z75: -10 | AA75: -2 | AB75: -0.4721107804 | AC75: 8158 | AD75: 733 | AE75: 682 | AF75: 727 | AG75: 880 | AH75: 825 | AI75: 668 | AJ75: 545 | AK75: 548 | AL75: 493 | AM75: 433 | AN75: 366 | AO75: 322 | AP75: 267 | AQ75: 215 | AR75: 161 | AS75: 120 | AT75: 78 | AU75: 45 | AV75: 17 | AW75: 9 | AX75: 1 | AY75: 0.5278892196 | AZ75: Cientos de personas
E76: 75 | F76: -1918 | G76: -175 | H76: -210 | I76: -200 | J76: -202 | K76: -175 | L76: -122 | M76: -116 | N76: -117 | O76: -99 | P76: -91 | Q76: -79 | R76: -78 | S76: -51 | T76: -57 | U76: -56 | V76: -47 | W76: -21 | X76: -12 | Y76: -4 | Z76: -2 | AA76: -2 | AB76: -0.509835194 | AC76: 1844 | AD76: 152 | AE76: 200 | AF76: 188 | AG76: 191 | AH76: 148 | AI76: 126 | AJ76: 143 | AK76: 110 | AL76: 109 | AM76: 88 | AN76: 82 | AO76: 69 | AP76: 57 | AQ76: 66 | AR76: 37 | AS76: 30 | AT76: 25 | AU76: 14 | AV76: 5 | AW76: 3 | AX76: 1 | AY76: 0.490164806 | AZ76: Cientos de personas
E77: 76 | F77: -1704 | G77: -163 | H77: -179 | I77: -185 | J77: -187 | K77: -156 | L77: -102 | M77: -97 | N77: -95 | O77: -98 | P77: -78 | Q77: -64 | R77: -54 | S77: -48 | T77: -51 | U77: -41 | V77: -43 | W77: -12 | X77: -25 | Y77: -8 | Z77: -3 | AA77: -1 | AB77: -0.5004405286 | AC77: 1701 | AD77: 146 | AE77: 166 | AF77: 189 | AG77: 200 | AH77: 150 | AI77: 108 | AJ77: 100 | AK77: 103 | AL77: 83 | AM77: 60 | AN77: 63 | AO77: 67 | AP77: 50 | AQ77: 45 | AR77: 50 | AS77: 41 | AT77: 31 | AU77: 25 | AV77: 7 | AW77: 3 | AX77: 2 | AY77: 0.4995594714 | AZ77: Cientos de personas
E78: 77 | F78: -1278.5 | G78: -121.2 | H78: -119.1 | I78: -121 | J78: -123.3 | K78: -95.6 | L78: -78.6 | M78: -81.7 | N78: -85.5 | O78: -71.1 | P78: -61.8 | Q78: -60.8 | R78: -52.1 | S78: -51.4 | T78: -49.4 | U78: -41 | V78: -26.8 | W78: -18.8 | X78: -12.8 | Y78: -3.8 | Z78: -1.2 | AA78: -0.2 | AB78: -0.486010796 | AC78: 1352.1 | AD78: 111.8 | AE78: 122.2 | AF78: 118.8 | AG78: 126.1 | AH78: 104.9 | AI78: 93.5 | AJ78: 91.4 | AK78: 89.8 | AL78: 78.5 | AM78: 74.4 | AN78: 71.3 | AO78: 61.1 | AP78: 50.2 | AQ78: 47.9 | AR78: 40.3 | AS78: 29.4 | AT78: 17.8 | AU78: 12.2 | AV78: 6.7 | AW78: 1.9 | AX78: 0.3 | AY78: 0.513989204 | AZ78: Miles de personas
E79: 78 | F79: -1499.9 | G79: -157.9 | H79: -168.1 | I79: -168.2 | J79: -161.6 | K79: -128.9 | L79: -108.8 | M79: -97 | N79: -85.5 | O79: -83.2 | P79: -76.1 | Q79: -62 | R79: -50.5 | S79: -45.1 | T79: -36.4 | U79: -25.1 | V79: -18.8 | W79: -13.2 | X79: -7.6 | Y79: -3.2 | Z79: -0.5 | AA79: -0.3 | AB79: -0.4812616313 | AC79: 1616.7 | AD79: 152.7 | AE79: 156.8 | AF79: 156.8 | AG79: 176.9 | AH79: 154.7 | AI79: 131.4 | AJ79: 105.6 | AK79: 103.5 | AL79: 92.9 | AM79: 82.2 | AN79: 73.2 | AO79: 54.8 | AP79: 52.2 | AQ79: 40.1 | AR79: 31.9 | AS79: 21.1 | AT79: 14.6 | AU79: 7.8 | AV79: 2.8 | AW79: 1.6 | AX79: 0.4 | AY79: 0.5187383687 | AZ79: Miles de personas
E80: 79 | F80: -6778 | G80: -718 | H80: -692 | I80: -684 | J80: -658 | K80: -658 | L80: -514 | M80: -487 | N80: -439 | O80: -341 | P80: -312 | Q80: -281 | R80: -232 | S80: -211 | T80: -153 | U80: -127 | V80: -96 | W80: -56 | X80: -35 | Y80: -21 | Z80: -8 | AA80: -2 | AB80: -0.4837627578 | AC80: 7233 | AD80: 657 | AE80: 695 | AF80: 680 | AG80: 752 | AH80: 712 | AI80: 578 | AJ80: 534 | AK80: 497 | AL80: 404 | AM80: 352 | AN80: 285 | AO80: 265 | AP80: 220 | AQ80: 176 | AR80: 134 | AS80: 95 | AT80: 67 | AU80: 44 | AV80: 18 | AW80: 9 | AX80: 3 | AY80: 0.5162372422 | AZ80: Cientos de personas
E81: 80 | F81: -3008 | G81: -239 | H81: -274 | I81: -318 | J81: -347 | K81: -210 | L81: -155 | M81: -152 | N81: -185 | O81: -185 | P81: -164 | Q81: -155 | R81: -109 | S81: -103 | T81: -123 | U81: -110 | V81: -71 | W81: -50 | X81: -35 | Y81: -15 | Z81: -6 | AA81: -1 | AB81: -0.522675934 | AC81: 2747 | AD81: 233 | AE81: 255 | AF81: 288 | AG81: 277 | AH81: 217 | AI81: 146 | AJ81: 152 | AK81: 179 | AL81: 174 | AM81: 168 | AN81: 124 | AO81: 117 | AP81: 87 | AQ81: 112 | AR81: 91 | AS81: 52 | AT81: 30 | AU81: 29 | AV81: 6 | AW81: 8 | AX81: 0 | AY81: 0.477324066 | AZ81: Cientos de personas
E82: 81 | F82: -1758 | G82: -164 | H82: -162 | I82: -178 | J82: -185 | K82: -103 | L82: -76 | M82: -93 | N82: -106 | O82: -100 | P82: -87 | Q82: -84 | R82: -66 | S82: -59 | T82: -80 | U82: -79 | V82: -49 | W82: -51 | X82: -22 | Y82: -10 | Z82: -2 | AA82: -1 | AB82: -0.4718196457 | AC82: 1968 | AD82: 138 | AE82: 177 | AF82: 209 | AG82: 183 | AH82: 143 | AI82: 116 | AJ82: 127 | AK82: 118 | AL82: 110 | AM82: 96 | AN82: 93 | AO82: 70 | AP82: 73 | AQ82: 84 | AR82: 77 | AS82: 61 | AT82: 43 | AU82: 24 | AV82: 15 | AW82: 5 | AX82: 3 | AY82: 0.5281803543 | AZ82: Cientos de personas
E83: 82 | F83: -1673.3 | G83: -173.6 | H83: -175.4 | I83: -169.9 | J83: -169.7 | K83: -158.6 | L83: -130.5 | M83: -113.3 | N83: -114.6 | O83: -94.5 | P83: -80.4 | Q83: -70.8 | R83: -59.7 | S83: -49.6 | T83: -35.4 | U83: -28 | V83: -21.5 | W83: -14.2 | X83: -8.9 | Y83: -2.6 | Z83: -1.3 | AA83: -0.4 | AB83: -0.4804329725 | AC83: 1809.6 | AD83: 183.5 | AE83: 164.6 | AF83: 175.8 | AG83: 169.2 | AH83: 166.8 | AI83: 142.8 | AJ83: 129.4 | AK83: 128.9 | AL83: 111.3 | AM83: 94.3 | AN83: 86.5 | AO83: 67.4 | AP83: 51.4 | AQ83: 38.1 | AR83: 33.8 | AS83: 26.2 | AT83: 18.7 | AU83: 12.4 | AV83: 4.4 | AW83: 2.7 | AX83: 0.6 | AY83: 0.5195670275 | AZ83: Miles de personas
E84: 83 | F84: -3431.3 | G84: -376.2 | H84: -387.7 | I84: -362.7 | J84: -327.2 | K84: -282.6 | L84: -271.1 | M84: -254.5 | N84: -256.1 | O84: -198.7 | P84: -153.7 | Q84: -140 | R84: -117.1 | S84: -88.3 | T84: -75.3 | U84: -53.5 | V84: -37.3 | W84: -24.8 | X84: -14.9 | Y84: -5.2 | Z84: -1.5 | AA84: -0.2 | AB84: -0.4970665353 | AC84: 3471.8 | AD84: 348.6 | AE84: 370 | AF84: 348.9 | AG84: 313 | AH84: 303.4 | AI84: 291.2 | AJ84: 274.9 | AK84: 267.3 | AL84: 209.9 | AM84: 168.6 | AN84: 145.4 | AO84: 117.3 | AP84: 94.3 | AQ84: 70.1 | AR84: 55.8 | AS84: 38.2 | AT84: 25 | AU84: 17.4 | AV84: 5.8 | AW84: 3.2 | AX84: 0.6 | AY84: 0.5029334647 | AZ84: Miles de personas
E85: 84 | F85: -7215 | G85: -702 | H85: -711 | I85: -831 | J85: -840 | K85: -553 | L85: -423 | M85: -455 | N85: -429 | O85: -394 | P85: -348 | Q85: -294 | R85: -258 | S85: -243 | T85: -214 | U85: -189 | V85: -137 | W85: -89 | X85: -66 | Y85: -15 | Z85: -14 | AA85: -1 | AB85: -0.5006939625 | AC85: 7195 | AD85: 636 | AE85: 722 | AF85: 789 | AG85: 741 | AH85: 561 | AI85: 491 | AJ85: 471 | AK85: 463 | AL85: 429 | AM85: 359 | AN85: 324 | AO85: 256 | AP85: 246 | AQ85: 200 | AR85: 184 | AS85: 117 | AT85: 83 | AU85: 64 | AV85: 35 | AW85: 14 | AX85: 2 | AY85: 0.4993060375 | AZ85: Cientos de personas
E86: 85 | F86: -1851.2 | G86: -159.8 | H86: -169.3 | I86: -175.9 | J86: -184.5 | K86: -168.7 | L86: -125.7 | M86: -115.7 | N86: -115.3 | O86: -112.6 | P86: -102 | Q86: -89.8 | R86: -76.6 | S86: -69 | T86: -59 | U86: -47.8 | V86: -31.7 | W86: -22.1 | X86: -10.6 | Y86: -6.8 | Z86: -2.6 | AA86: -0.3 | AB86: -0.4873374401 | AC86: 1947.4 | AD86: 160.9 | AE86: 165.7 | AF86: 172.7 | AG86: 189.4 | AH86: 167.5 | AI86: 131.9 | AJ86: 130.4 | AK86: 129.8 | AL86: 123.5 | AM86: 107.4 | AN86: 96.6 | AO86: 84.5 | AP86: 79.4 | AQ86: 58.9 | AR86: 53.9 | AS86: 38.9 | AT86: 24.9 | AU86: 15.8 | AV86: 7.7 | AW86: 1.7 | AX86: 0.7 | AY86: 0.5126625599 | AZ86: Miles de personas
E87: 86 | F87: -884.8 | G87: -114.3 | H87: -98.8 | I87: -99.5 | J87: -103.7 | K87: -86.7 | L87: -63.4 | M87: -61.8 | N87: -52.3 | O87: -43.9 | P87: -39.4 | Q87: -31.9 | R87: -22.5 | S87: -18.8 | T87: -13.7 | U87: -11.4 | V87: -9.7 | W87: -5.5 | X87: -3.4 | Y87: -1.1 | Z87: -0.7 | AA87: 0 | AB87: -0.4889478338 | AC87: 924.8 | AD87: 104 | AE87: 102.8 | AF87: 99.8 | AG87: 102.8 | AH87: 91.7 | AI87: 70 | AJ87: 68.3 | AK87: 60.4 | AL87: 50 | AM87: 40.8 | AN87: 32.6 | AO87: 25 | AP87: 18.9 | AQ87: 16 | AR87: 14.9 | AS87: 10.6 | AT87: 6.3 | AU87: 4.7 | AV87: 1.9 | AW87: 0.7 | AX87: 0.2 | AY87: 0.5110521662 | AZ87: Miles de personas
E88: 87 | F88: -8220 | G88: -816 | H88: -853 | I88: -875 | J88: -838 | K88: -719 | L88: -534 | M88: -507 | N88: -512 | O88: -443 | P88: -390 | Q88: -356 | R88: -274 | S88: -272 | T88: -261 | U88: -199 | V88: -145 | W88: -117 | X88: -69 | Y88: -24 | Z88: -11 | AA88: -4 | AB88: -0.487920698 | AC88: 8627 | AD88: 745 | AE88: 795 | AF88: 844 | AG88: 885 | AH88: 771 | AI88: 600 | AJ88: 556 | AK88: 537 | AL88: 519 | AM88: 447 | AN88: 420 | AO88: 328 | AP88: 310 | AQ88: 259 | AR88: 247 | AS88: 145 | AT88: 105 | AU88: 62 | AV88: 34 | AW88: 11 | AX88: 4 | AY88: 0.512079302 | AZ88: Cientos de personas
E89: 88 | F89: -8292 | G89: -847 | H89: -819 | I89: -822 | J89: -787 | K89: -643 | L89: -560 | M89: -547 | N89: -525 | O89: -460 | P89: -401 | Q89: -368 | R89: -281 | S89: -278 | T89: -279 | U89: -250 | V89: -172 | W89: -110 | X89: -86 | Y89: -24 | Z89: -22 | AA89: -2 | AB89: -0.5003318651 | AC89: 8281 | AD89: 724 | AE89: 744 | AF89: 771 | AG89: 796 | AH89: 722 | AI89: 572 | AJ89: 588 | AK89: 541 | AL89: 487 | AM89: 451 | AN89: 354 | AO89: 301 | AP89: 298 | AQ89: 274 | AR89: 229 | AS89: 136 | AT89: 136 | AU89: 93 | AV89: 34 | AW89: 14 | AX89: 9 | AY89: 0.4996681349 | AZ89: Cientos de personas
E90: 89 | F90: -1722 | G90: -173 | H90: -146 | I90: -164 | J90: -179 | K90: -154 | L90: -117 | M90: -111 | N90: -113 | O90: -86 | P90: -78 | Q90: -68 | R90: -63 | S90: -55 | T90: -54 | U90: -52 | V90: -37 | W90: -27 | X90: -27 | Y90: -6 | Z90: -6 | AA90: 0 | AB90: -0.4904585588 | AC90: 1789 | AD90: 181 | AE90: 163 | AF90: 148 | AG90: 162 | AH90: 163 | AI90: 140 | AJ90: 129 | AK90: 116 | AL90: 79 | AM90: 79 | AN90: 93 | AO90: 79 | AP90: 58 | AQ90: 66 | AR90: 46 | AS90: 30 | AT90: 29 | AU90: 15 | AV90: 4 | AW90: 6 | AX90: 1 | AY90: 0.5095414412 | AZ90: Cientos de personas
E91: 90 | F91: -3495 | G91: -302 | H91: -350 | I91: -352 | J91: -343 | K91: -279 | L91: -192 | M91: -196 | N91: -219 | O91: -225 | P91: -169 | Q91: -155 | R91: -118 | S91: -122 | T91: -148 | U91: -115 | V91: -94 | W91: -52 | X91: -37 | Y91: -16 | Z91: -4 | AA91: -5 | AB91: -0.4956743724 | AC91: 3556 | AD91: 315 | AE91: 320 | AF91: 335 | AG91: 342 | AH91: 268 | AI91: 220 | AJ91: 225 | AK91: 225 | AL91: 244 | AM91: 187 | AN91: 154 | AO91: 160 | AP91: 122 | AQ91: 130 | AR91: 110 | AS91: 79 | AT91: 56 | AU91: 35 | AV91: 13 | AW91: 10 | AX91: 3 | AY91: 0.5043256276 | AZ91: Cientos de personas
E92: 91 | F92: -1897.3 | G92: -207.9 | H92: -212.3 | I92: -207.5 | J92: -198.1 | K92: -150.2 | L92: -125.6 | M92: -120.5 | N92: -121 | O92: -105.5 | P92: -85.6 | Q92: -74.1 | R92: -66 | S92: -56 | T92: -54.6 | U92: -39.5 | V92: -30.9 | W92: -19.9 | X92: -12 | Y92: -4.6 | Z92: -2.1 | AA92: -0.2 | AB92: -0.4730831567 | AC92: 2113.2 | AD92: 210.8 | AE92: 218.5 | AF92: 206.3 | AG92: 195.9 | AH92: 184.1 | AI92: 151.7 | AJ92: 149.7 | AK92: 141.3 | AL92: 126.9 | AM92: 103.7 | AN92: 92.2 | AO92: 80.1 | AP92: 69 | AQ92: 60 | AR92: 44.2 | AS92: 33.6 | AT92: 18.3 | AU92: 14.3 | AV92: 6.7 | AW92: 3.1 | AX92: 0.4 | AY92: 0.5269168433 | AZ92: Miles de personas
E93: 92 | F93: -5307 | G93: -475 | H93: -474 | I93: -497 | J93: -490 | K93: -420 | L93: -308 | M93: -334 | N93: -334 | O93: -305 | P93: -244 | Q93: -269 | R93: -227 | S93: -217 | T93: -201 | U93: -187 | V93: -134 | W93: -91 | X93: -58 | Y93: -26 | Z93: -11 | AA93: -2 | AB93: -0.4897111747 | AC93: 5530 | AD93: 458 | AE93: 476 | AF93: 479 | AG93: 480 | AH93: 438 | AI93: 369 | AJ93: 349 | AK93: 377 | AL93: 306 | AM93: 303 | AN93: 277 | AO93: 245 | AP93: 220 | AQ93: 205 | AR93: 172 | AS93: 152 | AT93: 105 | AU93: 67 | AV93: 34 | AW93: 11 | AX93: 2 | AY93: 0.5102888253 | AZ93: Cientos de personas
E94: 93 | F94: -6624.4 | G94: -685.7 | H94: -737.2 | I94: -711.4 | J94: -714.2 | K94: -608.6 | L94: -516.8 | M94: -458 | N94: -461.1 | O94: -391.6 | P94: -319.4 | Q94: -259.2 | R94: -189.3 | S94: -167.1 | T94: -129 | U94: -102.3 | V94: -77.5 | W94: -36.3 | X94: -27.4 | Y94: -12.7 | Z94: -4 | AA94: -1.2 | AB94: -0.486648105 | AC94: 6987.9 | AD94: 675.2 | AE94: 702.3 | AF94: 699.6 | AG94: 712.6 | AH94: 660 | AI94: 573.7 | AJ94: 517 | AK94: 497.1 | AL94: 430.9 | AM94: 350.6 | AN94: 285.8 | AO94: 222 | AP94: 190 | AQ94: 156 | AR94: 117.2 | AS94: 80.5 | AT94: 51.3 | AU94: 32.5 | AV94: 13.1 | AW94: 5 | AX94: 1.2 | AY94: 0.513351895 | AZ94: Miles de personas
E95: 94 | F95: -2014.8 | G95: -216.9 | H95: -246.3 | I95: -232.8 | J95: -221.1 | K95: -181.7 | L95: -142.8 | M95: -131.1 | N95: -138.4 | O95: -114.9 | P95: -83.4 | Q95: -74 | R95: -59.7 | S95: -51.1 | T95: -38.7 | U95: -33.2 | V95: -20 | W95: -11.8 | X95: -7.1 | Y95: -3 | Z95: -1.6 | AA95: -0.4 | AB95: -0.4950733469 | AC95: 2054.9 | AD95: 215.7 | AE95: 235.6 | AF95: 229.2 | AG95: 212.4 | AH95: 179.3 | AI95: 144.8 | AJ95: 145.7 | AK95: 148.5 | AL95: 117.3 | AM95: 93.8 | AN95: 80 | AO95: 64.2 | AP95: 54.1 | AQ95: 43.4 | AR95: 35.2 | AS95: 21.9 | AT95: 14.3 | AU95: 9.1 | AV95: 3.6 | AW95: 1.7 | AX95: 0.6 | AY95: 0.5049266531 | AZ95: Miles de personas
E96: 95 | F96: -4425 | G96: -399 | H96: -459 | I96: -408 | J96: -471 | K96: -310 | L96: -290 | M96: -310 | N96: -297 | O96: -250 | P96: -218 | Q96: -190 | R96: -158 | S96: -181 | T96: -158 | U96: -109 | V96: -89 | W96: -64 | X96: -44 | Y96: -15 | Z96: -2 | AA96: 0 | AB96: -0.4869058099 | AC96: 4663 | AD96: 383 | AE96: 437 | AF96: 454 | AG96: 453 | AH96: 356 | AI96: 342 | AJ96: 320 | AK96: 331 | AL96: 308 | AM96: 248 | AN96: 225 | AO96: 181 | AP96: 181 | AQ96: 127 | AR96: 126 | AS96: 81 | AT96: 52 | AU96: 36 | AV96: 12 | AW96: 2 | AX96: 2 | AY96: 0.5130941901 | AZ96: Cientos de personas
E97: 96 | F97: -1016.3 | G97: -104 | H97: -110.4 | I97: -108.4 | J97: -106 | K97: -73.9 | L97: -62.9 | M97: -65.2 | N97: -68.7 | O97: -53.5 | P97: -50.8 | Q97: -44.6 | R97: -36.7 | S97: -33.5 | T97: -27.5 | U97: -23.9 | V97: -16.8 | W97: -12.7 | X97: -7.3 | Y97: -4.6 | Z97: -1.4 | AA97: -0.4 | AB97: -0.4872704608 | AC97: 1069.4 | AD97: 106.3 | AE97: 102.6 | AF97: 109.7 | AG97: 104.4 | AH97: 86.3 | AI97: 72.3 | AJ97: 75 | AK97: 79 | AL97: 56.5 | AM97: 50.3 | AN97: 52 | AO97: 39.7 | AP97: 33.3 | AQ97: 29.6 | AR97: 22.9 | AS97: 17.4 | AT97: 12.8 | AU97: 10.4 | AV97: 4.2 | AW97: 1.8 | AX97: 0.5 | AY97: 0.5127295392 | AZ97: Miles de personas
E98: 97 | F98: -20695.8 | G98: -2714.7 | H98: -2743.9 | I98: -2234.5 | J98: -1806.6 | K98: -1555.1 | L98: -1838.1 | M98: -2077.3 | N98: -1873 | O98: -1222.1 | P98: -812.9 | Q98: -572.7 | R98: -413.8 | S98: -303.3 | T98: -198.9 | U98: -141.8 | V98: -86.9 | W98: -51.6 | X98: -30.7 | Y98: -10.7 | Z98: -6 | AA98: -1.2 | AB98: -0.4967476826 | AC98: 2096.68 | AD98: 2603.6 | AE98: 2629.9 | AF98: 2181.9 | AG98: 1793.2 | AH98: 1739.9 | AI98: 2086.6 | AJ98: 2182.9 | AK98: 1824.5 | AL98: 1195.7 | AM98: 807.6 | AN98: 597.5 | AO98: 432.5 | AP98: 312.1 | AQ98: 214.4 | AR98: 148 | AS98: 92.9 | AT98: 61.9 | AU98: 37.9 | AV98: 16.2 | AW98: 6.4 | AX98: 1.2 | AY98: 0.5032523174 | AZ98: Miles de personas | BC98: =+AY98*100 -> 50.32523174
E99: 98 | F99: -29990.4 | G99: -3174.3 | H99: -3283.9 | I99: -3155.9 | J99: -3067.8 | K99: -2733.5 | L99: -2404.6 | M99: -2331 | N99: -2364.1 | O99: -1879.8 | P99: -1427.6 | Q99: -1184.6 | R99: -884.5 | S99: -667.4 | T99: -456.5 | U99: -297.6 | V99: -192.7 | W99: -111.1 | X99: -60.4 | Y99: -22.2 | Z99: -9 | AA99: -1.4 | AB99: -0.4931706884 | AC99: 30821 | AD99: 3038.6 | AE99: 3206.2 | AF99: 3122.5 | AG99: 2979.4 | AH99: 2740.4 | AI99: 2558.7 | AJ99: 2547.2 | AK99: 2516.7 | AL99: 1980.2 | AM99: 1535.8 | AN99: 1301.4 | AO99: 940.7 | AP99: 730.7 | AQ99: 488.7 | AR99: 335 | AS99: 224.2 | AT99: 158.8 | AU99: 84.7 | AV99: 34.5 | AW99: 11.7 | AX99: 2.9 | AY99: 0.5068293116 | AZ99: Miles de personas
E100: 99 | F100: -4724 | G100: -512 | H100: -508 | I100: -524 | J100: -477 | K100: -355 | L100: -308 | M100: -294 | N100: -288 | O100: -238 | P100: -199 | Q100: -225 | R100: -173 | S100: -157 | T100: -127 | U100: -128 | V100: -93 | W100: -50 | X100: -40 | Y100: -16 | Z100: -6 | AA100: -2 | AB100: -0.4925450944 | AC100: 4867 | AD100: 447 | AE100: 493 | AF100: 495 | AG100: 508 | AH100: 428 | AI100: 381 | AJ100: 313 | AK100: 282 | AL100: 263 | AM100: 240 | AN100: 216 | AO100: 164 | AP100: 144 | AQ100: 154 | AR100: 128 | AS100: 82 | AT100: 55 | AU100: 38 | AV100: 21 | AW100: 11 | AX100: 2 | AY100: 0.5074549056 | AZ100: Cientos de personas
E101: 100 | F101: -1782.2 | G101: -185.5 | H101: -181.9 | I101: -195.3 | J101: -194.1 | K101: -147.8 | L101: -118.9 | M101: -106.7 | N101: -109.7 | O101: -99.7 | P101: -87.2 | Q101: -83.7 | R101: -68.2 | S101: -56.7 | T101: -41.4 | U101: -37.7 | V101: -22.6 | W101: -16.1 | X101: -10.1 | Y101: -4.1 | Z101: -1.5 | AA101: -0.1 | AB101: -0.5084736091 | AC101: 1722.8 | AD101: 182.7 | AE101: 185.1 | AF101: 192.5 | AG101: 185.9 | AH101: 135.1 | AI101: 112.7 | AJ101: 117.1 | AK101: 111.7 | AL101: 94.1 | AM101: 88.7 | AN101: 76.1 | AO101: 62.5 | AP101: 47.3 | AQ101: 36.4 | AR101: 32.1 | AS101: 21.6 | AT101: 14.4 | AU101: 9.3 | AV101: 2.1 | AW101: 1.8 | AX101: 0.6 | AY101: 0.4915263909 | AZ101: Miles de personas
E102: 101 | F102: -24324.1 | G102: -2525.9 | H102: -2661.6 | I102: -2526.2 | J102: -2430.6 | K102: -2274.7 | L102: -2138.3 | M102: -1954.6 | N102: -1918.4 | O102: -1558.6 | P102: -1217 | Q102: -925.2 | R102: -642.4 | S102: -441.8 | T102: -284.6 | U102: -188.7 | V102: -116.9 | W102: -69.6 | X102: -39.6 | Y102: -14 | Z102: -5.1 | AA102: -1.2 | AB102: -0.5081399405 | AC102: 23544.8 | AD102: 2443.8 | AE102: 2579.7 | AF102: 2484.3 | AG102: 2352 | AH102: 2163.5 | AI102: 1968.1 | AJ102: 1839.9 | AK102: 1837.8 | AL102: 1503 | AM102: 1214.3 | AN102: 926.3 | AO102: 623.2 | AP102: 432.7 | AQ102: 290.7 | AR102: 207.1 | AS102: 134.1 | AT102: 80.9 | AU102: 51.1 | AV102: 19.3 | AW102: 7.4 | AX102: 1.1 | AY102: 0.4918600595 | AZ102: Miles de personas
E103: 102 | F103: -2874 | G103: -258 | H103: -233 | I103: -234 | J103: -254 | K103: -270 | L103: -218 | M103: -200 | N103: -168 | O103: -164 | P103: -126 | Q103: -133 | R103: -129 | S103: -91 | T103: -103 | U103: -108 | V103: -74 | W103: -59 | X103: -31 | Y103: -11 | Z103: -5 | AA103: -1 | AB103: -0.4846543002 | AC103: 3056 | AD103: 262 | AE103: 247 | AF103: 236 | AG103: 247 | AH103: 265 | AI103: 252 | AJ103: 209 | AK103: 190 | AL103: 169 | AM103: 174 | AN103: 148 | AO103: 128 | AP103: 122 | AQ103: 109 | AR103: 112 | AS103: 68 | AT103: 61 | AU103: 36 | AV103: 11 | AW103: 6 | AX103: 1 | AY103: 0.5153456998 | AZ103: Cientos de personas
E104: 103 | F104: -3573 | G104: -344 | H104: -339 | I104: -345 | J104: -331 | K104: -274 | L104: -258 | M104: -240 | N104: -206 | O104: -224 | P104: -205 | Q104: -177 | R104: -145 | S104: -130 | T104: -110 | U104: -104 | V104: -62 | W104: -50 | X104: -15 | Y104: -7 | Z104: -5 | AA104: -1 | AB104: -0.4924200662 | AC104: 3683 | AD104: 325 | AE104: 335 | AF104: 313 | AG104: 367 | AH104: 300 | AI104: 266 | AJ104: 239 | AK104: 275 | AL104: 225 | AM104: 211 | AN104: 171 | AO104: 133 | AP104: 147 | AQ104: 114 | AR104: 99 | AS104: 64 | AT104: 42 | AU104: 23 | AV104: 25 | AW104: 3 | AX104: 2 | AY104: 0.5075799338 | AZ104: Cientos de personas
E105: 104 | F105: -2209 | G105: -171 | H105: -183 | I105: -261 | J105: -238 | K105: -153 | L105: -105 | M105: -119 | N105: -144 | O105: -124 | P105: -86 | Q105: -94 | R105: -90 | S105: -81 | T105: -92 | U105: -100 | V105: -67 | W105: -44 | X105: -36 | Y105: -12 | Z105: -6 | AA105: 0 | AB105: -0.4980834273 | AC105: 2226 | AD105: 162 | AE105: 153 | AF105: 163 | AG105: 208 | AH105: 171 | AI105: 142 | AJ105: 132 | AK105: 129 | AL105: 118 | AM105: 120 | AN105: 119 | AO105: 95 | AP105: 88 | AQ105: 100 | AR105: 109 | AS105: 93 | AT105: 43 | AU105: 39 | AV105: 23 | AW105: 14 | AX105: 2 | AY105: 0.5019165727 | AZ105: Cientos de personas
E106: 105 | F106: -1066.8 | G106: -118.4 | H106: -121 | I106: -112.9 | J106: -107.7 | K106: -85.9 | L106: -70.4 | M106: -72.6 | N106: -70.8 | O106: -62.1 | P106: -48.8 | Q106: -40.4 | R106: -35.9 | S106: -33.5 | T106: -25.7 | U106: -23.9 | V106: -16 | W106: -9.8 | X106: -6.4 | Y106: -3 | Z106: -1.5 | AA106: 0 | AB106: -0.4877691921 | AC106: 1120.3 | AD106: 114.4 | AE106: 117.4 | AF106: 109.1 | AG106: 101.5 | AH106: 98.6 | AI106: 90.6 | AJ106: 80.6 | AK106: 78.5 | AL106: 68.5 | AM106: 53.7 | AN106: 44.6 | AO106: 37.5 | AP106: 36 | AQ106: 28.9 | AR106: 22.8 | AS106: 15.8 | AT106: 10 | AU106: 7.5 | AV106: 2.7 | AW106: 1.2 | AX106: 0.1 | AY106: 0.5122308079 | AZ106: Miles de personas
E107: 106 | F107: -2168 | G107: -223 | H107: -191 | I107: -188 | J107: -213 | K107: -191 | L107: -163 | M107: -150 | N107: -129 | O107: -89 | P107: -83 | Q107: -98 | R107: -90 | S107: -92 | T107: -81 | U107: -67 | V107: -43 | W107: -35 | X107: -22 | Y107: -7 | Z107: -8 | AA107: 0 | AB107: -0.5120453472 | AC107: 2066 | AD107: 178 | AE107: 176 | AF107: 163 | AG107: 206 | AH107: 201 | AI107: 169 | AJ107: 138 | AK107: 108 | AL107: 100 | AM107: 79 | AN107: 100 | AO107: 86 | AP107: 93 | AQ107: 65 | AR107: 67 | AS107: 43 | AT107: 38 | AU107: 22 | AV107: 17 | AW107: 11 | AX107: 1 | AY107: 0.4879546528 | AZ107: Cientos de personas
E108: 107 | F108: -3054 | G108: -355 | H108: -303 | I108: -316 | J108: -303 | K108: -262 | L108: -215 | M108: -205 | N108: -191 | O108: -141 | P108: -128 | Q108: -121 | R108: -112 | S108: -96 | T108: -93 | U108: -68 | V108: -57 | W108: -46 | X108: -28 | Y108: -9 | Z108: -5 | AA108: 0 | AB108: -0.4835338822 | AC108: 3262 | AD108: 348 | AE108: 347 | AF108: 296 | AG108: 315 | AH108: 289 | AI108: 240 | AJ108: 228 | AK108: 197 | AL108: 167 | AM108: 155 | AN108: 156 | AO108: 125 | AP108: 92 | AQ108: 75 | AR108: 76 | AS108: 50 | AT108: 48 | AU108: 34 | AV108: 15 | AW108: 5 | AX108: 0 | AY108: 0.5164661178 | AZ108: Cientos de personas
E109: 108 | F109: -1644.2 | G109: -165.4 | H109: -163.7 | I109: -164.3 | J109: -170.4 | K109: -151.9 | L109: -114.6 | M109: -112.2 | N109: -108.2 | O109: -92.4 | P109: -80.1 | Q109: -74.5 | R109: -62.3 | S109: -52.4 | T109: -40.3 | U109: -31 | V109: -25.2 | W109: -18.1 | X109: -10.5 | Y109: -4 | Z109: -1.1 | AA109: -0.2 | AB109: -0.4810133989 | AC109: 1774 | AD109: 163.3 | AE109: 164 | AF109: 166.1 | AG109: 176.8 | AH109: 167.9 | AI109: 123.1 | AJ109: 125.1 | AK109: 120.1 | AL109: 98.5 | AM109: 96.4 | AN109: 92.2 | AO109: 74.9 | AP109: 61.4 | AQ109: 43.5 | AR109: 35.9 | AS109: 27.8 | AT109: 17.4 | AU109: 11.3 | AV109: 4.1 | AW109: 2.5 | AX109: 0.5 | AY109: 0.5189866011 | AZ109: Miles de personas
E110: 109 | F110: -830.6 | G110: -95.1 | H110: -100.8 | I110: -92 | J110: -90.4 | K110: -66.3 | L110: -55.6 | M110: -53.8 | N110: -51.5 | O110: -44.1 | P110: -35.8 | Q110: -29.5 | R110: -26.7 | S110: -22.7 | T110: -21.1 | U110: -15.1 | V110: -12.3 | W110: -8.1 | X110: -5.9 | Y110: -2.4 | Z110: -1 | AA110: -0.2 | AB110: -0.4794227994 | AC110: 901.9 | AD110: 89.8 | AE110: 97 | AF110: 89.9 | AG110: 91.8 | AH110: 85.1 | AI110: 68.6 | AJ110: 63.9 | AK110: 59.4 | AL110: 48.3 | AM110: 42.1 | AN110: 38.6 | AO110: 30 | AP110: 27.1 | AQ110: 19.8 | AR110: 19.2 | AS110: 14.1 | AT110: 5.8 | AU110: 7.7 | AV110: 2.1 | AW110: 1.3 | AX110: 0.2 | AY110: 0.5205772006 | AZ110: Miles de personas
E111: 110 | F111: -6620 | G111: -618 | H111: -581 | I111: -650 | J111: -686 | K111: -530 | L111: -404 | M111: -349 | N111: -427 | O111: -405 | P111: -325 | Q111: -303 | R111: -264 | S111: -244 | T111: -227 | U111: -209 | V111: -144 | W111: -116 | X111: -86 | Y111: -29 | Z111: -20 | AA111: -2 | AB111: -0.4819101696 | AC111: 7117 | AD111: 656 | AE111: 608 | AF111: 595 | AG111: 679 | AH111: 629 | AI111: 503 | AJ111: 454 | AK111: 471 | AL111: 422 | AM111: 374 | AN111: 357 | AO111: 268 | AP111: 259 | AQ111: 231 | AR111: 213 | AS111: 151 | AT111: 120 | AU111: 83 | AV111: 31 | AW111: 8 | AX111: 4 | AY111: 0.5180898304 | AZ111: Cientos de personas
E112: 111 | F112: -3333 | G112: -355 | H112: -317 | I112: -361 | J112: -358 | K112: -314 | L112: -241 | M112: -223 | N112: -239 | O112: -162 | P112: -138 | Q112: -125 | R112: -106 | S112: -106 | T112: -85 | U112: -74 | V112: -57 | W112: -40 | X112: -15 | Y112: -10 | Z112: -3 | AA112: 0 | AB112: -0.4970917226 | AC112: 3372 | AD112: 325 | AE112: 325 | AF112: 289 | AG112: 318 | AH112: 329 | AI112: 259 | AJ112: 253 | AK112: 248 | AL112: 192 | AM112: 157 | AN112: 147 | AO112: 146 | AP112: 98 | AQ112: 75 | AR112: 76 | AS112: 64 | AT112: 36 | AU112: 21 | AV112: 6 | AW112: 4 | AX112: 0 | AY112: 0.5029082774 | AZ112: Cientos de personas
E113: 112 | F113: -2806 | G113: -263 | H113: -265 | I113: -302 | J113: -247 | K113: -224 | L113: -166 | M113: -162 | N113: -180 | O113: -147 | P113: -163 | Q113: -132 | R113: -120 | S113: -124 | T113: -94 | U113: -85 | V113: -48 | W113: -41 | X113: -34 | Y113: -5 | Z113: -1 | AA113: 0 | AB113: -0.4839599862 | AC113: 2992 | AD113: 239 | AE113: 245 | AF113: 259 | AG113: 269 | AH113: 280 | AI113: 195 | AJ113: 197 | AK113: 203 | AL113: 162 | AM113: 171 | AN113: 164 | AO113: 136 | AP113: 130 | AQ113: 90 | AR113: 96 | AS113: 62 | AT113: 48 | AU113: 27 | AV113: 8 | AW113: 4 | AX113: 3 | AY113: 0.5160400138 | AZ113: Cientos de personas
E114: 113 | F114: -7507 | G114: -730 | H114: -737 | I114: -693 | J114: -807 | K114: -700 | L114: -589 | M114: -501 | N114: -433 | O114: -426 | P114: -379 | Q114: -290 | R114: -300 | S114: -234 | T114: -194 | U114: -185 | V114: -127 | W114: -75 | X114: -54 | Y114: -20 | Z114: -6 | AA114: -1 | AB114: -0.4903331156 | AC114: 7803 | AD114: 748 | AE114: 689 | AF114: 668 | AG114: 783 | AH114: 774 | AI114: 604 | AJ114: 571 | AK114: 483 | AL114: 408 | AM114: 360 | AN114: 340 | AO114: 305 | AP114: 261 | AQ114: 239 | AR114: 188 | AS114: 136 | AT114: 94 | AU114: 69 | AV114: 28 | AW114: 17 | AX114: 9 | AY114: 0.5096668844 | AZ114: Cientos de personas
E115: 114 | F115: -8357 | G115: -872 | H115: -811 | I115: -804 | J115: -823 | K115: -700 | L115: -579 | M115: -535 | N115: -505 | O115: -471 | P115: -402 | Q115: -370 | R115: -321 | S115: -307 | T115: -254 | U115: -227 | V115: -160 | W115: -85 | X115: -74 | Y115: -20 | Z115: -14 | AA115: -2 | AB115: -0.4924862985 | AC115: 8612 | AD115: 794 | AE115: 787 | AF115: 765 | AG115: 783 | AH115: 761 | AI115: 647 | AJ115: 593 | AK115: 564 | AL115: 527 | AM115: 465 | AN115: 400 | AO115: 358 | AP115: 306 | AQ115: 275 | AR115: 215 | AS115: 126 | AT115: 104 | AU115: 72 | AV115: 37 | AW115: 12 | AX115: 3 | AY115: 0.5075137015 | AZ115: Cientos de personas
E116: 115 | F116: -2785 | G116: -286 | H116: -287 | I116: -318 | J116: -257 | K116: -231 | L116: -161 | M116: -173 | N116: -143 | O116: -122 | P116: -103 | Q116: -110 | R116: -103 | S116: -87 | T116: -97 | U116: -97 | V116: -96 | W116: -48 | X116: -40 | Y116: -11 | Z116: -11 | AA116: -1 | AB116: -0.4939694927 | AC116: 2853 | AD116: 269 | AE116: 291 | AF116: 273 | AG116: 263 | AH116: 227 | AI116: 199 | AJ116: 170 | AK116: 145 | AL116: 111 | AM116: 137 | AN116: 126 | AO116: 103 | AP116: 113 | AQ116: 92 | AR116: 111 | AS116: 98 | AT116: 52 | AU116: 41 | AV116: 21 | AW116: 8 | AX116: 1 | AY116: 0.5060305073 | AZ116: Cientos de personas
E117: 116 | F117: -904.3 | G117: -103.2 | H117: -114 | I117: -103 | J117: -93.6 | K117: -69.6 | L117: -60.1 | M117: -59.5 | N117: -62.5 | O117: -51.9 | P117: -41.2 | Q117: -32.5 | R117: -26.4 | S117: -24.7 | T117: -19.3 | U117: -15.6 | V117: -12.5 | W117: -7 | X117: -5.2 | Y117: -1.5 | Z117: -0.5 | AA117: -0.3 | AB117: -0.4832985944 | AC117: 966.8 | AD117: 99.2 | AE117: 102.6 | AF117: 94.3 | AG117: 99.9 | AH117: 85.8 | AI117: 75.2 | AJ117: 72.9 | AK117: 72.1 | AL117: 59 | AM117: 44.8 | AN117: 39.4 | AO117: 33.9 | AP117: 26.1 | AQ117: 21.9 | AR117: 12.1 | AS117: 12.3 | AT117: 7.7 | AU117: 4.8 | AV117: 1.4 | AW117: 0.6 | AX117: 0.1 | AY117: 0.5167014056 | AZ117: Miles de personas
E118: 117 | F118: -2015 | G118: -178 | H118: -195 | I118: -175 | J118: -184 | K118: -141 | L118: -130 | M118: -117 | N118: -126 | O118: -103 | P118: -113 | Q118: -88 | R118: -80 | S118: -79 | T118: -96 | U118: -77 | V118: -58 | W118: -35 | X118: -14 | Y118: -16 | Z118: -4 | AA118: 0 | AB118: -0.4853082852 | AC118: 2137 | AD118: 161 | AE118: 177 | AF118: 158 | AG118: 195 | AH118: 170 | AI118: 156 | AJ118: 123 | AK118: 133 | AL118: 133 | AM118: 108 | AN118: 120 | AO118: 108 | AP118: 95 | AQ118: 89 | AR118: 87 | AS118: 36 | AT118: 39 | AU118: 30 | AV118: 7 | AW118: 4 | AX118: 1 | AY118: 0.5146917148 | AZ118: Cientos de personas
E119: 118 | F119: -1058.6 | G119: -96.6 | H119: -100.6 | I119: -102.2 | J119: -109.5 | K119: -78 | L119: -64.2 | M119: -64.5 | N119: -72.7 | O119: -65.3 | P119: -57.5 | Q119: -51.4 | R119: -40.9 | S119: -38.1 | T119: -36.4 | U119: -24.4 | V119: -21.3 | W119: -16.1 | X119: -11.1 | Y119: -4.3 | Z119: -1.6 | AA119: -0.1 | AB119: -0.4750493628 | AC119: 1169.8 | AD119: 94 | AE119: 95.7 | AF119: 102.8 | AG119: 99.9 | AH119: 94.1 | AI119: 79.2 | AJ119: 75.5 | AK119: 80.3 | AL119: 75.8 | AM119: 67.8 | AN119: 64 | AO119: 49.1 | AP119: 48.6 | AQ119: 41 | AR119: 37.2 | AS119: 27 | AT119: 18.6 | AU119: 10.6 | AV119: 5 | AW119: 1.7 | AX119: 0.3 | AY119: 0.5249506372 | AZ119: Miles de personas
E120: 119 | F120: -1369.8 | G120: -139 | H120: -141.1 | I120: -133.5 | J120: -139.1 | K120: -117.2 | L120: -92.6 | M120: -87.3 | N120: -91.5 | O120: -75.1 | P120: -66.6 | Q120: -56.5 | R120: -47.3 | S120: -43.9 | T120: -37.9 | U120: -33 | V120: -25.7 | W120: -16.7 | X120: -11.8 | Y120: -5.4 | Z120: -1.9 | AA120: -0.5 | AB120: -0.4909501452 | AC120: 1420.3 | AD120: 131.8 | AE120: 131.9 | AF120: 131.7 | AG120: 137.2 | AH120: 126.8 | AI120: 106.8 | AJ120: 99.8 | AK120: 88.3 | AL120: 79.7 | AM120: 68.9 | AN120: 65.9 | AO120: 51.3 | AP120: 46.3 | AQ120: 37.1 | AR120: 38.4 | AS120: 27.1 | AT120: 20.6 | AU120: 14.5 | AV120: 7 | AW120: 2.9 | AX120: 0.4 | AY120: 0.5090498548 | AZ120: Miles de personas
E121: 120 | F121: -60790.7 | G121: -5542.6 | H121: -5873.7 | I121: -5881 | J121: -6163 | K121: -6046.9 | L121: -5148.7 | M121: -4497 | N121: -4522.5 | O121: -3802.7 | P121: -3134.2 | Q121: -2745.3 | R121: -2100.2 | S121: -1657.7 | T121: -1075.1 | U121: -705.3 | V121: -435.9 | W121: -262.9 | X121: -148 | Y121: -53.5 | Z121: -18 | AA121: -3.6 | AB121: -0.4887670894 | AC121: 63584.9 | AD121: 5351.7 | AE121: 5694.1 | AF121: 5690.3 | AG121: 6013.4 | AH121: 6089.8 | AI121: 5362.6 | AJ121: 4946.1 | AK121: 4982.1 | AL121: 4251.1 | AM121: 3599 | AN121: 3149.2 | AO121: 2354 | AP121: 1823.2 | AQ121: 1184.5 | AR121: 823.1 | AS121: 552.2 | AT121: 380.7 | AU121: 224.4 | AV121: 98.5 | AW121: 37 | AX121: 7.6 | AY121: 0.5112329106 | AZ121: Miles de personas
E122: 121 | F122: -1418.1 | G122: -132.4 | H122: -135.6 | I122: -140.4 | J122: -146 | K122: -126.1 | L122: -98.6 | M122: -91.3 | N122: -90.4 | O122: -83.5 | P122: -75.9 | Q122: -62.2 | R122: -57.4 | S122: -52.9 | T122: -42.1 | U122: -31.5 | V122: -22.5 | W122: -12.2 | X122: -7.9 | Y122: -3.7 | Z122: -1.6 | AA122: -0.3 | AB122: -0.4857837764 | AC122: 1501.1 | AD122: 128 | AE122: 138.6 | AF122: 137.9 | AG122: 142.9 | AH122: 133.4 | AI122: 112.2 | AJ122: 108.2 | AK122: 106.8 | AL122: 93.6 | AM122: 82.1 | AN122: 73.3 | AO122: 58.4 | AP122: 48.9 | AQ122: 40.6 | AR122: 36.2 | AS122: 22.2 | AT122: 16.6 | AU122: 9.8 | AV122: 5.3 | AW122: 2 | AX122: 0.5 | AY122: 0.5142162236 | AZ122: Miles de personas
E123: 122 | F123: -3328 | G123: -351 | H123: -378 | I123: -402 | J123: -358 | K123: -254 | L123: -233 | M123: -181 | N123: -206 | O123: -143 | P123: -124 | Q123: -141 | R123: -104 | S123: -103 | T123: -97 | U123: -96 | V123: -75 | W123: -26 | X123: -40 | Y123: -11 | Z123: -4 | AA123: 0 | AB123: -0.4978309648 | AC123: 3357 | AD123: 341 | AE123: 334 | AF123: 363 | AG123: 315 | AH123: 277 | AI123: 216 | AJ123: 227 | AK123: 194 | AL123: 155 | AM123: 134 | AN123: 138 | AO123: 127 | AP123: 124 | AQ123: 108 | AR123: 113 | AS123: 72 | AT123: 55 | AU123: 36 | AV123: 13 | AW123: 10 | AX123: 2 | AY123: 0.5021690352 | AZ123: Cientos de personas
E124: 123 | F124: -8671 | G124: -914 | H124: -959 | I124: -899 | J124: -907 | K124: -712 | L124: -614 | M124: -611 | N124: -558 | O124: -485 | P124: -408 | Q124: -339 | R124: -311 | S124: -271 | T124: -210 | U124: -184 | V124: -138 | W124: -72 | X124: -40 | Y124: -24 | Z124: -8 | AA124: -2 | AB124: -0.4930907023 | AC124: 8914 | AD124: 880 | AE124: 882 | AF124: 884 | AG124: 920 | AH124: 799 | AI124: 664 | AJ124: 663 | AK124: 592 | AL124: 501 | AM124: 438 | AN124: 359 | AO124: 320 | AP124: 279 | AQ124: 226 | AR124: 195 | AS124: 131 | AT124: 85 | AU124: 45 | AV124: 30 | AW124: 11 | AX124: 1 | AY124: 0.5069092977 | AZ124: Cientos de personas
E125: 124 | F125: -3111.4 | G125: -341.4 | H125: -347.3 | I125: -347.2 | J125: -330.2 | K125: -266.7 | L125: -218.4 | M125: -216.8 | N125: -218 | O125: -185.5 | P125: -137.5 | Q125: -116.2 | R125: -101.1 | S125: -77.7 | T125: -66.3 | U125: -55.3 | V125: -38.2 | W125: -20.5 | X125: -13.7 | Y125: -4.9 | Z125: -2.6 | AA125: -0.4 | AB125: -0.4889370796 | AC125: 3252.2 | AD125: 328.3 | AE125: 333.5 | AF125: 342 | AG125: 337.9 | AH125: 306.3 | AI125: 250.9 | AJ125: 247.6 | AK125: 227 | AL125: 189.9 | AM125: 158.7 | AN125: 129.7 | AO125: 97.3 | AP125: 89.9 | AQ125: 68.4 | AR125: 54.7 | AS125: 39.8 | AT125: 20.7 | AU125: 14.8 | AV125: 5.8 | AW125: 2.3 | AX125: 1.1 | AY125: 0.5110629204 | AZ125: Miles de personas
E126: 125 | F126: -850.1 | G126: -97.7 | H126: -103.2 | I126: -99.2 | J126: -83.5 | K126: -69.9 | L126: -62.6 | M126: -55.9 | N126: -59.8 | O126: -45.2 | P126: -36.1 | Q126: -32.9 | R126: -25.5 | S126: -22.4 | T126: -17.7 | U126: -15.1 | V126: -10.7 | W126: -6.3 | X126: -3.8 | Y126: -1.4 | Z126: -0.5 | AA126: 0 | AB126: -0.4822988767 | AC126: 912.5 | AD126: 93.3 | AE126: 104.6 | AF126: 98.5 | AG126: 98.7 | AH126: 83.9 | AI126: 71.2 | AJ126: 70.9 | AK126: 59.1 | AL126: 49 | AM126: 44.6 | AN126: 32.7 | AO126: 26.4 | AP126: 23.3 | AQ126: 22.7 | AR126: 15.4 | AS126: 8.2 | AT126: 4.8 | AU126: 2.7 | AV126: 1.2 | AW126: 0.5 | AX126: 0.2 | AY126: 0.5177011233 | AZ126: Miles de personas
G127: =+G98/10 -> -271.47 | H127: =+H98/10 -> -274.39 | I127: -223.45 | J127: -180.66 | K127: -155.51 | L127: -183.81 | M127: -207.73 | N127: -187.3 | O127: -122.21 | P127: -81.29 | Q127: -57.27 | R127: -41.38 | S127: -30.33 | T127: -19.89 | U127: -14.18 | V127: -8.69 | W127: -5.16 | X127: -3.07 | Y127: -1.07 | Z127: -0.6 | AA127: -0.12 | AB127: -0.04967476826 | AC127: 209.668 | AD127: 260.36 | AE127: 262.99 | AF127: 218.19 | AG127: 179.32 | AH127: 173.99 | AI127: 208.66 | AJ127: 218.29 | AK127: 182.45 | AL127: 119.57 | AM127: 80.76 | AN127: 59.75 | AO127: 43.25 | AP127: 31.21 | AQ127: 21.44 | AR127: 14.8 | AS127: 9.29 | AT127: 6.19 | AU127: 3.79 | AV127: 1.62 | AW127: 0.64 | AX127: 0.12 | AY127: 0.05032523174 | BA127: 0
E129: 1 | F129: 38307 | G129: -4313 | H129: -4409 | I129: -4607 | J129: -4249 | K129: -3099 | L129: -2234 | M129: -2231 | N129: -2142 | O129: -1852 | P129: -1619 | Q129: -1377 | R129: -1178 | S129: -1059 | T129: -1062 | U129: -987 | V129: -765 | W129: -464 | X129: -344 | Y129: -131 | Z129: -69 | AA129: -24 | AB129: 0.485913617 | AC129: 40528 | AD129: 4230 | AE129: 4360 | AF129: 4419 | AG129: 4217 | AH129: 3473 | AI129: 2660 | AJ129: 2495 | AK129: 2368 | AL129: 1985 | AM129: 1852 | AN129: 1601 | AO129: 1290 | AP129: 1239 | AQ129: 1111 | AR129: 1112 | AS129: 859 | AT129: 530 | AU129: 369 | AV129: 161 | AW129: 80 | AX129: 21 | AY129: 0.514086383 | AZ129: Miles de personas
E130: 2 | F130: 185360 | G130: -20519 | H130: -21494 | I130: -20856 | J130: -20077 | K130: -16141 | L130: -13439 | M130: -12671 | N130: -12240 | O130: -10123 | P130: -8246 | Q130: -7018 | R130: -5846 | S130: -4817 | T130: -3856 | U130: -2918 | V130: -2136 | W130: -1404 | X130: -852 | Y130: -308 | Z130: -116 | AA130: -22 | AB130: 0.4835684303 | AC130: 197957 | AD130: 20107 | AE130: 20486 | AF130: 20025 | AG130: 20373 | AH130: 18303 | AI130: 15788 | AJ130: 14890 | AK130: 13862 | AL130: 11239 | AM130: 9481 | AN130: 8206 | AO130: 6498 | AP130: 5450 | AQ130: 4251 | AR130: 3314 | AS130: 2316 | AT130: 1512 | AU130: 1064 | AV130: 366 | AW130: 142 | AX130: 23 | AY130: 0.5164315697 | AZ130: Miles de personas | BI130: 48.5913617 | BJ130: 51.4086383 | BL130: =BI130/100 -> 0.485913617 | BM130: =BJ130/100 -> 0.514086383
E131: 3 | F131: 185403 | G131: -19454 | H131: -20898 | I131: -20307 | J131: -19515 | K131: -15946 | L131: -13537 | M131: -12647 | N131: -12299 | O131: -10504 | P131: -8809 | Q131: -7486 | R131: -5652 | S131: -5124 | T131: -4190 | U131: -3336 | V131: -2390 | W131: -1430 | X131: -934 | Y131: -449 | Z131: -135 | AA131: -30 | AB131: 0.4826393228 | AC131: 198741 | AD131: 18875 | AE131: 19981 | AF131: 19939 | AG131: 20177 | AH131: 18552 | AI131: 15778 | AJ131: 14311 | AK131: 13634 | AL131: 11813 | AM131: 9931 | AN131: 8309 | AO131: 6712 | AP131: 5828 | AQ131: 4775 | AR131: 3833 | AS131: 2589 | AT131: 1703 | AU131: 1010 | AV131: 443 | AW131: 169 | AX131: 35 | AY131: 0.5173606772 | AZ131: Miles de personas | BI131: 48.35684303 | BJ131: 51.64315697 | BL131: =BI131/100 -> 0.4835684303 | BM131: 0.5164315697
B132: =VLOOKUP(DatosR!F141,grapob!E129:AY141,1,FALSE) -> 14 | E132: 4 | F132: 245667 | G132: -26176 | H132: -26637 | I132: -26309 | J132: -25279 | K132: -21120 | L132: -17625 | M132: -16471 | N132: -16452 | O132: -13621 | P132: -11150 | Q132: -9944 | R132: -8503 | S132: -7429 | T132: -5999 | U132: -4776 | V132: -3236 | W132: -1991 | X132: -1262 | Y132: -575 | Z132: -214 | AA132: -42 | AB132: 0.4881153673 | AC132: 257630 | AD132: 25371 | AE132: 26149 | AF132: 25311 | AG132: 25367 | AH132: 22748 | AI132: 19642 | AJ132: 18594 | AK132: 17895 | AL132: 15017 | AM132: 12417 | AN132: 11375 | AO132: 9172 | AP132: 8030 | AQ132: 6246 | AR132: 4984 | AS132: 3482 | AT132: 2438 | AU132: 1492 | AV132: 683 | AW132: 277 | AX132: 59 | AY132: 0.5118846327 | AZ132: Miles de personas | BI132: 48.26393228 | BJ132: 51.73606772 | BL132: 0.4826393228 | BM132: 0.5173606772
E133: 5 | F133: 56916 | G133: -5294 | H133: -5539 | I133: -5724 | J133: -5720 | K133: -4909 | L133: -3688 | M133: -3521 | N133: -3611 | O133: -3236 | P133: -2997 | Q133: -2641 | R133: -2177 | S133: -1987 | T133: -1784 | U133: -1521 | V133: -1013 | W133: -756 | X133: -419 | Y133: -200 | Z133: -83 | AA133: -19 | AB133: 0.4889018692 | AC133: 59500 | AD133: 5091 | AE133: 5253 | AF133: 5633 | AG133: 5838 | AH133: 5227 | AI133: 4122 | AJ133: 3951 | AK133: 3801 | AL133: 3603 | AM133: 3214 | AN133: 2875 | AO133: 2391 | AP133: 2216 | AQ133: 1833 | AR133: 1662 | AS133: 1112 | AT133: 799 | AU133: 485 | AV133: 215 | AW133: 74 | AX133: 31 | AY133: 0.5110981308 | AZ133: Miles de personas | BI133: 48.81153673 | BJ133: 51.18846327 | BL133: 0.4881153673 | BM133: 0.5118846327
A134: 0 - 4 años | B134: =VLOOKUP(DatosR!F$141,E$129:AY$141,3,FALSE) -> -353.751 | C134: =VLOOKUP(DatosR!F$141,E$129:AY$141,26,FALSE) -> 341.197 | E134: 6 | F134: 161441 | G134: -16026 | H134: -16080 | I134: -15964 | J134: -16379 | K134: -14876 | L134: -11905 | M134: -11028 | N134: -10524 | O134: -9032 | P134: -7940 | Q134: -7079 | R134: -5916 | S134: -5054 | T134: -3954 | U134: -3191 | V134: -2348 | W134: -1552 | X134: -1012 | Y134: -401 | Z134: -162 | AA134: -27 | AB134: 0.4856668401 | AC134: 170970 | AD134: 15460 | AE134: 15744 | AF134: 15570 | AG134: 16402 | AH134: 15860 | AI134: 13075 | AJ134: 12240 | AK134: 11772 | AL134: 10126 | AM134: 9014 | AN134: 8141 | AO134: 6572 | AP134: 5450 | AQ134: 4286 | AR134: 3658 | AS134: 2630 | AT134: 1851 | AU134: 1232 | AV134: 580 | AW134: 238 | AX134: 61 | AY134: 0.5143331599 | AZ134: Miles de personas | BI134: 48.89018692 | BJ134: 51.10981308 | BL134: 0.4889018692 | BM134: 0.5110981308
A135: 5 - 9 años | B135: =VLOOKUP(DatosR!F$141,E$129:AY$141,4,FALSE) -> -369.308 | C135: =VLOOKUP(DatosR!F$141,E$129:AY$141,27,FALSE) -> 357.767 | E135: 7 | F135: 47225 | G135: -4503 | H135: -4386 | I135: -4563 | J135: -4678 | K135: -3996 | L135: -3101 | M135: -2950 | N135: -2936 | O135: -2633 | P135: -2278 | Q135: -2152 | R135: -1726 | S135: -1629 | T135: -1599 | U135: -1407 | V135: -1001 | W135: -739 | X135: -492 | Y135: -202 | Z135: -89 | AA135: -18 | AB135: 0.4935723244 | AC135: 48455 | AD135: 4339 | AE135: 4298 | AF135: 4310 | AG135: 4513 | AH135: 4227 | AI135: 3480 | AJ135: 3250 | AK135: 3129 | AL135: 2813 | AM135: 2557 | AN135: 2240 | AO135: 1873 | AP135: 1699 | AQ135: 1581 | AR135: 1369 | AS135: 981 | AT135: 798 | AU135: 525 | AV135: 205 | AW135: 98 | AX135: 26 | AY135: 0.5064276756 | AZ135: Miles de personas | BI135: 48.56668401 | BJ135: 51.43331599 | BL135: 0.4856668401 | BM135: 0.5143331599
A136: 10 - 14 años | B136: =VLOOKUP(DatosR!F$141,E$129:AY$141,5,FALSE) -> -362.097 | C136: =VLOOKUP(DatosR!F$141,E$129:AY$141,28,FALSE) -> 352.296 | E136: 8 | F136: 85112 | G136: -8619 | H136: -8616 | I136: -8662 | J136: -8825 | K136: -7424 | L136: -5940 | M136: -5717 | N136: -5584 | O136: -4795 | P136: -4347 | Q136: -3910 | R136: -3082 | S136: -2642 | T136: -2118 | U136: -1750 | V136: -1226 | W136: -769 | X136: -520 | Y136: -191 | Z136: -93 | AA136: -27 | AB136: 0.4994044371 | AC136: 85315 | AD136: 8264 | AE136: 8445 | AF136: 8508 | AG136: 8461 | AH136: 7482 | AI136: 6315 | AJ136: 6030 | AK136: 5726 | AL136: 4978 | AM136: 4461 | AN136: 3908 | AO136: 3172 | AP136: 2649 | AQ136: 1974 | AR136: 1794 | AS136: 1171 | AT136: 838 | AU136: 514 | AV136: 229 | AW136: 106 | AX136: 19 | AY136: 0.5005955629 | AZ136: Miles de personas | BI136: 49.35723244 | BJ136: 50.64276756 | BL136: 0.4935723244 | BM136: 0.5064276756
A137: 15 - 19 años | B137: =VLOOKUP(DatosR!F$141,E$129:AY$141,6,FALSE) -> -360.175 | C137: =VLOOKUP(DatosR!F$141,E$129:AY$141,29,FALSE) -> 354.828 | E137: 9 | F137: 151575 | G137: -14917 | H137: -14657 | I137: -14703 | J137: -14727 | K137: -14768 | L137: -12922 | M137: -11505 | N137: -11605 | O137: -9653 | P137: -7825 | Q137: -6234 | R137: -4581 | S137: -3562 | T137: -2445 | U137: -1794 | V137: -1097 | W137: -665 | X137: -411 | Y137: -154 | Z137: -71 | AA137: -12 | AB137: 0.5039732677 | AC137: 149185 | AD137: 14468 | AE137: 14304 | AF137: 14183 | AG137: 14481 | AH137: 14475 | AI137: 12785 | AJ137: 11784 | AK137: 11438 | AL137: 9612 | AM137: 7715 | AN137: 6146 | AO137: 4399 | AP137: 3488 | AQ137: 2333 | AR137: 1678 | AS137: 1129 | AT137: 784 | AU137: 428 | AV137: 173 | AW137: 86 | AX137: 21 | AY137: 0.4960267323 | AZ137: Miles de personas | BI137: 49.94044371 | BJ137: 50.05955629 | BL137: 0.4994044371 | BM137: 0.5005955629
A138: 20 - 24 años | B138: =VLOOKUP(DatosR!F$141,E$129:AY$141,7,FALSE) -> -329.145 | C138: =VLOOKUP(DatosR!F$141,E$129:AY$141,30,FALSE) -> 339.943 | E138: 10 | F138: 30578 | G138: -2753 | H138: -2901 | I138: -3166 | J138: -3267 | K138: -2370 | L138: -1809 | M138: -1867 | N138: -1819 | O138: -1693 | P138: -1540 | Q138: -1366 | R138: -1104 | S138: -1133 | T138: -1068 | U138: -946 | V138: -727 | W138: -465 | X138: -332 | Y138: -130 | Z138: -69 | AA138: -13 | AB138: 0.4991756044 | AC138: 30679 | AD138: 2653 | AE138: 2829 | AF138: 3100 | AG138: 3013 | AH138: 2446 | AI138: 1992 | AJ138: 1954 | AK138: 1913 | AL138: 1787 | AM138: 1595 | AN138: 1389 | AO138: 1195 | AP138: 1133 | AQ138: 1026 | AR138: 917 | AS138: 661 | AT138: 447 | AU138: 344 | AV138: 157 | AW138: 74 | AX138: 15 | AY138: 0.5008243956 | AZ138: Miles de personas | BI138: 50.39732677 | BJ138: 49.60267323 | BL138: 0.5039732677 | BM138: 0.4960267323
A139: 25 - 29 años | B139: =VLOOKUP(DatosR!F$141,E$129:AY$141,8,FALSE) -> -287.723 | C139: =VLOOKUP(DatosR!F$141,E$129:AY$141,31,FALSE) -> 304.31 | E139: 11 | F139: 170606 | G139: -17378 | H139: -18242 | I139: -17533 | J139: -17328 | K139: -14197 | L139: -12090 | M139: -11528 | N139: -11960 | O139: -9698 | P139: -7963 | Q139: -7129 | R139: -6052 | S139: -5290 | T139: -4447 | U139: -3523 | V139: -2449 | W139: -1641 | X139: -1077 | Y139: -406 | Z139: -156 | AA139: -25 | AB139: 0.4938831281 | AC139: 174832 | AD139: 16752 | AE139: 17675 | AF139: 17297 | AG139: 16783 | AH139: 14762 | AI139: 13028 | AJ139: 12687 | AK139: 12373 | AL139: 10387 | AM139: 8820 | AN139: 7801 | AO139: 6358 | AP139: 5424 | AQ139: 4350 | AR139: 3677 | AS139: 2521 | AT139: 1744 | AU139: 1180 | AV139: 485 | AW139: 186 | AX139: 39 | AY139: 0.5061168719 | AZ139: Miles de personas | BI139: 49.91756044 | BJ139: 50.08243956 | BL139: 0.4991756044 | BM139: 0.5008243956
A140: 30 - 34 años | B140: =VLOOKUP(DatosR!F$141,E$129:AY$141,9,FALSE) -> -263.14 | C140: =VLOOKUP(DatosR!F$141,E$129:AY$141,32,FALSE) -> 284.977 | E140: 12 | F140: =BQ140/1000 -> 2242.451 | G140: -213.799 | H140: -225.449 | I140: -219.703 | J140: -220.131 | K140: -210.299 | L140: -189.433 | M140: -171.004 | N140: -167.098 | O140: -136.829 | P140: -110.76 | Q140: -95.773 | R140: -74.566 | S140: -59.611 | T140: -41.454 | U140: -29.023 | V140: =CG140/1000 -> -18.995 | W140: -11.892 | X140: -6.6 | Y140: -2.481 | Z140: =CK140/1000 -> -0.876 | AA140: =CL140/1000 -> -0.156 | AB140: 0.4897571363 | AC140: =CN140/1000 -> 2336.249 | AD140: 205.587 | AE140: 218.243 | AF140: 214.001 | AG140: 215.203 | AH140: 212.388 | AI140: 195.645 | AJ140: 182.791 | AK140: 179.053 | AL140: 149.572 | AM140: 125.01 | AN140: 110.177 | AO140: 84.365 | AP140: 68.522 | AQ140: 47.595 | AR140: 35.034 | AS140: =DD140/1000 -> 23.913 | AT140: 16.752 | AU140: 9.822 | AV140: 4.271 | AW140: =DH140/1000 -> 1.543 | AX140: =DI140/1000 -> 0.319 | AY140: 0.5102428637 | AZ140: Millones de personas | BI140: 49.38831281 | BJ140: 50.61168719 | BL140: 0.4938831281 | BM140: 0.5061168719 | BQ140: 2242451 | BR140: -213799 | BS140: -225449 | BT140: -219703 | BU140: -220131 | BV140: -210299 | BW140: -189433 | BX140: -171004 | BY140: -167098 | BZ140: -136829 | CA140: -110760 | CB140: -95773 | CC140: -74566 | CD140: -59611 | CE140: -41454 | CF140: -29023 | CG140: -18995 | CH140: -11892 | CI140: -6600 | CJ140: -2481 | CK140: -876 | CL140: -156 | CM140: 0.4897571363 | CN140: 2336249 | CO140: 205587 | CP140: 218243 | CQ140: 214001 | CR140: 215203 | CS140: 212388 | CT140: 195645 | CU140: 182791 | CV140: 179053 | CW140: 149572 | CX140: 125010 | CY140: 110177 | CZ140: 84365 | DA140: 68522 | DB140: 47595 | DC140: 35034 | DD140: 23913 | DE140: 16752 | DF140: 9822 | DG140: 4271 | DH140: 1543 | DI140: 319 | DJ140: 0.5102428637 | DK140: Miles de personas
A141: 35 - 39 años | B141: =VLOOKUP(DatosR!F$141,E$129:AY$141,10,FALSE) -> -258.27 | C141: =VLOOKUP(DatosR!F$141,E$129:AY$141,33,FALSE) -> 276.964 | E141: 14 | F141: -3600.641 | G141: -353.751 | H141: -369.308 | I141: -362.097 | J141: -360.175 | K141: -329.145 | L141: -287.723 | M141: -263.14 | N141: -258.27 | O141: -213.669 | P141: -175.474 | Q141: -152.109 | R141: -120.383 | S141: -99.337 | T141: -73.976 | U141: -55.172 | V141: -37.383 | W141: -23.768 | X141: -14.255 | Y141: -5.628 | Z141: =CK141/1000 -> -2.133 | AA141: =CL141/1000 -> -0.415 | AB141: 0.4898376776 | AC141: 3750.041 | AD141: 341.197 | AE141: 357.767 | AF141: 352.296 | AG141: 354.828 | AH141: 339.943 | AI141: 304.31 | AJ141: 284.977 | AK141: 276.964 | AL141: 232.932 | AM141: 196.067 | AN141: 172.168 | AO141: 133.997 | AP141: 111.128 | AQ141: 81.361 | AR141: 63.032 | AS141: 43.364 | AT141: 30.196 | AU141: 18.465 | AV141: 7.968 | AW141: =DH141/1000 -> 3.073 | AX141: =DI141/1000 -> 0.669 | AY141: 0.5101623224 | AZ141: Millones de personas | BI141: 48.97571363 | BJ141: 51.02428637 | BL141: 0.4897571363 | BM141: 0.5102428637 | BQ141: -3600641 | BR141: -353751 | BS141: -369308 | BT141: -362097 | BU141: -360175 | BV141: -329145 | BW141: -287723 | BX141: -263140 | BY141: -258270 | BZ141: -213669 | CA141: -175474 | CB141: -152109 | CC141: -120383 | CD141: -99337 | CE141: -73976 | CF141: -55172 | CG141: -37383 | CH141: -23768 | CI141: -14255 | CJ141: -5628 | CK141: -2133 | CL141: -415 | CM141: 0.4898376776 | CN141: 3750041 | CO141: 341197 | CP141: 357767 | CQ141: 352296 | CR141: 354828 | CS141: 339943 | CT141: 304310 | CU141: 284977 | CV141: 276964 | CW141: 232932 | CX141: 196067 | CY141: 172168 | CZ141: 133997 | DA141: 111128 | DB141: 81361 | DC141: 63032 | DD141: 43364 | DE141: 30196 | DF141: 18465 | DG141: 7968 | DH141: 3073 | DI141: 669 | DJ141: 0.5101623224 | DK141: Miles de personas
A142: 40 - 44 años | B142: =VLOOKUP(DatosR!F$141,E$129:AY$141,11,FALSE) -> -213.669 | C142: =VLOOKUP(DatosR!F$141,E$129:AY$141,34,FALSE) -> 232.932 | BI142: -48.98376776 | BJ142: 51.01623224 | BL142: -0.4898376776 | BM142: 0.5101623224
A143: 45 - 49 años | B143: =VLOOKUP(DatosR!F$141,E$129:AY$141,12,FALSE) -> -175.474 | C143: =VLOOKUP(DatosR!F$141,E$129:AY$141,35,FALSE) -> 196.067
A144: 50 - 54 años | B144: =VLOOKUP(DatosR!F$141,E$129:AY$141,13,FALSE) -> -152.109 | C144: =VLOOKUP(DatosR!F$141,E$129:AY$141,36,FALSE) -> 172.168
A145: 55 - 59 años | B145: =VLOOKUP(DatosR!F$141,E$129:AY$141,14,FALSE) -> -120.383 | C145: =VLOOKUP(DatosR!F$141,E$129:AY$141,37,FALSE) -> 133.997
A146: 60 - 64 años | B146: =VLOOKUP(DatosR!F$141,E$129:AY$141,15,FALSE) -> -99.337 | C146: =VLOOKUP(DatosR!F$141,E$129:AY$141,38,FALSE) -> 111.128
A147: 65 - 69 años | B147: =VLOOKUP(DatosR!F$141,E$129:AY$141,16,FALSE) -> -73.976 | C147: =VLOOKUP(DatosR!F$141,E$129:AY$141,39,FALSE) -> 81.361
A148: 70 - 74 años | B148: =VLOOKUP(DatosR!F$141,E$129:AY$141,17,FALSE) -> -55.172 | C148: =VLOOKUP(DatosR!F$141,E$129:AY$141,40,FALSE) -> 63.032
A149: 75 - 79 años | B149: =VLOOKUP(DatosR!F$141,E$129:AY$141,18,FALSE) -> -37.383 | C149: =VLOOKUP(DatosR!F$141,E$129:AY$141,41,FALSE) -> 43.364
A150: 80 - 84 años | B150: =VLOOKUP(DatosR!F$141,E$129:AY$141,19,FALSE) -> -23.768 | C150: =VLOOKUP(DatosR!F$141,E$129:AY$141,42,FALSE) -> 30.196
A151: 85 - 89 años | B151: =VLOOKUP(DatosR!F$141,E$129:AY$141,20,FALSE) -> -14.255 | C151: =VLOOKUP(DatosR!F$141,E$129:AY$141,43,FALSE) -> 18.465
A152: 90 - 94 años | B152: =VLOOKUP(DatosR!F$141,E$129:AY$141,21,FALSE) -> -5.628 | C152: =VLOOKUP(DatosR!F$141,E$129:AY$141,44,FALSE) -> 7.968
A153: 95 - 99 años | B153: =VLOOKUP(DatosR!F$141,E$129:AY$141,22,FALSE) -> -2.133 | C153: =VLOOKUP(DatosR!F$141,E$129:AY$141,45,FALSE) -> 3.073
A154: 100 años y más | B154: =VLOOKUP(DatosR!F$141,E$129:AY$141,23,FALSE) -> -0.415 | C154: =VLOOKUP(DatosR!F$141,E$129:AY$141,46,FALSE) -> 0.669
A157: TOTALES
A158: 7350682 | B158: 694948 | C158: 727075 | D158: 714393 | E158: 715003 | F158: 669088 | G158: 592033 | H158: 548117 | I158: 535234 | J158: 446601 | K158: 371541 | L158: 324277 | M158: 254380 | N158: 210465 | O158: 155337 | P158: 118204 | Q158: 80747 | R158: 53964 | S158: 32720 | T158: 13596 | U158: 5206 | V158: 1084
A159: 21206 | B159: 2280 | C159: 2378 | D159: 2303 | E159: 2198 | F159: 1929 | G159: 1625 | H159: 1600 | I159: 1425 | J159: 1085 | K159: 858 | L159: 758 | M159: 652 | N159: 647 | O159: 476 | P159: 388 | Q159: 237 | R159: 178 | S159: 110 | T159: 54 | U159: 16 | V159: 4
A160: 23241 | B160: 2173 | C160: 2266 | D160: 3161 | E160: 2886 | F160: 1870 | G160: 1565 | H160: 1488 | I160: 1612 | J160: 1414 | K160: 1145 | L160: 859 | M160: 740 | N160: 624 | O160: 475 | P160: 364 | Q160: 244 | R160: 150 | S160: 98 | T160: 27 | U160: 16 | V160: 1
A161: 21714 | B161: 2065 | C161: 2137 | D161: 2139 | E161: 2202 | F161: 1821 | G161: 1568 | H161: 1416 | I161: 1438 | J161: 1300 | K161: 1119 | L161: 1027 | M161: 827 | N161: 706 | O161: 589 | P161: 496 | Q161: 337 | R161: 239 | S161: 153 | T161: 73 | U161: 25 | V161: 2
A162: 5545 | B162: 528 | C162: 526 | D162: 521 | E162: 555 | F162: 475 | G162: 394 | H162: 359 | I162: 334 | J162: 296 | K162: 279 | L162: 284 | M162: 217 | N162: 190 | O162: 153 | P162: 143 | Q162: 118 | R162: 79 | S162: 44 | T162: 23 | U162: 9 | V162: 3
A163: 14648 | B163: 1549 | C163: 1719 | D163: 1503 | E163: 1549 | F163: 1248 | G163: 1072 | H163: 1031 | I163: 1070 | J163: 865 | K163: 718 | L163: 587 | M163: 437 | N163: 357 | O163: 261 | P163: 275 | Q163: 154 | R163: 117 | S163: 81 | T163: 20 | U163: 10 | V163: 1
A164: 57340 | B164: 5258 | C164: 5460 | D164: 5414 | E164: 5303 | F164: 4712 | G164: 4005 | H164: 4172 | I164: 4115 | J164: 3377 | K164: 2944 | L164: 2705 | M164: 2302 | N164: 2054 | O164: 1640 | P164: 1343 | Q164: 921 | R164: 662 | S164: 433 | T164: 199 | U164: 72 | V164: 12
A165: 8896 | B165: 862 | C165: 913 | D165: 936 | E165: 911 | F165: 659 | G165: 564 | H165: 579 | I165: 606 | J165: 484 | K165: 423 | L165: 371 | M165: 332 | N165: 308 | O165: 275 | P165: 222 | Q165: 185 | R165: 103 | S165: 71 | T165: 23 | U165: 12 | V165: 1
A166: 72812 | B166: 7281 | C166: 8122 | D166: 7859 | E166: 7400 | F166: 6676 | G166: 5748 | H166: 5376 | I166: 4976 | J166: 4316 | K166: 3530 | L166: 2901 | M166: 2171 | N166: 1830 | O166: 1463 | P166: 1255 | Q166: 825 | R166: 455 | S166: 283 | T166: 124 | U166: 45 | V166: 6
A167: 17545 | B167: 1853 | C167: 1864 | D167: 1815 | E167: 1804 | F167: 1519 | G167: 1335 | H167: 1178 | I167: 1237 | J167: 1041 | K167: 864 | L167: 711 | M167: 521 | N167: 439 | O167: 363 | P167: 276 | Q167: 186 | R167: 114 | S167: 82 | T167: 27 | U167: 15 | V167: 2
A168: 6655 | B168: 775 | C168: 830 | D168: 786 | E168: 757 | F168: 591 | G168: 482 | H168: 403 | I168: 393 | J168: 312 | K168: 286 | L168: 198 | M168: 188 | N168: 184 | O168: 139 | P168: 98 | Q168: 87 | R168: 63 | S168: 45 | T168: 13 | U168: 10 | V168: 5
A169: 5400 | B169: 519 | C169: 525 | D169: 514 | E169: 555 | F169: 452 | G169: 382 | H169: 355 | I169: 322 | J169: 269 | K169: 247 | L169: 218 | M169: 186 | N169: 187 | O169: 186 | P169: 172 | Q169: 122 | R169: 87 | S169: 59 | T169: 19 | U169: 13 | V169: 3
A170: 4115 | B170: 310 | C170: 334 | D170: 381 | E170: 421 | F170: 321 | G170: 262 | H170: 262 | I170: 223 | J170: 230 | K170: 238 | L170: 194 | M170: 155 | N170: 177 | O170: 164 | P170: 154 | Q170: 126 | R170: 63 | S170: 57 | T170: 16 | U170: 11 | V170: 4
A171: 57717 | B171: 5661 | C171: 6025 | D171: 6059 | E171: 5949 | F171: 5074 | G171: 4511 | H171: 4004 | I171: 4048 | J171: 3414 | K171: 2724 | L171: 2434 | M171: 1915 | N171: 1707 | O171: 1300 | P171: 1088 | Q171: 704 | R171: 461 | S171: 329 | T171: 135 | U171: 57 | V171: 7
A172: 8276 | B172: 740 | C172: 724 | D172: 802 | E172: 802 | F172: 682 | G172: 508 | H172: 496 | I172: 528 | J172: 501 | K172: 440 | L172: 382 | M172: 355 | N172: 288 | O172: 279 | P172: 242 | Q172: 181 | R172: 140 | S172: 101 | T172: 43 | U172: 16 | V172: 3
A173: 57559 | B173: 5494 | C173: 5449 | D173: 5313 | E173: 5612 | F173: 5393 | G173: 4352 | H173: 4112 | I173: 4003 | J173: 3365 | K173: 3131 | L173: 2826 | M173: 2078 | N173: 1763 | O173: 1289 | P173: 1194 | Q173: 837 | R173: 565 | S173: 378 | T173: 158 | U173: 73 | V173: 13
A174: 38291 | B174: 4253 | C174: 4166 | D174: 4057 | E174: 3952 | F174: 3318 | G174: 2902 | H174: 2744 | I174: 2505 | J174: 2083 | K174: 1648 | L174: 1468 | M174: 1307 | N174: 1071 | O174: 933 | P174: 672 | Q174: 507 | R174: 317 | S174: 219 | T174: 92 | U174: 45 | V174: 6
A175: 12664 | B175: 1188 | C175: 1201 | D175: 1302 | E175: 1280 | F175: 1049 | G175: 864 | H175: 793 | I175: 738 | J175: 671 | K175: 569 | L175: 569 | M175: 466 | N175: 500 | O175: 425 | P175: 341 | Q175: 269 | R175: 172 | S175: 136 | T175: 72 | U175: 36 | V175: 12
A176: 64269 | B176: 6366 | C176: 6533 | D176: 6362 | E176: 6223 | F176: 5508 | G176: 4658 | H176: 4493 | I176: 4603 | J176: 3793 | K176: 3118 | L176: 2938 | M176: 2316 | N176: 2131 | O176: 1660 | P176: 1352 | Q176: 876 | R176: 606 | S176: 389 | T176: 195 | U176: 71 | V176: 30
A177: 6820 | B177: 899 | C177: 959 | D177: 914 | E177: 821 | F177: 611 | G177: 458 | H177: 437 | I177: 361 | J177: 271 | K177: 262 | L177: 188 | M177: 146 | N177: 127 | O177: 113 | P177: 84 | Q177: 67 | R177: 37 | S177: 25 | T177: 15 | U177: 9 | V177: 5
A178: 10029 | B178: 1091 | C178: 1048 | D178: 1012 | E178: 1005 | F178: 816 | G178: 678 | H178: 626 | I178: 623 | J178: 507 | K178: 477 | L178: 449 | M178: 427 | N178: 361 | O178: 274 | P178: 234 | Q178: 173 | R178: 119 | S178: 58 | T178: 26 | U178: 13 | V178: 2
A179: 21475 | B179: 2048 | C179: 2087 | D179: 2136 | E179: 2124 | F179: 1819 | G179: 1566 | H179: 1454 | I179: 1389 | J179: 1266 | K179: 1117 | L179: 1039 | M179: 877 | N179: 759 | O179: 566 | P179: 456 | Q179: 340 | R179: 201 | S179: 144 | T179: 43 | U179: 23 | V179: 5
A180: 39020 | B180: 4143 | C180: 3993 | D180: 3996 | E180: 3915 | F180: 3422 | G180: 2927 | H180: 2873 | I180: 2719 | J180: 2255 | K180: 1965 | L180: 1761 | M180: 1376 | N180: 1058 | O180: 755 | P180: 618 | Q180: 403 | R180: 279 | S180: 170 | T180: 56 | U180: 30 | V180: 5
A181: 100534 | B181: 8630 | C181: 9120 | D181: 8781 | E181: 9422 | F181: 9810 | G181: 8169 | H181: 7533 | I181: 7183 | J181: 6221 | K181: 5480 | L181: 4921 | M181: 3904 | N181: 3116 | O181: 2224 | P181: 1666 | Q181: 1152 | R181: 836 | S181: 541 | T181: 257 | U181: 78 | V181: 12
A182: 26174 | B182: 2415 | C182: 2489 | D182: 2386 | E182: 2489 | F182: 2085 | G182: 1940 | H182: 1805 | I182: 1853 | J182: 1507 | K182: 1283 | L182: 1183 | M182: 1051 | N182: 965 | O182: 775 | P182: 674 | Q182: 501 | R182: 343 | S182: 253 | T182: 109 | U182: 35 | V182: 8
A183: 18091 | B183: 1631 | C183: 1730 | D183: 1879 | E183: 1934 | F183: 1651 | G183: 1150 | H183: 1189 | I183: 1236 | J183: 1084 | K183: 961 | L183: 774 | M183: 575 | N183: 551 | O183: 468 | P183: 434 | Q183: 338 | R183: 218 | S183: 127 | T183: 56 | U183: 27 | V183: 3
A184: 5933 | B184: 550 | C184: 537 | D184: 560 | E184: 599 | F184: 499 | G184: 410 | H184: 394 | I184: 402 | J184: 337 | K184: 308 | L184: 287 | M184: 237 | N184: 194 | O184: 195 | P184: 150 | Q184: 114 | R184: 76 | S184: 54 | T184: 22 | U184: 5 | V184: 2
A185: 17322 | B185: 1776 | C185: 1976 | D185: 2083 | E185: 1972 | F185: 1365 | G185: 1123 | H185: 1116 | I185: 1008 | J185: 912 | K185: 774 | L185: 612 | M185: 557 | N185: 548 | O185: 468 | P185: 421 | Q185: 257 | R185: 158 | S185: 102 | T185: 49 | U185: 20 | V185: 7
A186: 2171 | B186: 184 | C186: 185 | D186: 198 | E186: 215 | F186: 188 | G186: 123 | H186: 116 | I186: 115 | J186: 116 | K186: 102 | L186: 102 | M186: 94 | N186: 101 | O186: 85 | P186: 84 | Q186: 57 | R186: 44 | S186: 34 | T186: 18 | U186: 8 | V186: 1
A187: 17795 | B187: 1678 | C187: 1782 | D187: 1846 | E187: 1859 | F187: 1421 | G187: 1136 | H187: 1160 | I187: 1103 | J187: 1055 | K187: 871 | L187: 794 | M187: 739 | N187: 617 | O187: 515 | P187: 404 | Q187: 295 | R187: 215 | S187: 124 | T187: 49 | U187: 21 | V187: 2
A188: 48839 | B188: 4594 | C188: 4707 | D188: 4677 | E188: 4484 | F188: 4161 | G188: 3489 | H188: 3264 | I188: 3406 | J188: 2710 | K188: 2219 | L188: 2117 | M188: 1889 | N188: 1879 | O188: 1615 | P188: 1221 | Q188: 830 | R188: 530 | S188: 317 | T188: 151 | U188: 64 | V188: 8
A189: 3771 | B189: 485 | C189: 420 | D189: 453 | E189: 399 | F189: 286 | G189: 229 | H189: 212 | I189: 190 | J189: 171 | K189: 155 | L189: 139 | M189: 117 | N189: 114 | O189: 107 | P189: 112 | Q189: 67 | R189: 46 | S189: 32 | T189: 19 | U189: 13 | V189: 4
A190: 5814 | B190: 613 | C190: 665 | D190: 654 | E190: 695 | F190: 521 | G190: 324 | H190: 324 | I190: 334 | J190: 296 | K190: 263 | L190: 239 | M190: 177 | N190: 150 | O190: 155 | P190: 125 | Q190: 102 | R190: 80 | S190: 62 | T190: 18 | U190: 14 | V190: 1
A191: 21132 | B191: 2119 | C191: 2167 | D191: 2229 | E191: 2253 | F191: 1771 | G191: 1425 | H191: 1492 | I191: 1360 | J191: 1205 | K191: 1026 | L191: 895 | M191: 716 | N191: 700 | O191: 545 | P191: 509 | Q191: 306 | R191: 211 | S191: 135 | T191: 45 | U191: 16 | V191: 4
A192: 2082 | B192: 149 | C192: 146 | D192: 172 | E192: 192 | F192: 176 | G192: 142 | H192: 119 | I192: 130 | J192: 116 | K192: 116 | L192: 112 | M192: 95 | N192: 89 | O192: 80 | P192: 92 | Q192: 68 | R192: 51 | S192: 19 | T192: 10 | U192: 2 | V192: 3
A193: 51396 | B193: 5319 | C193: 5219 | D193: 5399 | E193: 5368 | F193: 4582 | G193: 3694 | H193: 3662 | I193: 3512 | J193: 2922 | K193: 2518 | L193: 2134 | M193: 1810 | N193: 1515 | O193: 1219 | P193: 923 | Q193: 713 | R193: 454 | S193: 257 | T193: 87 | U193: 21 | V193: 7
A194: 18632 | B194: 1830 | C194: 1906 | D194: 1881 | E194: 1953 | F194: 1604 | G194: 1314 | H194: 1224 | I194: 1190 | J194: 1016 | K194: 923 | L194: 850 | M194: 686 | N194: 608 | O194: 513 | P194: 357 | Q194: 309 | R194: 217 | S194: 144 | T194: 55 | U194: 28 | V194: 4
A195: 23845 | B195: 2219 | C195: 2172 | D195: 2252 | E195: 2232 | F195: 2206 | G195: 1750 | H195: 1695 | I195: 1634 | J195: 1380 | K195: 1242 | L195: 1123 | M195: 872 | N195: 729 | O195: 643 | P195: 512 | Q195: 359 | R195: 295 | S195: 199 | T195: 83 | U195: 26 | V195: 7
A196: 4323 | B196: 347 | C196: 395 | D196: 409 | E196: 410 | F196: 343 | G196: 246 | H196: 254 | I196: 266 | J196: 263 | K196: 223 | L196: 190 | M196: 163 | N196: 179 | O196: 170 | P196: 150 | Q196: 131 | R196: 72 | S196: 63 | T196: 26 | U196: 17 | V196: 2
A197: 1495189 | B197: 110713 | C197: 121226 | D197: 125327 | E197: 135268 | F197: 140839 | G197: 125423 | H197: 106122 | I197: 104539 | J197: 93025 | K197: 83140 | L197: 79502 | M197: 65410 | N197: 56510 | O197: 40949 | P197: 30856 | Q197: 21396 | R197: 14932 | S197: 8434 | T197: 3584 | U197: 1208 | V197: 231
A198: 10284 | B198: 1018 | C198: 1049 | D198: 1070 | E198: 998 | F198: 902 | G198: 717 | H198: 739 | I198: 691 | J198: 690 | K198: 501 | L198: 383 | M198: 359 | N198: 319 | O198: 239 | P198: 235 | Q198: 143 | R198: 112 | S198: 68 | T198: 28 | U198: 11 | V198: 1
A199: 6084 | B199: 496 | C199: 538 | D199: 559 | E199: 544 | F199: 436 | G199: 353 | H199: 346 | I199: 403 | J199: 344 | K199: 322 | L199: 293 | M199: 249 | N199: 245 | O199: 270 | P199: 249 | Q199: 206 | R199: 103 | S199: 89 | T199: 29 | U199: 9 | V199: 1
A200: 8781 | B200: 926 | C200: 883 | D200: 972 | E200: 955 | F200: 770 | G200: 584 | H200: 507 | I200: 458 | J200: 395 | K200: 367 | L200: 345 | M200: 275 | N200: 313 | O200: 285 | P200: 256 | Q200: 186 | R200: 136 | S200: 94 | T200: 34 | U200: 16 | V200: 3
A201: 23428 | B201: 2361 | C201: 2413 | D201: 2371 | E201: 2367 | F201: 1995 | G201: 1648 | H201: 1549 | I201: 1529 | J201: 1352 | K201: 1231 | L201: 1042 | M201: 878 | N201: 735 | O201: 616 | P201: 519 | Q201: 326 | R201: 218 | S201: 144 | T201: 66 | U201: 34 | V201: 10
A202: 41060 | B202: 4802 | C202: 4854 | D202: 4308 | E202: 3960 | F202: 3524 | G202: 3513 | H202: 3357 | I202: 3210 | J202: 2550 | K202: 1795 | L202: 1394 | M202: 1026 | N202: 863 | O202: 649 | P202: 451 | Q202: 345 | R202: 232 | S202: 123 | T202: 46 | U202: 20 | V202: 5
A203: 19005 | B203: 1862 | C203: 1894 | D203: 1918 | E203: 1995 | F203: 1519 | G203: 1332 | H203: 1277 | I203: 1233 | J203: 1064 | K203: 955 | L203: 883 | M203: 692 | N203: 649 | O203: 558 | P203: 445 | Q203: 318 | R203: 199 | S203: 117 | T203: 52 | U203: 21 | V203: 2
... 92 more rows

Sheet PneaZMG (hidden)
A1: Clave | B1: Región | C1: Clave | D1: Municipio | E1: Estudiantes | F1: Personas dedicadas a los quehaceres del hogar | G1: Pensionados o jubilados | H1: Personas con alguna limitación física o mental permanente que les impide trabajar | I1: Personas en otras actividades no económicas
C2: 14 | D2: Jalisco | E2: 0.3439922393 | F2: 0.5201343918 | G2: 0.05997679709 | H2: 0.02640446606 | I2: 0.0494921058 | K2: 1 | M2: 2
A3: 1 | B3: Norte | C3: 1 | D3: Norte | E3: 0.2822478037 | F3: 0.548591336 | G3: 0.01223871554 | H3: 0.04389578915 | I3: 0.1130263556
A4: 2 | B4: Altos Norte | C4: 2 | D4: Altos Norte | E4: 0.3008128861 | F4: 0.5901793153 | G4: 0.0261054275 | H4: 0.03508245202 | I4: 0.04781991909 | K4: 0.2270320772 | M4: 0.3008128861
A5: 3 | B5: Altos Sur | C5: 3 | D5: Altos Sur | E5: 0.2761599521 | F5: 0.5984738715 | G5: 0.02938860365 | H5: 0.04105112294 | I5: 0.05492644974 | K5: 0.6476175646 | M5: 0.5901793153
A6: 4 | B6: Ciénega | C6: 4 | D6: Ciénega | E6: 0.2840192119 | F6: 0.5661445257 | G6: 0.05165920751 | H6: 0.0331841502 | I6: 0.0649929047 | K6: 0.02164434756 | M6: 0.0261054275
A7: 5 | B7: Sureste | C7: 5 | D7: Sureste | E7: 0.2509060133 | F7: 0.5977951867 | G7: 0.04542002127 | H7: 0.04433497537 | I7: 0.0615438033 | K7: 0.05029585799 | M7: 0.03508245202
A8: 6 | B8: Sur | C8: 6 | D8: Sur | E8: 0.32276844 | F8: 0.5393268575 | G8: 0.05140942794 | H8: 0.03632571621 | I8: 0.05016955833 | K8: 0.0534101526 | M8: 0.04781991909
A9: 7 | B9: Sierra de Amula | C9: 7 | D9: Sierra de Amula | E9: 0.2710661233 | F9: 0.5462600237 | G9: 0.03302221638 | H9: 0.05458130669 | I9: 0.09507032996
A10: 9 | B10: Costa Norte | C10: 8 | D10: Costa Norte | E10: 0.3865780471 | F10: 0.4922765024 | G10: 0.04422148757 | H10: 0.02408625436 | I10: 0.05283770864
A11: 10 | B11: Costa Sur | C11: 9 | D11: Costa Sur | E11: 0.3200328677 | F11: 0.5399178307 | G11: 0.04476581758 | H11: 0.0388989318 | I11: 0.05638455218
A12: 10 | B12: Sierra Occidental | C12: 10 | D12: Sierra Occidental | E12: 0.2727603493 | F12: 0.5791558862 | G12: 0.0242965718 | H12: 0.05360608021 | I12: 0.07018111255
A13: 11 | B13: Valles | C13: 11 | D13: Valles | E13: 0.3051534144 | F13: 0.5426354228 | G13: 0.05981220157 | H13: 0.03449063673 | I13: 0.05790832451
A14: 12 | B14: Centro | C14: 12 | D14: Centro | E14: 0.3730400202 | F14: 0.4931117473 | G14: 0.07213144013 | H14: 0.0192682835 | I14: 0.04244850892
A15: 1 | B15: ZMG | D15: ZMG | E15: 0.376 | F15: 0.49 | G15: 0.074 | H15: 0.019 | I15: 0.042 | K15: =VLOOKUP(DatosAM!E141,A15:I23,1,FALSE) -> 1
A16: 2 | B16: Centro | C16: 39 | D16: Guadalajara | E16: 0.3596771876 | F16: 0.4624825713 | G16: 0.1091778524 | H16: 0.0232476723 | I16: 0.04541471638
A17: 3 | B17: Centro | C17: 44 | D17: Ixtlahuacán de los Membrillos | E17: 0.3341700898 | F17: 0.5513464172 | G17: 0.03887113951 | H17: 0.02228814849 | I17: 0.05332420508 | K17: =VLOOKUP(K$15,A$15:I$23,5,FALSE) -> 0.376
A18: 4 | B18: Centro | C18: 51 | D18: Juanacatlán | E18: 0.330899228 | F18: 0.5374504486 | G18: 0.06509493011 | H18: 0.023784686 | I18: 0.04277070728 | K18: =VLOOKUP(K$15,A$15:I$23,6,FALSE) -> 0.49
A19: 5 | B19: Centro | C19: 70 | D19: El Salto | E19: 0.3553080246 | F19: 0.5508751989 | G19: 0.04705614912 | H19: 0.01400318254 | I19: 0.03275744487 | K19: =VLOOKUP(K$15,A$15:I$23,7,FALSE) -> 0.074
A20: 6 | B20: Centro | C20: 97 | D20: Tlajomulco de Zúñiga | E20: 0.3519501923 | F20: 0.5739050061 | G20: 0.02926378389 | H20: 0.0131495191 | I20: 0.03173149868 | K20: =VLOOKUP(K$15,A$15:I$23,8,FALSE) -> 0.019
A21: 7 | B21: Centro | C21: 98 | D21: Tlaquepaque | E21: 0.3652771097 | F21: 0.5221794666 | G21: 0.05342312009 | H21: 0.01596387152 | I21: 0.04315643205 | K21: =VLOOKUP(K$15,A$15:I$23,9,FALSE) -> 0.042
A22: 8 | B22: Centro | C22: 101 | D22: Tonalá | E22: 0.3723663298 | F22: 0.5290086465 | G22: 0.03629179243 | H22: 0.01875829287 | I22: 0.0435749384
A23: 9 | B23: Centro | C23: 120 | D23: Zapopan | E23: 0.4156059868 | F23: 0.4616367292 | G23: 0.06854859607 | H23: 0.0157806362 | I23: 0.0384280517

Sheet grapobZMG (hidden)
F1: 1 | G1: 2 | H1: 3 | I1: 4 | J1: 5 | K1: 6 | L1: 7 | M1: 8 | N1: 9 | O1: 10 | P1: 11 | Q1: 12 | R1: 13 | S1: 14 | T1: 15 | U1: 16 | V1: 17 | W1: 18 | X1: 19 | Y1: 20 | Z1: 21 | AA1: 22 | AB1: 23 | AE1: 26 | AF1: 27 | AG1: 28 | AH1: 29 | AI1: 30 | AJ1: 31 | AK1: 32 | AL1: 33 | AM1: 34 | AN1: 35 | AO1: 36 | AP1: 37 | AQ1: 38 | AR1: 39 | AS1: 40 | AT1: 41 | AU1: 42 | AV1: 43 | AW1: 44 | AX1: 45 | AY1: 46
C2: =VLOOKUP(DatosAM!E$141,grapobZMG!F$3:BC$11,1,FALSE) -> 1 | H2: 1 | I2: 2 | J2: 3 | K2: 4 | L2: 5 | M2: 6 | N2: 7 | O2: 8 | P2: 9 | Q2: 10 | R2: 11 | S2: 12 | T2: 13 | U2: 14 | V2: 15 | W2: 16 | X2: 17 | Y2: 18 | Z2: 19 | AA2: 20 | AB2: 21 | AE2: 1 | AF2: 2 | AG2: 3 | AH2: 4 | AI2: 5 | AJ2: 6 | AK2: 7 | AL2: 8 | AM2: 9 | AN2: 10 | AO2: 11 | AP2: 12 | AQ2: 13 | AR2: 14 | AS2: 15 | AT2: 16 | AU2: 17 | AV2: 18 | AW2: 19 | AX2: 20 | AY2: 21
F3: 1 | H3: -21006.1 | I3: -22173.9 | J3: -21477.6 | K3: -21573.8 | L3: -20801.1 | M3: -18792.9 | N3: -16933.9 | O3: -16520 | P3: -13501 | Q3: -10936 | R3: -9456.2 | S3: -7332.2 | T3: -5853.5 | U3: -4035.6 | V3: -2811.2 | W3: -1828.5 | X3: -1149.6 | Y3: -631.9 | Z3: -238.9 | AA3: -82.3 | AB3: -15.2 | AC3: 45.6 | AD3: 0.4896445855 | AE3: 20180.6 | AF3: 21452.3 | AG3: 21011.4 | AH3: 21109 | AI3: 20916 | AJ3: 19330.7 | AK3: 18042 | AL3: 17692.2 | AM3: 14751.6 | AN3: 12322.4 | AO3: 10876.7 | AP3: 8319.4 | AQ3: 6734.8 | AR3: 4657.5 | AS3: 3413.4 | AT3: 2330.2 | AU3: 1641.2 | AV3: 957.6 | AW3: 417.3 | AX3: 149.7 | AY3: 30.4 | AZ3: 0.669 | BA3: 0.5103554145 | BB3: Miles de personas
A4: 1 | B4: 0 - 4 años | C4: =VLOOKUP(DatosAM!E$141,grapobZMG!F$3:BA$11,3,FALSE) -> -21006.1 | D4: =VLOOKUP(DatosAM!E$141,grapobZMG!F$3:BA$11,26,FALSE) -> 20180.6 | F4: 2 | G4: 39 | H4: -5771.3 | I4: -6285.9 | J4: -6422 | K4: -6940.7 | L4: -7184.1 | M4: -6361 | N4: -5204.5 | O4: -4992.1 | P4: -4359.4 | Q4: -3826.5 | R4: -3610.7 | S4: -2987.4 | T4: -2552.4 | U4: -1851.4 | V4: -1357.7 | W4: -924.2 | X4: -607.8 | Y4: -327 | Z4: -127.3 | AA4: -40.1 | AB4: -6.9 | AC4: -0.68 | AD4: 0.4798082383 | AE4: 5500.7 | AF4: 6056.5 | AG4: 6337.8 | AH4: 6831.1 | AI4: 7154.7 | AJ4: 6408.5 | AK4: 5599.6 | AL4: 5650.6 | AM4: 5111 | AN4: 4637.5 | AO4: 4482.8 | AP4: 3671.6 | AQ4: 3200.5 | AR4: 2317.3 | AS4: 1783.5 | AT4: 1253.9 | AU4: 912.3 | AV4: 531.6 | AW4: 237.6 | AX4: 82.8 | AY4: 16.6 | AZ4: 16.3 | BA4: 0.5201917617 | BB4: Miles de personas
A5: 2 | B5: 5 - 9 años | C5: =VLOOKUP(DatosAM!E$141,grapobZMG!F$3:BA$11,4,FALSE) -> -22173.9 | D5: =VLOOKUP(DatosAM!E$141,grapobZMG!F$3:BA$11,27,FALSE) -> 21452.3 | F5: 3 | G5: 44 | H5: -245.8 | I5: -251.3 | J5: -225.3 | K5: -198.7 | L5: -167.3 | M5: -169.1 | N5: -161 | O5: -154.4 | P5: -124.5 | Q5: -88.6 | R5: -69.1 | S5: -52.1 | T5: -41 | U5: -30.9 | V5: -23.5 | W5: -17.9 | X5: -11.6 | Y5: -6.4 | Z5: -2.5 | AA5: -0.7 | AB5: -0.2 | AC5: -0.02 | AD5: 0.4972966391 | AE5: 234.8 | AF5: 234.6 | AG5: 205.9 | AH5: 197.6 | AI5: 185.4 | AJ5: 182.5 | AK5: 175 | AL5: 166.8 | AM5: 130.7 | AN5: 91.1 | AO5: 70.5 | AP5: 50.5 | AQ5: 45.3 | AR5: 34 | AS5: 21.6 | AT5: 16.6 | AU5: 11.6 | AV5: 5.9 | AW5: 2.1 | AX5: 1.3 | AY5: 0.3 | AZ5: 0.3 | BA5: 0.5027033609 | BB5: Miles de personas
A6: 3 | B6: 10 - 14 años | C6: =VLOOKUP(DatosAM!E$141,grapobZMG!F$3:BA$11,5,FALSE) -> -21477.6 | D6: =VLOOKUP(DatosAM!E$141,grapobZMG!F$3:BA$11,28,FALSE) -> 21011.4 | F6: 4 | G6: 51 | H6: -685 | I6: -737 | J6: -656 | K6: -707 | L6: -624 | M6: -480 | N6: -487 | O6: -459 | P6: -368 | Q6: -309 | R6: -268 | S6: -219 | T6: -192 | U6: -170 | V6: -130 | W6: -65 | X6: -56 | Y6: -34 | Z6: -19 | AA6: -10 | AB6: 0 | AC6: 0 | AD6: 0.5049931911 | AE6: 623 | AF6: 671 | AG6: 696 | AH6: 632 | AI6: 608 | AJ6: 514 | AK6: 523 | AL6: 469 | AM6: 386 | AN6: 323 | AO6: 273 | AP6: 249 | AQ6: 183 | AR6: 130 | AS6: 111 | AT6: 68 | AU6: 36 | AV6: 29 | AW6: 15 | AX6: 3 | AY6: 1 | AZ6: 1 | BA6: 0.4950068089 | BB6: Cientos de personas
A7: 4 | B7: 15 - 19 años | C7: =VLOOKUP(DatosAM!E$141,grapobZMG!F$3:BA$11,6,FALSE) -> -21573.8 | D7: =VLOOKUP(DatosAM!E$141,grapobZMG!F$3:BA$11,29,FALSE) -> 21109 | F7: 5 | G7: 70 | H7: -801.8 | I7: -830.1 | J7: -800.5 | K7: -727.1 | L7: -616 | M7: -543.9 | N7: -532.9 | O7: -522.5 | P7: -412.3 | Q7: -314 | R7: -250.9 | S7: -176.9 | T7: -130.2 | U7: -94.8 | V7: -66.2 | W7: -36.7 | X7: -23 | Y7: -12.8 | Z7: -5.5 | AA7: -1.9 | AB7: -0.6 | AC7: -0.06 | AD7: 0.4992259054 | AE7: 793.4 | AF7: 823.4 | AG7: 760.8 | AH7: 719.5 | AI7: 626 | AJ7: 572.9 | AK7: 568.4 | AL7: 535.9 | AM7: 432.1 | AN7: 314.6 | AO7: 245.5 | AP7: 166.5 | AQ7: 129.8 | AR7: 87.2 | AS7: 64.7 | AT7: 36.6 | AU7: 22.7 | AV7: 14 | AW7: 5.5 | AX7: 2 | AY7: 0.5 | AZ7: 0.5 | BA7: 0.5007740946 | BB7: Miles de personas
A8: 5 | B8: 20 - 24 años | C8: =VLOOKUP(DatosAM!E$141,grapobZMG!F$3:BA$11,7,FALSE) -> -20801.1 | D8: =VLOOKUP(DatosAM!E$141,grapobZMG!F$3:BA$11,30,FALSE) -> 20916 | F8: 6 | G8: 97 | H8: -2714.7 | I8: -2743.9 | J8: -2234.5 | K8: -1806.6 | L8: -1555.1 | M8: -1838.1 | N8: -2077.3 | O8: -1873 | P8: -1222.1 | Q8: -812.9 | R8: -572.7 | S8: -413.8 | T8: -303.3 | U8: -198.9 | V8: -141.8 | W8: -86.9 | X8: -51.6 | Y8: -30.7 | Z8: -10.7 | AA8: -6 | AB8: -1.2 | AC8: -0.12 | AD8: 0.4967476826 | AE8: 2603.6 | AF8: 2629.9 | AG8: 2181.9 | AH8: 1793.2 | AI8: 1739.9 | AJ8: 2086.6 | AK8: 2182.9 | AL8: 1824.5 | AM8: 1195.7 | AN8: 807.6 | AO8: 597.5 | AP8: 432.5 | AQ8: 312.1 | AR8: 214.4 | AS8: 148 | AT8: 92.9 | AU8: 61.9 | AV8: 37.9 | AW8: 16.2 | AX8: 6.4 | AY8: 1.2 | AZ8: 1.2 | BA8: 0.5032523174 | BB8: Miles de personas
A9: 6 | B9: 25 - 29 años | C9: =VLOOKUP(DatosAM!E$141,grapobZMG!F$3:BA$11,8,FALSE) -> -18792.9 | D9: =VLOOKUP(DatosAM!E$141,grapobZMG!F$3:BA$11,31,FALSE) -> 19330.7 | F9: 7 | G9: 98 | H9: -3204.3 | I9: -3314.9 | J9: -3185.7 | K9: -3096.8 | L9: -2759.3 | M9: -2427.3 | N9: -2353 | O9: -2386.4 | P9: -1897.5 | Q9: -1441.1 | R9: -1195.8 | S9: -892.9 | T9: -673.7 | U9: -460.8 | V9: -300.4 | W9: -194.5 | X9: -112.1 | Y9: -61 | Z9: -22.4 | AA9: -9.1 | AB9: -1.4 | AC9: -0.14 | AD9: 0.4931706884 | AE9: 3066.7 | AF9: 3235.9 | AG9: 3151.3 | AH9: 3006.9 | AI9: 2765.7 | AJ9: 2582.3 | AK9: 2570.7 | AL9: 2539.9 | AM9: 1998.5 | AN9: 1550 | AO9: 1313.4 | AP9: 949.4 | AQ9: 737.4 | AR9: 493.2 | AS9: 338.1 | AT9: 226.3 | AU9: 160.3 | AV9: 85.5 | AW9: 34.8 | AX9: 11.8 | AY9: 2.9 | AZ9: 2.9 | BA9: 0.5068293116 | BB9: Miles de personas
A10: 7 | B10: 30 - 34 años | C10: =VLOOKUP(DatosAM!E$141,grapobZMG!F$3:BA$11,9,FALSE) -> -16933.9 | D10: =VLOOKUP(DatosAM!E$141,grapobZMG!F$3:BA$11,32,FALSE) -> 18042 | F10: 8 | G10: 101 | H10: -2567 | I10: -2704.9 | J10: -2567.3 | K10: -2470.1 | L10: -2311.7 | M10: -2173.1 | N10: -1986.4 | O10: -1949.6 | P10: -1583.9 | Q10: -1236.8 | R10: -940.2 | S10: -652.8 | T10: -449 | U10: -289.2 | V10: -191.8 | W10: -118.8 | X10: -70.7 | Y10: -40.2 | Z10: -14.2 | AA10: -5.2 | AB10: -1.2 | AC10: -0.12 | AD10: 0.5081399405 | AE10: 2484.5 | AF10: 2622.6 | AG10: 2525.6 | AH10: 2391 | AI10: 2199.4 | AJ10: 2000.8 | AK10: 1870.4 | AL10: 1868.3 | AM10: 1528 | AN10: 1234.5 | AO10: 941.7 | AP10: 633.5 | AQ10: 439.9 | AR10: 295.5 | AS10: 210.5 | AT10: 136.3 | AU10: 82.2 | AV10: 51.9 | AW10: 19.6 | AX10: 7.5 | AY10: 1.1 | AZ10: 1.1 | BA10: 0.4918600595 | BB10: Miles de personas
A11: 8 | B11: 35 - 39 años | C11: =VLOOKUP(DatosAM!E$141,grapobZMG!F$3:BA$11,10,FALSE) -> -16520 | D11: =VLOOKUP(DatosAM!E$141,grapobZMG!F$3:BA$11,33,FALSE) -> 17692.2 | F11: 9 | G11: 120 | H11: -5632.7 | I11: -5969.2 | J11: -5976.7 | K11: -6263.1 | L11: -6145.2 | M11: -5232.4 | N11: -4570.1 | O11: -4596.1 | P11: -3864.5 | Q11: -3185.2 | R11: -2790 | S11: -2134.4 | T11: -1684.7 | U11: -1092.6 | V11: -716.8 | W11: -443 | X11: -267.2 | Y11: -150.4 | Z11: -54.4 | AA11: -18.3 | AB11: -3.7 | AC11: -0.36 | AD11: 0.4887670894 | AE11: 5434.6 | AF11: 5782.3 | AG11: 5778.5 | AH11: 6106.5 | AI11: 6184.1 | AJ11: 5445.7 | AK11: 5022.7 | AL11: 5059.3 | AM11: 4317 | AN11: 3654.8 | AO11: 3198 | AP11: 2390.5 | AQ11: 1851.5 | AR11: 1202.9 | AS11: 835.9 | AT11: 560.8 | AU11: 386.6 | AV11: 227.9 | AW11: 100 | AX11: 37.6 | AY11: 7.7 | AZ11: 7.6 | BA11: 0.5112329106 | BB11: Miles de personas
A12: 9 | B12: 40 - 44 años | C12: =VLOOKUP(DatosAM!E$141,grapobZMG!F$3:BA$11,11,FALSE) -> -13501 | D12: =VLOOKUP(DatosAM!E$141,grapobZMG!F$3:BA$11,34,FALSE) -> 14751.6
A13: 10 | B13: 45 - 49 años | C13: =VLOOKUP(DatosAM!E$141,grapobZMG!F$3:BA$11,12,FALSE) -> -10936 | D13: =VLOOKUP(DatosAM!E$141,grapobZMG!F$3:BA$11,35,FALSE) -> 12322.4 | AC13: =+AC3*10 -> 456 | AE13: =+AE3*10 -> 201806 | AF13: 214523 | AG13: 210114 | AH13: 211090 | AI13: 209160 | AJ13: 193307 | AK13: 180420 | AL13: 176922 | AM13: 147516 | AN13: 123224 | AO13: 108767 | AP13: 83194 | AQ13: 67348 | AR13: 46575 | AS13: 34134 | AT13: 23302 | AU13: 16412 | AV13: 9576 | AW13: 4173 | AX13: 1497 | AY13: 304 | AZ13: 6.69
A14: 11 | B14: 50 - 54 años | C14: =VLOOKUP(DatosAM!E$141,grapobZMG!F$3:BA$11,13,FALSE) -> -9456.2 | D14: =VLOOKUP(DatosAM!E$141,grapobZMG!F$3:BA$11,36,FALSE) -> 10876.7
A15: 12 | B15: 55 - 59 años | C15: =VLOOKUP(DatosAM!E$141,grapobZMG!F$3:BA$11,14,FALSE) -> -7332.2 | D15: =VLOOKUP(DatosAM!E$141,grapobZMG!F$3:BA$11,37,FALSE) -> 8319.4
A16: 13 | B16: 60 - 64 años | C16: =VLOOKUP(DatosAM!E$141,grapobZMG!F$3:BA$11,15,FALSE) -> -5853.5 | D16: =VLOOKUP(DatosAM!E$141,grapobZMG!F$3:BA$11,38,FALSE) -> 6734.8 | I16: 1 | J16: 2 | K16: 3 | L16: 4 | M16: 5 | N16: 6 | O16: 7 | P16: 8 | Q16: 9 | R16: 10 | S16: 11 | T16: 12 | U16: 13 | V16: 14 | W16: 15 | X16: 16 | Y16: 17 | Z16: 18 | AA16: 19 | AB16: 20 | AC16: 21 | AF16: 1 | AG16: 2 | AH16: 3 | AI16: 4 | AJ16: 5 | AK16: 6 | AL16: 7 | AM16: 8 | AN16: 9 | AO16: 10 | AP16: 11 | AQ16: 12 | AR16: 13 | AS16: 14 | AT16: 15 | AU16: 16 | AV16: 17 | AW16: 18 | AX16: 19 | AY16: 20 | AZ16: 21
A17: 14 | B17: 65 - 69 años | C17: =VLOOKUP(DatosAM!E$141,grapobZMG!F$3:BA$11,16,FALSE) -> -4035.6 | D17: =VLOOKUP(DatosAM!E$141,grapobZMG!F$3:BA$11,39,FALSE) -> 4657.5 | F17: 1 | I17: -210061 | J17: -221739 | K17: -214776 | L17: -215738 | M17: -208011 | N17: -187929 | O17: -169339 | P17: -165200 | Q17: -135010 | R17: -109360 | S17: -94562 | T17: -73322 | U17: -58535 | V17: -40356 | W17: -28112 | X17: -18285 | Y17: -11496 | Z17: -6319 | AA17: -2389 | AB17: -823 | AC17: -152 | AF17: =+SUM(AF18:AF25) -> 201806 | AG17: =+SUM(AG18:AG25) -> 214523 | AH17: 210114 | AI17: 211090 | AJ17: 209160 | AK17: 193307 | AL17: 180420 | AM17: 176922 | AN17: 147516 | AO17: 123224 | AP17: 108767 | AQ17: 83194 | AR17: 67348 | AS17: 46575 | AT17: 34134 | AU17: 23302 | AV17: 16412 | AW17: 9576 | AX17: 4173 | AY17: 1497 | AZ17: 304
A18: 15 | B18: 70 - 74 años | C18: =VLOOKUP(DatosAM!E$141,grapobZMG!F$3:BA$11,17,FALSE) -> -2811.2 | D18: =VLOOKUP(DatosAM!E$141,grapobZMG!F$3:BA$11,40,FALSE) -> 3413.4 | F18: 2 | G18: 39 | I18: -57713 | J18: -62859 | K18: -64220 | L18: -69407 | M18: -71841 | N18: -63610 | O18: -52045 | P18: -49921 | Q18: -43594 | R18: -38265 | S18: -36107 | T18: -29874 | U18: -25524 | V18: -18514 | W18: -13577 | X18: -9242 | Y18: -6078 | Z18: -3270 | AA18: -1273 | AB18: -401 | AC18: -69 | AF18: 55007 | AG18: 60565 | AH18: 63378 | AI18: 68311 | AJ18: 71547 | AK18: 64085 | AL18: 55996 | AM18: 56506 | AN18: 51110 | AO18: 46375 | AP18: 44828 | AQ18: 36716 | AR18: 32005 | AS18: 23173 | AT18: 17835 | AU18: 12539 | AV18: 9123 | AW18: 5316 | AX18: 2376 | AY18: 828 | AZ18: 166
A19: 16 | B19: 75 - 79 años | C19: =VLOOKUP(DatosAM!E$141,grapobZMG!F$3:BA$11,18,FALSE) -> -1828.5 | D19: =VLOOKUP(DatosAM!E$141,grapobZMG!F$3:BA$11,41,FALSE) -> 2330.2 | F19: 3 | G19: 44 | I19: -2458 | J19: -2513 | K19: -2253 | L19: -1987 | M19: -1673 | N19: -1691 | O19: -1610 | P19: -1544 | Q19: -1245 | R19: -886 | S19: -691 | T19: -521 | U19: -410 | V19: -309 | W19: -235 | X19: -179 | Y19: -116 | Z19: -64 | AA19: -25 | AB19: -7 | AC19: -2 | AF19: 2348 | AG19: 2346 | AH19: 2059 | AI19: 1976 | AJ19: 1854 | AK19: 1825 | AL19: 1750 | AM19: 1668 | AN19: 1307 | AO19: 911 | AP19: 705 | AQ19: 505 | AR19: 453 | AS19: 340 | AT19: 216 | AU19: 166 | AV19: 116 | AW19: 59 | AX19: 21 | AY19: 13 | AZ19: 3
A20: 17 | B20: 80 - 84 años | C20: =VLOOKUP(DatosAM!E$141,grapobZMG!F$3:BA$11,19,FALSE) -> -1149.6 | D20: =VLOOKUP(DatosAM!E$141,grapobZMG!F$3:BA$11,42,FALSE) -> 1641.2 | F20: 4 | G20: 51 | I20: -685 | J20: -737 | K20: -656 | L20: -707 | M20: -624 | N20: -480 | O20: -487 | P20: -459 | Q20: -368 | R20: -309 | S20: -268 | T20: -219 | U20: -192 | V20: -170 | W20: -130 | X20: -65 | Y20: -56 | Z20: -34 | AA20: -19 | AB20: -10 | AC20: 0 | AF20: 623 | AG20: 671 | AH20: 696 | AI20: 632 | AJ20: 608 | AK20: 514 | AL20: 523 | AM20: 469 | AN20: 386 | AO20: 323 | AP20: 273 | AQ20: 249 | AR20: 183 | AS20: 130 | AT20: 111 | AU20: 68 | AV20: 36 | AW20: 29 | AX20: 15 | AY20: 3 | AZ20: 1
A21: 18 | B21: 85 - 89 años | C21: =VLOOKUP(DatosAM!E$141,grapobZMG!F$3:BA$11,20,FALSE) -> -631.9 | D21: =VLOOKUP(DatosAM!E$141,grapobZMG!F$3:BA$11,43,FALSE) -> 957.6 | F21: 5 | G21: 70 | I21: -8018 | J21: -8301 | K21: -8005 | L21: -7271 | M21: -6160 | N21: -5439 | O21: -5329 | P21: -5225 | Q21: -4123 | R21: -3140 | S21: -2509 | T21: -1769 | U21: -1302 | V21: -948 | W21: -662 | X21: -367 | Y21: -230 | Z21: -128 | AA21: -55 | AB21: -19 | AC21: -6 | AF21: 7934 | AG21: 8234 | AH21: 7608 | AI21: 7195 | AJ21: 6260 | AK21: 5729 | AL21: 5684 | AM21: 5359 | AN21: 4321 | AO21: 3146 | AP21: 2455 | AQ21: 1665 | AR21: 1298 | AS21: 872 | AT21: 647 | AU21: 366 | AV21: 227 | AW21: 140 | AX21: 55 | AY21: 20 | AZ21: 5
A22: 19 | B22: 90 - 94 años | C22: =VLOOKUP(DatosAM!E$141,grapobZMG!F$3:BA$11,21,FALSE) -> -238.9 | D22: =VLOOKUP(DatosAM!E$141,grapobZMG!F$3:BA$11,44,FALSE) -> 417.3 | F22: 6 | G22: 97 | I22: -27147 | J22: -27439 | K22: -22345 | L22: -18066 | M22: -15551 | N22: -18381 | O22: -20773 | P22: -18730 | Q22: -12221 | R22: -8129 | S22: -5727 | T22: -4138 | U22: -3033 | V22: -1989 | W22: -1418 | X22: -869 | Y22: -516 | Z22: -307 | AA22: -107 | AB22: -60 | AC22: -12 | AF22: 26036 | AG22: 26299 | AH22: 21819 | AI22: 17932 | AJ22: 17399 | AK22: 20866 | AL22: 21829 | AM22: 18245 | AN22: 11957 | AO22: 8076 | AP22: 5975 | AQ22: 4325 | AR22: 3121 | AS22: 2144 | AT22: 1480 | AU22: 929 | AV22: 619 | AW22: 379 | AX22: 162 | AY22: 64 | AZ22: 12
A23: 20 | B23: 95 - 99 años | C23: =VLOOKUP(DatosAM!E$141,grapobZMG!F$3:BA$11,22,FALSE) -> -82.3 | D23: =VLOOKUP(DatosAM!E$141,grapobZMG!F$3:BA$11,45,FALSE) -> 149.7 | F23: 7 | G23: 98 | I23: -32043 | J23: -33149 | K23: -31857 | L23: -30968 | M23: -27593 | N23: -24273 | O23: -23530 | P23: -23864 | Q23: -18975 | R23: -14411 | S23: -11958 | T23: -8929 | U23: -6737 | V23: -4608 | W23: -3004 | X23: -1945 | Y23: -1121 | Z23: -610 | AA23: -224 | AB23: -91 | AC23: -14 | AF23: 30667 | AG23: 32359 | AH23: 31513 | AI23: 30069 | AJ23: 27657 | AK23: 25823 | AL23: 25707 | AM23: 25399 | AN23: 19985 | AO23: 15500 | AP23: 13134 | AQ23: 9494 | AR23: 7374 | AS23: 4932 | AT23: 3381 | AU23: 2263 | AV23: 1603 | AW23: 855 | AX23: 348 | AY23: 118 | AZ23: 29
A24: 21 | B24: 100 años y más | C24: =VLOOKUP(DatosAM!E$141,grapobZMG!F$3:BA$11,23,FALSE) -> -15.2 | D24: =VLOOKUP(DatosAM!E$141,grapobZMG!F$3:BA$11,46,FALSE) -> 30.4 | F24: 8 | G24: 101 | I24: -25670 | J24: -27049 | K24: -25673 | L24: -24701 | M24: -23117 | N24: -21731 | O24: -19864 | P24: -19496 | Q24: -15839 | R24: -12368 | S24: -9402 | T24: -6528 | U24: -4490 | V24: -2892 | W24: -1918 | X24: -1188 | Y24: -707 | Z24: -402 | AA24: -142 | AB24: -52 | AC24: -12 | AF24: 24845 | AG24: 26226 | AH24: 25256 | AI24: 23910 | AJ24: 21994 | AK24: 20008 | AL24: 18704 | AM24: 18683 | AN24: 15280 | AO24: 12345 | AP24: 9417 | AQ24: 6335 | AR24: 4399 | AS24: 2955 | AT24: 2105 | AU24: 1363 | AV24: 822 | AW24: 519 | AX24: 196 | AY24: 75 | AZ24: 11
F25: 9 | G25: 120 | I25: -56327 | J25: -59692 | K25: -59767 | L25: -62631 | M25: -61452 | N25: -52324 | O25: -45701 | P25: -45961 | Q25: -38645 | R25: -31852 | S25: -27900 | T25: -21344 | U25: -16847 | V25: -10926 | W25: -7168 | X25: -4430 | Y25: -2672 | Z25: -1504 | AA25: -544 | AB25: -183 | AC25: -37 | AF25: 54346 | AG25: 57823 | AH25: 57785 | AI25: 61065 | AJ25: 61841 | AK25: 54457 | AL25: 50227 | AM25: 50593 | AN25: 43170 | AO25: 36548 | AP25: 31980 | AQ25: 23905 | AR25: 18515 | AS25: 12029 | AT25: 8359 | AU25: 5608 | AV25: 3866 | AW25: 2279 | AX25: 1000 | AY25: 376 | AZ25: 77
A27: 48.96445855 | I27: =+I17*-1 -> 210061 | J27: =+J17*-1 -> 221739 | K27: 214776 | L27: 215738 | M27: 208011 | N27: 187929 | O27: 169339 | P27: 165200 | Q27: 135010 | R27: 109360 | S27: 94562 | T27: 73322 | U27: 58535 | V27: 40356 | W27: 28112 | X27: 18285 | Y27: 11496 | Z27: 6319 | AA27: 2389 | AB27: 823 | AC27: 152 | AD27: =SUM(I27:AC27)/'Estructura de poblacion'!F4*1000 -> 1452.33412
A28: 51.03554145 | B28: AMG | F28: 39 | G28: Guadalajara | I28: 57713 | J28: =+J18*-1 -> 62859 | K28: 64220 | L28: 69407 | M28: 71841 | N28: 63610 | O28: 52045 | P28: 49921 | Q28: 43594 | R28: 38265 | S28: 36107 | T28: 29874 | U28: 25524 | V28: 18514 | W28: 13577 | X28: 9242 | Y28: 6078 | Z28: 3270 | AA28: 1273 | AB28: 401 | AC28: 69
F29: 44 | G29: Ixtlahuacán de los Membrillos | I29: 2458 | J29: 2513 | K29: 2253 | L29: 1987 | M29: 1673 | N29: 1691 | O29: 1610 | P29: 1544 | Q29: 1245 | R29: 886 | S29: 691 | T29: 521 | U29: 410 | V29: 309 | W29: 235 | X29: 179 | Y29: 116 | Z29: 64 | AA29: 25 | AB29: 7 | AC29: 2
A30: 47.98082383 | F30: 51 | G30: Juanacatlán | I30: 685 | J30: 737 | K30: 656 | L30: 707 | M30: 624 | N30: 480 | O30: 487 | P30: 459 | Q30: 368 | R30: 309 | S30: 268 | T30: 219 | U30: 192 | V30: 170 | W30: 130 | X30: 65 | Y30: 56 | Z30: 34 | AA30: 19 | AB30: 10 | AC30: 0
A31: 52.01917617 | B31: GDL | F31: 70 | G31: El Salto | I31: 8018 | J31: 8301 | K31: 8005 | L31: 7271 | M31: 6160 | N31: 5439 | O31: 5329 | P31: 5225 | Q31: 4123 | R31: 3140 | S31: 2509 | T31: 1769 | U31: 1302 | V31: 948 | W31: 662 | X31: 367 | Y31: 230 | Z31: 128 | AA31: 55 | AB31: 19 | AC31: 6
F32: 97 | G32: Tlajomulco de Zúñiga | I32: 27147 | J32: 27439 | K32: 22345 | L32: 18066 | M32: 15551 | N32: 18381 | O32: 20773 | P32: 18730 | Q32: 12221 | R32: 8129 | S32: 5727 | T32: 4138 | U32: 3033 | V32: 1989 | W32: 1418 | X32: 869 | Y32: 516 | Z32: 307 | AA32: 107 | AB32: 60 | AC32: 12
A33: 49.72966391 | F33: 98 | G33: Tlaquepaque | I33: 32043 | J33: 33149 | K33: 31857 | L33: 30968 | M33: 27593 | N33: 24273 | O33: 23530 | P33: 23864 | Q33: 18975 | R33: 14411 | S33: 11958 | T33: 8929 | U33: 6737 | V33: 4608 | W33: 3004 | X33: 1945 | Y33: 1121 | Z33: 610 | AA33: 224 | AB33: 91 | AC33: 14
A34: 50.27033609 | B34: IXTLA | F34: 101 | G34: Tonalá | I34: 25670 | J34: 27049 | K34: 25673 | L34: 24701 | M34: 23117 | N34: 21731 | O34: 19864 | P34: 19496 | Q34: 15839 | R34: 12368 | S34: 9402 | T34: 6528 | U34: 4490 | V34: 2892 | W34: 1918 | X34: 1188 | Y34: 707 | Z34: 402 | AA34: 142 | AB34: 52 | AC34: 12
F35: 120 | G35: Zapopan | I35: 56327 | J35: 59692 | K35: 59767 | L35: 62631 | M35: 61452 | N35: 52324 | O35: 45701 | P35: 45961 | Q35: 38645 | R35: 31852 | S35: 27900 | T35: 21344 | U35: 16847 | V35: 10926 | W35: 7168 | X35: 4430 | Y35: 2672 | Z35: 1504 | AA35: 544 | AB35: 183 | AC35: 37
A36: 50.49931911
A37: 49.50068089 | B37: JUANA
A39: 49.92259054
A40: 50.07740946 | B40: SALT | H40: =+H3/10 -> -2100.61 | I40: =+I3/10 -> -2217.39 | J40: -2147.76 | K40: -2157.38 | L40: -2080.11 | M40: -1879.29 | N40: -1693.39 | O40: -1652 | P40: -1350.1 | Q40: -1093.6 | R40: -945.62 | S40: -733.22 | T40: -585.35 | U40: -403.56 | V40: -281.12 | W40: -182.85 | X40: -114.96 | Y40: -63.19 | Z40: -23.89 | AA40: -8.23 | AB40: -1.52 | AC40: 4.56 | AD40: 0.04896445855 | AE40: 2018.06 | AF40: 2145.23 | AG40: 2101.14 | AH40: 2110.9 | AI40: 2091.6 | AJ40: 1933.07 | AK40: 1804.2 | AL40: 1769.22 | AM40: 1475.16 | AN40: 1232.24 | AO40: 1087.67 | AP40: 831.94 | AQ40: 673.48 | AR40: 465.75 | AS40: 341.34 | AT40: 233.02 | AU40: 164.12 | AV40: 95.76 | AW40: 41.73 | AX40: 14.97 | AY40: 3.04
H41: -577.13 | I41: =+I4/10 -> -628.59 | J41: -642.2 | K41: -694.07 | L41: -718.41 | M41: -636.1 | N41: -520.45 | O41: -499.21 | P41: -435.94 | Q41: -382.65 | R41: -361.07 | S41: -298.74 | T41: -255.24 | U41: -185.14 | V41: -135.77 | W41: -92.42 | X41: -60.78 | Y41: -32.7 | Z41: -12.73 | AA41: -4.01 | AB41: -0.69 | AC41: -0.068 | AD41: 0.04798082383 | AE41: 550.07 | AF41: 605.65 | AG41: 633.78 | AH41: 683.11 | AI41: 715.47 | AJ41: 640.85 | AK41: 559.96 | AL41: 565.06 | AM41: 511.1 | AN41: 463.75 | AO41: 448.28 | AP41: 367.16 | AQ41: 320.05 | AR41: 231.73 | AS41: 178.35 | AT41: 125.39 | AU41: 91.23 | AV41: 53.16 | AW41: 23.76 | AX41: 8.28 | AY41: 1.66
A42: 49.67476826 | H42: -24.58 | I42: -25.13 | J42: -22.53 | K42: -19.87 | L42: -16.73 | M42: -16.91 | N42: -16.1 | O42: -15.44 | P42: -12.45 | Q42: -8.86 | R42: -6.91 | S42: -5.21 | T42: -4.1 | U42: -3.09 | V42: -2.35 | W42: -1.79 | X42: -1.16 | Y42: -0.64 | Z42: -0.25 | AA42: -0.07 | AB42: -0.02 | AC42: -0.002 | AD42: 0.04972966391 | AE42: 23.48 | AF42: 23.46 | AG42: 20.59 | AH42: 19.76 | AI42: 18.54 | AJ42: 18.25 | AK42: 17.5 | AL42: 16.68 | AM42: 13.07 | AN42: 9.11 | AO42: 7.05 | AP42: 5.05 | AQ42: 4.53 | AR42: 3.4 | AS42: 2.16 | AT42: 1.66 | AU42: 1.16 | AV42: 0.59 | AW42: 0.21 | AX42: 0.13 | AY42: 0.03
A43: 50.32523174 | B43: TLAJO | H43: -68.5 | I43: -73.7 | J43: -65.6 | K43: -70.7 | L43: -62.4 | M43: -48 | N43: -48.7 | O43: -45.9 | P43: -36.8 | Q43: -30.9 | R43: -26.8 | S43: -21.9 | T43: -19.2 | U43: -17 | V43: -13 | W43: -6.5 | X43: -5.6 | Y43: -3.4 | Z43: -1.9 | AA43: -1 | AB43: 0 | AC43: 0 | AD43: 0.05049931911 | AE43: 62.3 | AF43: 67.1 | AG43: 69.6 | AH43: 63.2 | AI43: 60.8 | AJ43: 51.4 | AK43: 52.3 | AL43: 46.9 | AM43: 38.6 | AN43: 32.3 | AO43: 27.3 | AP43: 24.9 | AQ43: 18.3 | AR43: 13 | AS43: 11.1 | AT43: 6.8 | AU43: 3.6 | AV43: 2.9 | AW43: 1.5 | AX43: 0.3 | AY43: 0.1
H44: -80.18 | I44: -83.01 | J44: -80.05 | K44: -72.71 | L44: -61.6 | M44: -54.39 | N44: -53.29 | O44: -52.25 | P44: -41.23 | Q44: -31.4 | R44: -25.09 | S44: -17.69 | T44: -13.02 | U44: -9.48 | V44: -6.62 | W44: -3.67 | X44: -2.3 | Y44: -1.28 | Z44: -0.55 | AA44: -0.19 | AB44: -0.06 | AC44: -0.006 | AD44: 0.04992259054 | AE44: 79.34 | AF44: 82.34 | AG44: 76.08 | AH44: 71.95 | AI44: 62.6 | AJ44: 57.29 | AK44: 56.84 | AL44: 53.59 | AM44: 43.21 | AN44: 31.46 | AO44: 24.55 | AP44: 16.65 | AQ44: 12.98 | AR44: 8.72 | AS44: 6.47 | AT44: 3.66 | AU44: 2.27 | AV44: 1.4 | AW44: 0.55 | AX44: 0.2 | AY44: 0.05
A45: 49.31706884 | H45: -271.47 | I45: -274.39 | J45: -223.45 | K45: -180.66 | L45: -155.51 | M45: -183.81 | N45: -207.73 | O45: -187.3 | P45: -122.21 | Q45: -81.29 | R45: -57.27 | S45: -41.38 | T45: -30.33 | U45: -19.89 | V45: -14.18 | W45: -8.69 | X45: -5.16 | Y45: -3.07 | Z45: -1.07 | AA45: -0.6 | AB45: -0.12 | AC45: -0.012 | AD45: 0.04967476826 | AE45: 260.36 | AF45: 262.99 | AG45: 218.19 | AH45: 179.32 | AI45: 173.99 | AJ45: 208.66 | AK45: 218.29 | AL45: 182.45 | AM45: 119.57 | AN45: 80.76 | AO45: 59.75 | AP45: 43.25 | AQ45: 31.21 | AR45: 21.44 | AS45: 14.8 | AT45: 9.29 | AU45: 6.19 | AV45: 3.79 | AW45: 1.62 | AX45: 0.64 | AY45: 0.12
A46: 50.68293116 | B46: TLAQ | H46: -320.43 | I46: -331.49 | J46: -318.57 | K46: -309.68 | L46: -275.93 | M46: -242.73 | N46: -235.3 | O46: -238.64 | P46: -189.75 | Q46: -144.11 | R46: -119.58 | S46: -89.29 | T46: -67.37 | U46: =+U9/10 -> -46.08 | V46: -30.04 | W46: -19.45 | X46: -11.21 | Y46: -6.1 | Z46: -2.24 | AA46: -0.91 | AB46: -0.14 | AC46: -0.014 | AD46: 0.04931706884 | AE46: 306.67 | AF46: 323.59 | AG46: 315.13 | AH46: 300.69 | AI46: 276.57 | AJ46: 258.23 | AK46: 257.07 | AL46: 253.99 | AM46: 199.85 | AN46: 155 | AO46: 131.34 | AP46: 94.94 | AQ46: 73.74 | AR46: 49.32 | AS46: 33.81 | AT46: 22.63 | AU46: 16.03 | AV46: 8.55 | AW46: 3.48 | AX46: 1.18 | AY46: 0.29
H47: -256.7 | I47: -270.49 | J47: -256.73 | K47: -247.01 | L47: -231.17 | M47: -217.31 | N47: -198.64 | O47: -194.96 | P47: -158.39 | Q47: -123.68 | R47: -94.02 | S47: -65.28 | T47: -44.9 | U47: -28.92 | V47: -19.18 | W47: -11.88 | X47: -7.07 | Y47: -4.02 | Z47: -1.42 | AA47: -0.52 | AB47: -0.12 | AC47: -0.012 | AD47: 0.05081399405 | AE47: 248.45 | AF47: 262.26 | AG47: 252.56 | AH47: 239.1 | AI47: 219.94 | AJ47: 200.08 | AK47: 187.04 | AL47: 186.83 | AM47: 152.8 | AN47: 123.45 | AO47: 94.17 | AP47: 63.35 | AQ47: 43.99 | AR47: 29.55 | AS47: 21.05 | AT47: 13.63 | AU47: 8.22 | AV47: 5.19 | AW47: 1.96 | AX47: 0.75 | AY47: 0.11
A48: 50.81399405 | H48: -563.27 | I48: -596.92 | J48: -597.67 | K48: -626.31 | L48: -614.52 | M48: -523.24 | N48: -457.01 | O48: -459.61 | P48: -386.45 | Q48: -318.52 | R48: -279 | S48: -213.44 | T48: -168.47 | U48: -109.26 | V48: -71.68 | W48: -44.3 | X48: -26.72 | Y48: -15.04 | Z48: -5.44 | AA48: -1.83 | AB48: -0.37 | AC48: -0.036 | AD48: 0.04887670894 | AE48: 543.46 | AF48: 578.23 | AG48: 577.85 | AH48: 610.65 | AI48: 618.41 | AJ48: 544.57 | AK48: 502.27 | AL48: 505.93 | AM48: 431.7 | AN48: 365.48 | AO48: 319.8 | AP48: 239.05 | AQ48: 185.15 | AR48: 120.29 | AS48: 83.59 | AT48: 56.08 | AU48: 38.66 | AV48: 22.79 | AW48: 10 | AX48: 3.76 | AY48: 0.77
A49: 49.18600595 | B49: TON
A51: 48.87670894 | H51: -210061 | I51: -221739 | J51: -214776 | K51: -215738 | L51: -208011 | M51: -187929 | N51: -169339 | O51: -165200 | P51: -135010 | Q51: -109360 | R51: -94562 | S51: -73322 | T51: -58535 | U51: -40356 | V51: -28112 | W51: -18285 | X51: -11496 | Y51: -6319 | Z51: -2389 | AA51: -823 | AB51: -152 | AC51: 456 | AD51: 0.4896445855 | AE51: 201806 | AF51: 214523 | AG51: 210114 | AH51: 211090 | AI51: 209160 | AJ51: 193307 | AK51: 180420 | AL51: 176922 | AM51: 147516 | AN51: 123224 | AO51: 108767 | AP51: 83194 | AQ51: 67348 | AR51: 46575 | AS51: 34134 | AT51: 23302 | AU51: 16412 | AV51: 9576 | AW51: 4173 | AX51: 1497 | AY51: 304 | AZ51: 0.669 | BA51: 0.5103554145 | BB51: Miles de personas
A52: 51.12329106 | B52: ZAP | H52: -57713 | I52: -62859 | J52: -64220 | K52: -69407 | L52: -71841 | M52: -63610 | N52: -52045 | O52: -49921 | P52: -43594 | Q52: -38265 | R52: -36107 | S52: -29874 | T52: -25524 | U52: -18514 | V52: -13577 | W52: -9242 | X52: -6078 | Y52: -3270 | Z52: -1273 | AA52: -401 | AB52: -69 | AC52: -6.8 | AD52: 0.4798082383 | AE52: 55007 | AF52: 60565 | AG52: 63378 | AH52: 68311 | AI52: 71547 | AJ52: 64085 | AK52: 55996 | AL52: 56506 | AM52: 51110 | AN52: 46375 | AO52: 44828 | AP52: 36716 | AQ52: 32005 | AR52: 23173 | AS52: 17835 | AT52: 12539 | AU52: 9123 | AV52: 5316 | AW52: 2376 | AX52: 828 | AY52: 166 | AZ52: 16.3 | BA52: 0.5201917617 | BB52: Miles de personas
H53: -2458 | I53: -2513 | J53: -2253 | K53: -1987 | L53: -1673 | M53: -1691 | N53: -1610 | O53: -1544 | P53: -1245 | Q53: -886 | R53: -691 | S53: -521 | T53: -410 | U53: -309 | V53: -235 | W53: -179 | X53: -116 | Y53: -64 | Z53: -25 | AA53: -7 | AB53: -2 | AC53: -0.2 | AD53: 0.4972966391 | AE53: 2348 | AF53: 2346 | AG53: 2059 | AH53: 1976 | AI53: 1854 | AJ53: 1825 | AK53: 1750 | AL53: 1668 | AM53: 1307 | AN53: 911 | AO53: 705 | AP53: 505 | AQ53: 453 | AR53: 340 | AS53: 216 | AT53: 166 | AU53: 116 | AV53: 59 | AW53: 21 | AX53: 13 | AY53: 3 | AZ53: 0.3 | BA53: 0.5027033609 | BB53: Miles de personas
H54: -685 | I54: -737 | J54: -656 | K54: -707 | L54: -624 | M54: -480 | N54: -487 | O54: -459 | P54: -368 | Q54: -309 | R54: -268 | S54: -219 | T54: -192 | U54: -170 | V54: -130 | W54: -65 | X54: -56 | Y54: -34 | Z54: -19 | AA54: -10 | AB54: 0 | AC54: 0 | AD54: 0.5049931911 | AE54: 623 | AF54: 671 | AG54: 696 | AH54: 632 | AI54: 608 | AJ54: 514 | AK54: 523 | AL54: 469 | AM54: 386 | AN54: 323 | AO54: 273 | AP54: 249 | AQ54: 183 | AR54: 130 | AS54: 111 | AT54: 68 | AU54: 36 | AV54: 29 | AW54: 15 | AX54: 3 | AY54: 1 | AZ54: 1 | BA54: 0.4950068089 | BB54: Cientos de personas
H55: -8018 | I55: -8301 | J55: -8005 | K55: -7271 | L55: -6160 | M55: -5439 | N55: -5329 | O55: -5225 | P55: -4123 | Q55: -3140 | R55: -2509 | S55: -1769 | T55: -1302 | U55: -948 | V55: -662 | W55: -367 | X55: -230 | Y55: -128 | Z55: -55 | AA55: -19 | AB55: -6 | AC55: -0.6 | AD55: 0.4992259054 | AE55: 7934 | AF55: 8234 | AG55: 7608 | AH55: 7195 | AI55: 6260 | AJ55: 5729 | AK55: 5684 | AL55: 5359 | AM55: 4321 | AN55: 3146 | AO55: 2455 | AP55: 1665 | AQ55: 1298 | AR55: 872 | AS55: 647 | AT55: 366 | AU55: 227 | AV55: 140 | AW55: 55 | AX55: 20 | AY55: 5 | AZ55: 0.5 | BA55: 0.5007740946 | BB55: Miles de personas
H56: -27147 | I56: -27439 | J56: -22345 | K56: -18066 | L56: -15551 | M56: -18381 | N56: -20773 | O56: -18730 | P56: -12221 | Q56: -8129 | R56: -5727 | S56: -4138 | T56: -3033 | U56: -1989 | V56: -1418 | W56: -869 | X56: -516 | Y56: -307 | Z56: -107 | AA56: -60 | AB56: -12 | AC56: -1.2 | AD56: 0.4967476826 | AE56: 26036 | AF56: 26299 | AG56: 21819 | AH56: 17932 | AI56: 17399 | AJ56: 20866 | AK56: 21829 | AL56: 18245 | AM56: 11957 | AN56: 8076 | AO56: 5975 | AP56: 4325 | AQ56: 3121 | AR56: 2144 | AS56: 1480 | AT56: 929 | AU56: 619 | AV56: 379 | AW56: 162 | AX56: 64 | AY56: 12 | AZ56: 1.2 | BA56: 0.5032523174 | BB56: Miles de personas
H57: -32043 | I57: -33149 | J57: -31857 | K57: -30968 | L57: -27593 | M57: -24273 | N57: -23530 | O57: -23864 | P57: -18975 | Q57: -14411 | R57: -11958 | S57: -8929 | T57: -6737 | U57: -4608 | V57: -3004 | W57: -1945 | X57: -1121 | Y57: -610 | Z57: -224 | AA57: -91 | AB57: -14 | AC57: -1.4 | AD57: 0.4931706884 | AE57: 30667 | AF57: 32359 | AG57: 31513 | AH57: 30069 | AI57: 27657 | AJ57: 25823 | AK57: 25707 | AL57: 25399 | AM57: 19985 | AN57: 15500 | AO57: 13134 | AP57: 9494 | AQ57: 7374 | AR57: 4932 | AS57: 3381 | AT57: 2263 | AU57: 1603 | AV57: 855 | AW57: 348 | AX57: 118 | AY57: 29 | AZ57: 2.9 | BA57: 0.5068293116 | BB57: Miles de personas
H58: -25670 | I58: -27049 | J58: -25673 | K58: -24701 | L58: -23117 | M58: -21731 | N58: -19864 | O58: -19496 | P58: -15839 | Q58: -12368 | R58: -9402 | S58: -6528 | T58: -4490 | U58: -2892 | V58: -1918 | W58: -1188 | X58: -707 | Y58: -402 | Z58: -142 | AA58: -52 | AB58: -12 | AC58: -1.2 | AD58: 0.5081399405 | AE58: 24845 | AF58: 26226 | AG58: 25256 | AH58: 23910 | AI58: 21994 | AJ58: 20008 | AK58: 18704 | AL58: 18683 | AM58: 15280 | AN58: 12345 | AO58: 9417 | AP58: 6335 | AQ58: 4399 | AR58: 2955 | AS58: 2105 | AT58: 1363 | AU58: 822 | AV58: 519 | AW58: 196 | AX58: 75 | AY58: 11 | AZ58: 1.1 | BA58: 0.4918600595 | BB58: Miles de personas
H59: -56327 | I59: -59692 | J59: -59767 | K59: -62631 | L59: -61452 | M59: -52324 | N59: -45701 | O59: -45961 | P59: -38645 | Q59: -31852 | R59: -27900 | S59: -21344 | T59: -16847 | U59: -10926 | V59: -7168 | W59: -4430 | X59: -2672 | Y59: -1504 | Z59: -544 | AA59: -183 | AB59: -37 | AC59: -3.6 | AD59: 0.4887670894 | AE59: 54346 | AF59: 57823 | AG59: 57785 | AH59: 61065 | AI59: 61841 | AJ59: 54457 | AK59: 50227 | AL59: 50593 | AM59: 43170 | AN59: 36548 | AO59: 31980 | AP59: 23905 | AQ59: 18515 | AR59: 12029 | AS59: 8359 | AT59: 5608 | AU59: 3866 | AV59: 2279 | AW59: 1000 | AX59: 376 | AY59: 77 | AZ59: 7.6 | BA59: 0.5112329106 | BB59: Miles de personas

Sheet Pob (hidden)
IM60000: Clave | IN60000: Región | IO60000: Clave | IP60000: Municipio | IQ60000: Poblacion total | IR60000: Relación hombre-mujer: | IS60000: Edad mediana | IT60000: Razon de dependencia | IU60000: Porcentaje hombres | IV60000: Porcentaje de mujeres
IO60001: 14 | IP60001: Jalisco | IQ60001: 7350682 | IR60001: 96.02 | IS60001: 25 | IT60001: 55.65500878 | IU60001: 48.98376776 | IV60001: 51.01623224 | IX60001: =+IU60001/IV60001*100 -> 96.01604356
IM60002: 1 | IN60002: Norte | IO60002: 1 | IP60002: Norte | IQ60002: 78835 | IR60002: 94.5 | IS60002: 23 | IT60002: 77.85391226 | IU60002: 48.5913617 | IV60002: 51.4086383
IM60003: 2 | IN60003: Altos Norte | IO60003: 2 | IP60003: Altos Norte | IQ60003: 383317 | IR60003: 93.6 | IS60003: 24 | IT60003: 63.09414251 | IU60003: 48.35684303 | IV60003: 51.64315697 | IY60003: Total de población de 0 a 14 años más la población de 65 y más, dividido por el total de población de 15 a 64 años, multiplicado por 100.
IM60004: 3 | IN60004: Altos Sur | IO60004: 3 | IP60004: Altos Sur | IQ60004: 384144 | IR60004: 93.3 | IS60004: 25 | IT60004: 62.09947414 | IU60004: 48.26393228 | IV60004: 51.73606772
IM60005: 4 | IN60005: Ciénega | IO60005: 4 | IP60005: Ciénega | IQ60005: 503297 | IR60005: 95.4 | IS60005: 25 | IT60005: 62.92297248 | IU60005: 48.81153673 | IV60005: 51.18846327
IM60006: 5 | IN60006: Sureste | IO60006: 5 | IP60006: Sureste | IQ60006: 116416 | IR60006: 95.7 | IS60006: 28 | IT60006: 62.09829209 | IU60006: 48.89018692 | IV60006: 51.10981308
IM60007: 6 | IN60007: Sur | IO60007: 6 | IP60007: Sur | IQ60007: 332411 | IR60007: 94.4 | IS60007: 27 | IT60007: 58.55843751 | IU60007: 48.56668401 | IV60007: 51.43331599
IM60008: 7 | IN60008: Sierra de Amula | IO60008: 7 | IP60008: Sierra de Amula | IQ60008: 95680 | IR60008: 97.5 | IS60008: 28 | IT60008: 64.86173522 | IU60008: 49.35723244 | IV60008: 50.64276756
IM60009: 8 | IN60009: Costa Sur | IO60009: 8 | IP60009: Costa Sur | IQ60009: 170427 | IR60009: 99.8 | IS60009: 26 | IT60009: 61.12301798 | IU60009: 49.94044371 | IV60009: 50.05955629
IM60010: 9 | IN60010: Costa Norte | IO60010: 9 | IP60010: Costa Norte | IQ60010: 300760 | IR60010: 101.6 | IS60010: 26 | IT60010: 51.88972923 | IU60010: 50.39732677 | IV60010: 49.60267323
IM60011: 10 | IN60011: Sierra Occidental | IO60011: 10 | IP60011: Sierra Occidental | IQ60011: 61257 | IR60011: 99.7 | IS60011: 28 | IT60011: 68.14071733 | IU60011: 49.91756044 | IV60011: 50.08243956
IM60012: 11 | IN60012: Valles | IO60012: 11 | IP60012: Valles | IQ60012: 345438 | IR60012: 97.6 | IS60012: 26 | IT60012: 62.73469465 | IU60012: 49.38831281 | IV60012: 50.61168719
IM60013: 12 | IN60013: Centro | IO60013: 12 | IP60013: Centro | IQ60013: 4578700 | IR60013: 96 | IS60013: 27 | IT60013: 52.31195681 | IU60013: 48.97571363 | IV60013: 51.02428637
IM60016: 3 | IN60016: Altos Sur | IO60016: 1 | IP60016: Acatic | IQ60016: 21206 | IR60016: 95.3 | IS60016: 23 | IT60016: 65.93096971 | IU60016: 48.79751014 | IV60016: 51.20248986
IM60017: 12 | IN60017: Centro | IO60017: 2 | IP60017: Acatlán de Juárez | IQ60017: 23241 | IR60017: 110.88 | IS60017: 22 | IT60017: 63.19087517 | IU60017: 52.57949314 | IV60017: 47.42050686
IM60018: 11 | IN60018: Valles | IO60018: 3 | IP60018: Ahualulco de Mercado | IQ60018: 21714 | IR60018: 96.74 | IS60018: 26 | IT60018: 61.4943385 | IU60018: 49.17104172 | IV60018: 50.82895828
IM60019: 6 | IN60019: Sur | IO60019: 4 | IP60019: Amacueca | IQ60019: 5545 | IR60019: 93.14 | IS60019: 26 | IT60019: 63.46438073 | IU60019: 48.22362489 | IV60019: 51.77637511
IM60020: 11 | IN60020: Valles | IO60020: 5 | IP60020: Amatitán | IQ60020: 14648 | IR60020: 98.62 | IS60020: 23 | IT60020: 63.68927692 | IU60020: 49.6518296 | IV60020: 50.3481704
IM60021: 11 | IN60021: Valles | IO60021: 6 | IP60021: Ameca | IQ60021: 57340 | IR60021: 95.52 | IS60021: 27 | IT60021: 60.00168119 | IU60021: 48.854203 | IV60021: 51.145797
IM60022: 11 | IN60022: Valles | IO60022: 7 | IP60022: San Juanito de Escobedo | IQ60022: 8896 | IR60022: 100.59 | IS60022: 26 | IT60022: 68.79893069 | IU60022: 50.14613309 | IV60022: 49.85386691
IM60023: 3 | IN60023: Altos Sur | IO60023: 8 | IP60023: Arandas | IQ60023: 72812 | IR60023: 93.25 | IS60023: 24 | IT60023: 61.69975959 | IU60023: 48.25440861 | IV60023: 51.74559139
IM60024: 11 | IN60024: Valles | IO60024: 9 | IP60024: El Arenal | IQ60024: 17545 | IR60024: 96.83 | IS60024: 24 | IT60024: 61.94947882 | IU60024: 49.19350242 | IV60024: 50.80649758
IM60025: 6 | IN60025: Sur | IO60025: 10 | IP60025: Atemajac de Brizuela | IQ60025: 6655 | IR60025: 98.54 | IS60025: 21 | IT60025: 75.14496574 | IU60025: 49.63185575 | IV60025: 50.36814425
IM60026: 7 | IN60026: Sierra de Amula | IO60026: 11 | IP60026: Atengo | IQ60026: 5400 | IR60026: 107.45 | IS60026: 26 | IT60026: 69.93381658 | IU60026: 51.7962963 | IV60026: 48.2037037
IM60027: 10 | IN60027: Sierra Occidental | IO60027: 12 | IP60027: Atenguillo | IQ60027: 4115 | IR60027: 95.86 | IS60027: 30 | IT60027: 65.24365687 | IU60027: 48.94289186 | IV60027: 51.05710814
IM60028: 4 | IN60028: Ciénega | IO60028: 13 | IP60028: Atotonilco el Alto | IQ60028: 57717 | IR60028: 95.65 | IS60028: 25 | IT60028: 61.00055897 | IU60028: 48.88854237 | IV60028: 51.11145763
IM60029: 6 | IN60029: Sur | IO60029: 14 | IP60029: Atoyac | IQ60029: 8276 | IR60029: 91.84 | IS60029: 28 | IT60029: 65.65636291 | IU60029: 47.87336878 | IV60029: 52.12663122
IM60030: 8 | IN60030: Costa Sur | IO60030: 15 | IP60030: Autlán de Navarro | IQ60030: 57559 | IR60030: 96.12 | IS60030: 26 | IT60030: 56.6753105 | IU60030: 49.01058045 | IV60030: 50.98941955
IM60031: 4 | IN60031: Ciénega | IO60031: 16 | IP60031: Ayotlán | IQ60031: 38291 | IR60031: 94.49 | IS60031: 24 | IT60031: 66.38403339 | IU60031: 48.58321799 | IV60031: 51.41678201
IM60032: 10 | IN60032: Sierra Occidental | IO60032: 17 | IP60032: Ayutla | IQ60032: 12664 | IR60032: 99.24 | IS60032: 26 | IT60032: 68.72916389 | IU60032: 49.81048642 | IV60032: 50.18951358
IM60033: 4 | IN60033: Ciénega | IO60033: 18 | IP60033: La Barca | IQ60033: 64269 | IR60033: 92.72 | IS60033: 26 | IT60033: 61.43636409 | IU60033: 48.11028645 | IV60033: 51.88971355
IM60034: 1 | IN60034: Norte | IO60034: 19 | IP60034: Bolaños | IQ60034: 6820 | IR60034: 98.49 | IS60034: 18 | IT60034: 84.92667029 | IU60034: 49.61876833 | IV60034: 50.38123167
IM60035: 9 | IN60035: Costa Norte | IO60035: 20 | IP60035: Cabo Corrientes | IQ60035: 10029 | IR60035: 106.66 | IS60035: 25 | IT60035: 67.85056123 | IU60035: 51.61033004 | IV60035: 48.38966996
IM60036: 8 | IN60036: Costa Sur | IO60036: 21 | IP60036: Casimiro Castillo | IQ60036: 21475 | IR60036: 98.7 | IS60036: 26 | IT60036: 60.02237136 | IU60036: 49.67171129 | IV60036: 50.32828871
IM60037: 8 | IN60037: Costa Sur | IO60037: 22 | IP60037: Cihuatlán | IQ60037: 39020 | IR60037: 101.9 | IS60037: 24 | IT60037: 59.52783157 | IU60037: 50.47155305 | IV60037: 49.52844695
IM60038: 6 | IN60038: Sur | IO60038: 23 | IP60038: Zapotlán el Grande | IQ60038: 100534 | IR60038: 93.81 | IS60038: 27 | IT60038: 50.63489408 | IU60038: 48.40253049 | IV60038: 51.59746951
IM60039: 11 | IN60039: Valles | IO60039: 24 | IP60039: Cocula | IQ60039: 26174 | IR60039: 94.56 | IS60039: 28 | IT60039: 61.80310624 | IU60039: 48.60166578 | IV60039: 51.39833422
IM60040: 1 | IN60040: Norte | IO60040: 25 | IP60040: Colotlán | IQ60040: 18091 | IR60040: 92.87 | IS60040: 25 | IT60040: 62.23322828 | IU60040: 48.15101432 | IV60040: 51.84898568
IM60041: 5 | IN60041: Sureste | IO60041: 26 | IP60041: Concepción de Buenos Aires | IQ60041: 5933 | IR60041: 103.05 | IS60041: 27 | IT60041: 61.76711208 | IU60041: 50.75004214 | IV60041: 49.24995786
IM60042: 8 | IN60042: Costa Sur | IO60042: 27 | IP60042: Cuautitlán de García Barragán | IQ60042: 17322 | IR60042: 102.38 | IS60042: 23 | IT60042: 73.26524482 | IU60042: 50.58884655 | IV60042: 49.41115345
IM60043: 10 | IN60043: Sierra Occidental | IO60043: 28 | IP60043: Cuautla | IQ60043: 2171 | IR60043: 92.81 | IS60043: 29 | IT60043: 70.59748428 | IU60043: 48.13450023 | IV60043: 51.86549977
IM60044: 12 | IN60044: Centro | IO60044: 29 | IP60044: Cuquío | IQ60044: 17795 | IR60044: 91.2 | IS60044: 25 | IT60044: 64.44444444 | IU60044: 47.6987918 | IV60044: 52.3012082
IM60045: 4 | IN60045: Ciénega | IO60045: 30 | IP60045: Chapala | IQ60045: 48839 | IR60045: 95.85 | IS60045: 27 | IT60045: 63.18454994 | IU60045: 48.940396 | IV60045: 51.059604
IM60046: 1 | IN60046: Norte | IO60046: 31 | IP60046: Chimaltitán | IQ60046: 3771 | IR60046: 98.26 | IS60046: 22 | IT60046: 87.37574553 | IU60046: 49.56245028 | IV60046: 50.43754972
IM60047: 7 | IN60047: Sierra de Amula | IO60047: 32 | IP60047: Chiquilistlán | IQ60047: 5814 | IR60047: 99.25 | IS60047: 22 | IT60047: 74.90219681 | IU60047: 49.81080151 | IV60047: 50.18919849
IM60048: 4 | IN60048: Ciénega | IO60048: 33 | IP60048: Degollado | IQ60048: 21132 | IR60048: 91.88 | IS60048: 25 | IT60048: 64.51763607 | IU60048: 47.88472459 | IV60048: 52.11527541
IM60049: 7 | IN60049: Sierra de Amula | IO60049: 34 | IP60049: Ejutla | IQ60049: 2082 | IR60049: 106.14 | IS60049: 32 | IT60049: 61.53846154 | IU60049: 51.48895293 | IV60049: 48.51104707
IM60050: 2 | IN60050: Altos Norte | IO60050: 35 | IP60050: Encarnación de Díaz | IQ60050: 51396 | IR60050: 92.47 | IS60050: 24 | IT60050: 61.85326481 | IU60050: 48.04264923 | IV60050: 51.95735077
IM60051: 11 | IN60051: Valles | IO60051: 36 | IP60051: Etzatlán | IQ60051: 18632 | IR60051: 96.64 | IS60051: 25 | IT60051: 63.72273047 | IU60051: 49.14662945 | IV60051: 50.85337055
IM60052: 7 | IN60052: Sierra de Amula | IO60052: 37 | IP60052: El Grullo | IQ60052: 23845 | IR60052: 95.08 | IS60052: 27 | IT60052: 58.98539999 | IU60052: 48.73977773 | IV60052: 51.26022227
IM60053: 10 | IN60053: Sierra Occidental | IO60053: 38 | IP60053: Guachinango | IQ60053: 4323 | IR60053: 101.54 | IS60053: 30 | IT60053: 70.24044147 | IU60053: 50.38167939 | IV60053: 49.61832061
IM60054: 12 | IN60054: Centro | IO60054: 39 | IP60054: Guadalajara | IQ60054: 1495189 | IR60054: 92.24 | IS60054: 28 | IT60054: 48.38014181 | IU60054: 47.98082383 | IV60054: 52.01917617
IM60055: 11 | IN60055: Valles | IO60055: 40 | IP60055: Hostotipaquillo | IQ60055: 10284 | IR60055: 115.01 | IS60055: 25 | IT60055: 63.08937927 | IU60055: 53.49085959 | IV60055: 46.50914041
IM60056: 1 | IN60056: Norte | IO60056: 41 | IP60056: Huejúcar | IQ60056: 6084 | IR60056: 91.38 | IS60056: 31 | IT60056: 72.10749646 | IU60056: 47.74819198 | IV60056: 52.25180802
IM60057: 1 | IN60057: Norte | IO60057: 42 | IP60057: Huejuquilla el Alto | IQ60057: 8781 | IR60057: 93.24 | IS60057: 24 | IT60057: 76.2930167 | IU60057: 48.25190753 | IV60057: 51.74809247
IM60058: 8 | IN60058: Costa Sur | IO60058: 43 | IP60058: La Huerta | IQ60058: 23428 | IR60058: 102.26 | IS60058: 25 | IT60058: 63.3673042 | IU60058: 50.55915998 | IV60058: 49.44084002
IM60059: 12 | IN60059: Centro | IO60059: 44 | IP60059: Ixtlahuacán de los Membrillos | IQ60059: 41060 | IR60059: 98.92 | IS60059: 23 | IT60059: 62.85725627 | IU60059: 49.72966391 | IV60059: 50.27033609
IM60060: 12 | IN60060: Centro | IO60060: 45 | IP60060: Ixtlahuacán del Río | IQ60060: 19005 | IR60060: 93.34 | IS60060: 26 | IT60060: 63.67790327 | IU60060: 48.27676927 | IV60060: 51.72323073
IM60061: 3 | IN60061: Altos Sur | IO60061: 46 | IP60061: Jalostotitlán | IQ60061: 31948 | IR60061: 95.4 | IS60061: 23 | IT60061: 68.20672216 | IU60061: 48.82308752 | IV60061: 51.17691248
IM60062: 4 | IN60062: Ciénega | IO60062: 47 | IP60062: Jamay | IQ60062: 22881 | IR60062: 98.21 | IS60062: 24 | IT60062: 62.70123949 | IU60062: 49.54765963 | IV60062: 50.45234037
IM60063: 3 | IN60063: Altos Sur | IO60063: 48 | IP60063: Jesús María | IQ60063: 18634 | IR60063: 85.17 | IS60063: 24 | IT60063: 70.61520125 | IU60063: 45.99656542 | IV60063: 54.00343458
IM60064: 5 | IN60064: Sureste | IO60064: 49 | IP60064: Jilotlán de los Dolores | IQ60064: 9545 | IR60064: 105.71 | IS60064: 24 | IT60064: 65.09695291 | IU60064: 51.38816134 | IV60064: 48.61183866
IM60065: 4 | IN60065: Ciénega | IO60065: 50 | IP60065: Jocotepec | IQ60065: 42164 | IR60065: 97.72 | IS60065: 23 | IT60065: 66.04628967 | IU60065: 49.42367897 | IV60065: 50.57632103
IM60066: 12 | IN60066: Centro | IO60066: 51 | IP60066: Juanacatlán | IQ60066: 13218 | IR60066: 102.02 | IS60066: 24 | IT60066: 59.72675614 | IU60066: 50.49931911 | IV60066: 49.50068089
IM60067: 7 | IN60067: Sierra de Amula | IO60067: 52 | IP60067: Juchitlán | IQ60067: 5515 | IR60067: 91.63 | IS60067: 28 | IT60067: 72.25 | IU60067: 47.81504986 | IV60067: 52.18495014
IM60068: 2 | IN60068: Altos Norte | IO60068: 53 | IP60068: Lagos de Moreno | IQ60068: 153817 | IR60068: 93.86 | IS60068: 23 | IT60068: 60.32597914 | IU60068: 48.41597483 | IV60068: 51.58402517
IM60069: 7 | IN60069: Sierra de Amula | IO60069: 54 | IP60069: El Limón | IQ60069: 5499 | IR60069: 100.18 | IS60069: 34 | IT60069: 65.98000606 | IU60069: 50.04546281 | IV60069: 49.95453719
IM60070: 11 | IN60070: Valles | IO60070: 55 | IP60070: Magdalena | IQ60070: 21321 | IR60070: 98.56 | IS60070: 23 | IT60070: 64.95646766 | IU60070: 49.63650861 | IV60070: 50.36349139
IM60071: 5 | IN60071: Sureste | IO60071: 56 | IP60071: Santa María del Oro | IQ60071: 2517 | IR60071: 102.33 | IS60071: 26 | IT60071: 69.08602151 | IU60071: 50.57608264 | IV60071: 49.42391736
IM60072: 5 | IN60072: Sureste | IO60072: 57 | IP60072: La Manzanilla de la Paz | IQ60072: 3755 | IR60072: 91.09 | IS60072: 29 | IT60072: 62.01985326 | IU60072: 47.66977364 | IV60072: 52.33022636
IM60073: 10 | IN60073: Sierra Occidental | IO60073: 58 | IP60073: Mascota | IQ60073: 14245 | IR60073: 96.89 | IS60073: 28 | IT60073: 67.6970269 | IU60073: 49.21024921 | IV60073: 50.78975079
IM60074: 5 | IN60074: Sureste | IO60074: 59 | IP60074: Mazamitla | IQ60074: 13225 | IR60074: 90.64 | IS60074: 25 | IT60074: 62.78811784 | IU60074: 47.5463138 | IV60074: 52.4536862
IM60075: 3 | IN60075: Altos Sur | IO60075: 60 | IP60075: Mexticacán | IQ60075: 6034 | IR60075: 85.26 | IS60075: 30 | IT60075: 64.116526 | IU60075: 46.02253895 | IV60075: 53.97746105
IM60076: 1 | IN60076: Norte | IO60076: 61 | IP60076: Mezquitic | IQ60076: 18084 | IR60076: 93.64 | IS60076: 18 | IT60076: 95.58855409 | IU60076: 48.35766423 | IV60076: 51.64233577
IM60077: 10 | IN60077: Sierra Occidental | IO60077: 62 | IP60077: Mixtlán | IQ60077: 3574 | IR60077: 101.47 | IS60077: 28 | IT60077: 67.47891284 | IU60077: 50.36373811 | IV60077: 49.63626189
IM60078: 4 | IN60078: Ciénega | IO60078: 63 | IP60078: Ocotlán | IQ60078: 92967 | IR60078: 95.66 | IS60078: 25 | IT60078: 56.17152693 | IU60078: 48.89154216 | IV60078: 51.10845784
IM60079: 2 | IN60079: Altos Norte | IO60079: 64 | IP60079: Ojuelos de Jalisco | IQ60079: 30097 | IR60079: 94.66 | IS60079: 21 | IT60079: 75.00872397 | IU60079: 48.6294315 | IV60079: 51.3705685
IM60080: 5 | IN60080: Sureste | IO60080: 65 | IP60080: Pihuamo | IQ60080: 12119 | IR60080: 99.52 | IS60080: 28 | IT60080: 62.6358878 | IU60080: 49.88035316 | IV60080: 50.11964684
IM60081: 4 | IN60081: Ciénega | IO60081: 66 | IP60081: Poncitlán | IQ60081: 48408 | IR60081: 96.09 | IS60081: 22 | IT60081: 70.89905921 | IU60081: 49.00223104 | IV60081: 50.99776896
IM60082: 9 | IN60082: Costa Norte | IO60082: 67 | IP60082: Puerto Vallarta | IQ60082: 255681 | IR60082: 101.16 | IS60082: 25 | IT60082: 49.61936927 | IU60082: 50.28805426 | IV60082: 49.71194574
IM60083: 8 | IN60083: Costa Sur | IO60083: 68 | IP60083: Villa Purificación | IQ60083: 11623 | IR60083: 104.27 | IS60083: 25 | IT60083: 70.3622232 | IU60083: 51.04534113 | IV60083: 48.95465887
IM60084: 5 | IN60084: Sureste | IO60084: 69 | IP60084: Quitupan | IQ60084: 8691 | IR60084: 87.91 | IS60084: 29 | IT60084: 69.6875 | IU60084: 46.78402946 | IV60084: 53.21597054
IM60085: 12 | IN60085: Centro | IO60085: 70 | IP60085: El Salto | IQ60085: 138226 | IR60085: 99.69 | IS60085: 22 | IT60085: 61.89753365 | IU60085: 49.92259054 | IV60085: 50.07740946
IM60086: 12 | IN60086: Centro | IO60086: 71 | IP60086: San Cristóbal de la Barranca | IQ60086: 3176 | IR60086: 99.37 | IS60086: 25 | IT60086: 63.34537945 | IU60086: 49.84256927 | IV60086: 50.15743073
IM60087: 2 | IN60087: Altos Norte | IO60087: 72 | IP60087: San Diego de Alejandría | IQ60087: 6647 | IR60087: 91.28 | IS60087: 24 | IT60087: 68.79450661 | IU60087: 47.72077629 | IV60087: 52.27922371
IM60088: 2 | IN60088: Altos Norte | IO60088: 73 | IP60088: San Juan de los Lagos | IQ60088: 65219 | IR60088: 96.72 | IS60088: 23 | IT60088: 60.78131173 | IU60088: 49.16665389 | IV60088: 50.83334611
IM60089: 3 | IN60089: Altos Sur | IO60089: 74 | IP60089: San Julián | IQ60089: 15454 | IR60089: 89.43 | IS60089: 25 | IT60089: 56.73008444 | IU60089: 47.21107804 | IV60089: 52.78892196
IM60090: 11 | IN60090: Valles | IO60090: 75 | IP60090: San Marcos | IQ60090: 3762 | IR60090: 104.01 | IS60090: 25 | IT60090: 66.88859299 | IU60090: 50.9835194 | IV60090: 49.0164806
IM60091: 1 | IN60091: Norte | IO60091: 76 | IP60091: San Martín de Bolaños | IQ60091: 3405 | IR60091: 100.18 | IS60091: 24 | IT60091: 72.13448803 | IU60091: 50.04405286 | IV60091: 49.95594714
IM60092: 11 | IN60092: Valles | IO60092: 77 | IP60092: San Martín Hidalgo | IQ60092: 26306 | IR60092: 94.56 | IS60092: 29 | IT60092: 63.91366727 | IU60092: 48.6010796 | IV60092: 51.3989204
IM60093: 3 | IN60093: Altos Sur | IO60093: 78 | IP60093: San Miguel el Alto | IQ60093: 31166 | IR60093: 92.78 | IS60093: 24 | IT60093: 61.57001194 | IU60093: 48.12616313 | IV60093: 51.87383687
IM60094: 6 | IN60094: Sur | IO60094: 79 | IP60094: Gómez Farías | IQ60094: 14011 | IR60094: 93.71 | IS60094: 25 | IT60094: 59.2075126 | IU60094: 48.37627578 | IV60094: 51.62372422
IM60095: 10 | IN60095: Sierra Occidental | IO60095: 80 | IP60095: San Sebastián del Oeste | IQ60095: 5755 | IR60095: 109.5 | IS60095: 28 | IT60095: 68.87844979 | IU60095: 52.2675934 | IV60095: 47.7324066
IM60096: 1 | IN60096: Norte | IO60096: 81 | IP60096: Santa María de los Ángeles | IQ60096: 3726 | IR60096: 89.33 | IS60096: 30 | IT60096: 78.25670498 | IU60096: 47.18196457 | IV60096: 52.81803543
IM60097: 6 | IN60097: Sur | IO60097: 82 | IP60097: Sayula | IQ60097: 34829 | IR60097: 92.47 | IS60097: 25 | IT60097: 59.00351646 | IU60097: 48.04329725 | IV60097: 51.95670275
IM60098: 11 | IN60098: Valles | IO60098: 83 | IP60098: Tala | IQ60098: 69031 | IR60098: 98.83 | IS60098: 25 | IT60098: 61.36012726 | IU60098: 49.70665353 | IV60098: 50.29334647
IM60099: 10 | IN60099: Sierra Occidental | IO60099: 84 | IP60099: Talpa de Allende | IQ60099: 14410 | IR60099: 100.28 | IS60099: 25 | IT60099: 67.78969457 | IU60099: 50.06939625 | IV60099: 49.93060375
IM60100: 5 | IN60100: Sureste | IO60100: 85 | IP60100: Tamazula de Gordiano | IQ60100: 37986 | IR60100: 95.06 | IS60100: 28 | IT60100: 57.81360663 | IU60100: 48.73374401 | IV60100: 51.26625599
IM60101: 6 | IN60101: Sur | IO60101: 86 | IP60101: Tapalpa | IQ60101: 18096 | IR60101: 95.67 | IS60101: 22 | IT60101: 66.36556365 | IU60101: 48.89478338 | IV60101: 51.10521662
IM60102: 5 | IN60102: Sureste | IO60102: 87 | IP60102: Tecalitlán | IQ60102: 16847 | IR60102: 95.28 | IS60102: 26 | IT60102: 64.83656293 | IU60102: 48.7920698 | IV60102: 51.2079302
IM60103: 7 | IN60103: Sierra de Amula | IO60103: 88 | IP60103: Tecolotlán | IQ60103: 16573 | IR60103: 100.13 | IS60103: 27 | IT60103: 66.23493976 | IU60103: 50.03318651 | IV60103: 49.96681349
IM60104: 6 | IN60104: Sur | IO60104: 89 | IP60104: Techaluta de Montenegro | IQ60104: 3511 | IR60104: 96.25 | IS60104: 27 | IT60104: 65.0801131 | IU60104: 49.04585588 | IV60104: 50.95414412
IM60105: 7 | IN60105: Sierra de Amula | IO60105: 90 | IP60105: Tenamaxtlán | IQ60105: 7051 | IR60105: 98.28 | IS60105: 28 | IT60105: 69.17166867 | IU60105: 49.56743724 | IV60105: 50.43256276
IM60106: 2 | IN60106: Altos Norte | IO60106: 91 | IP60106: Teocaltiche | IQ60106: 40105 | IR60106: 89.78 | IS60106: 25 | IT60106: 67.06574337 | IU60106: 47.30831567 | IV60106: 52.69168433
IM60107: 6 | IN60107: Sur | IO60107: 92 | IP60107: Teocuitatlán de Corona | IQ60107: 10837 | IR60107: 95.97 | IS60107: 30 | IT60107: 66.29299754 | IU60107: 48.97111747 | IV60107: 51.02888253
IM60108: 3 | IN60108: Altos Sur | IO60108: 93 | IP60108: Tepatitlán de Morelos | IQ60108: 136123 | IR60108: 94.8 | IS60108: 24 | IT60108: 59.33841642 | IU60108: 48.6648105 | IV60108: 51.3351895
IM60109: 11 | IN60109: Valles | IO60109: 94 | IP60109: Tequila | IQ60109: 40697 | IR60109: 98.05 | IS60109: 22 | IT60109: 66.52585818 | IU60109: 49.50733469 | IV60109: 50.49266531
IM60110: 11 | IN60110: Valles | IO60110: 95 | IP60110: Teuchitlán | IQ60110: 9088 | IR60110: 94.9 | IS60110: 28 | IT60110: 61.5480427 | IU60110: 48.69058099 | IV60110: 51.30941901
IM60111: 4 | IN60111: Ciénega | IO60111: 96 | IP60111: Tizapán el Alto | IQ60111: 20857 | IR60111: 95.03 | IS60111: 25 | IT60111: 67.13803632 | IU60111: 48.72704608 | IV60111: 51.27295392
IM60112: 12 | IN60112: Centro | IO60112: 97 | IP60112: Tlajomulco de Zúñiga | IQ60112: 416626 | IR60112: 98.71 | IS60112: 23 | IT60112: 63.72083034 | IU60112: 49.67476826 | IV60112: 50.32523174
IM60113: 12 | IN60113: Centro | IO60113: 98 | IP60113: Tlaquepaque | IQ60113: 608114 | IR60113: 97.31 | IS60113: 24 | IT60113: 55.37637875 | IU60113: 49.31706884 | IV60113: 50.68293116
IM60114: 6 | IN60114: Sur | IO60114: 99 | IP60114: Tolimán | IQ60114: 9591 | IR60114: 97.06 | IS60114: 25 | IT60114: 69.55598797 | IU60114: 49.25450944 | IV60114: 50.74549056
IM60115: 9 | IN60115: Costa Norte | IO60115: 100 | IP60115: Tomatlán | IQ60115: 35050 | IR60115: 103.45 | IS60115: 24 | IT60115: 65.35006417 | IU60115: 50.84736091 | IV60115: 49.15263909
IM60116: 12 | IN60116: Centro | IO60116: 101 | IP60116: Tonalá | IQ60116: 478689 | IR60116: 103.31 | IS60116: 23 | IT60116: 55.11059732 | IU60116: 50.81399405 | IV60116: 49.18600595
IM60117: 7 | IN60117: Sierra de Amula | IO60117: 102 | IP60117: Tonaya | IQ60117: 5930 | IR60117: 94.04 | IS60117: 29 | IT60117: 61.96335794 | IU60117: 48.46543002 | IV60117: 51.53456998
IM60118: 6 | IN60118: Sur | IO60118: 103 | IP60118: Tonila | IQ60118: 7256 | IR60118: 97.01 | IS60118: 28 | IT60118: 60.27851459 | IU60118: 49.24200662 | IV60118: 50.75799338
IM60119: 1 | IN60119: Norte | IO60119: 104 | IP60119: Totatiche | IQ60119: 4435 | IR60119: 99.24 | IS60119: 32 | IT60119: 73.27856025 | IU60119: 49.80834273 | IV60119: 50.19165727
IM60120: 4 | IN60120: Ciénega | IO60120: 105 | IP60120: Tototlán | IQ60120: 21871 | IR60120: 95.22 | IS60120: 25 | IT60120: 65.88529813 | IU60120: 48.77691921 | IV60120: 51.22308079
IM60121: 7 | IN60121: Sierra de Amula | IO60121: 106 | IP60121: Tuxcacuesco | IQ60121: 4234 | IR60121: 104.94 | IS60121: 27 | IT60121: 63.84794414 | IU60121: 51.20453472 | IV60121: 48.79546528
IM60122: 4 | IN60122: Ciénega | IO60122: 107 | IP60122: Tuxcueca | IQ60122: 6316 | IR60122: 93.62 | IS60122: 25 | IT60122: 68.86035313 | IU60122: 48.35338822 | IV60122: 51.64661178
IM60123: 6 | IN60123: Sur | IO60123: 108 | IP60123: Tuxpan | IQ60123: 34182 | IR60123: 92.68 | IS60123: 25 | IT60123: 58.46710587 | IU60123: 48.10133989 | IV60123: 51.89866011
IM60124: 2 | IN60124: Altos Norte | IO60124: 109 | IP60124: Unión de San Antonio | IQ60124: 17325 | IR60124: 92.09 | IS60124: 23 | IT60124: 67.96276544 | IU60124: 47.94227994 | IV60124: 52.05772006
IM60125: 7 | IN60125: Sierra de Amula | IO60125: 110 | IP60125: Unión de Tula | IQ60125: 13737 | IR60125: 93.02 | IS60125: 28 | IT60125: 64.43194062 | IU60125: 48.19101696 | IV60125: 51.80898304
IM60126: 3 | IN60126: Altos Sur | IO60126: 111 | IP60126: Valle de Guadalupe | IQ60126: 6705 | IR60126: 98.84 | IS60126: 25 | IT60126: 61.02428468 | IU60126: 49.70917226 | IV60126: 50.29082774
IM60127: 5 | IN60127: Sureste | IO60127: 112 | IP60127: Valle de Juárez | IQ60127: 5798 | IR60127: 93.78 | IS60127: 29 | IT60127: 62.12206047 | IU60127: 48.39599862 | IV60127: 51.60400138
IM60128: 6 | IN60128: Sur | IO60128: 113 | IP60128: San Gabriel | IQ60128: 15310 | IR60128: 96.21 | IS60128: 26 | IT60128: 59.77167993 | IU60128: 49.03331156 | IV60128: 50.96668844
IM60129: 12 | IN60129: Centro | IO60129: 114 | IP60129: Villa Corona | IQ60129: 16969 | IR60129: 97.04 | IS60129: 27 | IT60129: 62.52279927 | IU60129: 49.24862985 | IV60129: 50.75137015
IM60130: 1 | IN60130: Norte | IO60130: 115 | IP60130: Villa Guerrero | IQ60130: 5638 | IR60130: 97.62 | IS60130: 26 | IT60130: 82.65239948 | IU60130: 49.39694927 | IV60130: 50.60305073
IM60131: 2 | IN60131: Altos Norte | IO60131: 116 | IP60131: Villa Hidalgo | IQ60131: 18711 | IR60131: 93.54 | IS60131: 23 | IT60131: 65.34347096 | IU60131: 48.32985944 | IV60131: 51.67014056
IM60132: 3 | IN60132: Altos Sur | IO60132: 117 | IP60132: Cañadas de Obregón | IQ60132: 4152 | IR60132: 94.29 | IS60132: 30 | IT60132: 65.42765787 | IU60132: 48.53082852 | IV60132: 51.46917148
IM60133: 3 | IN60133: Altos Sur | IO60133: 118 | IP60133: Yahualica de González Gallo | IQ60133: 22284 | IR60133: 90.49 | IS60133: 29 | IT60133: 61.65358907 | IU60133: 47.50493628 | IV60133: 52.49506372
IM60134: 6 | IN60134: Sur | IO60134: 119 | IP60134: Zacoalco de Torres | IQ60134: 27901 | IR60134: 96.44 | IS60134: 26 | IT60134: 64.56371068 | IU60134: 49.09501452 | IV60134: 50.90498548
IM60135: 12 | IN60135: Centro | IO60135: 120 | IP60135: Zapopan | IQ60135: 1243756 | IR60135: 95.61 | IS60135: 26 | IT60135: 48.60338857 | IU60135: 48.87670894 | IV60135: 51.12329106
IM60136: 6 | IN60136: Sur | IO60136: 121 | IP60136: Zapotiltic | IQ60136: 29192 | IR60136: 94.47 | IS60136: 27 | IT60136: 57.9090071 | IU60136: 48.57837764 | IV60136: 51.42162236
IM60137: 6 | IN60137: Sur | IO60137: 122 | IP60137: Zapotitlán de Vadillo | IQ60137: 6685 | IR60137: 99.14 | IS60137: 24 | IT60137: 77.97016516 | IU60137: 49.78309648 | IV60137: 50.21690352
IM60138: 4 | IN60138: Ciénega | IO60138: 123 | IP60138: Zapotlán del Rey | IQ60138: 17585 | IR60138: 97.27 | IS60138: 25 | IT60138: 63.43595945 | IU60138: 49.30907023 | IV60138: 50.69092977
IM60139: 12 | IN60139: Centro | IO60139: 124 | IP60139: Zapotlanejo | IQ60139: 63636 | IR60139: 95.67 | IS60139: 24 | IT60139: 62.74690646 | IU60139: 48.89370796 | IV60139: 51.10629204
IM60140: 3 | IN60140: Altos Sur | IO60140: 125 | IP60140: San Ignacio Cerro Gordo | IQ60140: 17626 | IR60140: 93.16 | IS60140: 23 | IT60140: 67.16970387 | IU60140: 48.22988767 | IV60140: 51.77011233

Sheet Distr terr (hidden)
A1: Clave | B1: Región | C1: Clave | D1: Municipio | E1: Superficie en Km² | F1: Densidad | G1: Municipios / localidades
C2: 14 | D2: Jalisco | E2: 78583.57352 | F2: 93.53967592 | G2: 125
A3: 1 | B3: Norte | C3: 1 | D3: Región Norte | E3: 8816.142045 | F3: 8.942119988 | G3: 10
A4: 2 | B4: Altos Norte | C4: 2 | D4: Región Altos Norte | E4: 8250.120056 | F4: 46.46199054 | G4: 8
A5: 3 | B5: Altos Sur | C5: 3 | D5: Región Altos Sur | E5: 6603.521556 | F5: 58.17259726 | G5: 12
A6: 4 | B6: Ciénega | C6: 4 | D6: Región Ciénega | E6: 5042.449882 | F6: 99.81199849 | G6: 13
A7: 5 | B7: Sureste | C7: 5 | D7: Región Sureste | E7: 7350.97416 | F7: 15.83681257 | G7: 10
A8: 6 | B8: Sur | C8: 6 | D8: Región Sur | E8: 5979.011121 | F8: 55.59631739 | G8: 16
A9: 7 | B9: Sierra de Amula | C9: 7 | D9: Región Sierra de Amula | E9: 3787.85504 | F9: 25.25967836 | G9: 11
A10: 8 | B10: Costa Sur | C10: 8 | D10: Región Costa Sur | E10: 6979.969153 | F10: 24.41658355 | G10: 6
A11: 9 | B11: Costa Norte | C11: 9 | D11: Región Costa Norte | E11: 5235.102053 | F11: 57.45064699 | G11: 3
A12: 10 | B12: Sierra Occidental | C12: 10 | D12: Región Sierra Occidental | E12: 8338.42067 | F12: 7.346355194 | G12: 8
A13: 11 | B13: Valles | C13: 11 | D13: Región Valles | E13: 6279.967746 | F13: 55.00633346 | G13: 14
A14: 12 | B14: Centro | C14: 12 | D14: Región Centro | E14: 5920.040035 | F14: 773.4238236 | G14: 14
A15: 3 | B15: Altos Sur | C15: 1 | D15: Acatic | E15: 339.2054025 | F15: 62.51669297 | G15: 100
A16: 12 | B16: Centro | C16: 2 | D16: Acatlán de Juárez | E16: 153.2696228 | F16: 151.6347439 | G16: 28
A17: 11 | B17: Valles | C17: 3 | D17: Ahualulco de Mercado | E17: 274.0922595 | F17: 79.22150024 | G17: 28
A18: 6 | B18: Sur | C18: 4 | D18: Amacueca | E18: 125.1973453 | F18: 44.2900765 | G18: 27
A19: 11 | B19: Valles | C19: 5 | D19: Amatitán | E19: 173.6399235 | F19: 84.35847994 | G19: 32
A20: 11 | B20: Valles | C20: 6 | D20: Ameca | E20: 837.8127244 | F20: 68.44011594 | G20: 92
A21: 11 | B21: Valles | C21: 7 | D21: San Juanito de Escobedo | E21: 194.4821928 | F21: 45.74197706 | G21: 10
A22: 3 | B22: Altos Sur | C22: 8 | D22: Arandas | E22: 942 | F22: 77.29511677 | G22: 300
A23: 11 | B23: Valles | C23: 9 | D23: EL Arenal | E23: 103.9946063 | F23: 168.7106728 | G23: 36
A24: 6 | B24: Sur | C24: 10 | D24: Atemajac de Brizuela | E24: 355.4960389 | F24: 18.72032111 | G24: 18
A25: 7 | B25: Sierra de Amula | C25: 11 | D25: Atengo | E25: 441.0705114 | F25: 12.24294044 | G25: 21
A26: 10 | B26: Sierra Occidental | C26: 12 | D26: Atenguillo | E26: 610.8025806 | F26: 6.737037679 | G26: 52
A27: 4 | B27: Ciénega | C27: 13 | D27: Atotonilco el Alto | E27: 510.9695288 | F27: 112.955855 | G27: 131
A28: 6 | B28: Sur | C28: 14 | D28: Atoyac | E28: 451.1705312 | F28: 18.34339663 | G28: 30
A29: 8 | B29: Costa Sur | C29: 15 | D29: Autlán de Navarro | E29: 705.9443525 | F29: 81.53475525 | G29: 124
A30: 4 | B30: Ciénega | C30: 16 | D30: Ayotlán | E30: 431.0945813 | F30: 88.82273557 | G30: 83
A31: 10 | B31: Sierra Occidental | C31: 17 | D31: Ayutla | E31: 883.805339 | F31: 14.32894716 | G31: 79
A32: 4 | B32: Ciénega | C32: 18 | D32: La Barca | E32: 418.2081334 | F32: 153.6770686 | G32: 87
A33: 1 | B33: Norte | C33: 19 | D33: Bolaños | E33: 866.7550025 | F33: 7.868428772 | G33: 165
A34: 9 | B34: Costa Norte | C34: 20 | D34: Cabo Corrientes | E34: 1540.621743 | F34: 6.509709503 | G34: 120
A35: 8 | B35: Costa Sur | C35: 21 | D35: Casimiro Castillo | E35: 522.5021416 | F35: 41.10031001 | G35: 46
A36: 8 | B36: Costa Sur | C36: 22 | D36: Cihuatlán | E36: 494.8501719 | F36: 78.85215004 | G36: 73
A37: 6 | B37: Sur | C37: 23 | D37: Zapotlán el Grande | E37: 274.1512535 | F37: 366.7099775 | G37: 52
A38: 11 | B38: Valles | C38: 24 | D38: Cocula | E38: 330.9540099 | F38: 79.08651721 | G38: 40
A39: 1 | B39: Norte | C39: 25 | D39: Colotlán | E39: 642.5818788 | F39: 28.15361061 | G39: 54
A40: 5 | B40: Sureste | C40: 26 | D40: Concepción de Buenos Aires | E40: 265.4441654 | F40: 22.35121646 | G40: 21
A41: 8 | B41: Costa Sur | C41: 27 | D41: Cuautitlán de García Barragán | E41: 1394.297709 | F41: 12.4234587 | G41: 132
A42: 10 | B42: Sierra Occidental | C42: 28 | D42: Cuautla | E42: 417.207674 | F42: 5.203643497 | G42: 28
A43: 12 | B43: Centro | C43: 29 | D43: Cuquío | E43: 642.5294578 | F43: 27.69522827 | G43: 143
A44: 4 | B44: Ciénega | C44: 30 | D44: Chapala | E44: 613.4269183 | F44: 79.6166561 | G44: 45
A45: 1 | B45: Norte | C45: 31 | D45: Chimaltitán | E45: 656.2685477 | F45: 5.746123311 | G45: 71
A46: 7 | B46: Sierra de Amula | C46: 32 | D46: Chiquilistlán | E46: 297.8173014 | F46: 19.52203573 | G46: 23
A47: 4 | B47: Ciénega | C47: 33 | D47: Degollado | E47: 425.0104149 | F47: 49.72113449 | G47: 95
A48: 7 | B48: Sierra de Amula | C48: 34 | D48: Ejutla | E48: 297.3713978 | F48: 7.001345843 | G48: 17
A49: 2 | B49: Altos Norte | C49: 35 | D49: Encarnación de Díaz | E49: 1253.20871 | F49: 41.01152473 | G49: 354
A50: 11 | B50: Valles | C50: 36 | D50: Etzatlán | E50: 337.990336 | F50: 55.1258365 | G50: 34
A51: 7 | B51: Sierra de Amula | C51: 37 | D51: El Grullo | E51: 177.2001592 | F51: 134.5653419 | G51: 40
A52: 10 | B52: Sierra Occidental | C52: 38 | D52: Guachinango | E52: 838.9639329 | F52: 5.152784084 | G52: 67
A53: 12 | B53: Centro | C53: 39 | D53: Guadalajara | E53: 151.4210225 | F53: 9874.381872 | G53: 2
A54: 11 | B54: Valles | C54: 40 | D54: Hostotipaquillo | E54: 755.8779645 | F54: 13.60537082 | G54: 52
A55: 1 | B55: Norte | C55: 41 | D55: Huejúcar | E55: 308.9086798 | F55: 19.69514098 | G55: 32
A56: 1 | B56: Norte | C56: 42 | D56: Huejuquilla el Alto | E56: 770.3957735 | F56: 11.39803761 | G56: 62
A57: 8 | B57: Costa Sur | C57: 43 | D57: La Huerta | E57: 2013.676883 | F57: 11.63443857 | G57: 139
A58: 12 | B58: Centro | C58: 44 | D58: Ixtlahuacán de los Membrillos | E58: 202.3876984 | F58: 202.8779433 | G58: 105
A59: 12 | B59: Centro | C59: 45 | D59: Ixtlahuacán del Río | E59: 831.1663951 | F59: 22.86545764 | G59: 178
A60: 3 | B60: Altos Sur | C60: 46 | D60: Jalostotitlán | E60: 519.9687418 | F60: 61.44215494 | G60: 177
A61: 4 | B61: Ciénega | C61: 47 | D61: Jamay | E61: 162.7768592 | F61: 140.5666636 | G61: 15
A62: 3 | B62: Altos Sur | C62: 48 | D62: Jesús María | E62: 665.2187216 | F62: 28.01183941 | G62: 167
A63: 5 | B63: Sureste | C63: 49 | D63: Jilotlán de los Dolores | E63: 1475.055815 | F63: 6.470941575 | G63: 157
A64: 4 | B64: Ciénega | C64: 50 | D64: Jocotepec | E64: 334.4348781 | F64: 126.075367 | G64: 59
A65: 12 | B65: Centro | C65: 51 | D65: Juanacatlán | E65: 138.3125325 | F65: 95.56617727 | G65: 24
A66: 7 | B66: Sierra de Amula | C66: 52 | D66: Juchitlán | E66: 246.413191 | F66: 22.38110702 | G66: 28
A67: 2 | B67: Altos Norte | C67: 53 | D67: Lagos de Moreno | E67: 2516.67929 | F67: 61.11903119 | G67: 445
A68: 7 | B68: Sierra de Amula | C68: 54 | D68: El Limón | E68: 114.2861768 | F68: 48.11605529 | G68: 11
A69: 11 | B69: Valles | C69: 55 | D69: Magdalena | E69: 293.2380165 | F69: 72.70885357 | G69: 24
A70: 5 | B70: Sureste | C70: 56 | D70: Santa María del Oro | E70: 775.0055991 | F70: 3.247718472 | G70: 89
A71: 5 | B71: Sureste | C71: 57 | D71: La Manzanilla de la Paz | E71: 134.6871304 | F71: 27.87942686 | G71: 9
A72: 10 | B72: Sierra Occidental | C72: 58 | D72: Mascota | E72: 1844.267649 | F72: 7.723933131 | G72: 157
A73: 5 | B73: Sureste | C73: 59 | D73: Mazamitla | E73: 288.8489489 | F73: 45.78517613 | G73: 54
A74: 3 | B74: Altos Sur | C74: 60 | D74: Mexticacán | E74: 287.5385087 | F74: 20.98501529 | G74: 62
A75: 1 | B75: Norte | C75: 61 | D75: Mezquitic | E75: 3360.715697 | F75: 5.380996678 | G75: 530
A76: 10 | B76: Sierra Occidental | C76: 62 | D76: Mixtlán | E76: 630.1864524 | F76: 5.671337406 | G76: 32
A77: 4 | B77: Ciénega | C77: 63 | D77: Ocotlán | E77: 242.4633034 | F77: 383.4270947 | G77: 52
A78: 2 | B78: Altos Norte | C78: 64 | D78: Ojuelos de Jalisco | E78: 1165.771035 | F78: 25.81724808 | G78: 62
A79: 5 | B79: Sureste | C79: 65 | D79: Pihuamo | E79: 875.3987749 | F79: 13.84397642 | G79: 122
A80: 4 | B80: Ciénega | C80: 66 | D80: Poncitlán | E80: 835.8600101 | F80: 57.91400404 | G80: 71
A81: 9 | B81: Costa Norte | C81: 67 | D81: Puerto Vallarta | E81: 680.3356718 | F81: 375.8159547 | G81: 104
A82: 8 | B82: Costa Sur | C82: 68 | D82: Villa Purificación | E82: 1848.697895 | F82: 6.287127837 | G82: 142
A83: 5 | B83: Sureste | C83: 69 | D83: Quitupan | E83: 676.5026758 | F83: 12.84695584 | G83: 122
A84: 12 | B84: Centro | C84: 70 | D84: El Salto | E84: 87.85942939 | F84: 1573.26312 | G84: 28
A85: 12 | B85: Centro | C85: 71 | D85: San Cristóbal de la Barranca | E85: 521.4859285 | F85: 6.090288973 | G85: 74
A86: 2 | B86: Altos Norte | C86: 72 | D86: San Diego de Alejandría | E86: 352.4819816 | F86: 18.85770152 | G86: 74
A87: 2 | B87: Altos Norte | C87: 73 | D87: San Juan de los Lagos | E87: 847.6840667 | F87: 76.9378623 | G87: 260
A88: 3 | B88: Altos Sur | C88: 74 | D88: San Julián | E88: 262.0910452 | F88: 58.9642427 | G88: 51
A89: 11 | B89: Valles | C89: 75 | D89: San Marcos | E89: 305.9451516 | F89: 12.29632168 | G89: 36
A90: 1 | B90: Norte | C90: 76 | D90: San Martín de Bolaños | E90: 690.7344058 | F90: 4.929535826 | G90: 62
A91: 11 | B91: Valles | C91: 77 | D91: San Martín Hidalgo | E91: 344.1621528 | F91: 76.43490077 | G91: 38
A92: 3 | B92: Altos Sur | C92: 78 | D92: San Miguel el Alto | E92: 787.0874886 | F92: 39.59661467 | G92: 184
A93: 6 | B93: Sur | C93: 79 | D93: Gómez Farías | E93: 353.6778467 | F93: 39.61514731 | G93: 19
A94: 10 | B94: Sierra Occidental | C94: 80 | D94: San Sebastián del Oeste | E94: 1117.14271 | F94: 5.151535206 | G94: 75
A95: 1 | B95: Norte | C95: 81 | D95: Santa María de los Ángeles | E95: 258.9845513 | F95: 14.38695853 | G95: 22
A96: 6 | B96: Sur | C96: 82 | D96: Sayula | E96: 215.941877 | F96: 161.2887712 | G96: 42
A97: 11 | B97: Valles | C97: 83 | D97: Tala | E97: 412.3184667 | F97: 167.4215578 | G97: 85
A98: 10 | B98: Sierra Occidental | C98: 84 | D98: Talpa de Allende | E98: 1996.044332 | F98: 7.219278535 | G98: 159
A99: 5 | B99: Sureste | C99: 85 | D99: Tamazula de Gordiano | E99: 1363.68472 | F99: 27.85541221 | G99: 185
A100: 6 | B100: Sur | C100: 86 | D100: Tapalpa | E100: 619.4844092 | F100: 29.21138891 | G100: 86
A101: 5 | B101: Sureste | C101: 87 | D101: Tecalitlán | E101: 1300.712266 | F101: 12.95213434 | G101: 180
A102: 7 | B102: Sierra de Amula | C102: 88 | D102: Tecolotlán | E102: 765.7734156 | F102: 21.64217204 | G102: 43
A103: 6 | B103: Sur | C103: 89 | D103: Techaluta de Montenegro | E103: 79.44146073 | F103: 44.19606548 | G103: 14
A104: 7 | B104: Sierra de Amula | C104: 90 | D104: Tenamaxtlán | E104: 281.6051787 | F104: 25.03860203 | G104: 26
A105: 2 | B105: Altos Norte | C105: 91 | D105: Teocaltiche | E105: 933.8504581 | F105: 42.94584818 | G105: 177
A106: 6 | B106: Sur | C106: 92 | D106: Teocuitatlán de Corona | E106: 335.5691336 | F106: 32.2943886 | G106: 32
A107: 3 | B107: Altos Sur | C107: 93 | D107: Tepatitlán de Morelos | E107: 1388 | F107: 98.07132565 | G107: 330
A108: 11 | B108: Valles | C108: 94 | D108: Tequila | E108: 1696.227837 | F108: 23.99264952 | G108: 157
A109: 11 | B109: Valles | C109: 95 | D109: Teuchitlán | E109: 219.2321049 | F109: 41.45378253 | G109: 18
A110: 4 | B110: Ciénega | C110: 96 | D110: Tizapán el Alto | E110: 193.5561416 | F110: 107.7568494 | G110: 29
A111: 12 | B111: Centro | C111: 97 | D111: Tlajomulco de Zúñiga | E111: 713.9531744 | F111: 583.5480742 | G111: 272
A112: 12 | B112: Centro | C112: 98 | D112: Tlaquepaque | E112: 110.4419617 | F112: 5506.186151 | G112: 31
A113: 6 | B113: Sur | C113: 99 | D113: Tolimán | E113: 512.1828208 | F113: 18.72573544 | G113: 43
A114: 9 | B114: Costa Norte | C114: 100 | D114: Tomatlán | E114: 3014.144638 | F114: 11.62850633 | G114: 186
A115: 12 | B115: Centro | C115: 101 | D115: Tonalá | E115: 166.1044227 | F115: 2881.855836 | G115: 59
A116: 7 | B116: Sierra de Amula | C116: 102 | D116: Tonaya | E116: 293.8885487 | F116: 20.17771712 | G116: 25
A117: 6 | B117: Sur | C117: 103 | D117: Tonila | E117: 144.4180863 | F117: 50.24301446 | G117: 16
A118: 1 | B118: Norte | C118: 104 | D118: Totatiche | E118: 587.4417129 | F118: 7.549685191 | G118: 54
A119: 4 | B119: Ciénega | C119: 105 | D119: Tototlán | E119: 337.0685541 | F119: 64.88591041 | G119: 99
A120: 7 | B120: Sierra de Amula | C120: 106 | D120: Tuxcacuesco | E120: 428.8157688 | F120: 9.873704066 | G120: 20
A121: 4 | B121: Ciénega | C121: 107 | D121: Tuxcueca | E121: 137.7729416 | F121: 45.84354464 | G121: 22
A122: 6 | B122: Sur | C122: 108 | D122: Tuxpan | E122: 726.3609333 | F122: 47.05924897 | G122: 77
A123: 2 | B123: Altos Norte | C123: 109 | D123: Unión de San Antonio | E123: 728.4821095 | F123: 23.78232735 | G123: 144
A124: 7 | B124: Sierra de Amula | C124: 110 | D124: Unión de Tula | E124: 443.6133911 | F124: 30.96615268 | G124: 48
A125: 3 | B125: Altos Sur | C125: 111 | D125: Valle de Guadalupe | E125: 351.7083946 | F125: 19.06408861 | G125: 86
A126: 5 | B126: Sureste | C126: 112 | D126: Valle de Juárez | E126: 195.634065 | F126: 29.63696532 | G126: 39
A127: 6 | B127: Sur | C127: 113 | D127: San Gabriel | E127: 747.4475601 | F127: 20.48304231 | G127: 63
A128: 12 | B128: Centro | C128: 114 | D128: Villa Corona | E128: 318.0198657 | F128: 53.35830189 | G128: 25
A129: 1 | B129: Norte | C129: 115 | D129: Villa Guerrero | E129: 673.3557964 | F129: 8.372987996 | G129: 61
A130: 2 | B130: Altos Norte | C130: 116 | D130: Villa Hidalgo | E130: 451.9624058 | F130: 41.39946102 | G130: 41
A131: 3 | B131: Altos Sur | C131: 117 | D131: Cañadas de Obregón | E131: 272.2762131 | F131: 15.24922046 | G131: 45
A132: 3 | B132: Altos Sur | C132: 118 | D132: Yahualica de González Gallo | E132: 563.4270399 | F132: 39.55081745 | G132: 154
A133: 6 | B133: Sur | C133: 119 | D133: Zacoalco de Torres | E133: 479.8093552 | F133: 58.15017923 | G133: 34
A134: 12 | B134: Centro | C134: 120 | D134: Zapopan | E134: 1163.629906 | F134: 1068.858744 | G134: 234
A135: 6 | B135: Sur | C135: 121 | D135: Zapotiltic | E135: 252.8287686 | F135: 115.461544 | G135: 30
A136: 6 | B136: Sur | C136: 122 | D136: Zapotitlán de Vadillo | E136: 305.8337009 | F136: 21.85828436 | G136: 37
A137: 4 | B137: Ciénega | C137: 123 | D137: Zapotlán del Rey | E137: 399.807617 | F137: 43.98365427 | G137: 58
A138: 12 | B138: Centro | C138: 124 | D138: Zapotlanejo | E138: 719.4586174 | F138: 88.44984056 | G138: 200
A139: 3 | B139: Altos Sur | C139: 125 | D139: San Ignacio Cerro Gordo | E139: 225 | F139: 78.33777778 | G139: 74

Sheet Viv (hidden)
A1: Clave | B1: Región | C1: Clave | D1: Municipio | E1: Total de viviendas particulares habitadas | F1: Promedio de ocupantes por vivienda | G1: Porcentaje de viviendas con piso de tierra | H1: Agua entubada dentro de la vivienda | I1: Drenaje | J1: Servicio de sanitario | K1: Electricidad | L1: Teléfono | M1: Teléfono Celular | N1: Computadora | O1: Internet
C2: 14 | D2: Jalisco | E2: 1830334 | F2: 0.0401321 | G2: 0.0302425 | H2: 0.9044970705 | I2: 0.9740049719 | J2: 0.9768795529 | K2: 0.989544808 | L2: 0.5527966931 | M2: 0.7542266555 | N2: 0.3620872856 | O2: 0.2703677221 | Q2: =VLOOKUP(Datos!E141,C15:O139,1,FALSE) -> 1 | S2: =VLOOKUP(DatosR!F141,C2:O14,1,FALSE) -> 14
A3: 1 | B3: Norte | C3: 1 | D3: Norte | E3: 19431 | F3: 0.04 | G3: 0.1218360996 | H3: 0.7338289195 | I3: 0.741882195 | J3: 0.7581436167 | K3: 0.8431676217 | L3: 0.3408187497 | M3: 0.4504155697 | N3: 0.1630788292 | O3: 0.07960353105 | U3: max | V3: min | W3: val
A4: 2 | B4: Altos Norte | C4: 2 | D4: Altos Norte | E4: 90685 | F4: 0.042 | G4: 0.02358501032 | H4: 0.8709024999 | I4: 0.9208350832 | J4: 0.9308481245 | K4: 0.985842488 | L4: 0.386463606 | M4: 0.6340929688 | N4: 0.2150261931 | O4: 0.1383811145 | Q4: =VLOOKUP(Q$2,C$15:O$139,6,FALSE) -> 0.8048734057 | S4: =VLOOKUP(S$2,C$2:O$14,6,FALSE) -> 0.9044970705 | U4: =IF(S4=MAX($S$4:$S$7), S4, NA()) ->  | V4: =IF(S4=MIN($S$4:$S$7), S4, NA()) -> 0.9044970705 | W4: =IF(AND(ISNA(U4), ISNA(V4)), S4, NA()) -> 
A5: 3 | B5: Altos Sur | C5: 3 | D5: Altos Sur | E5: 95115 | F5: 0.039 | G5: 0.01417089679 | H5: 0.8930427176 | I5: 0.9625206842 | J5: 0.9663993086 | K5: 0.9890808293 | L5: 0.4250993371 | M5: 0.7231631868 | N5: 0.2390834642 | O5: 0.1583806743 | Q5: =VLOOKUP(Q$2,C$15:O$139,7,FALSE) -> 0.962307253 | S5: =VLOOKUP(S$2,C$2:O$14,7,FALSE) -> 0.9740049719 | U5: =IF(S5=MAX($S$4:$S$7), S5, NA()) ->  | V5: =IF(S5=MIN($S$4:$S$7), S5, NA()) ->  | W5: =IF(AND(ISNA(U5), ISNA(V5)), S5, NA()) -> 0.9740049719
A6: 4 | B6: Ciénega | C6: 4 | D6: Ciénega | E6: 122334 | F6: 0.041 | G6: 0.02947961639 | H6: 0.8614458326 | I6: 0.9709141388 | J6: 0.973994398 | K6: 0.9909317168 | L6: 0.4334787216 | M6: 0.6166432567 | N6: 0.2256064004 | O6: 0.1502345104 | Q6: =VLOOKUP(Q$2,C$15:O$139,8,FALSE) -> 0.9607843137 | S6: =VLOOKUP(S$2,C$2:O$14,8,FALSE) -> 0.9768795529 | U6: =IF(S6=MAX($S$4:$S$7), S6, NA()) ->  | V6: =IF(S6=MIN($S$4:$S$7), S6, NA()) ->  | W6: =IF(AND(ISNA(U6), ISNA(V6)), S6, NA()) -> 0.9768795529
A7: 5 | B7: Sureste | C7: 5 | D7: Sureste | E7: 31553 | F7: 0.037 | G7: 0.05521609064 | H7: 0.8109705714 | I7: 0.9317040615 | J7: 0.9343100489 | K7: 0.9636115172 | L7: 0.4455920676 | M7: 0.5148731965 | N7: 0.1790821839 | O7: 0.1242293269 | Q7: =VLOOKUP(Q$2,C$15:O$139,9,FALSE) -> 0.9927660385 | S7: =VLOOKUP(S$2,C$2:O$14,9,FALSE) -> 0.989544808 | U7: =IF(S7=MAX($S$4:$S$7), S7, NA()) -> 0.989544808 | V7: =IF(S7=MIN($S$4:$S$7), S7, NA()) ->  | W7: =IF(AND(ISNA(U7), ISNA(V7)), S7, NA()) -> 
A8: 6 | B8: Sur | C8: 6 | D8: Sur | E8: 82043 | F8: 0.04 | G8: 0.06276331026 | H8: 0.9033935178 | I8: 0.9670235125 | J8: 0.9707968191 | K8: 0.9838005924 | L8: 0.4643133688 | M8: 0.6243777731 | N8: 0.2465431841 | O8: 0.1647595285
A9: 7 | B9: Sierra de Amula | C9: 7 | D9: Sierra de Amula | E9: 25876 | F9: 0.037 | G9: 0.03759077317 | H9: 0.8429934823 | I9: 0.9616697703 | J9: 0.9617473619 | K9: 0.9852188082 | L9: 0.4639587213 | M9: 0.5421710118 | N9: 0.2116309745 | O9: 0.1329919305 | Q9: =VLOOKUP(Q$2,C$15:O$139,10,FALSE) -> 0.3571292595 | S9: =VLOOKUP(S$2,C$2:O$14,10,FALSE) -> 0.5527966931
A10: 8 | B10: Costa Sur | C10: 8 | D10: Costa Sur | E10: 44842 | F10: 0.038 | G10: 0.06137492415 | H10: 0.7595940587 | I10: 0.9430069225 | J10: 0.9393104375 | K10: 0.9666644264 | L10: 0.4135582588 | M10: 0.5615744786 | N10: 0.2340659094 | O10: 0.1655353182 | Q10: =VLOOKUP(Q$2,C$15:O$139,11,FALSE) -> 0.7028364744 | S10: =VLOOKUP(S$2,C$2:O$14,11,FALSE) -> 0.7542266555
A11: 9 | B11: Costa Norte | C11: 9 | D11: Costa Norte | E11: 80199 | F11: 0.038 | G11: 0.02520431556 | H11: 0.8338462722 | I11: 0.9628632248 | J11: 0.9673386166 | K11: 0.9848683029 | L11: 0.456592547 | M11: 0.8042112282 | N11: 0.3694442307 | O11: 0.3004539509 | Q11: =VLOOKUP(Q$2,C$15:O$139,12,FALSE) -> 0.1364934323 | S11: =VLOOKUP(S$2,C$2:O$14,12,FALSE) -> 0.3620872856
A12: 10 | B12: Sierra Occidental | C12: 10 | D12: Sierra Occidental | E12: 16262 | F12: 0.037 | G12: 0.05025280552 | H12: 0.8159142699 | I12: 0.9289893453 | J12: 0.9297899858 | K12: 0.9603990885 | L12: 0.3738991193 | M12: 0.5126562789 | N12: 0.1662252879 | O12: 0.09576892283 | Q12: =VLOOKUP(Q$2,C$15:O$139,13,FALSE) -> 0.07405292214 | S12: =VLOOKUP(S$2,C$2:O$14,13,FALSE) -> 0.2703677221
A13: 11 | B13: Valles | C13: 11 | D13: Valles | E13: 87388 | F13: 0.04 | G13: 0.02743041549 | H13: 0.8388445895 | I13: 0.972700324 | J13: 0.9730679964 | K13: 0.9872004044 | L13: 0.4415515775 | M13: 0.6300985822 | N13: 0.2213502769 | O13: 0.137222235
A14: 12 | B14: Centro | C14: 12 | D14: Centro | E14: 1134606 | F14: 0.041 | G14: 0.02669015088 | H14: 0.9372992728 | I14: 0.9884935938 | J14: 0.9908298194 | K14: 0.9954023009 | L14: 0.6293182797 | M14: 0.8257737734 | N14: 0.4386898404 | O14: 0.3373531303
A15: 3 | B15: Altos Sur | C15: 1 | D15: Acatic | E15: 5254 | F15: 0.04031785 | G15: 0.02398629 | H15: 0.8048734057 | I15: 0.962307253 | J15: 0.9607843137 | K15: 0.9927660385 | L15: 0.3571292595 | M15: 0.7028364744 | N15: 0.1364934323 | O15: 0.07405292214
A16: 12 | B16: Centro | C16: 2 | D16: Acatlán de Juárez | E16: 5361 | F16: 0.04058537 | G16: 0.01402656 | H16: 0.9530577894 | I16: 0.989152796 | J16: 0.9872825884 | K16: 0.9934542734 | L16: 0.3873199925 | M16: 0.7589302413 | N16: 0.2513559005 | O16: 0.1599027492 | U16: max | V16: min | W16: val
A17: 11 | B17: Valles | C17: 3 | D17: Ahualulco de Mercado | E17: 5652 | F17: 0.03835371 | G17: 0.03048564 | H17: 0.9280397022 | I17: 0.9840482099 | J17: 0.9836937256 | K17: 0.992201347 | L17: 0.4650833038 | M17: 0.6492378589 | N17: 0.2532789791 | O17: 0.180786955 | U17: =IF(Q4=MAX($Q$4:$Q$7), Q4, NA()) ->  | V17: =IF(Q4=MIN($Q$4:$Q$7), Q4, NA()) -> 0.8048734057 | W17: =IF(AND(ISNA(U17), ISNA(V17)), Q4, NA()) -> 
A18: 6 | B18: Sur | C18: 4 | D18: Amacueca | E18: 1410 | F18: 0.03907026 | G18: 0.05606813 | H18: 0.9496096522 | I18: 0.9815471966 | J18: 0.982966643 | K18: 0.9836763662 | L18: 0.4535131299 | M18: 0.5110007097 | N18: 0.156848829 | O18: 0.08587650816 | U18: =IF(Q5=MAX($Q$4:$Q$7), Q5, NA()) ->  | V18: =IF(Q5=MIN($Q$4:$Q$7), Q5, NA()) ->  | W18: =IF(AND(ISNA(U18), ISNA(V18)), Q5, NA()) -> 0.962307253
A19: 11 | B19: Valles | C19: 5 | D19: Amatitán | E19: 3454 | F19: 0.0423862 | G19: 0.0252247 | H19: 0.8541606263 | I19: 0.9707161496 | J19: 0.9747752972 | K19: 0.9866628008 | L19: 0.3256016237 | M19: 0.6601913598 | N19: 0.1962887794 | O19: 0.1275732096 | U19: =IF(Q6=MAX($Q$4:$Q$7), Q6, NA()) ->  | V19: =IF(Q6=MIN($Q$4:$Q$7), Q6, NA()) ->  | W19: =IF(AND(ISNA(U19), ISNA(V19)), Q6, NA()) -> 0.9607843137
A20: 11 | B20: Valles | C20: 6 | D20: Ameca | E20: 15554 | F20: 0.03677715 | G20: 0.01797608 | H20: 0.771419334 | I20: 0.9749110896 | J20: 0.9731652118 | K20: 0.9905593275 | L20: 0.4874232137 | M20: 0.6373747171 | N20: 0.247462011 | O20: 0.1617846751 | U20: =IF(Q7=MAX($Q$4:$Q$7), Q7, NA()) -> 0.9927660385 | V20: =IF(Q7=MIN($Q$4:$Q$7), Q7, NA()) ->  | W20: =IF(AND(ISNA(U20), ISNA(V20)), Q7, NA()) -> 
A21: 11 | B21: Valles | C21: 7 | D21: San Juanito de Escobedo | E21: 2333 | F21: 0.03819085 | G21: 0.02807775 | H21: 0.792224622 | I21: 0.9710583153 | J21: 0.9688984881 | K21: 0.9866090713 | L21: 0.4190064795 | M21: 0.5637149028 | N21: 0.1611231102 | O21: 0.1006479482
A22: 3 | B22: Altos Sur | C22: 8 | D22: Arandas | E22: 18024 | F22: 0.04033026 | G22: 0.01085444 | H22: 0.8768160312 | I22: 0.9652657946 | J22: 0.9698302254 | K22: 0.9889229056 | L22: 0.3627052602 | M22: 0.7428332869 | N22: 0.2467575842 | O22: 0.1483440022 | U22: max | V22: min | W22: val
A23: 11 | B23: Valles | C23: 9 | D23: El Arenal | E23: 4229 | F23: 0.04175986 | G23: 0.01380814 | H23: 0.8687015504 | I23: 0.9837693798 | J23: 0.9849806202 | K23: 0.9808624031 | L23: 0.3955910853 | M23: 0.7100290698 | N23: 0.230620155 | O23: 0.1216085271 | U23: =IF(Q9=MAX($Q$9:$Q$12), Q9, NA()) ->  | V23: =IF(Q9=MIN($Q$9:$Q$12), Q9, NA()) ->  | W23: =IF(AND(ISNA(U23), ISNA(V23)), Q9, NA()) -> 0.3571292595
A24: 6 | B24: Sur | C24: 10 | D24: Atemajac de Brizuela | E24: 1437 | F24: 0.04634589 | G24: 0.07187718 | H24: 0.7962316818 | I24: 0.9281228193 | J24: 0.9274249826 | K24: 0.9672016748 | L24: 0.2575017446 | M24: 0.5136078158 | N24: 0.09909281228 | O24: 0.06280530356 | U24: =IF(Q10=MAX($Q$9:$Q$12), Q10, NA()) -> 0.7028364744 | V24: =IF(Q10=MIN($Q$9:$Q$12), Q10, NA()) ->  | W24: =IF(AND(ISNA(U24), ISNA(V24)), Q10, NA()) -> 
A25: 7 | B25: Sierra de Amula | C25: 11 | D25: Atengo | E25: 1388 | F25: 0.03891775 | G25: 0.05856833 | H25: 0.8185104845 | I25: 0.8980477223 | J25: 0.9045553145 | K25: 0.9652928416 | L25: 0.3398409255 | M25: 0.3629790311 | N25: 0.09906001446 | O25: 0.03109182936 | U25: =IF(Q11=MAX($Q$9:$Q$12), Q11, NA()) ->  | V25: =IF(Q11=MIN($Q$9:$Q$12), Q11, NA()) ->  | W25: =IF(AND(ISNA(U25), ISNA(V25)), Q11, NA()) -> 0.1364934323
